{"text_format":"3","workbook":"xlsx","n_sheets":6,"sheets":["List - Permits Issued  (YTD)","Summary of Approved_Autodata","Summary of Submitted _Autodata","List - Notices Submitted (Auto)","List - Notices Submitted","List - Permits Issued"],"not_rendered":{"images":1,"defined_names":14},"read":"whole","date_system":"1900"}

{"sheet":"List - Permits Issued  (YTD)","index":0,"n_rows":2225,"n_cols":12,"rows_kept":2225}
[null,null,"Year to Date Permits Issued Ending Saturday, August 29th, 2026"]
["PermitNumber","District","Permit Type","Operator Name","Well Designation","Well Type ","API #","Sec.","Twp.","Rng.","Field Name","Supplementary Permits"]
[7057263,"Central","Re-Abandon","Aera Energy LLC","Lost Hills Two 17-B","Oil & Gas","0402917553",13,"26S","20E","Lost Hills","No"]
[7057262,"Central","Rework","Aera Energy LLC","WWD3-21","Water Disposal","0403038387",21,"28S","21E","Belridge, South","No"]
[7057261,"Central","Abandon","Aera Energy LLC","Lost Hills Two 8100","Oil & Gas","0402989309",19,"26S","21E","Lost Hills","No"]
[7057260,"Northern","Abandon","Aera Energy LLC","Orradre 852-2","Water Disposal","0405320069",2,"23S","10E","San Ardo","No"]
[7057259,"Northern","Abandon","Aera Energy LLC","Orradre T 2-6","Oil & Gas","0405300010",6,"23S","11E","San Ardo","No"]
[7057258,"Northern","Abandon","Aera Energy LLC","Orradre 5340-11","Steamflood","0405321513",11,"23S","10E","San Ardo","No"]
[7057257,"Southern","Abandon","E & B Natural Resources Management Corporation","ANGUS B-4","Oil & Gas","0405921482","02","06S","11W","Huntington Beach","No"]
[7057256,"Northern","Abandon","Golden Gate Oil Operations, LLC","Bognuda 5","Oil & Gas","0408322759",24,"09N","35W","Casmalia","No"]
[7057255,"Northern","Abandon","Golden Gate Oil Operations, LLC","Bognuda 4","Oil & Gas","0408322749",24,"09N","35W","Casmalia","No"]
[7057254,"Northern","Abandon","Golden Gate Oil Operations, LLC","Bognuda 3","Oil & Gas","0408322748",24,"09N","35W","Casmalia","No"]
[7057253,"Northern","Abandon","Golden Gate Oil Operations, LLC","Bognuda 2","Oil & Gas","0408322747",24,"09N","35W","Casmalia","No"]
[7057252,"Northern","Abandon","Golden Gate Oil Operations, LLC","Bognuda 1","Oil & Gas","0408322746",24,"09N","35W","Casmalia","No"]
[7057251,"Southern","Abandon","Sentinel Peak Resources California LLC","BC 233","Oil & Gas","0403707736","17","02S","14W","Inglewood","No"]
[7057250,"Central","Abandon","Aera Energy LLC","DTR 612SAA-34","Steamflood","0403003804",34,"28S","21E","Belridge, South","No"]
[7057249,"Central","Abandon","Aera Energy LLC","Lost Hills Govt. 4343","Oil & Gas","0403038645",18,"26S","21E","Lost Hills","No"]
[7057248,"Central","Abandon","Aera Energy LLC","DTR 665KAA-29","Steamflood","0403006554",29,"28S","21E","Belridge, South","No"]
[7057247,"Central","Abandon","Aera Energy LLC","WWD5-27","Water Disposal","0403037305",27,"28S","21E","Belridge, South","No"]
[7057246,"Central","Abandon","Berry Petroleum Company, LLC","Fairfield 55-74","Cyclic Steam","0403065597",11,"31S","22E","Midway-Sunset","No"]
[7057245,"Central","Abandon","Aera Energy LLC","National USL 6-0","Oil & Gas","0402983485",35,"32S","23E","Midway-Sunset","No"]
[7057244,"Central","Abandon","Aera Energy LLC","National USL 4-0","Oil & Gas","0402980659",35,"32S","23E","Midway-Sunset","No"]
[7057243,"Central","Abandon","Aera Energy LLC","Lockwood 57","Observation","0402937409",16,"32S","23E","Midway-Sunset","No"]
[7057242,"Central","Abandon","Aera Energy LLC","Lockwood 21-B","Oil & Gas","0402972976",16,"32S","23E","Midway-Sunset","No"]
[7057241,"Central","Abandon","Aera Energy LLC","Lost Hills Two 6045","Steamflood","0403008785",19,"26S","21E","Lost Hills","No"]
[7057240,"Central","Abandon","Sentinel Peak Resources California LLC","Star Fee J37-1","Cyclic Steam","0403066294",7,"30S","22E","Cymric","No"]
[7057239,"Central","Abandon","Sentinel Peak Resources California LLC","Star Fee B33-1","Cyclic Steam","0403066858",7,"30S","22E","Cymric","No"]
[7057238,"Central","Abandon","Aera Energy LLC","DTR 85SAA-29","Oil & Gas","0403006345",29,"28S","21E","Belridge, South","No"]
[7057237,"Central","Sidetrack","Aera Energy LLC","DTR 514DR2-34","Waterflood","0403050568",34,"28S","21E","Belridge, South","No"]
[7057236,"Central","Abandon","Sentinel Peak Resources California LLC","Star Fee H17-1","Cyclic Steam","0403067103",6,"30S","22E","Cymric","No"]
[7057235,"Central","Abandon","Aera Energy LLC","DTR 65HAA-29","Oil & Gas","0403006579",29,"28S","21E","Belridge, South","No"]
[7057234,"Central","Rework","Aera Energy LLC","Call S32CL-3-3I","Steamflood","0401926313",32,"19S","15E","Coalinga","No"]
[7057233,"Central","Rework","Aera Energy LLC","CMS 651I","Steamflood","0401925077",31,"19S","15E","Coalinga","No"]
[7057232,"Northern","Rework","Southern California Gas Company","Fernando Fee 35C","Gas Storage","0403721279",34,"03N","16W","Aliso Canyon","No"]
[7057231,"Central","Sidetrack","Aera Energy LLC","DTR 525CR2-34","Waterflood","0403059726",34,"28S","21E","Belridge, South","No"]
[7057230,"Central","Abandon","Aera Energy LLC","Buena Fe 174","Oil & Gas","0402975141",22,"32S","23E","Midway-Sunset","No"]
[7057229,"Central","Abandon","Aera Energy LLC","Lost Hills Two 5139A","Steamflood","0402988978",19,"26S","21E","Lost Hills","No"]
[7057228,"Central","Abandon","Aera Energy LLC","Lost Hills Two 5189","Steamflood","0402988793",19,"26S","21E","Lost Hills","No"]
[7057227,"Central","Abandon","Aera Energy LLC","Buena Fe 54","Oil & Gas","0402915702",22,"32S","23E","Midway-Sunset","No"]
[7057226,"Central","Abandon","Aera Energy LLC","DTR 64KM-34","Oil & Gas","0402981700",34,"28S","21E","Belridge, South","No"]
[7057225,"Central","Abandon","Aera Energy LLC","Western 8-4M","Steamflood","0402973740",21,"31S","22E","Midway-Sunset","No"]
[7057224,"Southern","Sidetrack","THUMS Long Beach Co.","D-213","Oil & Gas","0423720483","17","05S","12W","Wilmington","No"]
[7057223,"Central","Abandon","Aera Energy LLC","Gore C 7-5N","Steamflood","0402973733",21,"31S","22E","Midway-Sunset","No"]
[7057222,"Southern","Re-Abandon","Sycamore Development Partners LLC","100 Acre 41","Oil & Gas","0405907045","08","03S","09W","Brea-Olinda","No"]
[7057221,"Central","Abandon","Aera Energy LLC","Wilbert I-13","Steamflood","0403000639",26,"32S","23E","Midway-Sunset","No"]
[7057220,"Central","Abandon","Aera Energy LLC","Wilbert I-26","Steamflood","0402972779",26,"32S","23E","Midway-Sunset","No"]
[7057219,"Central","Abandon","Aera Energy LLC","Wilbert I-14","Steamflood","0402965305",26,"32S","23E","Midway-Sunset","No"]
[7057218,"Central","Abandon","Aera Energy LLC","Kendon 104","Oil & Gas","0402971751",35,"32S","23E","Midway-Sunset","No"]
[7057217,"Central","Abandon","Aera Energy LLC","Kendon 125A","Cyclic Steam","0403018775",35,"32S","23E","Midway-Sunset","No"]
[7057216,"Central","Abandon","Aera Energy LLC","Kendon 247","Oil & Gas","0402975576",35,"32S","23E","Midway-Sunset","No"]
[7057215,"Central","Abandon","Aera Energy LLC","Kendon 115","Observation","0402969661",35,"32S","23E","Midway-Sunset","No"]
[7057214,"Central","Abandon","Aera Energy LLC","Kendon 402AI","Steamflood","0403025748",35,"32S","23E","Midway-Sunset","No"]
[7057212,"Central","Abandon","E & B Natural Resources Management Corporation","Mohawk-Imperial 18","Oil & Gas","0402950275",4,"28S","27E","Poso Creek","No"]
[7057211,"Southern","Rework","THUMS Long Beach Co.","A-866 I","Oil & Gas","0423720178","07","05S","12W","Wilmington","No"]
[7057210,"Northern","Abandon","Pioneer Exploration, LLC","Victor Ranch 1-20","Dry Gas","0410320258",20,"23N","02W","Rice Creek, East, Gas","No"]
[7057209,"Central","Abandon","Aera Energy LLC","DTR 686MAA-29","Steamflood","0403006559",29,"28S","21E","Belridge, South","No"]
[7057208,"Central","Abandon","Aera Energy LLC","DTR 463-33","Observation","0402979513",33,"28S","21E","Belridge, South","No"]
[7057207,"Central","Abandon","Aera Energy LLC","DTR 85RR-33","Oil & Gas","0402985648",33,"28S","21E","Belridge, South","No"]
[7057206,"Central","Rework","California Resources Elk Hills, LLC","384X-31R","Oil & Gas","0403038117",31,"30S","23E","Asphalto","No"]
[7057205,"Central","Abandon","Aera Energy LLC","National USL 6-1A","Oil & Gas","0403038478",35,"32S","23E","Midway-Sunset","No"]
[7057204,"Central","Abandon","Aera Energy LLC","National USL T-27I","Steamflood","0403049433",35,"32S","23E","Midway-Sunset","No"]
[7057203,"Central","Rework","Berry Petroleum Company, LLC","20i","Cyclic Steam","0403065221",2,"31S","22E","Midway-Sunset","No"]
[7057202,"Central","Rework","Berry Petroleum Company, LLC","14i","Cyclic Steam","0403067350",35,"30S","22E","Midway-Sunset","No"]
[7057201,"Central","Rework","Berry Petroleum Company, LLC","Olig Potter 21G","Cyclic Steam","0403068351",2,"31S","22E","Midway-Sunset","No"]
[7057200,"Central","Rework","Berry Petroleum Company, LLC","16i","Cyclic Steam","0403067575",35,"30S","22E","Midway-Sunset","No"]
[7057199,"Central","Rework","Chevron U.S.A. Inc.","G240","Cyclic Steam","0403032309",21,"32S","23E","Midway-Sunset","No"]
[7057198,"Southern","Re-Abandon","Sycamore Development Partners LLC","100 Acre 50","Oil & Gas","0405907050","08","03S","09W","Brea-Olinda","No"]
[7057197,"Central","Rework","Chevron U.S.A. Inc.","G250R","Cyclic Steam","0403023504",21,"32S","23E","Midway-Sunset","No"]
[7057196,"Central","Rework","Chevron U.S.A. Inc.","P200","Cyclic Steam","0403026267",21,"32S","23E","Midway-Sunset","No"]
[7057195,"Central","Abandon","Aera Energy LLC","Maxwell BC-12","Oil & Gas","0403023289",27,"31S","22E","Midway-Sunset","No"]
[7057194,"Central","Abandon","Aera Energy LLC","Maxwell I-5","Oil & Gas","0402964137",27,"31S","22E","Midway-Sunset","No"]
[7057193,"Central","Abandon","Aera Energy LLC","Maxwell E-6","Oil & Gas","0402961066",27,"31S","22E","Midway-Sunset","No"]
[7057192,"Central","Abandon","Aera Energy LLC","Maxwell A-4","Oil & Gas","0402961056",27,"31S","22E","Midway-Sunset","No"]
[7057191,"Central","Abandon","Aera Energy LLC","Maxwell 70","Oil & Gas","0402925710",27,"31S","22E","Midway-Sunset","No"]
[7057190,"Central","Abandon","Aera Energy LLC","Maxwell 832","Oil & Gas","0403030354",27,"31S","22E","Midway-Sunset","No"]
[7057189,"Central","Abandon","Aera Energy LLC","Maxwell BC-10","Oil & Gas","0403010004",27,"31S","22E","Midway-Sunset","No"]
[7057188,"Central","Abandon","Aera Energy LLC","Maxwell 383","Oil & Gas","0403020662",27,"31S","22E","Midway-Sunset","No"]
[7057187,"Central","Abandon","Aera Energy LLC","Maxwell M-10","Oil & Gas","0402964157",27,"31S","22E","Midway-Sunset","No"]
[7057186,"Central","Abandon","Aera Energy LLC","Maxwell 302","Steamflood","0402989423",27,"31S","22E","Midway-Sunset","No"]
[7057185,"Central","Abandon","Aera Energy LLC","Maxwell 345","Oil & Gas","0403004599",27,"31S","22E","Midway-Sunset","No"]
[7057184,"Central","Abandon","Aera Energy LLC","Maxwell 238","Oil & Gas","0402975777",27,"31S","22E","Midway-Sunset","No"]
[7057183,"Central","New Drill","California Resources Production Corporation","Griffiths Fee 92BH","Oil & Gas","0403070311",5,"27S","28E","Mount Poso","No"]
[7057182,"Central","New Drill","California Resources Production Corporation","Mack Fee 95BH","Oil & Gas","0403070310",5,"27S","28E","Mount Poso","No"]
[7057181,"Central","New Drill","California Resources Production Corporation","Matthew Fee 94BH","Oil & Gas","0403070309",4,"27S","28E","Mount Poso","No"]
[7057180,"Central","Abandon","Aera Energy LLC","DTR 31KM-34","Observation","0402987222",34,"28S","21E","Belridge, South","No"]
[7057179,"Central","Abandon","Aera Energy LLC","DTR 77MR-29","Oil & Gas","0402979579",29,"28S","21E","Belridge, South","No"]
[7057178,"Southern","Rework","Signal Hill Petroleum, Inc.","62-1","Oil & Gas","0403710909","29","04S","12W","Long Beach","No"]
[7057177,"Central","Abandon","Aera Energy LLC","DTR 75JR-34","Oil & Gas","0402977824",34,"28S","21E","Belridge, South","No"]
[7057176,"Central","Abandon","Aera Energy LLC","DTR 52SL-34","Oil & Gas","0402982396",34,"28S","21E","Belridge, South","No"]
[7057175,"Central","Abandon","Aera Energy LLC","DTR 53HL-34","Oil & Gas","0402980006",34,"28S","21E","Belridge, South","No"]
[7057174,"Central","Abandon","Aera Energy LLC","DTR 71JR2-29","Waterflood","0402987949",29,"28S","21E","Belridge, South","No"]
[7057172,"Southern","Sidetrack","THUMS Long Beach Co.","D-606 I","Injection","0423720133","17","05S","12W","Wilmington","No"]
[7057171,"Southern","Abandon","THUMS Long Beach Co.","A-138","Oil & Gas","0423721908","07","05S","12W","Wilmington","No"]
[7057170,"Southern","Abandon","California Resources Production Corporation","Water Source Well 2-A","Oil & Gas","0405921507",3,"06S","11W","Huntington Beach","No"]
[7057169,"Northern","Abandon","Chevron U.S.A. Inc.","Rosenberg (NCT-1) TO-7","Observation","0405321586",3,"23S","10E","San Ardo","No"]
[7057168,"Southern","Abandon","THUMS Long Beach Co.","A-228","Oil & Gas","0423720176","07","05S","12W","Wilmington","No"]
[7057167,"Northern","Abandon","Chevron U.S.A. Inc.","Rosenberg (NCT-1) D9B","Cyclic Steam","0405322331",3,"23S","10E","San Ardo","No"]
[7057166,"Northern","Abandon","Chevron U.S.A. Inc.","Rosenberg (NCT-1) 401","Observation","0405320646",3,"23S","10E","San Ardo","No"]
[7057165,"Northern","Abandon","Chevron U.S.A. Inc.","Dudley 36B","Oil & Gas","0405322639",3,"23S","10E","San Ardo","No"]
[7057164,"Northern","Rework","Southern California Gas Company","Fernando Fee 32F","Gas Storage","0403721313",27,"03N","16W","Aliso Canyon","No"]
[7057163,"Northern","Abandon","Chevron U.S.A. Inc.","Orradre N7-10","Oil & Gas","0405322258",10,"23S","10E","San Ardo","No"]
[7057162,"Northern","Abandon","Chevron U.S.A. Inc.","Rosenberg (NCT-1) 5427","Oil & Gas","0405322313",2,"23S","10E","San Ardo","No"]
[7057161,"Northern","Abandon","Chevron U.S.A. Inc.","Rosenberg (NCT-1) 448A","Cyclic Steam","0405322082",2,"23S","10E","San Ardo","No"]
[7057160,"Northern","Abandon","Chevron U.S.A. Inc.","Rosenberg (NCT-1) 527","Oil & Gas","0405322100",2,"23S","10E","San Ardo","No"]
[7057159,"Northern","Abandon","Chevron U.S.A. Inc.","Rosenberg (NCT-1) 26A","Oil & Gas","0405321960",2,"23S","10E","San Ardo","No"]
[7057158,"Central","Abandon","Aera Energy LLC","DTR 64EU-34","Oil & Gas","0402989945",34,"28S","21E","Belridge, South","No"]
[7057157,"Central","Abandon","Aera Energy LLC","DTR 54R1-34","Oil & Gas","0403001870",34,"28S","21E","Belridge, South","No"]
[7057156,"Northern","Abandon","Chevron U.S.A. Inc.","Orradre Q4U-10","Oil & Gas","0405320347",10,"23S","10E","San Ardo","No"]
[7057155,"Northern","Abandon","Chevron U.S.A. Inc.","Orradre B8A","Oil & Gas","0405322141",11,"23S","10E","San Ardo","No"]
[7057154,"Northern","Abandon","Chevron U.S.A. Inc.","Rosenberg (NCT-1) 450","Oil & Gas","0405320737",3,"23S","10E","San Ardo","No"]
[7057153,"Northern","Abandon","Chevron U.S.A. Inc.","Rosenberg (NCT-1) 121","Observation","0405300868",11,"23S","10E","San Ardo","No"]
[7057152,"Central","Abandon","Aera Energy LLC","DTR 463-29","Observation","0402979509",29,"28S","21E","Belridge, South","No"]
[7057151,"Central","Abandon","Aera Energy LLC","DTR 52SR-34","Oil & Gas","0402975711",34,"28S","21E","Belridge, South","No"]
[7057150,"Northern","Abandon","Chevron U.S.A. Inc.","Rosenberg (NCT-1) WI-18","Water Disposal","0405321956",27,"22S","10E","San Ardo","No"]
[7057149,"Central","Rework","Aera Energy LLC","Belridge III 8058B-3","Waterflood","0403063268",3,"29S","21E","Belridge, South","No"]
[7057148,"Central","Re-Abandon","Aera Energy LLC",12,"Oil & Gas","0402911456",13,"26S","20E","Lost Hills","No"]
[7057147,"Central","Rework","Aera Energy LLC","Call 1-4BI","Steamflood","0401925308",32,"19S","15E","Coalinga","No"]
[7057146,"Central","Rework","Aera Energy LLC","Call S32CL-3-5I","Steamflood","0401926059",32,"19S","15E","Coalinga","No"]
[7057145,"Central","Rework","Aera Energy LLC","Call S32CL-2-1BI","Steamflood","0401926324",32,"19S","15E","Coalinga","No"]
[7057144,"Central","Rework","California Resources Elk Hills, LLC","43E-33S","Oil & Gas","0403020460",33,"30S","24E","Elk Hills","No"]
[7057143,"Central","Abandon","California Resources Elk Hills, LLC","46-5G","Oil & Gas","0402929091",5,"31S","24E","Elk Hills","No"]
[7057142,"Central","Sidetrack","Petro-Lud, Inc.","Unpsecified 87","Oil & Gas","0401905236",21,"21S","15E","Jacalitos","No"]
[7057141,"Central","Abandon","Chevron U.S.A. Inc.","Spreckels 524","Oil & Gas","0402905273",16,"30S","22E","McKittrick","No"]
[7057140,"Central","Abandon","California Resources Elk Hills, LLC","342-15R","Oil & Gas","0403035620",15,"30S","23E","Elk Hills","No"]
[7057139,"Central","Rework","Aera Energy LLC","Marina 3481B-11","Cyclic Steam","0403059186",11,"29S","21E","Belridge, South","No"]
[7057138,"Central","Abandon","Aera Energy LLC","DTR 743LO22-29","Observation","0403012038",29,"28S","21E","Belridge, South","No"]
[7057137,"Northern","Abandon","Aera Energy LLC","Orradre 1622H-12","Oil & Gas","0405321896",12,"23S","10E","San Ardo","No"]
[7057135,"Southern","Re-Abandon","Manley Energy Resources LLC","Hatch 1","Oil & Gas","0403723899","20","01S","13W","Los Angeles City","No"]
[7057134,"Central","Abandon","E & B Natural Resources Management Corporation","Mohawk-Imperial 16","Oil & Gas","0402950327",4,"28S","27E","Poso Creek","No"]
[7057133,"Northern","Abandon","Aera Energy LLC","Orradre 1115-11","Oil & Gas","0405321438",11,"23S","10E","San Ardo","No"]
[7057132,"Northern","Abandon","Aera Energy LLC","Orradre 1463-11","Oil & Gas","0405321536",11,"23S","10E","San Ardo","No"]
[7057131,"Central","Abandon","Aera Energy LLC","78S-18","Oil & Gas","0402979826",18,"28S","21E","Belridge, South","No"]
[7057130,"Central","Abandon","Aera Energy LLC","King 10-8-19","Oil & Gas","0403006606",19,"28S","21E","Belridge, South","No"]
[7057129,"Central","Abandon","Aera Energy LLC","83N-13","Oil & Gas","0402971768",13,"28S","20E","Belridge, South","No"]
[7057128,"Northern","Abandon","Aera Energy LLC","Orradre 537A-1","Steamflood","0405321454",1,"23S","10E","San Ardo","No"]
[7057127,"Central","Abandon","E & B Natural Resources Management Corporation","Aron Land Co. 119","Oil & Gas","0402937585",19,"26S","19E","Blackwells Corner","No"]
[7057126,"Central","Abandon","Aera Energy LLC","King 81A-30","Observation","0402937835",30,"28S","21E","Belridge, South","No"]
[7057125,"Central","Abandon","Aera Energy LLC","42J-1","Observation","0402959488",1,"28S","20E","Belridge, North","No"]
[7057124,"Central","Abandon","Aera Energy LLC","DTR 34M2-28","Observation","0402972984",28,"28S","21E","Belridge, South","No"]
[7057123,"Southern","Abandon","Bridgeland Resources, LLC","unnamed W-200-C","Waterflood","0403714770",31,"02S","11W","Santa Fe Springs","No"]
[7057122,"Central","Abandon","E & B Natural Resources Management Corporation","M & L 11X-16Y","Oil & Gas","0402901512",16,"30S","21E","Belgian Anticline","No"]
[7057121,"Central","Rework","Chevron U.S.A. Inc.","Premier C-1","Steamflood","0401924711",24,"20S","14E","Coalinga","No"]
[7057120,"Central","Rework","Chevron U.S.A. Inc.","Premier C-2","Steamflood","0401924712",24,"20S","14E","Coalinga","No"]
[7057119,"Central","Rework","Chevron U.S.A. Inc.","Premier C-3","Steamflood","0401924909",24,"20S","14E","Coalinga","No"]
[7057118,"Central","Rework","Chevron U.S.A. Inc.","Premier F-1","Steamflood","0401925719",24,"20S","14E","Coalinga","No"]
[7057109,"Northern","Abandon","Carbon California Operating Company, LLC","Bonebrake B 61-6","Oil & Gas","0411120222",6,"04N","19W","Sespe","No"]
[7057108,"Central","Abandon","Aera Energy LLC","DTR 88(9)-34","Observation","0402933913",34,"28S","21E","Belridge, South","No"]
[7057107,"Central","Abandon","Aera Energy LLC","52-1","Observation","0402959657",1,"28S","20E","Belridge, North","No"]
[7057106,"Central","Abandon","Aera Energy LLC","DTR 42HR-34","Observation","0402968410",34,"28S","21E","Belridge, South","No"]
[7057104,"Central","Abandon","Aera Energy LLC","82M-13","Oil & Gas","0402971767",13,"28S","20E","Belridge, South","No"]
[7057103,"Central","New Drill","Aera Energy LLC","51K1ECH-29","Oil & Gas","0403070308",29,"28S","21E","Belridge, South","No"]
[7057102,"Central","Abandon","Aera Energy LLC","Marina 3481-11","Oil & Gas","0403028750",11,"29S","21E","Belridge, South","No"]
[7057101,"Central","Rework","Aera Energy LLC","DTR 537CR3-34","Waterflood","0403043696",34,"28S","21E","Belridge, South","No"]
[7057100,"Central","Abandon","Aera Energy LLC","37S-35","Observation","0402978231",35,"28S","21E","Belridge, South","No"]
[7057099,"Central","Abandon","E & B Natural Resources Management Corporation","Section 5 16","Oil & Gas","0402916252",5,"28S","27E","Poso Creek","No"]
[7057098,"Central","Rework","Chevron U.S.A. Inc.","Premier F-2","Steamflood","0401925720",24,"20S","14E","Coalinga","No"]
[7057097,"Central","Abandon","Sentinel Peak Resources California LLC","Ellis Two 37-10","Oil & Gas","0403004959",10,"27S","21E","Lost Hills","No"]
[7057096,"Central","Abandon","Aera Energy LLC","55H2","Oil & Gas","0401923232",29,"19S","15E","Coalinga","No"]
[7057095,"Central","Abandon","Sentinel Peak Resources California LLC","King LH-6-30","Oil & Gas","0403026454",30,"28S","21E","Belridge, South","No"]
[7057094,"Northern","Abandon","Sentinel Peak Resources California LLC","Hyla 16G-5","Oil & Gas","0407921205",31,"31S","13E","Arroyo Grande","No"]
[7057093,"Northern","Abandon","Sentinel Peak Resources California LLC","Hyla 17H-3","Oil & Gas","0407921194",31,"31S","13E","Arroyo Grande","No"]
[7057092,"Central","Sidetrack","Aera Energy LLC","DTR 532AR2-33","Waterflood","0403044276",33,"28S","21E","Belridge, South","No"]
[7057090,"Central","Abandon","Aera Energy LLC","St. Clair 5051-2","Steamflood","0403025621",2,"29S","21E","Belridge, South","No"]
[7057089,"Central","Abandon","E & B Natural Resources Management Corporation","New Hope 5","Oil & Gas","0402914938",29,"27S","27E","Poso Creek","No"]
[7057088,"Central","Abandon","E & B Natural Resources Management Corporation","Section 21 11","Oil & Gas","0402916483",21,"28S","27E","Poso Creek","No"]
[7057082,"Central","Abandon","Aera Energy LLC","17MR2-35","Oil & Gas","0402973389",35,"28S","21E","Belridge, South","No"]
[7057081,"Central","Abandon","Aera Energy LLC","SEBU T 5565-1","Steamflood","0403024741",1,"29S","21E","Belridge, South","No"]
[7057080,"Central","Abandon","Aera Energy LLC","417-35","Observation","0402988305",35,"28S","21E","Belridge, South","No"]
[7057079,"Northern","Abandon","Aera Energy LLC","Orradre 1189-2","Oil & Gas","0405321187",2,"23S","10E","San Ardo","No"]
[7057078,"Northern","Abandon","Aera Energy LLC","Ferrini 5262-11","Steamflood","0405321495",11,"23S","10E","San Ardo","No"]
[7057077,"Northern","Abandon","Aera Energy LLC","Orradre 5274-12","Steamflood","0405322174",12,"23S","10E","San Ardo","No"]
[7057076,"Central","Abandon","Aera Energy LLC","Maxwell 239","Oil & Gas","0402975778",27,"31S","22E","Midway-Sunset","No"]
[7057075,"Northern","Abandon","Aera Energy LLC","Ferrini 1002-11","Oil & Gas","0405321429",11,"23S","10E","San Ardo","No"]
[7057074,"Central","Abandon","Aera Energy LLC","Wilbert B-6","Oil & Gas","0402943278",26,"32S","23E","Midway-Sunset","No"]
[7057073,"Central","Abandon","Aera Energy LLC","Maxwell 247","Oil & Gas","0402975786",27,"31S","22E","Midway-Sunset","No"]
[7057072,"Northern","Abandon","Aera Energy LLC","Orradre 1451-12","Oil & Gas","0405321894",12,"23S","10E","San Ardo","No"]
[7057071,"Central","Abandon","Aera Energy LLC","Maxwell 319","Oil & Gas","0403001862",27,"31S","22E","Midway-Sunset","No"]
[7057070,"Northern","Abandon","Aera Energy LLC","Orradre 203A-1","Oil & Gas","0405321469",1,"23S","10E","San Ardo","No"]
[7057069,"Southern","Rework","Tidelands Oil Production Co.","FX-37","Waterflood","0403702093","02","05S","13W","Wilmington","No"]
[7057068,"Central","Abandon","Aera Energy LLC","Maxwell 163","Oil & Gas","0402959493",27,"31S","22E","Midway-Sunset","No"]
[7057067,"Central","Abandon","Aera Energy LLC","Maxwell I-2","Oil & Gas","0402964134",27,"31S","22E","Midway-Sunset","No"]
[7057066,"Central","Abandon","Aera Energy LLC","Wilbert C-10","Oil & Gas","0402986448",26,"32S","23E","Midway-Sunset","No"]
[7057065,"Central","Abandon","Chevron U.S.A. Inc.","Star 52R","Oil & Gas","0403009689",26,"31S","22E","Midway-Sunset","No"]
[7057064,"Central","Abandon","Aera Energy LLC","Republic USL 2-7","Oil & Gas","0402954862",7,"32S","23E","Midway-Sunset","No"]
[7057063,"Central","Abandon","Aera Energy LLC","Lockwood 13-D","Oil & Gas","0402968709",16,"32S","23E","Midway-Sunset","No"]
[7057062,"Central","Abandon","Aera Energy LLC","Maxwell F-596","Oil & Gas","0403004597",27,"31S","22E","Midway-Sunset","No"]
[7057061,"Central","Abandon","Aera Energy LLC","Lockwood 21-L","Oil & Gas","0402962496",16,"32S","23E","Midway-Sunset","No"]
[7057060,"Central","Abandon","Aera Energy LLC","Republic USL 9-8","Oil & Gas","0402955949",7,"32S","23E","Midway-Sunset","No"]
[7057059,"Central","Abandon","Aera Energy LLC","Willmax 42-P","Oil & Gas","0403018865",16,"32S","23E","Midway-Sunset","No"]
[7057058,"Central","Abandon","Aera Energy LLC","Maxwell 169","Oil & Gas","0402959499",27,"31S","22E","Midway-Sunset","No"]
[7057057,"Central","Abandon","Aera Energy LLC","Maxwell X-45","Oil & Gas","0403008614",27,"31S","22E","Midway-Sunset","No"]
[7057056,"Central","Abandon","Aera Energy LLC","Maxwell 203","Oil & Gas","0402962869",27,"31S","22E","Midway-Sunset","No"]
[7057055,"Northern","Abandon","Astarta Springs Sustainable Farms LLC","Astarta 7","Oil & Gas","0411106210",17,"04N","21W","Ojai","No"]
[7057054,"Northern","Abandon","Carbon California Operating Company, LLC","Cal Pac 78-31","Oil & Gas","0411120965",31,"05N","19W","Sespe","No"]
[7057053,"Southern","Abandon","California Resources Production Corporation","State Prc 392 S-162","Waterflood","0405903085",4,"06S","11W","Huntington Beach","No"]
[7057052,"Central","Abandon","Aera Energy LLC","DTR 52J-34","Oil & Gas","0402952919",34,"28S","21E","Belridge, South","No"]
[7057051,"Central","Abandon","Aera Energy LLC","King 78-19","Observation","0402937798",19,"28S","21E","Belridge, South","No"]
[7057050,"Central","Abandon","Aera Energy LLC","DTR 86KR-29","Oil & Gas","0402961081",29,"28S","21E","Belridge, South","No"]
[7057049,"Central","Abandon","Aera Energy LLC","King 67-19","Observation","0402901315",19,"28S","21E","Belridge, South","No"]
[7057048,"Central","Abandon","Reserve Petroleum California, Inc.","T.V.T. 2-9","Oil & Gas","0403015607",9,"31S","29E","Mountain View","No"]
[7057047,"Northern","Abandon","Unknown Operator","Unknown Hobson Mystery Well","Oil & Gas","0411122420",17,"03N","24W","Rincon","No"]
[7057046,"Southern","Abandon","E & B Natural Resources Management Corporation","ANGUS B-12","Oil & Gas","0405921489","02","06S","11W","Huntington Beach","No"]
[7057045,"Central","Rework","Chevron U.S.A. Inc.","San Joaquin 955","Cyclic Steam","0403043920",5,"29S","28E","Kern River","No"]
[7057044,"Central","Rework","California Resources Production Corporation","Young Fee 82","Cyclic Steam","0402957285",23,"28S","27E","Kern Front","No"]
[7057043,"Central","Rework","California Resources Production Corporation","Young Fee 167","Cyclic Steam","0403059976",23,"28S","27E","Kern Front","No"]
[7057042,"Central","Abandon","E & B Natural Resources Management Corporation","Mohawk-Imperial 110","Oil & Gas","0402950274",4,"28S","27E","Poso Creek","No"]
[7057041,"Central","Abandon","E & B Natural Resources Management Corporation","Mohawk-Imperial 19","Oil & Gas","0402968543",4,"28S","27E","Poso Creek","No"]
[7057040,"Central","Rework","Chevron U.S.A. Inc.","Senator 102","Oil & Gas","0403066480",31,"28S","28E","Kern River","No"]
[7057039,"Central","Rework","Chevron U.S.A. Inc.","Senator 47","Oil & Gas","0402957003",31,"28S","28E","Kern River","No"]
[7057038,"Central","Rework","Chevron U.S.A. Inc.","American Naphtha 3462R","Oil & Gas","0403026812",31,"28S","28E","Kern River","No"]
[7057037,"Central","Rework","Chevron U.S.A. Inc.","Monte Cristo No. 1 50R","Oil & Gas","0403032514",5,"29S","28E","Kern River","No"]
[7057035,"Central","Abandon","E & B Natural Resources Management Corporation","Midway Premier 7","Oil & Gas","0402916066",32,"27S","27E","Poso Creek","No"]
[7057024,"Southern","Abandon","West Energy Operating, LLC","REDU XW15","Waterflood","0405906240","33","03S","09W","Richfield","No"]
[7057023,"Central","New Drill","Aera Energy LLC","62CR1-29","Oil & Gas","0403070307",29,"28S","21E","Belridge, South","No"]
[7057022,"Central","New Drill","Valley Resources, LLC","Elena 14X-32","Oil & Gas","0403070306",32,"26S","20E","Any Field - Central District","No"]
[7057021,"Central","Abandon","E & B Natural Resources Management Corporation","M & L 12-16Y","Oil & Gas","0402901491",16,"30S","21E","Belgian Anticline","No"]
[7057020,"Central","Abandon","Aera Energy LLC","DTR 77J-34","Oil & Gas","0402964328",34,"28S","21E","Belridge, South","No"]
[7057019,"Central","Abandon","Aera Energy LLC","18R-35","Oil & Gas","0402966644",35,"28S","21E","Belridge, South","No"]
[7057018,"Southern","Abandon","Thomas R. Banks","Nance Blinn 5","Oil & Gas","0403722261","28","04S","13W","Wilmington","No"]
[7057017,"Central","Abandon","Aera Energy LLC","DTR 64NR-34","Oil & Gas","0402965728",34,"28S","21E","Belridge, South","No"]
[7057016,"Southern","Abandon","Warren E&P, Inc.","WTU 2385","Oil & Gas","0403730076","33","04S","13W","Wilmington","No"]
[7057015,"Southern","Re-Abandon","Sycamore Development Partners LLC","Olinda Two 10","Oil & Gas","0405906794","08","03S","09W","Brea-Olinda","No"]
[7057014,"Central","Abandon","Aera Energy LLC","Maxwell 417","Steamflood","0403039113",27,"31S","22E","Midway-Sunset","No"]
[7057013,"Central","Abandon","Aera Energy LLC","Lockwood 15-P","Observation","0402952829",16,"32S","23E","Midway-Sunset","No"]
[7057012,"Central","Abandon","Aera Energy LLC","Soudan 9R2","Oil & Gas","0403005491",26,"31S","22E","Midway-Sunset","No"]
[7057011,"Central","Rework","Chevron U.S.A. Inc.","P210","Cyclic Steam","0403026268",21,"32S","23E","Midway-Sunset","No"]
[7057010,"Central","Abandon","Aera Energy LLC","Maxwell 240","Oil & Gas","0402975779",27,"31S","22E","Midway-Sunset","No"]
[7057009,"Central","Abandon","Aera Energy LLC","Maxwell 831","Oil & Gas","0403030353",27,"31S","22E","Midway-Sunset","No"]
[7057008,"Central","Abandon","Aera Energy LLC","Maxwell 374","Oil & Gas","0403010408",27,"31S","22E","Midway-Sunset","No"]
[7057007,"Central","Rework","Chevron U.S.A. Inc.","N220R","Cyclic Steam","0403028355",21,"32S","23E","Midway-Sunset","No"]
[7057006,"Southern","Abandon","Ann Brindle","Copeland 10","Oil & Gas","0405904294",34,"05S","11W","Huntington Beach","No"]
[7057005,"Central","Rework","Chevron U.S.A. Inc.","Q200","Cyclic Steam","0403026269",21,"32S","23E","Midway-Sunset","No"]
[7057004,"Northern","Rework","Southern California Gas Company","Porter 32C","Gas Storage","0403721360",27,"03N","16W","Aliso Canyon","No"]
[7057003,"Central","Abandon","Aera Energy LLC","SEBU T 5094-12","Steamflood","0403031619",12,"29S","21E","Belridge, South","No"]
[7057002,"Central","Abandon","Aera Energy LLC","DTR 52N-34","Oil & Gas","0402952272",34,"28S","21E","Belridge, South","No"]
[7057001,"Central","Abandon","Aera Energy LLC","DTR 614P-33","Steamflood","0402974022",33,"28S","21E","Belridge, South","No"]
[7057000,"Central","Abandon","Aera Energy LLC","SEBU T 5271-1","Steamflood","0403027156",1,"29S","21E","Belridge, South","No"]
["7049593-01","Northern","Rework","Southern California Gas Company","Fernando Fee 35A","Gas Storage","0403721457",27,"03N","16W","Aliso Canyon","Yes"]
[7056999,"Central","Abandon","California Resources Production Corporation","Hamilton 5-13","Oil & Gas","0401920793",13,"15S","17E","Raisin City","No"]
[7056998,"Northern","Rework","Southern California Gas Company","Fernando Fee 32","Gas Storage","0403700686",27,"03N","16W","Aliso Canyon","No"]
[7056997,"Central","Abandon","Aera Energy LLC","56EI","Waterflood","0401922557",29,"19S","15E","Coalinga","No"]
[7056996,"Central","Abandon","California Resources Elk Hills, LLC","367-35B","Oil & Gas","0402909594",35,"31S","23E","Buena Vista","No"]
[7056995,"Central","Abandon","Aera Energy LLC","Sunbeam 25-T-7","Observation","0402955354",25,"29S","21E","Cymric","No"]
[7056994,"Southern","Sidetrack","THUMS Long Beach Co.","D-601","Oil & Gas","0423720065","17","05S","12W","Wilmington","No"]
[7056993,"Central","Abandon","Chevron U.S.A. Inc.","1Y 01Y_1101B","Oil & Gas","0403067468",1,"30S","21E","Cymric","No"]
[7056992,"Central","Abandon","Aera Energy LLC","18MZ-35","Oil & Gas","0402962540",35,"28S","21E","Belridge, South","No"]
[7056991,"Central","Rework","California Resources Elk Hills, LLC","58-4G","Oil & Gas","0403018219",4,"31S","24E","Elk Hills","No"]
[7056990,"Central","Abandon","Aera Energy LLC","DTR 35HR-34","Oil & Gas","0402964547",34,"28S","21E","Belridge, South","No"]
[7056989,"Central","Rework","California Resources Elk Hills, LLC","64E-8G","Oil & Gas","0403019709",8,"31S","24E","Elk Hills","No"]
["7055450-01","Northern","Rework","Southern California Gas Company","WEZU C-3B","Gas Storage","0403721697",8,"04N","16W","Honor Rancho","Yes"]
[7056988,"Central","Abandon","E & B Natural Resources Management Corporation","Aron Land Co. 219","Oil & Gas","0402937586",19,"26S","19E","Blackwells Corner","No"]
[7056987,"Southern","Rework","THUMS Long Beach Co.","C-240","Oil & Gas","0423729974","16","05S","12W","Wilmington","No"]
[7056986,"Central","New Drill","Aera Energy LLC","102TE-29","Oil & Gas","0403070305",29,"28S","21E","Belridge, South","No"]
[7056985,"Central","New Drill","Aera Energy LLC","178TE-28","Oil & Gas","0403070304",28,"28S","21E","Belridge, South","No"]
[7056984,"Central","New Drill","Aera Energy LLC","51K1-29","Oil & Gas","0403070303",29,"28S","21E","Belridge, South","No"]
[7056983,"Central","Abandon","Tetra Oil Company","Cauley 1","Oil & Gas","0402916565",16,"28S","27E","Poso Creek","No"]
[7056982,"Central","New Drill","Aera Energy LLC","83TR1-29","Oil & Gas","0403070302",29,"28S","21E","Belridge, South","No"]
[7056981,"Central","New Drill","Aera Energy LLC","181TE-29","Oil & Gas","0403070301",29,"28S","21E","Belridge, South","No"]
[7056980,"Central","New Drill","Aera Energy LLC","58HR-20","Oil & Gas","0403070300",20,"28S","21E","Belridge, South","No"]
[7056979,"Central","New Drill","Aera Energy LLC","166TE-29","Oil & Gas","0403070299",29,"28S","21E","Belridge, South","No"]
[7056978,"Central","Rework","Chevron U.S.A. Inc.","Senator 15R","Oil & Gas","0403054916",31,"28S","28E","Kern River","No"]
[7056976,"Central","Rework","Chevron U.S.A. Inc.","American Naphtha 7-4B","Oil & Gas","0402948309",31,"28S","28E","Kern River","No"]
[7056975,"Central","Rework","Chevron U.S.A. Inc.","American Naphtha 8-8A","Oil & Gas","0403050099",31,"28S","28E","Kern River","No"]
[7056974,"Central","Rework","Chevron U.S.A. Inc.","American Naphtha 3042N","Oil & Gas","0403006273",31,"28S","28E","Kern River","No"]
[7056973,"Central","Abandon","E & B Natural Resources Management Corporation","Conoco 5-16","Oil & Gas","0403055286",33,"27S","27E","Poso Creek","No"]
[7056972,"Central","Abandon","E & B Natural Resources Management Corporation","Sesnon O & M 1","Oil & Gas","0402916118",17,"28S","27E","Poso Creek","No"]
[7056971,"Central","Rework","Chevron U.S.A. Inc.","Cordes 79","Gas Disposal","0402970948",32,"28S","28E","Kern River","No"]
[7056970,"Central","Abandon","E & B Natural Resources Management Corporation","Section 9 7-9AX","Oil & Gas","0403042856",9,"28S","27E","Poso Creek","No"]
[7056969,"Central","Abandon","Petro Resources, Inc.","Glide 23 10","Oil & Gas","0402970228",23,"27S","28E","Mount Poso","No"]
[7056968,"Southern","Abandon","California Resources Production Corporation","State Prc 392 CJ-196A","Waterflood","0405902803",4,"06S","11W","Huntington Beach","No"]
[7056967,"Northern","Abandon","Aera Energy LLC","Ferrini 5102-11","Steamflood","0405321339",11,"23S","10E","San Ardo","No"]
[7056966,"Northern","Abandon","Aera Energy LLC","Orradre 1166-11","Oil & Gas","0405321439",11,"23S","10E","San Ardo","No"]
[7056965,"Northern","Abandon","Aera Energy LLC","Orradre 165A-2","Oil & Gas","0405321249",2,"23S","10E","San Ardo","No"]
[7056964,"Northern","Rework","CalNRG Operating, LLC","McGrath 5 813","Waterflood","0411100803",36,"02N","23W","Montalvo, West","No"]
[7056963,"Northern","Rework","CalNRG Operating, LLC","McGrath 5 915","Water Disposal","0411100811",36,"02N","23W","Montalvo, West","No"]
[7056962,"Central","Abandon","Tetra Oil Company","Cauley 4","Oil & Gas","0402916568",16,"28S","27E","Poso Creek","No"]
[7056961,"Central","Rework","California Resources Elk Hills, LLC","72SW-4G","Oil & Gas","0403036907",4,"31S","24E","Elk Hills","No"]
[7056960,"Central","Abandon","Aera Energy LLC","Anderson-Fitzgerald 6303","Observation","0402979639",26,"29S","21E","Cymric","No"]
[7056959,"Central","Abandon","Aera Energy LLC","Anderson-Fitzgerald 5303U","Steamflood","0403028960",26,"29S","21E","Cymric","No"]
[7056958,"Central","Rework","California Resources Elk Hills, LLC","24NW-36S","Oil & Gas","0403040998",36,"30S","24E","Elk Hills","No"]
[7056957,"Central","Rework","California Resources Elk Hills, LLC","48N-27S","Oil & Gas","0403047459",27,"30S","24E","Elk Hills","No"]
[7056956,"Southern","Abandon","Thomas R. Banks","Nance Blinn 4","Oil & Gas","0403722260","28","04S","13W","Wilmington","No"]
[7056955,"Northern","Rework","Pacific Coast Energy Company LP","Newlove 234","Cyclic Steam","0408322626",25,"09N","34W","Orcutt","No"]
[7056954,"Northern","Rework","Pacific Coast Energy Company LP","Newlove 239","Cyclic Steam","0408322706",25,"09N","34W","Orcutt","No"]
[7056953,"Central","Abandon","Aera Energy LLC","36SR-20","Oil & Gas","0402964049",20,"28S","21E","Belridge, South","No"]
[7056952,"Central","Abandon","Aera Energy LLC","DTR 457-28","Observation","0402972576",28,"28S","21E","Belridge, South","No"]
[7056951,"Northern","Rework","Pacific Coast Energy Company LP","Newlove 232","Cyclic Steam","0408322622",25,"09N","34W","Orcutt","No"]
[7056950,"Northern","Rework","Pacific Coast Energy Company LP","Newlove 245","Cyclic Steam","0408322698",25,"09N","34W","Orcutt","No"]
[7056949,"Central","Rework","Chevron U.S.A. Inc.","P230R","Cyclic Steam","0403032849",21,"32S","23E","Midway-Sunset","No"]
[7056948,"Central","Abandon","Aera Energy LLC","Maxwell 29","Oil & Gas","0402925669",27,"31S","22E","Midway-Sunset","No"]
[7056947,"Northern","Rework","Pacific Coast Energy Company LP","Newlove 241","Cyclic Steam","0408322670",25,"09N","34W","Orcutt","No"]
[7056946,"Northern","Rework","Pacific Coast Energy Company LP","Newlove 271","Cyclic Steam","0408322703",25,"09N","34W","Orcutt","No"]
[7056945,"Northern","Rework","Pacific Coast Energy Company LP","Newlove 251","Cyclic Steam","0408322700",25,"09N","34W","Orcutt","No"]
[7056944,"Northern","Rework","Pacific Coast Energy Company LP","Newlove 250","Cyclic Steam","0408322733",25,"09N","34W","Orcutt","No"]
[7056943,"Northern","Rework","Pacific Coast Energy Company LP","Newlove 2123","Cyclic Steam","0408322679",25,"09N","34W","Orcutt","No"]
[7056942,"Central","Abandon","Chevron U.S.A. Inc.","Maricopa 31","Oil & Gas","0402907894",1,"11N","24W","Midway-Sunset","No"]
[7056941,"Central","Rework","Aera Energy LLC","CMS 343","Cyclic Steam","0401924834",31,"19S","15E","Coalinga","No"]
[7056940,"Central","Abandon","E & B Natural Resources Management Corporation","Steele Petroleum Roco 3","Oil & Gas","0402920237",15,"11N","18W","Tejon Hills","No"]
[7056939,"Central","Abandon","E & B Natural Resources Management Corporation","Steele Petroleum Roco 68","Oil & Gas","0402920283",15,"11N","18W","Tejon Hills","No"]
[7056938,"Central","Rework","Aera Energy LLC","Call 1-5A","Cyclic Steam","0401925305",32,"19S","15E","Coalinga","No"]
[7056937,"Central","Abandon","E & B Natural Resources Management Corporation","Steele Petroleum Roco 8","Oil & Gas","0402920244",15,"11N","18W","Tejon Hills","No"]
[7056936,"Central","Rework","Chevron U.S.A. Inc.","J240","Cyclic Steam","0403024090",21,"32S","23E","Midway-Sunset","No"]
[7056935,"Central","Rework","Chevron U.S.A. Inc.","N210","Cyclic Steam","0403026265",21,"32S","23E","Midway-Sunset","No"]
[7056934,"Central","Abandon","Chevron U.S.A. Inc.","1Y 2307A","Cyclic Steam","0403058622",1,"30S","21E","Cymric","No"]
[7056933,"Central","Abandon","Chevron U.S.A. Inc.","1Y 2004N","Cyclic Steam","0403047399",1,"30S","21E","Cymric","No"]
[7056932,"Central","Abandon","Chevron U.S.A. Inc.","14-11I","Steamflood","0403048116",7,"30S","22E","McKittrick","No"]
[7056931,"Central","Abandon","California Resources Elk Hills, LLC","86W-18G","Water Source","0402965980",18,"31S","24E","Elk Hills","No"]
[7056930,"Central","Abandon","Sentinel Peak Resources California LLC","Star Fee D27-1","Cyclic Steam","0403063657",6,"30S","22E","Cymric","No"]
[7056929,"Central","Abandon","Sentinel Peak Resources California LLC","Star Fee B34-1","Cyclic Steam","0403066860",7,"30S","22E","Cymric","No"]
[7056928,"Central","Abandon","Sentinel Peak Resources California LLC","McKittrick Front B24-1","Cyclic Steam","0403064243",6,"30S","22E","Cymric","No"]
[7056927,"Central","Abandon","Sentinel Peak Resources California LLC","Star Fee D36-1","Cyclic Steam","0403066822",7,"30S","22E","Cymric","No"]
[7056926,"Central","Abandon","Sentinel Peak Resources California LLC","Gamble 1 E15-1","Cyclic Steam","0403067105",6,"30S","22E","Cymric","No"]
[7056925,"Central","Abandon","Aera Energy LLC","R.H.D. I-1","Steamflood","0402965834",1,"11N","24W","Midway-Sunset","No"]
[7056924,"Central","Abandon","Aera Energy LLC","R.H.D. 28","Oil & Gas","0402951216",1,"11N","24W","Midway-Sunset","No"]
[7056923,"Central","Abandon","Aera Energy LLC","Republic USL 60-8","Oil & Gas","0402961392",7,"32S","23E","Midway-Sunset","No"]
[7056922,"Central","Abandon","Aera Energy LLC","Finley-Hausen-I 201","Oil & Gas","0402962941",14,"31S","22E","Midway-Sunset","No"]
[7056921,"Central","Abandon","Aera Energy LLC","SEBU T 3112A-12","Oil & Gas","0403025784",12,"29S","21E","Belridge, South","No"]
[7056920,"Central","Abandon","Aera Energy LLC","Maxwell 264","Steamflood","0402977715",27,"31S","22E","Midway-Sunset","No"]
[7056919,"Central","Abandon","Aera Energy LLC","Maxwell D-708","Steamflood","0402973702",27,"31S","22E","Midway-Sunset","No"]
[7056918,"Southern","Rework","Bridge Energy LLC","Stearns 291","Waterflood","0405921539","07","03S","09W","Brea-Olinda","No"]
[7056917,"Central","Abandon","Aera Energy LLC","DTR 44MR-34","Oil & Gas","0402964574",34,"28S","21E","Belridge, South","No"]
[7056915,"Central","Abandon","Aera Energy LLC","Maxwell B-110","Observation","0402969886",27,"31S","22E","Midway-Sunset","No"]
[7056916,"Southern","Rework","Bridge Energy LLC","Stearns 293","Waterflood","0405921542","07","03S","09W","Brea-Olinda","No"]
[7056914,"Central","Abandon","Aera Energy LLC","27DU-35","Oil & Gas","0402973384",35,"28S","21E","Belridge, South","No"]
[7056913,"Central","Abandon","Aera Energy LLC","628F-35","Steamflood","0402962588",35,"28S","21E","Belridge, South","No"]
[7056912,"Central","Abandon","Aera Energy LLC","Maxwell 193","Oil & Gas","0402961374",27,"31S","22E","Midway-Sunset","No"]
[7056911,"Central","Abandon","Aera Energy LLC","Maxwell 188","Oil & Gas","0402961340",27,"31S","22E","Midway-Sunset","No"]
[7056910,"Central","Abandon","Aera Energy LLC","Maxwell 276","Oil & Gas","0402980442",27,"31S","22E","Midway-Sunset","No"]
[7056909,"Southern","Sidetrack","Tidelands Oil Production Co.","OWS 004","Oil & Gas","0403730248","03","05S","13W","Wilmington","No"]
[7056908,"Central","Abandon","Aera Energy LLC","DTR 432-34","Observation","0402972453",34,"28S","21E","Belridge, South","No"]
[7056907,"Central","Abandon","Aera Energy LLC","SEBU T 3445-1","Cyclic Steam","0403037830",1,"29S","21E","Belridge, South","No"]
[7056906,"Central","Rework","California Resources Elk Hills, LLC","326-10Z","Oil & Gas","0403041456",10,"30S","22E","Railroad Gap","No"]
[7056905,"Central","Abandon","Aera Energy LLC","SEBU T 3592-1","Oil & Gas","0403024710",1,"29S","21E","Belridge, South","No"]
[7056904,"Central","Abandon","Sentinel Peak Resources California LLC","Star Fee G21-1","Cyclic Steam","0403064203",6,"30S","22E","Cymric","No"]
[7056903,"Central","Abandon","Sentinel Peak Resources California LLC","Star Fee C35-1","Cyclic Steam","0403066819",7,"30S","22E","Cymric","No"]
[7056902,"Central","Abandon","Aera Energy LLC","Marina 3457A-11","Oil & Gas","0403044663",11,"29S","21E","Belridge, South","No"]
[7056900,"Central","Abandon","Aera Energy LLC","Belridge I 3081-2","Oil & Gas","0403027139",2,"29S","21E","Belridge, South","No"]
[7056899,"Central","Abandon","Aera Energy LLC","15RL-35","Observation","0402987559",35,"28S","21E","Belridge, South","No"]
[7056898,"Central","Abandon","Aera Energy LLC","Marina 3387-11","Oil & Gas","0403028573",11,"29S","21E","Belridge, South","No"]
[7056897,"Central","Abandon","Aera Energy LLC","446-20","Observation","0402988380",20,"28S","21E","Belridge, South","No"]
[7056896,"Central","Abandon","Aera Energy LLC","Ellis 302R-19","Oil & Gas","0402984053",19,"28S","21E","Belridge, South","No"]
[7056895,"Northern","New Drill","Aera Energy LLC","Orradre 1503-12","Cyclic Steam","0405322649",12,"23S","10E","San Ardo","No"]
[7056894,"Northern","New Drill","Aera Energy LLC","Orradre 1546-12","Cyclic Steam","0405322648",12,"23S","10E","San Ardo","No"]
[7056893,"Northern","New Drill","Aera Energy LLC","Orradre 1547-12","Cyclic Steam","0405322647",12,"23S","10E","San Ardo","No"]
[7056892,"Northern","New Drill","Aera Energy LLC","Orradre 1597-12","Cyclic Steam","0405322646",12,"23S","10E","San Ardo","No"]
[7056891,"Northern","New Drill","Aera Energy LLC","Orradre 1604-12","Cyclic Steam","0405322645",12,"23S","10E","San Ardo","No"]
[7056890,"Northern","New Drill","Aera Energy LLC","Orradre 1605-12","Cyclic Steam","0405322644",12,"23S","10E","San Ardo","No"]
[7056889,"Northern","New Drill","Aera Energy LLC","Orradre 5505-12","Steamflood","0405322643",12,"23S","10E","San Ardo","No"]
[7056888,"Northern","New Drill","Aera Energy LLC","Orradre 5596-12","Steamflood","0405322642",12,"23S","10E","San Ardo","No"]
[7056887,"Central","Rework","Aera Energy LLC","DTR 588L-29","Waterflood","0403045538",29,"28S","21E","Belridge, South","No"]
[7056886,"Central","Abandon","Aera Energy LLC","614F-20","Steamflood","0402978356",20,"28S","21E","Belridge, South","No"]
[7056885,"Central","Abandon","Aera Energy LLC","DTR 686PAR-29","Steamflood","0403008637",29,"28S","21E","Belridge, South","No"]
[7056884,"Central","Abandon","Aera Energy LLC","DTR 66KR-29","Oil & Gas","0402978176",29,"28S","21E","Belridge, South","No"]
[7056883,"Central","Rework","California Resources Elk Hills, LLC","31-8G","Oil & Gas","0402953907",8,"31S","24E","Elk Hills","No"]
[7056882,"Central","Rework","California Resources Elk Hills, LLC","3-9BH-5D","Oil & Gas","0403046440",5,"32S","24E","Buena Vista","No"]
[7056881,"Central","Abandon","Aera Energy LLC","CHW5","Oil & Gas","0401923823",29,"19S","15E","Coalinga","No"]
[7056880,"Central","Abandon","Chevron U.S.A. Inc.",534,"Oil & Gas","0402941367",9,"30S","22E","Cymric","No"]
[7056879,"Central","Abandon","Chevron U.S.A. Inc.",557,"Oil & Gas","0402941734",9,"30S","22E","McKittrick","No"]
[7056878,"Central","Abandon","Aera Energy LLC","DTR 63L2-29","Oil & Gas","0403029776",29,"28S","21E","Belridge, South","No"]
[7056877,"Central","Abandon","Aera Energy LLC","477K-18","Observation","0403057407",18,"28S","21E","Belridge, South","No"]
[7056876,"Central","Abandon","Aera Energy LLC","DTR 63JM-34","Oil & Gas","0402982395",34,"28S","21E","Belridge, South","No"]
[7056875,"Central","Abandon","Holmes Western Oil Corporation","Sarah Faye 6-1","Oil & Gas","0402907739",5,"11N","23W","Midway-Sunset","No"]
[7056874,"Central","Abandon","Aera Energy LLC","Maxwell A-125","Oil & Gas","0403021040",27,"31S","22E","Midway-Sunset","No"]
[7056873,"Central","Abandon","Aera Energy LLC","Maxwell Z-31","Steamflood","0403020564",27,"31S","22E","Midway-Sunset","No"]
[7056872,"Central","Abandon","Chevron U.S.A. Inc.","Chicago Crude 155","Oil & Gas","0402980552",30,"28S","28E","Kern River","No"]
[7056871,"Central","Abandon","Chevron U.S.A. Inc.","Chicago Crude 533","Oil & Gas","0402957156",30,"28S","28E","Kern River","No"]
[7056870,"Central","Abandon","E & B Natural Resources Management Corporation","Cauley 77","Oil & Gas","0402916552",16,"28S","27E","Poso Creek","No"]
[7056869,"Central","Abandon","E & B Natural Resources Management Corporation","Cauley 80","Oil & Gas","0402916555",16,"28S","27E","Poso Creek","No"]
[7056868,"Central","Abandon","E & B Natural Resources Management Corporation","Cauley 82","Oil & Gas","0402916557",16,"28S","27E","Poso Creek","No"]
[7056867,"Central","Abandon","E & B Natural Resources Management Corporation","Cauley 124","Oil & Gas","0403033199",16,"28S","27E","Poso Creek","No"]
[7056866,"Central","Rework","Chevron U.S.A. Inc.","Junction 139","Cyclic Steam","0403060648",9,"29S","28E","Kern River","No"]
[7056865,"Central","Abandon","Chevron U.S.A. Inc.","Producers 25","Cyclic Steam","0403065605",36,"28S","27E","Kern River","No"]
[7056864,"Central","New Drill","Valley Resources, LLC","Ruth 78X-13","Oil & Gas","0403070298",13,"27S","20E","Any Field - Central District","No"]
[7056863,"Central","Abandon","Aera Energy LLC","Kendon 502","Steamflood","0403001446",35,"32S","23E","Midway-Sunset","No"]
[7056862,"Central","Abandon","Aera Energy LLC","Wilbert 8R","Oil & Gas","0403007816",26,"32S","23E","Midway-Sunset","No"]
[7056861,"Central","Abandon","Aera Energy LLC","Kendon 235","Oil & Gas","0402977011",35,"32S","23E","Midway-Sunset","No"]
[7056860,"Southern","Re-Abandon","Sycamore Development Partners LLC","100 Acre 23","Oil & Gas","0405907039","08","03S","09W","Brea-Olinda","No"]
[7056859,"Central","Abandon","Aera Energy LLC","Pru 322","Oil & Gas","0403012291",36,"32S","23E","Midway-Sunset","No"]
[7056858,"Central","Abandon","Aera Energy LLC","Moco 35 W-242D","Oil & Gas","0403000753",35,"12N","24W","Midway-Sunset","No"]
[7056857,"Central","Abandon","Aera Energy LLC","Wilbert B-30","Oil & Gas","0403001386",26,"32S","23E","Midway-Sunset","No"]
[7056856,"Central","Abandon","Aera Energy LLC","Pru 330","Oil & Gas","0403012299",36,"32S","23E","Midway-Sunset","No"]
[7056855,"Central","Abandon","Aera Energy LLC","Maxwell 822","Oil & Gas","0403022116",27,"31S","22E","Midway-Sunset","No"]
[7056854,"Central","Abandon","Aera Energy LLC","SEBU T 5346-1","Steamflood","0403007464",1,"29S","21E","Belridge, South","No"]
[7056853,"Central","Abandon","Aera Energy LLC","DTR 487-34","Observation","0402988354",34,"28S","21E","Belridge, South","No"]
[7056852,"Northern","Abandon","Caltico Oil Corp.","Gold 1","Oil & Gas","0403713468",31,"04N","15W","Placerita","No"]
[7056850,"Central","Abandon","Aera Energy LLC","SEBU T 3150A-1","Oil & Gas","0403028385",1,"29S","21E","Belridge, South","No"]
[7056849,"Central","Abandon","Aera Energy LLC","DTR 672P-29","Steamflood","0402977103",29,"28S","21E","Belridge, South","No"]
[7056848,"Central","Abandon","Aera Energy LLC","DTR 87GU-34","Oil & Gas","0402981381",34,"28S","21E","Belridge, South","No"]
[7056847,"Central","Abandon","Aera Energy LLC","DTR 361A-34","Water Source","0402976252",34,"28S","21E","Belridge, South","No"]
[7056846,"Northern","Abandon","Caltico Oil Corp.","Bijou 1","Oil & Gas","0403713453",31,"04N","15W","Placerita","No"]
[7056844,"Northern","Abandon","Carbon California Operating Company, LLC","Harth 1","Oil & Gas","0411120433",8,"04N","21W","Ojai","No"]
[7056843,"Northern","Rework","Aera Energy LLC","Taylor 577-R","Waterflood","0411120545",29,"03N","23W","Ventura","No"]
[7056842,"Northern","Abandon","Caltico Oil Corp.","Donnely 1","Oil & Gas","0403713352",31,"04N","15W","Placerita","No"]
[7056841,"Southern","Abandon","California Resources Production Corporation","State Prc 392 J-81A","Oil & Gas","0405902853",10,"06S","11W","Huntington Beach","No"]
[7056840,"Central","Abandon","Aera Energy LLC","Section Seven W-1","Water Source","0401904250",7,"20S","15E","Coalinga","No"]
[7056838,"Southern","Abandon","California Resources Production Corporation","State Prc 392 J-33A","Waterflood","0405902819",10,"06S","11W","Huntington Beach","No"]
[7056837,"Southern","Abandon","California Resources Production Corporation","State Prc 392 J-180","Oil & Gas","0405902965",4,"06S","11W","Huntington Beach","No"]
[7056836,"Central","Abandon","Aera Energy LLC","Alberta 153-S","Oil & Gas","0402983983",14,"31S","22E","Midway-Sunset","No"]
[7056835,"Central","Abandon","Aera Energy LLC","Lockwood 15-D","Oil & Gas","0402981276",16,"32S","23E","Midway-Sunset","No"]
[7056834,"Central","Abandon","Aera Energy LLC","Maxwell X-22","Oil & Gas","0402937173",27,"31S","22E","Midway-Sunset","No"]
[7056833,"Central","Abandon","Aera Energy LLC","Maxwell 843","Oil & Gas","0403039606",27,"31S","22E","Midway-Sunset","No"]
[7056832,"Central","Abandon","Aera Energy LLC","Maxwell E-11","Oil & Gas","0402943914",27,"31S","22E","Midway-Sunset","No"]
[7056831,"Central","Rework","Chevron U.S.A. Inc.","Virginia 18R","Oil & Gas","0403049647",25,"32S","23E","Midway-Sunset","No"]
[7056830,"Central","Abandon","TRC Operating Company, Inc.","Bull 26","Cyclic Steam","0403016222",22,"32S","23E","Midway-Sunset","No"]
[7056829,"Central","Abandon","TRC Operating Company, Inc.","Bull 20","Cyclic Steam","0403024788",22,"32S","23E","Midway-Sunset","No"]
[7056828,"Northern","Abandon","HDT Inc.","Four Deer 3H","Oil & Gas","0408322900",4,"08N","33W","Four Deer (ABD)","No"]
[7056827,"Central","Rework","California Resources Elk Hills, LLC","78WD-27R","Water Disposal","0403029372",27,"30S","23E","Elk Hills","No"]
[7056826,"Northern","Abandon","Sentinel Peak Resources California LLC","Hyla 16G-5A","Multi-Purpose","0407921249",31,"31S","13E","Arroyo Grande","No"]
[7056825,"Northern","Abandon","Sentinel Peak Resources California LLC","Signal E.T.S. 10-2K","Oil & Gas","0407921093",31,"31S","13E","Arroyo Grande","No"]
[7056824,"Northern","Abandon","Sentinel Peak Resources California LLC","Signal E.T.S. 11-2K","Oil & Gas","0407921095",31,"31S","13E","Arroyo Grande","No"]
[7056823,"Northern","Abandon","Sentinel Peak Resources California LLC","Rock 88","Oil & Gas","0407920285",31,"31S","13E","Arroyo Grande","No"]
[7056822,"Northern","Abandon","Sentinel Peak Resources California LLC","Hyla 20","Oil & Gas","0407920391",31,"31S","13E","Arroyo Grande","No"]
[7056821,"Northern","Abandon","Sentinel Peak Resources California LLC","Signal E.T.S. 11 SPL","Oil & Gas","0407920843",31,"31S","13E","Arroyo Grande","No"]
[7056820,"Northern","Abandon","Sentinel Peak Resources California LLC","Hyla 18","Oil & Gas","0407920389",31,"31S","13E","Arroyo Grande","No"]
[7056819,"Central","Abandon","Chevron U.S.A. Inc.","McKittrick Fee 3845ST","Observation","0403020931",8,"30S","22E","Cymric","No"]
[7056818,"Central","Abandon","Chevron U.S.A. Inc.","1Y 1712A","Cyclic Steam","0403052067",1,"30S","21E","Cymric","No"]
[7056815,"Central","Abandon","Aera Energy LLC",7.8e-17,"Oil & Gas","0402972056",18,"28S","21E","Belridge, South","No"]
[7056814,"Central","Abandon","Aera Energy LLC","DTR 63SR-34","Oil & Gas","0402970795",34,"28S","21E","Belridge, South","No"]
[7056813,"Central","Abandon","Aera Energy LLC","56KH-18","Oil & Gas","0403005575",18,"28S","21E","Belridge, South","No"]
[7056812,"Central","Abandon","Aera Energy LLC","SEBU T 5319A-12","Steamflood","0403033729",12,"29S","21E","Belridge, South","No"]
[7056811,"Central","Abandon","Chevron U.S.A. Inc.","Del Monte 129R","Water Disposal","0402969985",13,"30S","21E","McKittrick","No"]
[7056810,"Northern","Rework","Wild Goose Storage LLC","Wild Goose Gas Unit 2 WG30HZ","Gas Storage","0400720107",17,"17N","01E","Wild Goose Gas","No"]
[7056809,"Central","Abandon","Aera Energy LLC","Globe Unit 15-134","Oil & Gas","0402947097",15,"31S","22E","Midway-Sunset","No"]
[7056808,"Central","Abandon","Aera Energy LLC","Section 8 17","Oil & Gas","0402901299",8,"32S","23E","Midway-Sunset","No"]
[7056807,"Central","Abandon","Aera Energy LLC","Globe Unit 11-161","Observation","0402977227",15,"31S","22E","Midway-Sunset","No"]
[7056806,"Central","Abandon","Aera Energy LLC","Lockwood 115-P","Oil & Gas","0402967761",16,"32S","23E","Midway-Sunset","No"]
[7056805,"Central","Abandon","Aera Energy LLC","Wilbert I-9","Steamflood","0403001390",26,"32S","23E","Midway-Sunset","No"]
[7056804,"Central","Abandon","Aera Energy LLC","Lockwood 51-S","Oil & Gas","0403020173",16,"32S","23E","Midway-Sunset","No"]
[7056803,"Central","Abandon","Aera Energy LLC","Wilbert C-4R","Oil & Gas","0403007813",26,"32S","23E","Midway-Sunset","No"]
["7055111-01","Central","New Drill","Sentinel Peak Resources California LLC","McKittrick Unit 1 I-43","Steamflood","0403069981",6,"30S","22E","Cymric","Yes"]
[7056800,"Central","Abandon","Chevron U.S.A. Inc.",732,"Oil & Gas","0403013023",17,"30S","22E","McKittrick","No"]
[7056799,"Central","Abandon","Chevron U.S.A. Inc.","McKittrick Fee 3044","Cyclic Steam","0403067232",8,"30S","22E","Cymric","No"]
[7056798,"Central","Abandon","Chevron U.S.A. Inc.","Lowell-Wible 4025-I","Steamflood","0403030974",8,"30S","22E","McKittrick","No"]
[7056797,"Central","Abandon","Aera Energy LLC","DTR 53JR-34","Oil & Gas","0402970793",34,"28S","21E","Belridge, South","No"]
[7056796,"Central","Abandon","Aera Energy LLC","Wilbert 15R","Oil & Gas","0403009889",26,"32S","23E","Midway-Sunset","No"]
[7056795,"Central","Abandon","Aera Energy LLC","Lockwood 16-M","Oil & Gas","0402962495",16,"32S","23E","Midway-Sunset","No"]
[7056794,"Central","Abandon","Aera Energy LLC","Soudan 15R","Oil & Gas","0403007799",26,"31S","22E","Midway-Sunset","No"]
[7056793,"Central","Abandon","Aera Energy LLC","DTR 65LR-29","Oil & Gas","0402965800",29,"28S","21E","Belridge, South","No"]
[7056792,"Central","Rework","Chevron U.S.A. Inc.","43B","Oil & Gas","0403041679",25,"32S","23E","Midway-Sunset","No"]
[7056791,"Central","Rework","Chevron U.S.A. Inc.","J262","Cyclic Steam","0403036384",21,"32S","23E","Midway-Sunset","No"]
[7056790,"Central","Abandon","Aera Energy LLC","Western 90-4","Oil & Gas","0402986824",21,"31S","22E","Midway-Sunset","No"]
[7056789,"Southern","Abandon","Thomas R. Banks","Nance Blinn 3","Oil & Gas","0403722259","28","04S","13W","Wilmington","No"]
[7056788,"Central","Rework","Chevron U.S.A. Inc.","Q220","Cyclic Steam","0403041171",21,"32S","23E","Midway-Sunset","No"]
[7056787,"Central","Abandon","Aera Energy LLC","Penn-Zier 460","Steamflood","0401921141",1,"20S","14E","Coalinga","No"]
[7056786,"Central","New Drill","Aera Energy LLC","62TE-29","Oil & Gas","0403070297",29,"28S","21E","Belridge, South","No"]
[7056785,"Central","New Drill","Aera Energy LLC","63TE-29","Oil & Gas","0403070296",29,"28S","21E","Belridge, South","No"]
[7056784,"Central","Rework","Chevron U.S.A. Inc.","G-3318","Oil & Gas","0403020315",22,"31S","22E","Midway-Sunset","No"]
[7056783,"Central","Rework","Chevron U.S.A. Inc.","K260","Cyclic Steam","0403028321",21,"32S","23E","Midway-Sunset","No"]
[7056782,"Central","Abandon","Petro Resources, Inc.","Glide 23 9","Oil & Gas","0402969841",23,"27S","28E","Mount Poso","No"]
[7056781,"Central","New Drill","Aera Energy LLC","167TE-29","Oil & Gas","0403070295",29,"28S","21E","Belridge, South","No"]
[7056780,"Central","Abandon","E & B Natural Resources Management Corporation","Section 9 4-6","Oil & Gas","0402916337",9,"28S","27E","Poso Creek","No"]
[7056779,"Central","Rework","Chevron U.S.A. Inc.","H250R","Cyclic Steam","0403032315",21,"32S","23E","Midway-Sunset","No"]
[7056778,"Central","New Drill","Aera Energy LLC","48FUR-20","Oil & Gas","0403070294",20,"28S","21E","Belridge, South","No"]
[7056777,"Central","Rework","Berry Petroleum Company, LLC","Main Camp D-5","Oil & Gas","0403044835",24,"31S","22E","Midway-Sunset","No"]
[7056776,"Central","New Drill","Aera Energy LLC","62R1-29","Oil & Gas","0403070293",29,"28S","21E","Belridge, South","No"]
[7056775,"Central","Rework","Berry Petroleum Company, LLC","Main Camp D-4","Oil & Gas","0403044834",24,"31S","22E","Midway-Sunset","No"]
[7056774,"Central","Rework","Holmes Western Oil Corporation","Pacific 15","Oil & Gas","0402919374",32,"12N","23W","Midway-Sunset","No"]
[7056773,"Central","Rework","Berry Petroleum Company, LLC","Main Camp D-6","Oil & Gas","0403044836",24,"31S","22E","Midway-Sunset","No"]
[7056772,"Central","Rework","Berry Petroleum Company, LLC","Main Camp H-6","Oil & Gas","0403045718",24,"31S","22E","Midway-Sunset","No"]
[7056771,"Northern","Abandon","Caltico Oil Corp.","Carter Community 1","Oil & Gas","0403713459",31,"04N","15W","Placerita","No"]
[7056769,"Central","New Drill","Aera Energy LLC","72D1-29","Oil & Gas","0403070292",29,"28S","21E","Belridge, South","No"]
[7056768,"Central","New Drill","Aera Energy LLC","62R1ECH-29","Oil & Gas","0403070291",29,"28S","21E","Belridge, South","No"]
[7056767,"Central","New Drill","Aera Energy LLC","66TE-29","Oil & Gas","0403070290",29,"28S","21E","Belridge, South","No"]
[7056766,"Central","Abandon","Aera Energy LLC","King 9-5R-19","Oil & Gas","0402984056",19,"28S","21E","Belridge, South","No"]
[7056765,"Central","New Drill","California Resources Production Corporation","Vedder-Rall 98BH","Oil & Gas","0403070289",9,"27S","28E","Mount Poso","No"]
[7056764,"Central","Rework","Aera Energy LLC","DTR 984F-33","Oil & Gas","0403038019",33,"28S","21E","Belridge, South","No"]
[7056763,"Central","Rework","Chevron U.S.A. Inc.","6-8UW","Waterflood","0403025925",32,"26S","21E","Lost Hills","No"]
[7056762,"Central","Abandon","Chevron U.S.A. Inc.","Bald Eagle Jr. & Eaglet 28","Oil & Gas","0402942907",30,"28S","28E","Kern River","No"]
[7056761,"Central","Abandon","E & B Natural Resources Management Corporation","Section 5 19","Oil & Gas","0402916255",5,"28S","27E","Poso Creek","No"]
[7056760,"Central","Abandon","Aera Energy LLC","Penn-Zier 7-F","Oil & Gas","0401920113",1,"20S","14E","Coalinga","No"]
[7056759,"Central","New Drill","California Resources Production Corporation","Section 23 273R","Oil & Gas","0403070288",23,"28S","27E","Kern Front","No"]
[7056758,"Central","Rework","Holmes Western Oil Corporation","Canadian 18","Water Disposal","0401925529",8,"21S","15E","Jacalitos","No"]
[7056757,"Central","Rework","Chevron U.S.A. Inc.","Del Rey Fee 65","Cyclic Steam","0403049094",5,"29S","28E","Kern River","No"]
[7056756,"Central","Abandon","Petro Resources, Inc.","Glide 23 6","Oil & Gas","0402912290",23,"27S","28E","Mount Poso","No"]
[7056755,"Central","Rework","Chevron U.S.A. Inc.","Junction 144","Cyclic Steam","0403057209",9,"29S","28E","Kern River","No"]
["7051009-01","Northern","Rework","Southern California Gas Company","Porter 69D","Gas Storage","0403724130",28,"03N","16W","Aliso Canyon","Yes"]
[7056754,"Southern","Rework","THUMS Long Beach Co.","D-612","Oil & Gas","0423720497","17","05S","12W","Wilmington","No"]
[7056753,"Southern","Abandon","Warren E&P, Inc.","WTU 2238","Oil & Gas","0403727245","33","04S","13W","Wilmington","No"]
[7056752,"Central","Abandon","Aera Energy LLC",46092,"Oil & Gas","0401921019",29,"19S","15E","Coalinga","No"]
[7056751,"Central","Abandon","Aera Energy LLC","822A","Oil & Gas","0401922397",29,"19S","15E","Coalinga","No"]
[7056750,"Central","Abandon","Aera Energy LLC","Section Seven WS-2","Water Source","0401921262",7,"20S","15E","Coalinga","No"]
[7056749,"Central","Abandon","Aera Energy LLC",833,"Oil & Gas","0401922332",29,"19S","15E","Coalinga","No"]
[7056748,"Central","Rework","Chevron U.S.A. Inc.","Junction 30","Cyclic Steam","0402930483",9,"29S","28E","Kern River","No"]
[7056747,"Central","New Drill","California Resources Production Corporation","McDonald 1-3","Cyclic Steam","0403070287",26,"28S","27E","Kern Front","No"]
[7056746,"Northern","Abandon","Caltico Oil Corp.","Fee 18","Oil & Gas","0403713467",31,"04N","15W","Placerita","No"]
[7056745,"Central","Abandon","E & B Natural Resources Management Corporation","Midway Premier 146","Oil & Gas","0403038311",32,"27S","27E","Poso Creek","No"]
[7056744,"Southern","Abandon","Thomas R. Banks","Nance Blinn 2","Oil & Gas","0403722258","28","04S","13W","Wilmington","No"]
[7056743,"Central","New Drill","California Resources Production Corporation","McDonald 4-1","Cyclic Steam","0403070286",26,"28S","27E","Kern Front","No"]
[7056742,"Central","Abandon","Petro Resources, Inc.","Glide 23 8","Oil & Gas","0402969840",23,"27S","28E","Mount Poso","No"]
[7056741,"Southern","Re-Abandon","Sycamore Development Partners LLC","100 Acre 62","Oil & Gas","0405907055","08","03S","09W","Brea-Olinda","No"]
[7056740,"Central","Abandon","E & B Natural Resources Management Corporation","Cauley 48","Oil & Gas","0402916526",16,"28S","27E","Poso Creek","No"]
[7056739,"Central","Abandon","Aera Energy LLC","SEBU T 3290-12","Oil & Gas","0403021509",12,"29S","21E","Belridge, South","No"]
[7056738,"Central","Abandon","Aera Energy LLC","King 8-1R-19","Oil & Gas","0403000349",19,"28S","21E","Belridge, South","No"]
[7056737,"Southern","Re-Abandon","Sycamore Development Partners LLC","100 Acre 54","Oil & Gas","0405900024","08","03S","09W","Brea-Olinda","No"]
[7056736,"Central","Abandon","Aera Energy LLC","King 9-1R-19","Oil & Gas","0402988723",19,"28S","21E","Belridge, South","No"]
[7056735,"Northern","Abandon","Chevron U.S.A. Inc.","Rosenberg (NCT-1) 284","Oil & Gas","0405320154",3,"23S","10E","San Ardo","No"]
[7056734,"Central","Rework","Chevron U.S.A. Inc.","Junction 126","Cyclic Steam","0403028758",9,"29S","28E","Kern River","No"]
[7056733,"Central","Abandon","E & B Natural Resources Management Corporation","Section 5 HUE-1B","Cyclic Steam","0403048306",5,"28S","27E","Poso Creek","No"]
[7056732,"Northern","Abandon","Chevron U.S.A. Inc.","Rosenberg (NCT-1) 272","Oil & Gas","0405320162",3,"23S","10E","San Ardo","No"]
[7056731,"Central","Rework","Chevron U.S.A. Inc.","Junction 98","Oil & Gas","0403007572",9,"29S","28E","Kern River","No"]
[7056730,"Northern","Abandon","Chevron U.S.A. Inc.","Orradre R8A-10","Oil & Gas","0405322144",10,"23S","10E","San Ardo","No"]
[7056729,"Northern","Abandon","Chevron U.S.A. Inc.","Orradre D8A-11","Oil & Gas","0405321908",11,"23S","10E","San Ardo","No"]
[7056728,"Central","Abandon","Aera Energy LLC","King 9-3R-19","Oil & Gas","0402982351",19,"28S","21E","Belridge, South","No"]
[7056727,"Central","Abandon","Aera Energy LLC","SEBU T 3370-1","Cyclic Steam","0403007722",1,"29S","21E","Belridge, South","No"]
[7056726,"Northern","Abandon","Chevron U.S.A. Inc.","Rosenberg (NCT-1) 164","Oil & Gas","0405300908",3,"23S","10E","San Ardo","No"]
[7056725,"Central","Abandon","Aera Energy LLC","DTR 38PR-34","Oil & Gas","0403001726",34,"28S","21E","Belridge, South","No"]
[7056724,"Central","Abandon","Aera Energy LLC","SEBU T 5175-12","Steamflood","0403060153",12,"29S","21E","Belridge, South","No"]
[7056723,"Northern","Abandon","Chevron U.S.A. Inc.","Rosenberg (NCT-1) 191A","Steamflood","0405322327",3,"23S","10E","San Ardo","No"]
[7056722,"Northern","Abandon","Chevron U.S.A. Inc.","Rosenberg (NCT-1) 327","Oil & Gas","0405320236",3,"23S","10E","San Ardo","No"]
[7056721,"Northern","Abandon","Chevron U.S.A. Inc.","Rosenberg (NCT-1) 461","Oil & Gas","0405320744",3,"23S","10E","San Ardo","No"]
[7056720,"Northern","Abandon","Chevron U.S.A. Inc.","Rosenberg (NCT-1) 430","Multi-Purpose","0405320708",3,"23S","10E","San Ardo","No"]
[7056719,"Southern","Abandon","A. M. Kupfer","Sentous 1","Oil & Gas","0403707381",17,"02S","14W","Inglewood","No"]
[7056718,"Central","Abandon","Aera Energy LLC","Soudan 37","Oil & Gas","0402983914",26,"31S","22E","Midway-Sunset","No"]
[7056717,"Central","Abandon","Aera Energy LLC","Willmax 30-G","Oil & Gas","0403003990",16,"32S","23E","Midway-Sunset","No"]
[7056716,"Central","Rework","Holmes Western Oil Corporation","Govt 109","Steamflood","0403069128",17,"11N","23W","Midway-Sunset","No"]
[7056715,"Northern","Abandon","Chevron U.S.A. Inc.","Orradre R11-11","Steamflood","0405321770",11,"23S","10E","San Ardo","No"]
[7056714,"Central","New Drill","California Resources Production Corporation","McDonald 2-2","Cyclic Steam","0403070285",26,"28S","27E","Kern Front","No"]
[7056713,"Central","New Drill","California Resources Production Corporation","Young Fee 110R","Oil & Gas","0403070284",23,"28S","27E","Kern Front","No"]
[7056711,"Central","Re-Abandon","Aera Energy LLC","Ellis 75-19","Oil & Gas","0402937768",19,"28S","21E","Belridge, South","No"]
[7056710,"Central","Abandon","Aera Energy LLC","DTR 77KL-34","Oil & Gas","0402980665",34,"28S","21E","Belridge, South","No"]
[7056709,"Central","Abandon","Aera Energy LLC","DTR 86HL-34","Oil & Gas","0402982944",34,"28S","21E","Belridge, South","No"]
[7056708,"Central","Abandon","Aera Energy LLC","16JL-35","Oil & Gas","0402982400",35,"28S","21E","Belridge, South","No"]
[7056707,"Central","Rework","Aera Energy LLC","DTR 553A5-33","Oil & Gas","0403058511",33,"28S","21E","Belridge, South","No"]
[7056706,"Central","Abandon","Chevron U.S.A. Inc.","American Naphtha 3783","Oil & Gas","0403034588",31,"28S","28E","Kern River","No"]
[7056705,"Central","Abandon","Aera Energy LLC","16KR-35","Oil & Gas","0402978218",35,"28S","21E","Belridge, South","No"]
[7056704,"Central","Abandon","Aera Energy LLC","SEBU T 5268-1","Steamflood","0403027155",1,"29S","21E","Belridge, South","No"]
[7056703,"Central","Abandon","Aera Energy LLC","DTR 76HM-34","Oil & Gas","0402982397",34,"28S","21E","Belridge, South","No"]
[7056702,"Central","Abandon","Aera Energy LLC","SEBU T 3120-12","Oil & Gas","0403031591",12,"29S","21E","Belridge, South","No"]
[7056701,"Central","Abandon","E & B Natural Resources Management Corporation","Section 5 10-7B","Oil & Gas","0402947468",5,"28S","27E","Poso Creek","No"]
[7056700,"Central","Abandon","E & B Natural Resources Management Corporation","Section 5 11-4R","Oil & Gas","0403040957",5,"28S","27E","Poso Creek","No"]
[7056699,"Central","Rework","Chevron U.S.A. Inc.","Junction 23R","Cyclic Steam","0403035640",9,"29S","28E","Kern River","No"]
[7056698,"Central","Rework","Chevron U.S.A. Inc.","Junction 161","Cyclic Steam","0403057212",9,"29S","28E","Kern River","No"]
[7056697,"Central","Rework","Chevron U.S.A. Inc.","Junction 56","Oil & Gas","0402953895",9,"29S","28E","Kern River","No"]
[7056696,"Central","Abandon","Aera Energy LLC","Wilbert I-15","Steamflood","0402986451",26,"32S","23E","Midway-Sunset","No"]
[7056694,"Central","Abandon","Aera Energy LLC","Willmax 11-N","Oil & Gas","0403017821",16,"32S","23E","Midway-Sunset","No"]
[7056693,"Central","Abandon","Aera Energy LLC","Wilbert 14","Oil & Gas","0402941589",26,"32S","23E","Midway-Sunset","No"]
[7056692,"Central","Abandon","Aera Energy LLC","Wilbert 7R","Oil & Gas","0403007818",26,"32S","23E","Midway-Sunset","No"]
[7056691,"Central","Abandon","Aera Energy LLC","Wilbert C-50","Oil & Gas","0403012559",26,"32S","23E","Midway-Sunset","No"]
[7056690,"Central","Abandon","Chevron U.S.A. Inc.","Green & Whittier A 297","Oil & Gas","0402987265",30,"28S","28E","Kern River","No"]
[7056689,"Central","Abandon","Aera Energy LLC","Willmax 31-D","Oil & Gas","0403022432",16,"32S","23E","Midway-Sunset","No"]
[7056688,"Central","Abandon","Aera Energy LLC","Willmax 41-F","Oil & Gas","0403005875",16,"32S","23E","Midway-Sunset","No"]
[7056687,"Central","Abandon","Aera Energy LLC","Willmax 20-E","Oil & Gas","0403003989",16,"32S","23E","Midway-Sunset","No"]
["7052262-01","Central","Abandon","Chevron U.S.A. Inc.","Section 9 516","Waterflood","0402977565",9,"32S","23E","Midway-Sunset","Yes"]
[7056686,"Central","New Drill","California Resources Production Corporation","Section 23 272R","Cyclic Steam","0403070283",23,"28S","27E","Kern Front","No"]
[7056685,"Central","Rework","Sentinel Peak Resources California LLC","Tumbador 24","Oil & Gas","0402974803",23,"31S","22E","Midway-Sunset","No"]
[7056683,"Central","Abandon","Chevron U.S.A. Inc.","Jacalitas 12","Cyclic Steam","0402940589",30,"28S","28E","Kern River","No"]
[7056682,"Central","Abandon","Petro Resources, Inc.","Glide 23 1","Oil & Gas","0402912286",23,"27S","28E","Mount Poso","No"]
[7056681,"Southern","Abandon","E & B Natural Resources Management Corporation","ANGUS B-9 I","Waterflood","0405921486","02","06S","11W","Huntington Beach","No"]
[7056680,"Northern","Abandon","California Oil Independents","Brinan A 5","Water Disposal","0405321120",14,"22S","10E","McCool Ranch","No"]
[7056679,"Northern","Abandon","California Oil Independents","Brinan A 2","Oil & Gas","0405321182",14,"22S","10E","McCool Ranch","No"]
[7056678,"Northern","Abandon","Fred Cagle","Brinan A 4","Oil & Gas","0405321119",14,"22S","10E","McCool Ranch","No"]
[7056677,"Northern","Abandon","Fred Cagle","Brinan A 3","Water Disposal","0405321118",14,"22S","10E","McCool Ranch","No"]
[7056676,"Northern","Abandon","Fred Cagle","Brinan A 1","Oil & Gas","0405320935",14,"22S","10E","McCool Ranch","No"]
[7056675,"Central","Abandon","California Resources Production Corporation","Matthew Fee B7","Oil & Gas","0403053155",4,"27S","28E","Mount Poso","No"]
[7056674,"Central","Abandon","Aera Energy LLC","Willmax 32-L","Oil & Gas","0403017820",16,"32S","23E","Midway-Sunset","No"]
[7056673,"Central","Abandon","Aera Energy LLC","Willmax 31-J","Oil & Gas","0403022431",16,"32S","23E","Midway-Sunset","No"]
["7056228-01","Central","Abandon","Chevron U.S.A. Inc.","53B","Oil & Gas","0402907008",26,"32S","23E","Midway-Sunset","Yes"]
[7056672,"Northern","Abandon","PRE Resources, LLC","SMVU Union-Bradley I K-1","Oil & Gas","0408322969",25,"10N","34W","Santa Maria Valley","No"]
[7056671,"Southern","Abandon","E & B Natural Resources Management Corporation","ANGUS B-7","Oil & Gas","0405921484","02","06S","11W","Huntington Beach","No"]
[7056670,"Central","Abandon","Chevron U.S.A. Inc.","Tejon 539","Steamflood","0403038229",36,"28S","27E","Kern River","No"]
[7056669,"Southern","Rework","THUMS Long Beach Co.","J-339 I","Waterflood","0403720010","12","05S","13W","Wilmington","No"]
[7056668,"Southern","Abandon","E & B Natural Resources Management Corporation","ANGUS A-15","Oil & Gas","0405921464",2,"06S","11W","Huntington Beach","No"]
[7056667,"Southern","Re-Abandon","The Port of Long Beach","1","Oil & Gas","0403701457","35","04S","13W","Old Wilmington (ABD)","No"]
[7056666,"Central","Abandon","Aera Energy LLC","Marina 5430-11","Steamflood","0403028835",11,"29S","21E","Belridge, South","No"]
[7056665,"Central","Abandon","Aera Energy LLC","Belridge 3038A-11","Cyclic Steam","0403067404",11,"29S","21E","Belridge, South","No"]
[7056664,"Northern","Rework","Aera Energy LLC","Taylor 707","Waterflood","0411121491",28,"03N","23W","Ventura","No"]
[7056663,"Central","Abandon","Aera Energy LLC","SEBU T 3018-12","Cyclic Steam","0403061493",12,"29S","21E","Belridge, South","No"]
[7056662,"Central","Abandon","Aera Energy LLC","DTR 65HL-34","Oil & Gas","0402985301",34,"28S","21E","Belridge, South","No"]
[7056661,"Central","Abandon","Aera Energy LLC","DTR 87RL-34","Oil & Gas","0402989254",34,"28S","21E","Belridge, South","No"]
[7056660,"Central","Rework","Chevron U.S.A. Inc.","J262","Cyclic Steam","0403036384",21,"32S","23E","Midway-Sunset","No"]
[7056659,"Central","Rework","Berry Petroleum Company, LLC","Southwestern 60-55","Cyclic Steam","0403067121",2,"31S","22E","Midway-Sunset","No"]
[7056658,"Central","Abandon","Aera Energy LLC","Wilbert TO-3","Observation","0403005209",26,"32S","23E","Midway-Sunset","No"]
[7056657,"Central","Abandon","Chevron U.S.A. Inc.","Kern Oil & Development 30","Oil & Gas","0403009229",30,"28S","28E","Kern River","No"]
[7056656,"Central","Abandon","Chevron U.S.A. Inc.","Vesta 89","Oil & Gas","0402984618",31,"28S","28E","Kern River","No"]
[7056655,"Central","Abandon","Aera Energy LLC","Section Five 2-7","Oil & Gas","0402978296",5,"32S","23E","Midway-Sunset","No"]
[7056654,"Central","Abandon","Aera Energy LLC","Willmax 20-S","Oil & Gas","0403009885",16,"32S","23E","Midway-Sunset","No"]
[7056653,"Central","Abandon","California Resources Production Corporation","Security 102CH","Oil & Gas","0403050431",16,"27S","28E","Mount Poso","No"]
[7056652,"Northern","Sidetrack","Aera Energy LLC","Orradre 1614-12","Oil & Gas","0405322272",12,"23S","10E","San Ardo","No"]
[7056651,"Southern","Abandon","Thomas R. Banks","Nance Blinn 1","Oil & Gas","0403721844","28","04S","13W","Wilmington","No"]
[7056650,"Northern","Sidetrack","Aera Energy LLC","Orradre 1528H-12","Oil & Gas","0405322013",12,"23S","10E","San Ardo","No"]
[7056649,"Central","Abandon","Aera Energy LLC","Willmax 42-A","Oil & Gas","0403018862",16,"32S","23E","Midway-Sunset","No"]
[7056648,"Central","Abandon","Aera Energy LLC","Premier 11-2","Oil & Gas","0402980227",5,"32S","23E","Midway-Sunset","No"]
[7056647,"Central","Abandon","Aera Energy LLC","Lockwood 115-L","Cyclic Steam","0402977027",16,"32S","23E","Midway-Sunset","No"]
[7056646,"Central","Abandon","Aera Energy LLC","Section 8 5-6","Oil & Gas","0402978649",8,"32S","23E","Midway-Sunset","No"]
[7056645,"Central","Abandon","Aera Energy LLC","Kendon X-5","Oil & Gas","0402965454",35,"32S","23E","Midway-Sunset","No"]
[7056644,"Southern","Abandon","Warren E&P, Inc.","WTU 2376","Oil & Gas","0403730542","33","04S","13W","Wilmington","No"]
[7056643,"Central","Abandon","Aera Energy LLC","Metson H201-24","Oil & Gas","0403045397",24,"11N","23W","Midway-Sunset","No"]
[7056642,"Southern","Sidetrack","THUMS Long Beach Co.","D-505 I","Injection","0423720265","17","05S","12W","Wilmington","No"]
[7056641,"Northern","Abandon","NewBridge Resources, LLC","Careaga 1616","Oil & Gas","0408322649",31,"09N","33W","Orcutt","No"]
[7056640,"Northern","Abandon","NewBridge Resources, LLC","Careaga 1617","Oil & Gas","0408322650",31,"09N","33W","Orcutt","No"]
[7056639,"Northern","Abandon","NewBridge Resources, LLC","Careaga 1615","Oil & Gas","0408322654",31,"09N","33W","Orcutt","No"]
["7055100-01","Central","New Drill","Sentinel Peak Resources California LLC","McKittrick Unit 1-109","Cyclic Steam","0403069976",6,"30S","22E","Cymric","Yes"]
[7056638,"Central","Rework","California Resources Elk Hills, LLC","71S-33S","Oil & Gas","0403030726",33,"30S","24E","Elk Hills","No"]
[7056637,"Central","Abandon","Chevron U.S.A. Inc.","McPhee T.O. 11-11","Observation","0403033025",36,"29S","21E","Cymric","No"]
[7056636,"Central","Abandon","Chevron U.S.A. Inc.","McPhee T.O. 8-6","Observation","0403031458",36,"29S","21E","Cymric","No"]
[7056635,"Central","Abandon","Aera Energy LLC","Maxwell 161","Oil & Gas","0402959037",27,"31S","22E","Midway-Sunset","No"]
[7056634,"Central","Abandon","Aera Energy LLC","Maxwell 179","Oil & Gas","0402960580",27,"31S","22E","Midway-Sunset","No"]
[7056633,"Central","Abandon","Valley Water Management Company","WI-1","Water Disposal","0402950030",13,"31S","22E","Midway-Sunset","No"]
[7056632,"Central","Abandon","Aera Energy LLC","L & H 7-9I","Steamflood","0403022657",2,"11N","24W","Midway-Sunset","No"]
[7056631,"Central","Rework","Chevron U.S.A. Inc.","54E","Oil & Gas","0403062357",25,"32S","23E","Midway-Sunset","No"]
[7056630,"Central","Rework","Chevron U.S.A. Inc.","43C","Oil & Gas","0403041680",25,"32S","23E","Midway-Sunset","No"]
[7056629,"Central","Re-Abandon","Aera Energy LLC","Ellis 85C-19","Oil & Gas","0402937790",19,"28S","21E","Belridge, South","No"]
[7056628,"Central","Abandon","Allied Western Petroleum","Dagany Gap Unit 9","Oil & Gas","0402939623",3,"25S","18E","Devils Den","No"]
[7056627,"Central","Abandon","Aera Energy LLC","62A-1","Observation","0402950922",1,"28S","20E","Belridge, North","No"]
[7056626,"Central","Abandon","Aera Energy LLC","SEBU T 3446-1","Cyclic Steam","0403063292",1,"29S","21E","Belridge, South","No"]
[7056625,"Central","Abandon","Aera Energy LLC","Ellis 6-1-19","Oil & Gas","0402981465",19,"28S","21E","Belridge, South","No"]
[7056624,"Central","Abandon","Aera Energy LLC","DTR 443-34","Observation","0402986648",34,"28S","21E","Belridge, South","No"]
[7056623,"Central","Abandon","Chevron U.S.A. Inc.","McPhee T.O. 7-7","Observation","0403029964",36,"29S","21E","Cymric","No"]
[7056622,"Southern","Re-Abandon","Imperial Occidental","West American 5","Oil & Gas","0403712104","19","04S","12W","Long Beach","No"]
[7056621,"Southern","Abandon","California Resources Production Corporation","State Prc 392 J-46D","Oil & Gas","0405902828",4,"06S","11W","Huntington Beach","No"]
[7056620,"Central","Abandon","Aera Energy LLC","SEBU T 5284-12","Steamflood","0403019318",12,"29S","21E","Belridge, South","No"]
[7056619,"Central","Abandon","Aera Energy LLC","King 306LR-19","Oil & Gas","0402981473",19,"28S","21E","Belridge, South","No"]
[7056618,"Central","Abandon","Aera Energy LLC","448-20","Observation","0402988381",20,"28S","21E","Belridge, South","No"]
[7056617,"Southern","Rework","Tidelands Oil Production Co.","FX-23","Waterflood","0403702759","11","05S","13W","Wilmington","No"]
[7056616,"Central","Abandon","Aera Energy LLC","Penn-Zier 445","Steamflood","0401921138",1,"20S","14E","Coalinga","No"]
[7056615,"Central","Abandon","Chevron U.S.A. Inc.","American Naphtha 3021A","Cyclic Steam","0403006274",31,"28S","28E","Kern River","No"]
[7056614,"Central","Abandon","Aera Energy LLC","Penn-Zier 244","Cyclic Steam","0401921162",1,"20S","14E","Coalinga","No"]
[7056613,"Central","Abandon","Aera Energy LLC","822B","Oil & Gas","0401922398",29,"19S","15E","Coalinga","No"]
[7056612,"Central","Abandon","Aera Energy LLC","Penn-Zier 244-A","Cyclic Steam","0401925156",1,"20S","14E","Coalinga","No"]
[7056611,"Southern","Rework","THUMS Long Beach Co.","B-102 I","Waterflood","0423720395","08","05S","12W","Wilmington","No"]
[7056610,"Northern","Abandon","Northwest Petroleum, Inc.","Bell 3","Dry Gas","0409521269",20,"08N","01E","Winters Gas","No"]
[7056609,"Southern","Rework","THUMS Long Beach Co.","B-773","Oil & Gas","0423722859","08","05S","12W","Wilmington","No"]
[7056608,"Northern","Abandon","Northwest Petroleum, Inc.","Bell 4","Dry Gas","0409521284",17,"08N","01E","Winters Gas","No"]
[7056607,"Northern","Abandon","Northwest Petroleum, Inc.","Bell 5","Dry Gas","0409521294",20,"08N","01E","Winters Gas","No"]
[7056606,"Northern","Abandon","Northwest Petroleum, Inc.","Winters Unit 4 1","Dry Gas","0409500491",19,"08N","01E","Winters Gas","No"]
[7056605,"Central","Abandon","California Resources Production Corporation","Sarrett Fee 27N","Oil & Gas","0403013162",4,"27S","28E","Mount Poso","No"]
[7056604,"Central","Abandon","California Resources Production Corporation","Heisen 12","Oil & Gas","0402912969",16,"27S","28E","Mount Poso","No"]
[7056603,"Central","New Drill","California Resources Production Corporation","SECTION 25 4-3","Cyclic Steam","0403070282",25,"28S","27E","Kern Front","No"]
[7056602,"Central","Abandon","Bellaire Oil Company",16,"Oil & Gas","0402910610",27,"28S","27E","Kern Front","No"]
[7056601,"Central","Abandon","California Resources Production Corporation","Security 141","Oil & Gas","0402947933",16,"27S","28E","Mount Poso","No"]
[7056600,"Central","Abandon","Harter Energy, Inc.","Mark Morris-Harris 2","Oil & Gas","0402906232",26,"30S","29E","Edison","No"]
[7056599,"Northern","Abandon","Northwest Petroleum, Inc.","Bell 2","Dry Gas","0409521238",20,"08N","01E","Winters Gas","No"]
[7056598,"Northern","Abandon","EcoTech EOR, LLC","Ophelia 2","Dry Gas","0401100130",18,"14N","01E","Grimes Gas","No"]
[7056597,"Northern","Abandon","Stream Energy, Inc.","Sacramento Airport 3-18","Dry Gas","0406720328",18,"10N","04E","Sacramento Airport Gas","No"]
[7056596,"Northern","Abandon","Stream Energy, Inc.","Condon Trust 3-2","Dry Gas","0406720413",3,"04N","04E","River Island Gas","No"]
[7056595,"Northern","Abandon","Stream Energy, Inc.","Wilson Lands 28-1","Dry Gas","0406720499",28,"04N","04E","River Island Gas","No"]
[7056594,"Northern","Abandon","Stream Energy, Inc.","WG Land Co 35-1","Dry Gas","0406720449",35,"05N","04E","Thornton, W.-Walnut Grove Gas","No"]
[7056593,"Southern","Abandon","Tidelands Oil Production Co.","2AT37B","Observation","0403723578","04","05S","13W","Wilmington","No"]
[7056592,"Central","Abandon","Aera Energy LLC","King 13-9R-30","Oil & Gas","0402981471",30,"28S","21E","Belridge, South","No"]
[7056591,"Central","Abandon","Aera Energy LLC","Ellis 5-3R2-19","Oil & Gas","0403019377",19,"28S","21E","Belridge, South","No"]
[7056590,"Central","Abandon","Aera Energy LLC","SEBU T 5319-12","Steamflood","0403020191",12,"29S","21E","Belridge, South","No"]
[7056589,"Central","Abandon","Aera Energy LLC","King 13-6-30","Oil & Gas","0403004117",30,"28S","21E","Belridge, South","No"]
[7056588,"Central","Abandon","Aera Energy LLC","King 11-5R2-19","Oil & Gas","0403006932",19,"28S","21E","Belridge, South","No"]
[7056587,"Central","Abandon","Aera Energy LLC","King 13-10-30","Oil & Gas","0403002835",30,"28S","21E","Belridge, South","No"]
[7056586,"Central","Abandon","Harter Energy, Inc.","Corbett 1","Oil & Gas","0402906056",23,"30S","29E","Edison","No"]
["7054968-01","Central","Rework","Aera Energy LLC",766,"Waterflood","0401920609",29,"19S","15E","Coalinga","Yes"]
[7056585,"Central","Abandon","Aera Energy LLC","Penn-Zier 243","Oil & Gas","0401921042",1,"20S","14E","Coalinga","No"]
[7056584,"Central","Rework","California Resources Elk Hills, LLC","334-35B","Oil & Gas","0402909581",35,"31S","23E","Buena Vista","No"]
[7056583,"Central","Abandon","Sentinel Peak Resources California LLC","McKittrick Unit 1-I-823","Steamflood","0403046881",6,"30S","22E","Cymric","No"]
[7056582,"Central","Abandon","Sentinel Peak Resources California LLC","Star Fee 6260","Cyclic Steam","0403041618",6,"30S","22E","Cymric","No"]
[7056581,"Central","Abandon","Sentinel Peak Resources California LLC","Star Fee B30-2","Cyclic Steam","0403066833",6,"30S","22E","Cymric","No"]
[7056580,"Southern","Rework","THUMS Long Beach Co.","C-440","Oil & Gas","0423723774","16","05S","12W","Wilmington","No"]
[7056579,"Southern","Sidetrack","THUMS Long Beach Co.","D-432 I","Oil & Gas","0423722262","17","05S","12W","Wilmington","No"]
[7056578,"Northern","Abandon","Crest Oil & Gas Management Corp.","Kaiser-Borba 2","Dry Gas","0402120730",6,"21N","01W","Any Field","No"]
[7056577,"Central","Abandon","Central Pacific Resources","Lehi 13","Oil & Gas","0402941524",7,"29S","21E","Cymric","No"]
[7056576,"Central","Rework","Chevron U.S.A. Inc.","Virginia 82","Oil & Gas","0403068498",25,"32S","23E","Midway-Sunset","No"]
[7056575,"Central","Abandon","California Resources Production Corporation","Surfluh 11-14","Oil & Gas","0401921543",14,"15S","17E","Raisin City","No"]
[7056574,"Central","Abandon","Sentinel Peak Resources California LLC","McKittrick Unit 1-I-814","Steamflood","0403042663",6,"30S","22E","Cymric","No"]
[7056573,"Central","Abandon","Sentinel Peak Resources California LLC","McKittrick Front 3120","Cyclic Steam","0403046429",6,"30S","22E","Cymric","No"]
[7056572,"Central","Abandon","Sentinel Peak Resources California LLC","Star Fee G37-1","Cyclic Steam","0403065748",7,"30S","22E","Cymric","No"]
[7056571,"Central","Abandon","California Resources Production Corporation","Ripperdan 87-13","Oil & Gas","0401905568",13,"15S","17E","Raisin City","No"]
[7056570,"Southern","Abandon","Tidelands Oil Production Co.","585-W","Waterflood","0403703231","35","04S","13W","Wilmington","No"]
[7056569,"Northern","Rework","Aera Energy LLC","Lloyd 262","Waterflood","0411122032",26,"03N","23W","Ventura","No"]
[7056568,"Northern","Rework","CalNRG Operating, LLC","McGrath 5 814","Oil & Gas","0411100804",36,"02N","23W","Montalvo, West","No"]
[7056567,"Central","New Drill","California Resources Production Corporation","Section 23 286R","Cyclic Steam","0403070281",23,"28S","27E","Kern Front","No"]
[7056566,"Northern","Rework","CalNRG Operating, LLC","State PRC 1121","Oil & Gas","0411122117",36,"02N","23W","Montalvo, West","No"]
[7056565,"Central","New Drill","California Resources Elk Hills, LLC","64WY-4G","Oil & Gas","0403070280",4,"31S","24E","Elk Hills","No"]
[7056564,"Central","New Drill","Premier Resource Management","Opaque SP2-30","Oil & Gas","0403070279",30,"27S","20E","Any Field","No"]
[7056563,"Central","New Drill","California Resources Elk Hills, LLC","86SY-28S","Oil & Gas","0403070278",28,"30S","24E","Elk Hills","No"]
[7056562,"Central","New Drill","California Resources Elk Hills, LLC","31W-34S","Oil & Gas","0403070277",34,"30S","24E","Elk Hills","No"]
[7056561,"Central","New Drill","Premier Resource Management","Opaque SP1-30","Oil & Gas","0403070276",30,"27S","20E","Any Field - Central District","No"]
[7056560,"Central","New Drill","Premier Resource Management","Opaque SP3","Oil & Gas","0403070275",30,"27S","20E","Any Field - Central District","No"]
[7056559,"Southern","Re-Abandon","Sycamore Development Partners LLC","100 Acre 46","Oil & Gas","0405907047","08","03S","09W","Brea-Olinda","No"]
[7056558,"Southern","Re-Abandon","Sycamore Development Partners LLC","100 Acre 30","Oil & Gas","0405907042","08","03S","09W","Brea-Olinda","No"]
[7056557,"Southern","Re-Abandon","Sycamore Development Partners LLC","100 Acre 83","Oil & Gas","0405907066","08","03S","09W","Brea-Olinda","No"]
[7056556,"Central","Abandon","Aera Energy LLC","King 13-8-30","Oil & Gas","0403004116",30,"28S","21E","Belridge, South","No"]
[7056555,"Central","Abandon","Aera Energy LLC","Marina 3434-3","Oil & Gas","0402986187",3,"29S","21E","Belridge, South","No"]
[7056554,"Central","Rework","Chevron U.S.A. Inc.","Virginia 42","Oil & Gas","0403065099",25,"32S","23E","Midway-Sunset","No"]
[7056553,"Central","Abandon","Aera Energy LLC","King 10-1R-19","Oil & Gas","0403000351",19,"28S","21E","Belridge, South","No"]
[7056552,"Central","Abandon","Aera Energy LLC","Ellis 303LR-19","Oil & Gas","0402982334",19,"28S","21E","Belridge, South","No"]
[7056551,"Central","Abandon","Aera Energy LLC","King 10-7-19","Oil & Gas","0403004114",19,"28S","21E","Belridge, South","No"]
[7056550,"Central","Abandon","Aera Energy LLC","King 10-3-19","Oil & Gas","0403002832",19,"28S","21E","Belridge, South","No"]
[7056549,"Central","Abandon","Aera Energy LLC","Good Hope 11","Oil & Gas","0402952333",1,"11N","24W","Midway-Sunset","No"]
[7056548,"Central","Rework","Chevron U.S.A. Inc.",83,"Oil & Gas","0403068409",25,"32S","23E","Midway-Sunset","No"]
[7056547,"Central","Rework","Chevron U.S.A. Inc.","53A","Oil & Gas","0403029884",25,"32S","23E","Midway-Sunset","No"]
[7056546,"Central","Abandon","Holmes Western Oil Corporation","Son-Crail 19","Oil & Gas","0403001964",8,"11N","23W","Midway-Sunset","No"]
[7056541,"Central","Abandon","CMO, Inc.","Mitchel 35-460","Cyclic Steam","0403048842",35,"28S","20E","Chico-Martinez","No"]
[7056540,"Central","Abandon","Aera Energy LLC","DTR 85KR-34","Oil & Gas","0403013742",34,"28S","21E","Belridge, South","No"]
[7056539,"Central","Abandon","Aera Energy LLC","Belridge I 3114-2","Oil & Gas","0403019350",2,"29S","21E","Belridge, South","No"]
[7056538,"Central","Abandon","Aera Energy LLC","Belridge 3107A-11","Oil & Gas","0403018336",11,"29S","21E","Belridge, South","No"]
[7056537,"Central","Abandon","Aera Energy LLC","Belridge 3217-11","Oil & Gas","0403016152",11,"29S","21E","Belridge, South","No"]
[7056536,"Northern","Rework","Lodi Gas Storage, L.L.C.","Loma M-4B","Gas Storage","0407720733",9,"04N","07E","Lodi Gas","No"]
[7056535,"Central","New Drill","Premier Resource Management","Opaque 1414-30","Oil & Gas","0403070274",30,"27S","20E","Any Field","No"]
[7056534,"Northern","Rework","Pacific Gas and Electric Company","Whiskey Slough 14-E","Gas Storage","0407720257",25,"02N","04E","McDonald Island Gas","No"]
[7056533,"Northern","Rework","Pacific Gas and Electric Company","Whiskey Slough 8-E","Gas Storage","0407720188",25,"02N","04E","McDonald Island Gas","No"]
[7056531,"Central","New Drill","Valley Resources, LLC","Aviva 31X-20","Oil & Gas","0403070273",20,"26S","19E","Any Field - Central District","No"]
[7056530,"Southern","Rework","Tidelands Oil Production Co.","OWF 32","Oil & Gas","0403730048","04","05S","13W","Wilmington","No"]
[7056529,"Central","New Drill","Premier Resource Management","Opaque SP6-30","Oil & Gas","0403070272",30,"27S","20E","Any Field","No"]
[7056528,"Central","New Drill","Premier Resource Management","Opaque SP4-30","Oil & Gas","0403070271",30,"27S","20E","Any Field","No"]
[7056527,"Central","Abandon","Holmes Western Oil Corporation","Son-Crail 15","Oil & Gas","0403019466",8,"11N","23W","Midway-Sunset","No"]
[7056526,"Central","New Drill","Premier Resource Management","Opaque SP5-30","Oil & Gas","0403070270",30,"27S","20E","Any Field","No"]
[7056525,"Central","Abandon","Aera Energy LLC","Section 8 4-4","Oil & Gas","0402979851",8,"32S","23E","Midway-Sunset","No"]
[7056524,"Northern","Abandon","California Oil Independents","Doud 15","Oil & Gas","0405320664",19,"19S","07E","Monroe Swell","No"]
[7056523,"Central","Abandon","Chevron U.S.A. Inc.",69,"Oil & Gas","0402957664",7,"32S","23E","Midway-Sunset","No"]
[7056522,"Northern","Abandon","California Oil Independents","Doud 14","Oil & Gas","0405320424",19,"19S","07E","Monroe Swell","No"]
[7056521,"Northern","Abandon","California Oil Independents","Doud 13","Oil & Gas","0405320422",19,"19S","07E","Monroe Swell","No"]
[7056520,"Northern","Abandon","California Oil Independents","Doud 12","Oil & Gas","0405320421",19,"19S","07E","Monroe Swell","No"]
[7056519,"Northern","Abandon","California Oil Independents","Doud 11","Oil & Gas","0405320420",19,"19S","07E","Monroe Swell","No"]
[7056518,"Northern","Abandon","California Oil Independents","Doud 10","Oil & Gas","0405320419",19,"19S","07E","Monroe Swell","No"]
[7056517,"Northern","Abandon","California Oil Independents","Doud 9","Water Disposal","0405320383",19,"19S","07E","Monroe Swell","No"]
[7056516,"Northern","Abandon","California Oil Independents","Doud 8","Water Disposal","0405320365",19,"19S","07E","Monroe Swell","No"]
[7056515,"Northern","Abandon","California Oil Independents","Doud 7","Oil & Gas","0405320363",19,"19S","07E","Monroe Swell","No"]
[7056514,"Northern","Abandon","California Oil Independents","Doud 6","Oil & Gas","0405320362",19,"19S","07E","Monroe Swell","No"]
[7056513,"Northern","Abandon","California Oil Independents","Doud 5","Oil & Gas","0405320353",19,"19S","07E","Monroe Swell","No"]
[7056512,"Northern","Abandon","California Oil Independents","Doud 4","Oil & Gas","0405320352",19,"19S","07E","Monroe Swell","No"]
[7056511,"Northern","Abandon","California Oil Independents","Doud 3","Oil & Gas","0405301057",19,"19S","07E","Monroe Swell","No"]
[7056510,"Northern","Abandon","California Oil Independents","Doud 2","Oil & Gas","0405320295",19,"19S","07E","Monroe Swell","No"]
[7056509,"Northern","Abandon","California Oil Independents","Doud 1","Water Disposal","0405301058",19,"19S","07E","Monroe Swell","No"]
[7056508,"Central","New Drill","California Resources Production Corporation",46358,"Cyclic Steam","0403070269",25,"28S","27E","Kern Front","No"]
[7056507,"Central","New Drill","California Resources Production Corporation","SECTION 25 10-2","Cyclic Steam","0403070268",25,"28S","27E","Kern Front","No"]
[7056506,"Central","New Drill","Premier Resource Management","Opaque 1515-30","Oil & Gas","0403070267",30,"27S","20E","Any Field - Central District","No"]
[7056505,"Central","New Drill","California Resources Production Corporation","SECTION 25 2-3","Cyclic Steam","0403070266",25,"28S","27E","Kern Front","No"]
[7056504,"Central","Rework","Chevron U.S.A. Inc.","Green & Whittier 226","Oil & Gas","0402988870",31,"28S","28E","Kern River","No"]
[7056503,"Central","Abandon","Holmes Western Oil Corporation","Son-Crail 15R","Oil & Gas","0403040806",8,"11N","23W","Midway-Sunset","No"]
[7056502,"Central","Abandon","Reserve Petroleum California, Inc.","Tupman 43-9","Water Disposal","0402914290",9,"31S","29E","Mountain View","No"]
[7056501,"Central","Abandon","Aera Energy LLC","Ellis 3-8R-19","Oil & Gas","0403022165",19,"28S","21E","Belridge, South","No"]
[7056500,"Central","Abandon","Aera Energy LLC","Ellis 3-10-19","Oil & Gas","0403001512",19,"28S","21E","Belridge, South","No"]
[7056499,"Central","Abandon","Aera Energy LLC","SEBU T 3107-12","Oil & Gas","0403017180",12,"29S","21E","Belridge, South","No"]
[7056498,"Central","Abandon","Aera Energy LLC","Ellis 4-2ZR2-19","Steamflood","0403055369",19,"28S","21E","Belridge, South","No"]
[7056497,"Central","Abandon","Aera Energy LLC","Ellis 2-9-19","Oil & Gas","0403000911",19,"28S","21E","Belridge, South","No"]
[7056496,"Central","Abandon","Aera Energy LLC","SEBU T 5087-12","Steamflood","0403017848",12,"29S","21E","Belridge, South","No"]
[7056495,"Central","Abandon","Aera Energy LLC","SEBU T 5323-12","Steamflood","0403022017",12,"29S","21E","Belridge, South","No"]
[7056494,"Central","Abandon","Aera Energy LLC","Belridge 5157A-11","Steamflood","0403013956",11,"29S","21E","Belridge, South","No"]
[7056493,"Central","Abandon","Aera Energy LLC","Belridge V 3484A-2","Oil & Gas","0403017789",2,"29S","21E","Belridge, South","No"]
[7056492,"Central","Abandon","Aera Energy LLC","DTR 65PAA-29","Oil & Gas","0403006573",29,"28S","21E","Belridge, South","No"]
[7056491,"Central","Sidetrack","California Resources Elk Hills, LLC","44E-4G","Oil & Gas","0403036903",4,"31S","24E","Elk Hills","No"]
[7056490,"Central","Abandon","Sentinel Peak Resources California LLC","Star Fee D28-1","Cyclic Steam","0403063658",6,"30S","22E","Cymric","No"]
[7056489,"Central","Abandon","Sentinel Peak Resources California LLC","Star Fee J33-1","Cyclic Steam","0403066291",7,"30S","22E","Cymric","No"]
["7055458-01","Central","New Drill","Aera Energy LLC","Lost Hills C LC2214R-13","Cyclic Steam","0403070088",13,"26S","20E","Lost Hills","Yes"]
[7056488,"Central","Abandon","Sentinel Peak Resources California LLC","Star Fee I39-1","Cyclic Steam","0403065326",7,"30S","22E","Cymric","No"]
[7056487,"Southern","Abandon","Sentinel Peak Resources California LLC","Block 26","Oil & Gas","0403707472","07","02S","14W","Inglewood","No"]
[7056486,"Southern","Abandon","Sentinel Peak Resources California LLC","BC 453","Oil & Gas","0403707765","17","02S","14W","Inglewood","No"]
[7056485,"Central","Abandon","Sentinel Peak Resources California LLC","Star Fee G36-1","Cyclic Steam","0403065739",7,"30S","22E","Cymric","No"]
[7056484,"Central","Abandon","Aera Energy LLC","Wilbert I-27","Steamflood","0402968009",26,"32S","23E","Midway-Sunset","No"]
[7056483,"Central","Abandon","Aera Energy LLC","Siemon 109","Cyclic Steam","0402974160",25,"32S","23E","Midway-Sunset","No"]
[7056482,"Central","Rework","Chevron U.S.A. Inc.","Sec. 25 60","Cyclic Steam","0403064759",25,"32S","23E","Midway-Sunset","No"]
[7056481,"Central","Rework","Chevron U.S.A. Inc.","53B","Oil & Gas","0403041604",25,"32S","23E","Midway-Sunset","No"]
[7056480,"Southern","Abandon","Tidelands Oil Production Co.","2AT36B","Observation","0403723577","04","05S","13W","Wilmington","No"]
[7056479,"Central","Abandon","Chevron U.S.A. Inc.","Luck 217","Oil & Gas","0403008392",30,"28S","28E","Kern River","No"]
[7056478,"Central","Rework","Chevron U.S.A. Inc.","American Naphtha 3673","Oil & Gas","0403001112",31,"28S","28E","Kern River","No"]
[7056477,"Central","Rework","Chevron U.S.A. Inc.","Alma Jr. 37","Cyclic Steam","0403002992",4,"29S","28E","Kern River","No"]
[7056476,"Central","Rework","Chevron U.S.A. Inc.","Green & Whittier 522","Oil & Gas","0402944761",31,"28S","28E","Kern River","No"]
[7056475,"Central","Rework","Chevron U.S.A. Inc.","Green & Whittier 275","Oil & Gas","0403015807",31,"28S","28E","Kern River","No"]
[7056474,"Central","Rework","Chevron U.S.A. Inc.","53D","Oil & Gas","0403062349",25,"32S","23E","Midway-Sunset","No"]
[7056473,"Central","Abandon","Aera Energy LLC","Wilbert G-70","Oil & Gas","0402989430",26,"32S","23E","Midway-Sunset","No"]
[7056472,"Central","Abandon","Aera Energy LLC","Gore B 8-70","Oil & Gas","0402964721",21,"31S","22E","Midway-Sunset","No"]
[7056471,"Central","Abandon","Aera Energy LLC","Wilbert I-33","Oil & Gas","0402967100",26,"32S","23E","Midway-Sunset","No"]
[7056470,"Central","Rework","Chevron U.S.A. Inc.","Green & Whittier 198","Oil & Gas","0402956891",31,"28S","28E","Kern River","No"]
["7055612-01","Central","New Drill","Aera Energy LLC","Lost Hills Three LH2093-13","Oil & Gas","0403070149",13,"26S","20E","Lost Hills","Yes"]
[7056468,"Central","Abandon","Aera Energy LLC","Wilbert F-15","Oil & Gas","0402985047",26,"32S","23E","Midway-Sunset","No"]
[7056467,"Central","Abandon","Aera Energy LLC","Gore C 31-3","Oil & Gas","0402983523",21,"31S","22E","Midway-Sunset","No"]
[7056466,"Central","Abandon","Aera Energy LLC","Wilbert TO-5","Steamflood","0403005218",26,"32S","23E","Midway-Sunset","No"]
[7056465,"Central","Abandon","Aera Energy LLC","Gore C 8-50N","Oil & Gas","0402973735",21,"31S","22E","Midway-Sunset","No"]
[7056464,"Central","Abandon","Aera Energy LLC","Wilbert I-21","Steamflood","0402965306",26,"32S","23E","Midway-Sunset","No"]
[7056463,"Central","Abandon","Sentinel Peak Resources California LLC","McKittrick Unit 1-I-715","Steamflood","0403042662",6,"30S","22E","Cymric","No"]
[7056462,"Central","Abandon","Sentinel Peak Resources California LLC","McKittrick Unit 1-I-834","Steamflood","0403046882",6,"30S","22E","Cymric","No"]
[7056461,"Central","Abandon","Sentinel Peak Resources California LLC","Star Fee J40-1","Cyclic Steam","0403066908",7,"30S","22E","Cymric","No"]
[7056460,"Central","Abandon","Sentinel Peak Resources California LLC","Star Fee A26-1","Cyclic Steam","0403064912",6,"30S","22E","Cymric","No"]
[7056459,"Central","Abandon","Sentinel Peak Resources California LLC","Star Fee C36-1","Cyclic Steam","0403066817",7,"30S","22E","Cymric","No"]
[7056458,"Central","Abandon","Sentinel Peak Resources California LLC","Star Fee E20-1","Cyclic Steam","0403064240",6,"30S","22E","Cymric","No"]
[7056457,"Central","Abandon","California Resources Elk Hills, LLC","85N-10G","Observation","0403013677",10,"31S","24E","Elk Hills","No"]
[7056456,"Central","Abandon","Aera Energy LLC","Gore B 83-7","Steamflood","0403008789",21,"31S","22E","Midway-Sunset","No"]
[7056455,"Central","Abandon","Aera Energy LLC","Section 8 5-5A","Oil & Gas","0403048750",8,"32S","23E","Midway-Sunset","No"]
[7056454,"Central","Abandon","California Resources Elk Hills, LLC","84-11G","Oil & Gas","0402929219",11,"31S","24E","Elk Hills","No"]
[7056453,"Central","Abandon","Aera Energy LLC","Gore C 3-1A","Oil & Gas","0402941276",21,"31S","22E","Midway-Sunset","No"]
[7056452,"Central","Abandon","Aera Energy LLC","Section 8 4-3","Oil & Gas","0403048749",8,"32S","23E","Midway-Sunset","No"]
[7056451,"Central","Abandon","Aera Energy LLC","Gore A 8-6N","Oil & Gas","0402975379",21,"31S","22E","Midway-Sunset","No"]
[7056450,"Central","Abandon","Aera Energy LLC","Gore A 72-60","Oil & Gas","0402983475",21,"31S","22E","Midway-Sunset","No"]
[7056449,"Central","Rework","TRC Operating Company, Inc.","Bull 29R","Cyclic Steam","0403036702",22,"32S","23E","Midway-Sunset","No"]
[7056448,"Central","Rework","Valley Water Management Company","VWD 9","Water Disposal","0402936098",5,"11N","23W","Midway-Sunset","No"]
[7056447,"Southern","Abandon","Warren E&P, Inc.","WTU 2111","Oil & Gas","0403730524","33","04S","13W","Wilmington","No"]
[7056446,"Southern","Abandon","Tidelands Oil Production Co.","3T32C","Waterflood","0403722185","34","04S","13W","Wilmington","No"]
[7056445,"Southern","Abandon","Lena Pauline Savage","1","Oil & Gas","0403718753","22","02S","11W","Whittier","No"]
[7056444,"Southern","Abandon","Tidelands Oil Production Co.","M970E","Oil & Gas","0403703752","35","04S","13W","Wilmington","No"]
[7056443,"Northern","Abandon","Chevron U.S.A. Inc.","Rosenberg (NCT-1) 218A","Oil & Gas","0405321208",3,"23S","10E","San Ardo","No"]
[7056442,"Northern","Abandon","Chevron U.S.A. Inc.","Rosenberg (NCT-1) 369","Cyclic Steam","0405320549",3,"23S","10E","San Ardo","No"]
[7056441,"Northern","Abandon","Chevron U.S.A. Inc.","Dudley 25A","Observation","0405320787",3,"23S","10E","San Ardo","No"]
[7056440,"Northern","Abandon","Chevron U.S.A. Inc.","Rosenberg (NCT-1) 173B","Observation","0405320755",33,"22S","10E","San Ardo","No"]
[7056439,"Northern","Abandon","Chevron U.S.A. Inc.","Rosenberg (NCT-1) 372A","Oil & Gas","0405322134",2,"23S","10E","San Ardo","No"]
[7056438,"Central","Rework","Chevron U.S.A. Inc.","Kern County Land Co. Lease 39 410-9","Cyclic Steam","0403040974",9,"29S","28E","Kern River","No"]
[7056437,"Central","Abandon","California Resources Elk Hills, LLC","82SW-3G","Oil & Gas","0403040953",3,"31S","24E","Elk Hills","No"]
[7056436,"Central","Abandon","Aera Energy LLC","Nevada 67","Oil & Gas","0402955440",25,"32S","23E","Midway-Sunset","No"]
[7056435,"Central","Abandon","California Resources Production Corporation","Surfluh 3-13","Oil & Gas","0401905409",13,"15S","17E","Raisin City","No"]
[7056434,"Central","Abandon","California Resources Production Corporation","Ripperdan 86A-13","Oil & Gas","0401905567",13,"15S","17E","Raisin City","No"]
[7056433,"Central","Abandon","Aera Energy LLC","52JI","Waterflood","0401923154",29,"19S","15E","Coalinga","No"]
[7056432,"Central","Abandon","Aera Energy LLC","DTR 125S-28","Observation","0402951345",28,"28S","21E","Belridge, South","No"]
[7056431,"Central","Abandon","California Resources Elk Hills, LLC","73-11G","Observation","0402929216",11,"31S","24E","Elk Hills","No"]
[7056430,"Central","Abandon","California Resources Elk Hills, LLC","63SW-3G","Oil & Gas","0403033259",3,"31S","24E","Elk Hills","No"]
[7056429,"Central","Abandon","California Resources Elk Hills, LLC","42SW-3G","Oil & Gas","0403039092",3,"31S","24E","Elk Hills","No"]
[7056428,"Central","Abandon","California Resources Elk Hills, LLC","82-2G","Observation","0402960251",2,"31S","24E","Elk Hills","No"]
[7056427,"Central","Abandon","Aera Energy LLC","SEBU T 3300A-12","Oil & Gas","0403037135",12,"29S","21E","Belridge, South","No"]
[7056426,"Central","Abandon","Aera Energy LLC","DTR 15RAA-28","Oil & Gas","0403006464",28,"28S","21E","Belridge, South","No"]
[7056425,"Central","New Drill","Aera Energy LLC","Lost Hills Three LH2042-13","Cyclic Steam","0403070265",13,"26S","20E","Lost Hills","No"]
[7056424,"Northern","Abandon","Chevron U.S.A. Inc.","Rosenberg (NCT-1) 192","Oil & Gas","0405300935",2,"23S","10E","San Ardo","No"]
[7056423,"Northern","Abandon","Chevron U.S.A. Inc.","Dudley 21B","Steamflood","0405322200",3,"23S","10E","San Ardo","No"]
[7056422,"Central","New Drill","Aera Energy LLC","Lost Hills Three LH4059A-13","Oil & Gas","0403070264",13,"26S","20E","Lost Hills","No"]
[7056421,"Northern","Abandon","Chevron U.S.A. Inc.","Rosenberg (NCT-1) 415A","Oil & Gas","0405322091",3,"23S","10E","San Ardo","No"]
[7056420,"Northern","Abandon","Chevron U.S.A. Inc.","Rosenberg (NCT-1) 289","Steamflood","0405320147",3,"23S","10E","San Ardo","No"]
[7056419,"Northern","Abandon","Chevron U.S.A. Inc.","Rosenberg (NCT-1) 197A","Cyclic Steam","0405322618",3,"23S","10E","San Ardo","No"]
[7056418,"Northern","Abandon","Chevron U.S.A. Inc.","Rosenberg (NCT-1) 520","Oil & Gas","0405321979",3,"23S","10E","San Ardo","No"]
[7056417,"Northern","Abandon","Chevron U.S.A. Inc.","Rosenberg (NCT-1) 451","Multi-Purpose","0405320738",3,"23S","10E","San Ardo","No"]
[7056416,"Northern","Abandon","Chevron U.S.A. Inc.","Rosenberg (NCT-1) 229","Oil & Gas","0405300966",3,"23S","10E","San Ardo","No"]
[7056415,"Northern","Abandon","Chevron U.S.A. Inc.","Rosenberg (NCT-1) 5396","Oil & Gas","0405322316",3,"23S","10E","San Ardo","No"]
[7056414,"Northern","Abandon","Chevron U.S.A. Inc.","Rosenberg (NCT-1) 431","Oil & Gas","0405320709",3,"23S","10E","San Ardo","No"]
[7056413,"Northern","Abandon","Chevron U.S.A. Inc.","Rosenberg (NCT-1) 96A","Steamflood","0405320469",3,"23S","10E","San Ardo","No"]
[7056412,"Northern","Abandon","Chevron U.S.A. Inc.","Rosenberg (NCT-1) 56","Steamflood","0405300807",2,"23S","10E","San Ardo","No"]
[7056411,"Northern","Rework","Southern California Gas Company","Porter 72B","Gas Storage","0403724146",27,"03N","16W","Aliso Canyon","No"]
["7054450-01","Northern","Rework","Southern California Gas Company","Porter 32","Gas Storage","0403700719",27,"03N","16W","Aliso Canyon","Yes"]
[7056410,"Northern","Abandon","Chevron U.S.A. Inc.","Rosenberg (NCT-1) 526","Cyclic Steam","0405322093",3,"23S","10E","San Ardo","No"]
[7056409,"Northern","Rework","Southern California Gas Company","Standard Sesnon 9","Gas Storage","0403700762",28,"03N","16W","Aliso Canyon","No"]
[7056408,"Central","Abandon","Aera Energy LLC","Belridge K & K 3441A-11","Cyclic Steam","0403052464",11,"29S","21E","Belridge, South","No"]
[7056407,"Central","Abandon","Aera Energy LLC","DTR 686HAA-29","Steamflood","0403006364",29,"28S","21E","Belridge, South","No"]
[7056406,"Central","Abandon","Aera Energy LLC","SEBU T 2497A-1","Oil & Gas","0403002994",1,"29S","21E","Belridge, South","No"]
[7056405,"Central","Abandon","Aera Energy LLC","DTR 16AAA-28","Oil & Gas","0403006336",28,"28S","21E","Belridge, South","No"]
[7056404,"Central","Abandon","Aera Energy LLC","DTR 512L-33","Steamflood","0403010169",33,"28S","21E","Belridge, South","No"]
[7056403,"Central","Abandon","Aera Energy LLC","DTR 616FAA-28","Steamflood","0403006349",28,"28S","21E","Belridge, South","No"]
[7056402,"Central","Abandon","Chevron U.S.A. Inc.","USL G-382","Oil & Gas","0402963615",27,"31S","22E","Midway-Sunset","No"]
[7056401,"Central","Abandon","Aera Energy LLC","SEBU T 5270-12","Steamflood","0403020189",12,"29S","21E","Belridge, South","No"]
[7056400,"Central","Abandon","Aera Energy LLC","DTR 53KL-33","Oil & Gas","0402989577",33,"28S","21E","Belridge, South","No"]
[7056399,"Central","Rework","Valley Water Management Company","VWD 2","Water Disposal","0402936092",5,"11N","23W","Midway-Sunset","No"]
[7056398,"Central","Rework","Valley Water Management Company","VWD 12","Water Disposal","0402907764",5,"11N","23W","Midway-Sunset","No"]
[7056397,"Central","Abandon","Aera Energy LLC","DTR 74RM-34","Oil & Gas","0402989619",34,"28S","21E","Belridge, South","No"]
[7056396,"Central","Rework","Valley Water Management Company","VWD 17","Water Disposal","0402962396",5,"11N","23W","Midway-Sunset","No"]
[7056395,"Central","Abandon","Aera Energy LLC","Gore B 8-7P","Oil & Gas","0402976607",21,"31S","22E","Midway-Sunset","No"]
[7056394,"Central","Abandon","Aera Energy LLC","Gore C 9-5N","Oil & Gas","0402982408",21,"31S","22E","Midway-Sunset","No"]
[7056393,"Central","Abandon","Aera Energy LLC","Gore B 80-7","Oil & Gas","0402986355",21,"31S","22E","Midway-Sunset","No"]
[7056392,"Central","Abandon","Aera Energy LLC","Gore C 20-1P","Cyclic Steam","0402977525",21,"31S","22E","Midway-Sunset","No"]
[7056391,"Central","Abandon","Aera Energy LLC","Section 8 3-7","Oil & Gas","0402943065",8,"32S","23E","Midway-Sunset","No"]
[7056390,"Central","Rework","California Resources Production Corporation","Young Fee 177","Cyclic Steam","0403062528",23,"28S","27E","Kern Front","No"]
[7056389,"Central","Rework","Chevron U.S.A. Inc.","American Naphtha 24BT1","Oil & Gas","0402983330",31,"28S","28E","Kern River","No"]
[7056388,"Central","Rework","Chevron U.S.A. Inc.","Sovereign 43","Oil & Gas","0403044106",31,"28S","28E","Kern River","No"]
[7056387,"Central","Rework","Chevron U.S.A. Inc.","American Naphtha 3271","Oil & Gas","0402971106",31,"28S","28E","Kern River","No"]
[7056386,"Central","Rework","Chevron U.S.A. Inc.","Thomas T.O. 1","Observation","0402961173",9,"29S","28E","Kern River","No"]
[7056385,"Southern","Abandon","Mills Petro. Co.","1","Oil & Gas","0403707382","17","02S","14W","Inglewood","No"]
[7056384,"Central","Sidetrack","Chevron U.S.A. Inc.","Vulcan 9-4A","Oil & Gas","0403026122",5,"27S","21E","Lost Hills","No"]
[7056383,"Central","Abandon","Aera Energy LLC","Marina 5445-3","Steamflood","0403013953",3,"29S","21E","Belridge, South","No"]
[7056382,"Central","New Drill","Aera Energy LLC","Lost Hills Three LH5112-13","Steamflood","0403070263",13,"26S","20E","Lost Hills","No"]
["7055089-01","Central","New Drill","Aera Energy LLC","MD2315-13","Oil & Gas","0403069965",13,"26S","20E","Lost Hills","Yes"]
["7055389-01","Central","New Drill","Aera Energy LLC","Lost Hills C LC4178R-13","Oil & Gas","0403070074",13,"26S","20E","Lost Hills","Yes"]
[7056381,"Central","Abandon","Aera Energy LLC","Section 8 22-J","Oil & Gas","0403018866",8,"32S","23E","Midway-Sunset","No"]
[7056380,"Central","Abandon","Aera Energy LLC","Gore C 50-4T","Observation","0402984332",21,"31S","22E","Midway-Sunset","No"]
[7056379,"Central","Abandon","Aera Energy LLC","Kendon F-11","Oil & Gas","0403008240",35,"32S","23E","Midway-Sunset","No"]
[7056378,"Central","Abandon","Aera Energy LLC","Maxwell E-15","Oil & Gas","0402943916",27,"31S","22E","Midway-Sunset","No"]
[7056377,"Central","Abandon","Aera Energy LLC","Maxwell A-12","Oil & Gas","0402961060",27,"31S","22E","Midway-Sunset","No"]
[7056376,"Central","Abandon","Aera Energy LLC","Maxwell 211","Oil & Gas","0402962877",27,"31S","22E","Midway-Sunset","No"]
[7056375,"Central","Abandon","Aera Energy LLC","Maxwell 183","Oil & Gas","0402960632",27,"31S","22E","Midway-Sunset","No"]
[7056374,"Central","Abandon","Aera Energy LLC","Maxwell 158","Oil & Gas","0402956632",27,"31S","22E","Midway-Sunset","No"]
[7056373,"Central","Abandon","Chevron U.S.A. Inc.","Ojai 32","Oil & Gas","0402985985",21,"28S","28E","Kern River","No"]
[7056372,"Central","Abandon","Chevron U.S.A. Inc.","Chanslor 543","Steamflood","0403056349",24,"28S","27E","Kern River","No"]
[7056371,"Central","Abandon","Chevron U.S.A. Inc.","33-880H","Cyclic Steam","0403052865",33,"28S","28E","Kern River","No"]
[7056370,"Central","Rework","Chevron U.S.A. Inc.","San Joaquin T.O. 29","Observation","0403002008",5,"29S","28E","Kern River","No"]
[7056369,"Central","Abandon","Chevron U.S.A. Inc.","Stauffer 34","Oil & Gas","0402969385",28,"28S","28E","Kern River","No"]
[7056368,"Central","Abandon","Chevron U.S.A. Inc.","Bishop Fee 1","Observation","0402926259",28,"28S","28E","Kern River","No"]
[7056367,"Central","Abandon","Chevron U.S.A. Inc.","Stauffer 32","Oil & Gas","0402969384",28,"28S","28E","Kern River","No"]
[7056366,"Southern","Rework","Sentinel Peak Resources California LLC","Vickers 2 34","Waterflood","0403720163","07","02S","14W","Inglewood","No"]
[7056365,"Southern","Rework","Sentinel Peak Resources California LLC","VRU 259","Waterflood","0403723073","08","02S","14W","Inglewood","No"]
[7056364,"Central","Abandon","Aera Energy LLC","SEBU T 5333-12","Steamflood","0403019324",12,"29S","21E","Belridge, South","No"]
[7056363,"Central","Abandon","Sentinel Peak Resources California LLC","Star Fee F30-1","Cyclic Steam","0403063848",6,"30S","22E","Cymric","No"]
[7056362,"Central","Abandon","Aera Energy LLC","SEBU T 3422-12","Oil & Gas","0403020156",12,"29S","21E","Belridge, South","No"]
[7056361,"Central","New Drill","Aera Energy LLC","Lost Hills C LC4184-13","Cyclic Steam","0403070262",13,"26S","20E","Lost Hills","No"]
["7055510-01","Central","New Drill","Aera Energy LLC","Lost Hills Three LH4084A-13","Oil & Gas","0403070112",13,"26S","20E","Lost Hills","Yes"]
[7056360,"Central","New Drill","Aera Energy LLC","Lost Hills C LC2217-13","Cyclic Steam","0403070261",13,"26S","20E","Lost Hills","No"]
[7056359,"Central","Abandon","Sentinel Peak Resources California LLC","Star Fee E31-1","Cyclic Steam","0403063903",6,"30S","22E","Cymric","No"]
[7056358,"Central","Deepen","Chevron U.S.A. Inc.","SP 68 2121","Oil & Gas","0403062950",7,"30S","22E","McKittrick","No"]
[7056357,"Central","Deepen","Chevron U.S.A. Inc.","SP 42 2126","Oil & Gas","0403062954",7,"30S","22E","McKittrick","No"]
[7056356,"Central","Deepen","Chevron U.S.A. Inc.","SP 42 2127","Oil & Gas","0403062960",7,"30S","22E","McKittrick","No"]
[7056355,"Central","Deepen","Chevron U.S.A. Inc.","SP 42 2128","Cyclic Steam","0403062962",7,"30S","22E","McKittrick","No"]
[7056354,"Central","Abandon","Sentinel Peak Resources California LLC","Star Fee E28-1","Cyclic Steam","0403063650",6,"30S","22E","Cymric","No"]
[7056353,"Central","Rework","TRC Operating Company, Inc.","Jacob 10","Oil & Gas","0403026815",22,"29S","21E","Cymric","No"]
["7051913-01","Northern","Sidetrack","Aera Energy LLC","Hambey 803-17","Water Disposal","0405321360",17,"23S","11E","San Ardo","Yes"]
[7056352,"Central","Abandon","Aera Energy LLC","SEBU T 3390-12","Oil & Gas","0403020135",12,"29S","21E","Belridge, South","No"]
[7056351,"Central","Abandon","Aera Energy LLC","DTR 87M-34","Oil & Gas","0402902313",34,"28S","21E","Belridge, South","No"]
[7056350,"Southern","Abandon","E & B Natural Resources Management Corporation","ANGUS B-10","Oil & Gas","0405921487","02","06S","11W","Huntington Beach","No"]
[7056349,"Southern","Abandon","E & B Natural Resources Management Corporation","ANGUS A-3 I","Waterflood","0405921478",2,"06S","11W","Huntington Beach","No"]
[7056348,"Central","Abandon","Aera Energy LLC","Maxwell 176","Oil & Gas","0402960577",27,"31S","22E","Midway-Sunset","No"]
[7056347,"Central","Abandon","Aera Energy LLC","Maxwell 186","Oil & Gas","0402960635",27,"31S","22E","Midway-Sunset","No"]
[7056346,"Central","Abandon","Aera Energy LLC","Maxwell 129","Oil & Gas","0402954066",27,"31S","22E","Midway-Sunset","No"]
[7056345,"Central","Abandon","Aera Energy LLC","Maxwell 84","Oil & Gas","0402947504",27,"31S","22E","Midway-Sunset","No"]
[7056344,"Southern","Abandon","Ann Brindle","Copeland 8","Oil & Gas","0405904292",34,"05S","11W","Huntington Beach","No"]
[7056343,"Central","Abandon","Sentinel Peak Resources California LLC","Star Fee 5220","Cyclic Steam","0403044167",6,"30S","22E","Cymric","No"]
["7055023-01","Central","New Drill","Sentinel Peak Resources California LLC","Welport I-56","Steamflood","0403069945",36,"29S","21E","Cymric","Yes"]
[7056342,"Central","Abandon","Chevron U.S.A. Inc.","9-7ST","Observation","0403039590",7,"30S","22E","Cymric","No"]
[7056341,"Central","Abandon","Aera Energy LLC","DTR 85LAA-29","Oil & Gas","0403006342",29,"28S","21E","Belridge, South","No"]
[7056340,"Northern","Abandon","Chemassist, L.L.C.","Central 6","Oil & Gas","0411102596",6,"04N","19W","Sespe","No"]
[7056339,"Central","Abandon","California Resources Production Corporation","N.C.C. 10-10","Oil & Gas","0401920837",10,"15S","17E","Raisin City","No"]
[7056338,"Northern","Abandon","CalNRG Operating, LLC","S.P.S. 40","Oil & Gas","0411102563",21,"03N","21W","Saticoy","No"]
[7056337,"Central","Abandon","California Resources Production Corporation","N.C.C. 1-11","Water Disposal","0401905471",11,"15S","17E","Raisin City","No"]
[7056336,"Northern","Abandon","Aera Energy LLC","Taylor 810","Oil & Gas","0411105429",29,"03N","23W","Ventura","No"]
[7056335,"Central","Rework","Chevron U.S.A. Inc.","1Y 1324TO","Observation","0403048762",1,"30S","21E","Cymric","No"]
[7056334,"Central","Rework","California Resources Elk Hills, LLC","84NE-35S","Oil & Gas","0403026084",35,"30S","24E","Elk Hills","No"]
[7056333,"Central","Abandon","Aera Energy LLC","Western 91-4","Oil & Gas","0402986825",21,"31S","22E","Midway-Sunset","No"]
[7056332,"Central","Abandon","Aera Energy LLC","Western 83-2","Oil & Gas","0402986858",21,"31S","22E","Midway-Sunset","No"]
[7056331,"Central","Abandon","Chevron U.S.A. Inc.","San Joaquin 788R","Oil & Gas","0403026912",5,"29S","28E","Kern River","No"]
[7056330,"Central","Rework","Chevron U.S.A. Inc.","Kern County Land Co. Lease 39 300-9","Cyclic Steam","0403021735",9,"29S","28E","Kern River","No"]
[7056329,"Central","Abandon","Sentinel Peak Resources California LLC","Bremer 253-16","Oil & Gas","0402979037",16,"31S","22E","Midway-Sunset","No"]
[7056328,"Southern","Re-Abandon","Sycamore Development Partners LLC","Olinda Two 8","Oil & Gas","0405906734","08","03S","09W","Brea-Olinda","No"]
[7056327,"Northern","Abandon","California Resources Production Corporation","West Levee Unit One 2","Dry Gas","0411320464",8,"06N","03E","Millar Gas","No"]
[7056326,"Southern","Abandon","E & B Natural Resources Management Corporation","ANGUS B-8 I","Waterflood","0405921485","02","06S","11W","Huntington Beach","No"]
[7056323,"Central","Re-Abandon","Sentinel Peak Resources California LLC","15A 4-1","Oil & Gas","0402905479",15,"31S","22E","Midway-Sunset","No"]
[7056322,"Southern","Abandon","Sentinel Peak Resources California LLC","WRZU 382","Oil & Gas","0403708364","08","02S","14W","Inglewood","No"]
[7056321,"Central","Abandon","Aera Energy LLC","Lockwood 24-J","Oil & Gas","0402965420",16,"32S","23E","Midway-Sunset","No"]
[7056320,"Central","Abandon","Aera Energy LLC","Lockwood 24-E","Steamflood","0402962499",16,"32S","23E","Midway-Sunset","No"]
[7056319,"Central","Abandon","California Resources Production Corporation","Security 97BH","Oil & Gas","0403051170",16,"27S","28E","Mount Poso","No"]
[7056318,"Central","Abandon","California Resources Production Corporation","Eagle-Sunset 6","Oil & Gas","0401905504",11,"15S","17E","Raisin City","No"]
[7056317,"Central","Abandon","California Resources Production Corporation","N.C.C. 7-10","Oil & Gas","0401905484",10,"15S","17E","Raisin City","No"]
[7056316,"Northern","Abandon","Chevron U.S.A. Inc.","Rosenberg (NCT-1) 5504","Cyclic Steam","0405322615",3,"23S","10E","San Ardo","No"]
[7056315,"Northern","Abandon","Chevron U.S.A. Inc.","Rosenberg (NCT-1) 403","Oil & Gas","0405320648",3,"23S","10E","San Ardo","No"]
[7056314,"Central","Rework","Aera Energy LLC","T.O.L. 5561R","Steamflood","0403062729",12,"26S","20E","Lost Hills","No"]
[7056313,"Northern","Abandon","Chevron U.S.A. Inc.","Rosenberg (NCT-1) TO35","Observation","0405322350",2,"23S","10E","San Ardo","No"]
[7056312,"Northern","Abandon","Chevron U.S.A. Inc.","Rosenberg (NCT-1) TO28","Observation","0405322206",2,"23S","10E","San Ardo","No"]
[7056311,"Northern","Abandon","Chevron U.S.A. Inc.","Rosenberg (NCT-1) 151","Observation","0405300896",2,"23S","10E","San Ardo","No"]
[7056310,"Central","Abandon","California Resources Elk Hills, LLC","352X-3G","Waterflood","0402984529",3,"31S","24E","Elk Hills","No"]
[7056309,"Northern","Abandon","Chevron U.S.A. Inc.","Rosenberg (NCT-1) 341","Oil & Gas","0405320400",34,"22S","10E","San Ardo","No"]
[7056308,"Central","Abandon","California Resources Elk Hills, LLC","21N-33S","Oil & Gas","0403018487",33,"30S","24E","Elk Hills","No"]
[7056307,"Northern","Abandon","Chevron U.S.A. Inc.","Rosenberg (NCT-1) 5403","Cyclic Steam","0405322616",34,"22S","10E","San Ardo","No"]
[7056306,"Southern","Abandon","E & B Natural Resources Management Corporation","ANGUS B-11 I","Waterflood","0405921488","02","06S","11W","Huntington Beach","No"]
[7056305,"Northern","Abandon","Chevron U.S.A. Inc.","Orradre C8-11","Oil & Gas","0405321619",11,"23S","10E","San Ardo","No"]
[7056304,"Central","Rework","Aera Energy LLC","T.O.L. 5588","Steamflood","0403053972",12,"26S","20E","Lost Hills","No"]
[7056303,"Southern","Abandon","E & B Natural Resources Management Corporation","ANGUS B-16 I","Waterflood","0405921493","02","06S","11W","Huntington Beach","No"]
[7056302,"Northern","Abandon","Chevron U.S.A. Inc.","Rosenberg (NCT-1) TO40","Observation","0405322355",34,"22S","10E","San Ardo","No"]
[7056301,"Northern","Abandon","Chevron U.S.A. Inc.","Orradre T014-11","Observation","0405321841",11,"23S","10E","San Ardo","No"]
[7056300,"Northern","Abandon","Chevron U.S.A. Inc.","Rosenberg (NCT-1) 5123","Cyclic Steam","0405322239",2,"23S","10E","San Ardo","No"]
[7056299,"Northern","Abandon","Chevron U.S.A. Inc.","Rosenberg (NCT-1) 405","Oil & Gas","0405320650",3,"23S","10E","San Ardo","No"]
[7056298,"Central","Rework","California Resources Elk Hills, LLC","24-3G","Oil & Gas","0403029496",3,"31S","24E","Elk Hills","No"]
[7056297,"Central","Rework","California Resources Elk Hills, LLC","102-35B","Oil & Gas","0402902098",35,"31S","23E","Buena Vista","No"]
[7056296,"Northern","Abandon","NewBridge Resources, LLC","Careaga 93","Oil & Gas","0408302125",31,"09N","33W","Orcutt","No"]
[7056295,"Central","Abandon","California Resources Elk Hills, LLC","117-34S","Oil & Gas","0402927658",34,"30S","24E","Elk Hills","No"]
[7056294,"Central","Abandon","California Resources Elk Hills, LLC","17-9G","Observation","0402929165",9,"31S","24E","Elk Hills","No"]
[7056293,"Central","Abandon","California Resources Elk Hills, LLC","36NW-26S","Oil & Gas","0403042606",26,"30S","24E","Elk Hills","No"]
[7056292,"Northern","Abandon","Pacific Coast Energy Company LP","Lombardi 3-27","Oil & Gas","0405321836",27,"22S","10E","San Ardo","No"]
[7056291,"Northern","Abandon","Pacific Coast Energy Company LP","Lombardi 7-27","Water Disposal","0405321884",27,"22S","10E","San Ardo","No"]
[7056290,"Northern","Abandon","Pacific Coast Energy Company LP","Sinclair 4-22","Oil & Gas","0405301157",22,"22S","10E","McCool Ranch","No"]
[7056289,"Northern","Abandon","Pacific Coast Energy Company LP","Sinclair 5","Oil & Gas","0405301087",22,"22S","10E","McCool Ranch","No"]
[7056288,"Northern","Abandon","Unknown Operator","Unknown DH1","Dry Hole","0411122419",31,"02N","22W","Montalvo, West","No"]
[7056287,"Northern","Abandon","Pacific Coast Energy Company LP","Sinclair 11","Oil & Gas","0405301084",22,"22S","10E","McCool Ranch","No"]
[7056286,"Northern","Abandon","Pacific Coast Energy Company LP","Dome 1","Oil & Gas","0408302145",24,"09N","34W","Orcutt","No"]
[7056285,"Southern","Rework","THUMS Long Beach Co.","A-671 I","Waterflood","0423723778","07","05S","12W","Wilmington","No"]
[7056284,"Central","Rework","Valley Water Management Company","WI-3","Water Disposal","0402952611",13,"31S","22E","Midway-Sunset","No"]
[7056283,"Central","Abandon","Aera Energy LLC","Nevada 109","Cyclic Steam","0402955434",25,"32S","23E","Midway-Sunset","No"]
[7056282,"Central","Abandon","Aera Energy LLC","Nevada 288","Oil & Gas","0402987859",25,"32S","23E","Midway-Sunset","No"]
[7056281,"Central","Abandon","Aera Energy LLC","Nevada 248","Oil & Gas","0402987862",25,"32S","23E","Midway-Sunset","No"]
[7056280,"Central","Abandon","Aera Energy LLC","Nevada 255","Oil & Gas","0403023136",25,"32S","23E","Midway-Sunset","No"]
[7056279,"Central","Abandon","Aera Energy LLC","Pru 303","Oil & Gas","0403010132",36,"32S","23E","Midway-Sunset","No"]
[7056278,"Central","Abandon","Aera Energy LLC","Nevada 290","Oil & Gas","0402987861",25,"32S","23E","Midway-Sunset","No"]
[7056277,"Central","Abandon","Aera Energy LLC","Kendon 504","Steamflood","0403001448",35,"32S","23E","Midway-Sunset","No"]
[7056276,"Central","Abandon","Aera Energy LLC","Kendon 513","Steamflood","0403039731",35,"32S","23E","Midway-Sunset","No"]
[7056275,"Central","Abandon","Aera Energy LLC","Kendon 222","Oil & Gas","0403009786",35,"32S","23E","Midway-Sunset","No"]
["7055536-01","Central","New Drill","Aera Energy LLC","Lost Hills Two L4063R-19","Oil & Gas","0403070123",19,"26S","21E","Lost Hills","Yes"]
[7056274,"Central","Abandon","Aera Energy LLC","Western 80-1","Oil & Gas","0402985038",21,"31S","22E","Midway-Sunset","No"]
[7056273,"Central","Abandon","Aera Energy LLC","Western 71-2","Oil & Gas","0402986852",21,"31S","22E","Midway-Sunset","No"]
[7056272,"Central","Abandon","Aera Energy LLC","Maxwell 63","Oil & Gas","0402925703",27,"31S","22E","Midway-Sunset","No"]
[7056271,"Central","Abandon","Aera Energy LLC","Maxwell A-6","Oil & Gas","0402961057",27,"31S","22E","Midway-Sunset","No"]
[7056270,"Northern","Re-Abandon","Bridlegate Holding Company, LLC","Dow-Termo Ward 39","Oil & Gas","0401320100",10,"01N","02E","Brentwood","No"]
[7056269,"Northern","Re-Abandon","Bridlegate Holding Company, LLC","Ward 31-10","Oil & Gas","0401300069",10,"01N","02E","Brentwood","No"]
[7056268,"Northern","Re-Abandon","Bridlegate Holding Company, LLC","Ward 3-10","Oil & Gas","0401300066",10,"01N","02E","Brentwood","No"]
[7056267,"Northern","Re-Abandon","Bridlegate Holding Company, LLC","Ward 38-10","Oil & Gas","0401300085",10,"01N","02E","Brentwood","No"]
[7056266,"Northern","Re-Abandon","Bridlegate Holding Company, LLC","Ward 36-10","Oil & Gas","0401300086",10,"01N","02E","Brentwood","No"]
[7056265,"Central","New Drill","Valley Resources, LLC","Mary SE 31X-19","Oil & Gas","0403070260",19,"27S","20E","Any Field - Central District","No"]
[7056264,"Northern","Re-Abandon","Bridlegate Holding Company, LLC","Ward 34-10","Dry Gas","0401300071",10,"01N","02E","Brentwood","No"]
[7056263,"Central","Abandon","Chevron U.S.A. Inc.","11-1WA","Waterflood","0403001093",5,"27S","21E","Lost Hills","No"]
[7056262,"Central","Abandon","Aera Energy LLC","DTR 77SR-34","Oil & Gas","0402964185",34,"28S","21E","Belridge, South","No"]
[7056261,"Central","Abandon","Aera Energy LLC","DTR 63D-34","Oil & Gas","0402952338",34,"28S","21E","Belridge, South","No"]
[7056260,"Southern","Sidetrack","THUMS Long Beach Co.","D-518","Oil & Gas","0423720312","17","05S","12W","Wilmington","No"]
[7056259,"Northern","Rework","CalNRG Operating, LLC","State PRC E-1","Oil & Gas","0411100846",35,"02N","23W","Montalvo, West","No"]
[7056258,"Northern","Rework","CalNRG Operating, LLC","State PRC E-3","Oil & Gas","0411100847",35,"02N","23W","Montalvo, West","No"]
[7056257,"Northern","Rework","CalNRG Operating, LLC","Patterson Ranch 1 917","Oil & Gas","0411100813",36,"02N","23W","Montalvo, West","No"]
[7056256,"Northern","Rework","CalNRG Operating, LLC","McGrath 5 1013","Oil & Gas","0411100817",36,"02N","23W","Montalvo, West","No"]
[7056255,"Central","Sidetrack","Petro-Lud, Inc.","Unpsecified 75","Oil & Gas","0401905230",21,"21S","15E","Jacalitos","No"]
[7056254,"Southern","Rework","THUMS Long Beach Co.","C-605 I","Waterflood","0423720591","16","05S","12W","Wilmington","No"]
[7056253,"Northern","Rework","CalNRG Operating, LLC","State PRC C-2","Oil & Gas","0411100839",35,"02N","23W","Montalvo, West","No"]
[7056252,"Northern","Rework","CalNRG Operating, LLC","State PRC 5","Oil & Gas","0411122184",36,"02N","23W","Montalvo, West","No"]
[7056251,"Northern","Rework","CalNRG Operating, LLC","State PRC 3","Oil & Gas","0411122170",36,"02N","23W","Montalvo, West","No"]
[7056250,"Central","New Drill","Aera Energy LLC","Anderson Fitzgerald 5704U-26S","Steamflood","0403070259",26,"29S","21E","Cymric","No"]
[7056249,"Central","New Drill","Aera Energy LLC","Anderson Fitzgerald 5704L-26S","Steamflood","0403070258",26,"29S","21E","Cymric","No"]
[7056248,"Central","Abandon","Aera Energy LLC","DTR 63J-34","Oil & Gas","0402952339",34,"28S","21E","Belridge, South","No"]
[7056247,"Central","Abandon","Aera Energy LLC","DTR 64K-34","Oil & Gas","0402952728",34,"28S","21E","Belridge, South","No"]
[7056246,"Central","Abandon","Aera Energy LLC","616A-35","Steamflood","0402973194",35,"28S","21E","Belridge, South","No"]
[7056245,"Central","Abandon","Aera Energy LLC","28RR-35","Oil & Gas","0402967879",35,"28S","21E","Belridge, South","No"]
[7056244,"Northern","Rework","CalNRG Operating, LLC","McGrath 5 1011A","Oil & Gas","0411100815",36,"02N","23W","Montalvo, West","No"]
[7056243,"Northern","Rework","CalNRG Operating, LLC","McGrath 5 1015B","Oil & Gas","0411100818",36,"02N","23W","Montalvo, West","No"]
[7056242,"Northern","Rework","CalNRG Operating, LLC","State PRC 2","Oil & Gas","0411100822",36,"02N","23W","Montalvo, West","No"]
[7056241,"Northern","Abandon","CalNRG Operating, LLC","C. & H. 12","Oil & Gas","0411105476",22,"03N","21W","West Mountain","No"]
[7056240,"Southern","Abandon","Bridge Energy LLC","Naranjal 20","Oil & Gas","0405905586",2,"03S","10W","Brea-Olinda","No"]
[7056239,"Southern","Abandon","Bridge Energy LLC","Brea 50","Oil & Gas","0405907232",1,"03S","10W","Brea-Olinda","No"]
[7056238,"Southern","Abandon","Ann Brindle","Copeland 4","Oil & Gas","0405904289",34,"05S","11W","Huntington Beach","No"]
[7056237,"Central","Abandon","Aera Energy LLC","18RR-35","Oil & Gas","0402967878",35,"28S","21E","Belridge, South","No"]
[7056236,"Central","Abandon","Valley Water Management Company",46192,"Oil & Gas","0402956212",19,"31S","23E","Midway-Sunset","No"]
[7056235,"Central","Abandon","Aera Energy LLC","Gore B 7-8-0","Oil & Gas","0402947316",21,"31S","22E","Midway-Sunset","No"]
[7056234,"Central","Abandon","Aera Energy LLC","Gore B 72-70","Oil & Gas","0402983417",21,"31S","22E","Midway-Sunset","No"]
[7056233,"Central","Rework","Aera Energy LLC","DTR 775CL-33","Steamflood","0403026995",33,"28S","21E","Belridge, South","No"]
[7056232,"Central","Rework","Aera Energy LLC","DTR 786BU-33","Steamflood","0403039946",33,"28S","21E","Belridge, South","No"]
[7056231,"Central","Rework","California Resources Elk Hills, LLC","336X-6D","Waterflood","0403036847",6,"32S","24E","Buena Vista","No"]
[7056230,"Central","Abandon","Aera Energy LLC","Nevada 250","Oil & Gas","0403001293",25,"32S","23E","Midway-Sunset","No"]
[7056229,"Central","Abandon","Aera Energy LLC","Nevada 96","Oil & Gas","0402987809",25,"32S","23E","Midway-Sunset","No"]
[7056228,"Central","Abandon","Chevron U.S.A. Inc.","53B","Oil & Gas","0402907008",26,"32S","23E","Midway-Sunset","No"]
[7056227,"Central","Abandon","Chevron U.S.A. Inc.",80,"Oil & Gas","0402923494",8,"32S","23E","Midway-Sunset","No"]
[7056226,"Central","Abandon","California Resources Production Corporation","Security 84L","Oil & Gas","0403013370",16,"27S","28E","Mount Poso","No"]
[7056225,"Southern","Abandon","Tidelands Oil Production Co.","2AL-023","Waterflood","0403704394","33","04S","13W","Wilmington","No"]
[7056224,"Central","Rework","California Resources Elk Hills, LLC","5B-6D","Oil & Gas","0403034642",6,"32S","24E","Buena Vista","No"]
[7056223,"Central","Abandon","California Resources Elk Hills, LLC","12-33S","Oil & Gas","0402927554",33,"30S","24E","Elk Hills","No"]
[7056222,"Central","Abandon","California Resources Elk Hills, LLC","38-27S","Observation","0402927378",27,"30S","24E","Elk Hills","No"]
[7056221,"Central","Abandon","California Resources Elk Hills, LLC","251-34S","Observation","0402927659",34,"30S","24E","Elk Hills","No"]
[7056220,"Central","Abandon","California Resources Elk Hills, LLC","36-5G","Observation","0402950523",5,"31S","24E","Elk Hills","No"]
[7056219,"Central","Abandon","California Resources Elk Hills, LLC","3-88-35S","Observation","0402927785",35,"30S","24E","Elk Hills","No"]
[7056218,"Central","Abandon","California Resources Elk Hills, LLC","28-28S","Oil & Gas","0402927407",28,"30S","24E","Elk Hills","No"]
[7056217,"Central","Rework","California Resources Elk Hills, LLC","42E-34R","Oil & Gas","0403048675",34,"30S","23E","Elk Hills","No"]
[7056216,"Central","Abandon","California Resources Production Corporation","Security 576SLR","Steamflood","0403010140",16,"27S","28E","Mount Poso","No"]
[7056215,"Central","Abandon","Sunray Petroleum, Inc.","NW Strand 1","Oil & Gas","0402954493",36,"29S","25E","Strand","No"]
[7056214,"Northern","Abandon","Costa Loma Ltd.","Costa 5-A","Oil & Gas","0408100080",14,"08S","03W","Oil Creek","No"]
[7056213,"Northern","Abandon","Costa Loma Ltd.","Costa 2","Oil & Gas","0408100082",14,"08S","03W","Oil Creek","No"]
[7056212,"Southern","Re-Abandon","Sycamore Development Partners LLC","100 Acre 63","Oil & Gas","0405907056","08","03S","09W","Brea-Olinda","No"]
[7056211,"Southern","Re-Abandon","Sycamore Development Partners LLC","100 Acre 48","Oil & Gas","0405907048","08","03S","09W","Brea-Olinda","No"]
[7056210,"Central","Abandon","Chevron U.S.A. Inc.","1Y 2205A","Cyclic Steam","0403062190",1,"30S","21E","Cymric","No"]
[7056209,"Central","Abandon","Sunray Petroleum, Inc.","Nomeco-Yates 15-33","Water Disposal","0402965225",15,"29S","26E","Rosedale","No"]
[7056208,"Central","Abandon","Freedom Oil Company, LLC","58X","Oil & Gas","0403100005",20,"24S","18E","Pyramid Hills","No"]
[7056207,"Central","Abandon","Freedom Oil Company, LLC","Reserve-Martin 46-20","Oil & Gas","0403100066",20,"24S","18E","Pyramid Hills","No"]
[7056206,"Central","Abandon","Freedom Oil Company, LLC","Martin 1-20","Oil & Gas","0403120302",20,"24S","18E","Pyramid Hills","No"]
[7056205,"Central","Abandon","Sentinel Peak Resources California LLC","Star Fee C25-1","Cyclic Steam","0403064881",6,"30S","22E","Cymric","No"]
[7056204,"Southern","Abandon","E & B Natural Resources Management Corporation","ANGUS B-3","Waterflood","0405921481","02","06S","11W","Huntington Beach","No"]
[7056203,"Central","Rework","Aera Energy LLC","DTR 548J2-34","Oil & Gas","0403056223",34,"28S","21E","Belridge, South","No"]
[7056202,"Central","Abandon","Allied Western Petroleum","Alferitz 1-P","Oil & Gas","0402962836",14,"25S","18E","Devils Den","No"]
[7056201,"Central","Rework","Aera Energy LLC","DTR 775GL-33","Steamflood","0403026999",33,"28S","21E","Belridge, South","No"]
[7056200,"Central","Abandon","Aera Energy LLC","DTR 54H-34","Oil & Gas","0402933749",34,"28S","21E","Belridge, South","No"]
[7056199,"Central","Abandon","Aera Energy LLC","DTR 683A-29","Steamflood","0402931774",29,"28S","21E","Belridge, South","No"]
[7056198,"Central","Abandon","Aera Energy LLC","DTR 86CU-34","Oil & Gas","0402989137",34,"28S","21E","Belridge, South","No"]
[7056197,"Central","Abandon","Aera Energy LLC","Marina 3482A-11","Oil & Gas","0403044660",11,"29S","21E","Belridge, South","No"]
[7056196,"Central","Abandon","Aera Energy LLC","DTR 65GU-34","Oil & Gas","0402989500",34,"28S","21E","Belridge, South","No"]
[7056195,"Southern","Rework","THUMS Long Beach Co.","C-139","Oil & Gas","0423720913","16","05S","12W","Wilmington","No"]
[7056194,"Southern","Abandon","Tidelands Oil Production Co.","M961E","Oil & Gas","0403703748","35","04S","13W","Wilmington","No"]
[7056193,"Northern","Abandon","California Resources Production Corporation","Calcagno 2-34","Dry Gas","0407720592",34,"01N","06E","French Camp Gas","No"]
[7056192,"Southern","Abandon","E & B Natural Resources Management Corporation","ANGUS B-5 I","Waterflood","0405921483","02","06S","11W","Huntington Beach","No"]
[7056191,"Southern","Abandon","E & B Natural Resources Management Corporation","ANGUS B-14","Oil & Gas","0405921491","02","06S","11W","Huntington Beach","No"]
[7056188,"Central","Abandon","Allied Western Petroleum","Dagany Gap Unit 14","Oil & Gas","0402939628",3,"25S","18E","Devils Den","No"]
[7056187,"Central","Abandon","California Resources Production Corporation","Vedder-Rall 547L","Oil & Gas","0402985044",9,"27S","28E","Mount Poso","No"]
[7056186,"Central","Rework","Chevron U.S.A. Inc.","American Naphtha 3274","Oil & Gas","0402971108",31,"28S","28E","Kern River","No"]
[7056185,"Central","Rework","California Resources Elk Hills, LLC","3-3A-36B","Oil & Gas","0402969746",36,"31S","23E","Buena Vista","No"]
[7056184,"Central","Abandon","Valley Water Management Company","PO3-19X","Observation","0403004767",19,"29S","22E","Any Field","No"]
[7056183,"Central","Abandon","Allied Western Petroleum","Dagany Gap Unit 25","Oil & Gas","0402939637",3,"25S","18E","Devils Den","No"]
[7056182,"Central","Abandon","Allied Western Petroleum","Dagany Gap Unit 26","Oil & Gas","0402939638",3,"25S","18E","Devils Den","No"]
[7056181,"Central","Abandon","Allied Western Petroleum","Dagany Gap Unit 28","Oil & Gas","0402939640",3,"25S","18E","Devils Den","No"]
[7056180,"Central","Abandon","Allied Western Petroleum","Dagany Gap Unit 12","Oil & Gas","0402939626",3,"25S","18E","Devils Den","No"]
[7056179,"Central","Abandon","Allied Western Petroleum","Dagany Gap Unit 31","Oil & Gas","0402966060",3,"25S","18E","Devils Den","No"]
[7056178,"Central","Abandon","Allied Western Petroleum","Dagany Gap Unit 21","Oil & Gas","0402939633",3,"25S","18E","Devils Den","No"]
[7056177,"Central","Abandon","California Resources Production Corporation","Vedder 2120R","Oil & Gas","0402975905",9,"27S","28E","Mount Poso","No"]
[7056176,"Central","Abandon","California Resources Production Corporation","Vedder 22G","Oil & Gas","0403016800",9,"27S","28E","Mount Poso","No"]
[7056175,"Central","Abandon","Allied Western Petroleum","Dagany Gap Unit 27","Oil & Gas","0402939639",3,"25S","18E","Devils Den","No"]
[7056174,"Central","Abandon","Allied Western Petroleum","Alferitz 14-X","Oil & Gas","0402956759",14,"25S","18E","Devils Den","No"]
[7056173,"Central","Rework","California Resources Elk Hills, LLC","38WD-21R","Water Disposal","0403045662",21,"30S","23E","Elk Hills","No"]
[7056172,"Central","Rework","California Resources Elk Hills, LLC","43W-11G","Oil & Gas","0403067571",11,"31S","24E","Elk Hills","No"]
[7056171,"Southern","Abandon","Southern California Gas Company","Howard & Smith 9","Observation","0403712719","02","02S","12W","Montebello","No"]
[7056170,"Northern","Sidetrack","Aera Energy LLC","Hambey 801-17","Water Disposal","0405321348",17,"23S","11E","San Ardo","No"]
[7056168,"Central","Abandon","California Resources Production Corporation","Matthew Fee 5","Oil & Gas","0402912823",4,"27S","28E","Mount Poso","No"]
[7056167,"Central","Abandon","California Resources Production Corporation","Eagle-Sunset 19","Oil & Gas","0401900041",11,"15S","17E","Raisin City","No"]
[7056166,"Central","Abandon","Holmes Western Oil Corporation","5G","Oil & Gas","0401905309",8,"21S","15E","Jacalitos","No"]
[7056165,"Central","Abandon","Sunray Petroleum, Inc.","Nomeco-Yates 15-34","Oil & Gas","0402968870",15,"29S","26E","Rosedale","No"]
[7056164,"Central","Abandon","Sunray Petroleum, Inc.","Tenneco Fee 32X-15","Oil & Gas","0402961422",15,"29S","26E","Rosedale","No"]
[7056163,"Central","Abandon","Sunray Petroleum, Inc.","Tenneco Fee 22-15","Oil & Gas","0402960370",15,"29S","26E","Rosedale","No"]
[7056162,"Southern","Re-Abandon","Sycamore Development Partners LLC","100 Acre 69","Oil & Gas","0405907662","08","03S","09W","Brea-Olinda","No"]
[7056161,"Southern","Abandon","E & B Natural Resources Management Corporation","ANGUS A-14 I","Waterflood","0405921467",2,"06S","11W","Huntington Beach","No"]
[7056160,"Southern","Abandon","E & B Natural Resources Management Corporation","ANGUS A-2","Oil & Gas","0405921477",2,"06S","11W","Huntington Beach","No"]
[7056159,"Southern","Abandon","E & B Natural Resources Management Corporation","ANGUS A-7 I","Waterflood","0405921474","02","06S","11W","Huntington Beach","No"]
[7056158,"Central","Abandon","Naftex Operating Company","Racetrack 5-5A","Cyclic Steam","0402946925",27,"29S","29E","Edison","No"]
[7056157,"Central","Rework","Aera Energy LLC","DTR 765ERU-33","Steamflood","0403039620",33,"28S","21E","Belridge, South","No"]
[7056156,"Central","Abandon","Aera Energy LLC","DTR 34R-34","Oil & Gas","0402952229",34,"28S","21E","Belridge, South","No"]
[7056155,"Central","Abandon","Aera Energy LLC","DTR 174L-34","Oil & Gas","0402947943",34,"28S","21E","Belridge, South","No"]
[7056154,"Central","Rework","Aera Energy LLC","Young Estate S WD23-11","Water Disposal","0403069376",11,"29S","21E","Belridge, South","No"]
[7056153,"Southern","Re-Abandon","Sycamore Development Partners LLC","100 Acre 118","Oil & Gas","0405900037","08","03S","09W","Brea-Olinda","No"]
[7056152,"Northern","Abandon","Big Basin Paraffin Oil Co.",1,"Dry Hole","0408100157",10,"08S","03W","Oil Creek","No"]
[7056151,"Northern","Abandon","Costa Loma Ltd.","Reed 1","Oil & Gas","0408120021",10,"08S","03W","Oil Creek","No"]
[7056150,"Central","Rework","Holmes Western Oil Corporation","Leutholtz A 225","Water Disposal","0403002067",22,"11N","23W","Midway-Sunset","No"]
[7056149,"Northern","Abandon","Costa Loma Ltd.","Unknown Conductor 1","Oil & Gas","0408120072",14,"08S","03W","Oil Creek","No"]
[7056148,"Northern","Abandon","Costa Loma Ltd.","Unknown Conductor 3","Oil & Gas","0408120074",14,"08S","03W","Oil Creek","No"]
[7056147,"Northern","Abandon","Costa Loma Ltd.","Unknown Conductor 2","Oil & Gas","0408120073",14,"08S","03W","Oil Creek","No"]
[7056146,"Southern","Sidetrack","THUMS Long Beach Co.","D-427 I","Waterflood","0423722900","17","05S","12W","Wilmington","No"]
[7056145,"Northern","Abandon","Costa Loma Ltd.","Costa 8","Oil & Gas","0408120065",14,"08S","03W","Oil Creek","No"]
[7056144,"Northern","Abandon","Frank W. Royer",1,"Dry Hole","0408100150",10,"08S","03W","Oil Creek","No"]
[7056143,"Northern","Abandon","Costa Loma Ltd.","Costa 6-A","Oil & Gas","0408120017",14,"08S","03W","Oil Creek","No"]
[7056142,"Southern","Abandon","Bridge Energy LLC","Brea 84","Oil & Gas","0405907266",2,"03S","10W","Brea-Olinda","No"]
[7056141,"Northern","Abandon","EcoTech EOR, LLC","Grizzlies 1","Dry Gas","0401120373",18,"14N","01E","Grimes Gas","No"]
[7056140,"Northern","Abandon","Costa Loma Ltd.","Costa 4-A","Oil & Gas","0408120015",14,"08S","03W","Oil Creek","No"]
[7056139,"Northern","Abandon","Costa Loma Ltd.","Costa 3-A","Oil & Gas","0408100079",14,"08S","03W","Oil Creek","No"]
[7056138,"Northern","Abandon","Thompson & McNickels","Butts 2","Oil & Gas","0408120066",21,"06S","05W","Half Moon Bay","No"]
[7056137,"Central","Rework","Aera Energy LLC","Belridge 3260C-11","Cyclic Steam","0403068197",11,"29S","21E","Belridge, South","No"]
[7056136,"Central","Rework","Aera Energy LLC","Marina 3132A-10","Cyclic Steam","0403063375",10,"29S","21E","Belridge, South","No"]
[7056135,"Central","Rework","Aera Energy LLC","Young Estate S 3220-11","Oil & Gas","0403030548",11,"29S","21E","Belridge, South","No"]
[7056134,"Central","Rework","Aera Energy LLC","Belridge K & K 3266-11","Cyclic Steam","0403030547",11,"29S","21E","Belridge, South","No"]
[7056133,"Southern","Abandon","Bridge Energy LLC","Brea 83","Oil & Gas","0405907265",2,"03S","10W","Brea-Olinda","No"]
[7056132,"Southern","Sidetrack","THUMS Long Beach Co.","D-548","Oil & Gas","0423722532","17","05S","12W","Wilmington","No"]
[7056131,"Southern","Sidetrack","THUMS Long Beach Co.","D-524","Oil & Gas","0423720064","17","05S","12W","Wilmington","No"]
[7056130,"Southern","Sidetrack","THUMS Long Beach Co.","D-513","Oil & Gas","0423720280","17","05S","12W","Wilmington","No"]
[7056129,"Southern","Abandon","Sentinel Peak Resources California LLC","LAI 1 308","Oil & Gas","0403707858","17","02S","14W","Inglewood","No"]
[7056128,"Southern","Abandon","Sentinel Peak Resources California LLC","BC 632","Oil & Gas","0403723431","17","02S","14W","Inglewood","No"]
[7056127,"Northern","Abandon","CalNRG Operating, LLC","Converse 6","Oil & Gas","0411122239",22,"03N","21W","West Mountain","No"]
[7056126,"Northern","Abandon","CalNRG Operating, LLC","C. & H. 18","Oil & Gas","0411122181",22,"03N","21W","West Mountain","No"]
[7056125,"Central","Abandon","Aera Energy LLC","DTR 74SL-34","Oil & Gas","0402985053",34,"28S","21E","Belridge, South","No"]
[7056124,"Central","Rework","Berry Petroleum Company, LLC","Hill 34KW","Steamflood","0403051230",19,"28S","21E","Belridge, South","No"]
[7056123,"Central","Rework","Aera Energy LLC","12L-18","Oil & Gas","0402960814",18,"28S","21E","Belridge, South","No"]
[7056122,"Central","Rework","Aera Energy LLC","56GR1-18","Oil & Gas","0402963104",18,"28S","21E","Belridge, South","No"]
[7056121,"Central","Rework","Aera Energy LLC","St. Clair 3202A-2","Cyclic Steam","0403029765",2,"29S","21E","Belridge, South","No"]
[7056120,"Central","Abandon","Aera Energy LLC","DTR 63RM-34","Oil & Gas","0402986434",34,"28S","21E","Belridge, South","No"]
[7056119,"Central","Abandon","Aera Energy LLC","16SL-35","Oil & Gas","0402988593",35,"28S","21E","Belridge, South","No"]
[7056118,"Northern","Rework","Southern California Gas Company","Porter 72A","Gas Storage","0403724145",27,"03N","16W","Aliso Canyon","No"]
[7056117,"Central","Abandon","Chevron U.S.A. Inc.",1188,"Steamflood","0403011894",17,"32S","23E","Midway-Sunset","No"]
[7056116,"Central","Rework","Chevron U.S.A. Inc.","San Joaquin 828","Oil & Gas","0402981755",5,"29S","28E","Kern River","No"]
[7056115,"Southern","Sidetrack","THUMS Long Beach Co.","D-425 I","Oil & Gas","0423720810","17","05S","12W","Wilmington","No"]
[7056114,"Southern","Rework","Tidelands Oil Production Co.","FJ-80","Waterflood","0403702357","11","05S","13W","Wilmington","No"]
[7056113,"Southern","Abandon","Imperial Occidental","Simplex 4","Oil & Gas","0403709188","19","04S","12W","Long Beach","No"]
[7056112,"Central","Abandon","California Resources Production Corporation","Security 127","Oil & Gas","0402959728",16,"27S","28E","Mount Poso","No"]
[7056111,"Central","Rework","Chevron U.S.A. Inc.","Monte Cristo No. 1 360","Oil & Gas","0403044117",5,"29S","28E","Kern River","No"]
[7056110,"Central","Rework","Chevron U.S.A. Inc.","San Joaquin 724","Oil & Gas","0402976947",5,"29S","28E","Kern River","No"]
[7056109,"Central","Rework","Chevron U.S.A. Inc.","Monte Cristo No. 1 362","Cyclic Steam","0403044119",5,"29S","28E","Kern River","No"]
[7056108,"Central","Rework","Chevron U.S.A. Inc.","Green & Whittier A 322","Oil & Gas","0403034586",30,"28S","28E","Kern River","No"]
[7056107,"Central","Rework","Chevron U.S.A. Inc.","American Naphtha 376","Cyclic Steam","0403044707",31,"28S","28E","Kern River","No"]
[7056106,"Central","Rework","Chevron U.S.A. Inc.","Del Rey Fee 43","Oil & Gas","0403015263",5,"29S","28E","Kern River","No"]
[7056105,"Central","Rework","Chevron U.S.A. Inc.","San Joaquin 729","Oil & Gas","0402976952",5,"29S","28E","Kern River","No"]
[7056104,"Central","Rework","California Resources Production Corporation","Glide 21 91BH","Oil & Gas","0403048501",21,"27S","28E","Mount Poso","No"]
[7056103,"Central","Rework","Chevron U.S.A. Inc.","American Naphtha 3044R","Oil & Gas","0403064344",31,"28S","28E","Kern River","No"]
[7056102,"Central","Rework","Chevron U.S.A. Inc.","San Joaquin 540","Oil & Gas","0402944239",5,"29S","28E","Kern River","No"]
[7056101,"Central","Rework","Chevron U.S.A. Inc.","Kern 380","Oil & Gas","0402975761",32,"28S","28E","Kern River","No"]
[7056100,"Central","Rework","Chevron U.S.A. Inc.","San Joaquin 716","Oil & Gas","0402975950",5,"29S","28E","Kern River","No"]
[7056099,"Central","Rework","Chevron U.S.A. Inc.","Kern 499","Oil & Gas","0403055585",32,"28S","28E","Kern River","No"]
[7056098,"Central","Rework","Chevron U.S.A. Inc.","San Joaquin 701","Oil & Gas","0402975935",5,"29S","28E","Kern River","No"]
[7056097,"Central","Rework","Chevron U.S.A. Inc.","Monte Cristo No. 1 15-11A","Cyclic Steam","0402951148",5,"29S","28E","Kern River","No"]
[7056096,"Central","Abandon","Summit Energy, LLC","Clare 2","Oil & Gas","0402908354",21,"29S","27E","Fruitvale","No"]
[7056095,"Central","Abandon","Chevron U.S.A. Inc.",1036,"Observation","0403003714",21,"31S","22E","Midway-Sunset","No"]
[7056094,"Central","Abandon","Chevron U.S.A. Inc.","Indian & Colonial 505","Oil & Gas","0402961330",22,"32S","23E","Midway-Sunset","No"]
[7056093,"Central","Rework","Holmes Western Oil Corporation","Santiago Creek Unit D-12","Steamflood","0403061292",21,"11N","23W","Midway-Sunset","No"]
[7056092,"Central","Rework","Sentinel Peak Resources California LLC","T.O. 3","Steamflood","0403028656",17,"31S","22E","Midway-Sunset","No"]
[7056091,"Central","Abandon","Sentinel Peak Resources California LLC","Keene 52","Cyclic Steam","0403020452",22,"32S","23E","Midway-Sunset","No"]
[7056090,"Central","Abandon","Chevron U.S.A. Inc.","Section 9 555","Oil & Gas","0402975184",9,"32S","23E","Midway-Sunset","No"]
[7056089,"Central","Abandon","Chevron U.S.A. Inc.","77D","Oil & Gas","0402907098",26,"32S","23E","Midway-Sunset","No"]
[7056088,"Central","Abandon","Chevron U.S.A. Inc.","22H","Oil & Gas","0402966392",26,"32S","23E","Midway-Sunset","No"]
[7056087,"Central","Abandon","San Joaquin Facilities Management, Inc.","83-29","Oil & Gas","0402900903",29,"30S","26E","Ten Section","No"]
[7056086,"Central","Abandon","San Joaquin Facilities Management, Inc.","74-29","Oil & Gas","0402920617",29,"30S","26E","Ten Section","No"]
[7056085,"Central","Sidetrack","Petro-Lud, Inc.",52,"Oil & Gas","0401905184",17,"21S","15E","Jacalitos","No"]
[7056084,"Southern","Sidetrack","THUMS Long Beach Co.","D-575","Oil & Gas","0423720605","17","05S","12W","Wilmington","No"]
[7056083,"Southern","Sidetrack","THUMS Long Beach Co.","D-515 I","Waterflood","0423720158","17","05S","12W","Wilmington","No"]
[7056082,"Southern","Sidetrack","THUMS Long Beach Co.","D-512 I","Injection","0423720478","17","05S","12W","Wilmington","No"]
[7056081,"Southern","Sidetrack","THUMS Long Beach Co.","D-517 I","Injection","0423720035","17","05S","12W","Wilmington","No"]
[7056080,"Southern","Abandon","E & B Natural Resources Management Corporation","ANGUS A-1 I","Waterflood","0405921476",2,"06S","11W","Huntington Beach","No"]
[7056079,"Central","Rework","Chevron U.S.A. Inc.","Green & Whittier A 347","Cyclic Steam","0403035050",30,"28S","28E","Kern River","No"]
[7056078,"Central","Rework","Chevron U.S.A. Inc.","Junction 124","Cyclic Steam","0403028756",9,"29S","28E","Kern River","No"]
[7056077,"Central","New Drill","Aera Energy LLC","17R1-28","Oil & Gas","0403070257",28,"28S","21E","Belridge, South","No"]
[7056076,"Southern","Abandon","Imperial Occidental","Gray Fox 1","Oil & Gas","0403711340","19","04S","12W","Long Beach","No"]
[7056075,"Central","New Drill","Aera Energy LLC","36TE-28","Oil & Gas","0403070256",28,"28S","21E","Belridge, South","No"]
[7056074,"Central","New Drill","Aera Energy LLC","65TE-29","Oil & Gas","0403070255",29,"28S","21E","Belridge, South","No"]
[7056073,"Central","New Drill","Aera Energy LLC","70TE-29","Oil & Gas","0403070254",29,"28S","21E","Belridge, South","No"]
[7056072,"Northern","Abandon","California Resources Production Corporation","Perry Anderson 30","Dry Gas","0409520331",2,"03N","02E","Rio Vista Gas","No"]
[7056071,"Central","Rework","California Resources Elk Hills, LLC","25-4G","Oil & Gas","0402929038",4,"31S","24E","Elk Hills","No"]
[7056070,"Central","Rework","California Resources Elk Hills, LLC","17CX-3G","Oil & Gas","0402983298",3,"31S","24E","Elk Hills","No"]
[7056069,"Northern","Rework","261 Resource Management, LLC","I.O.C. 18","Dry Gas","0411321176",33,"09N","03E","Todhunters Lake Gas","No"]
[7056068,"Central","Abandon","Chevron U.S.A. Inc.","China TO-1","Observation","0403014355",9,"29S","28E","Kern River","No"]
[7056067,"Northern","Abandon","Chevron U.S.A. Inc.","Orradre CC9-11","Oil & Gas","0405321838",11,"23S","10E","San Ardo","No"]
[7056066,"Northern","Abandon","California Resources Production Corporation","West Levee Unit One 3","Dry Gas","0411320704",8,"06N","03E","Millar Gas","No"]
[7056065,"Northern","Abandon","Chevron U.S.A. Inc.","Rosenberg (NCT-1) 113A","Steamflood","0405320776",3,"23S","10E","San Ardo","No"]
[7056064,"Central","New Drill","Berry Petroleum Company, LLC","Pike 203","Oil & Gas","0403070253",28,"32S","24E","Midway-Sunset","No"]
[7056063,"Northern","Abandon","California Resources Production Corporation","Mello 3-10","Dry Gas","0406720412",10,"04N","04E","River Island Gas","No"]
[7056062,"Northern","Abandon","Chevron U.S.A. Inc.","Rosenberg (NCT-1) 305","Observation","0405320203",3,"23S","10E","San Ardo","No"]
[7056061,"Central","Abandon","Chevron U.S.A. Inc.","4-7P","Oil & Gas","0403027977",32,"26S","21E","Lost Hills","No"]
[7056060,"Central","New Drill","Berry Petroleum Company, LLC","Pike 204","Oil & Gas","0403070252",28,"32S","24E","Midway-Sunset","No"]
[7056059,"Central","New Drill","Berry Petroleum Company, LLC","Pike 201","Oil & Gas","0403070251",28,"32S","24E","Midway-Sunset","No"]
[7056058,"Central","New Drill","Berry Petroleum Company, LLC","Pike 202","Oil & Gas","0403070250",28,"32S","24E","Midway-Sunset","No"]
[7056057,"Central","New Drill","Berry Petroleum Company, LLC","Pike 206","Oil & Gas","0403070249",28,"32S","24E","Midway-Sunset","No"]
[7056056,"Central","New Drill","Berry Petroleum Company, LLC","Pike 205","Oil & Gas","0403070248",28,"32S","24E","Midway-Sunset","No"]
[7056055,"Central","Abandon","Aera Energy LLC","DTR 27LR-34","Oil & Gas","0402986205",34,"28S","21E","Belridge, South","No"]
[7056054,"Central","Abandon","Aera Energy LLC","DTR 27ER-34","Oil & Gas","0402986202",34,"28S","21E","Belridge, South","No"]
[7056053,"Central","Abandon","Aera Energy LLC","DTR 42SM-34","Oil & Gas","0402985187",34,"28S","21E","Belridge, South","No"]
[7056052,"Central","Abandon","Aera Energy LLC","DTR 64DU-34","Oil & Gas","0402987810",34,"28S","21E","Belridge, South","No"]
[7056051,"Central","Abandon","Aera Energy LLC","DTR 65HL1-34","Oil & Gas","0402986678",34,"28S","21E","Belridge, South","No"]
[7056050,"Central","Abandon","Sunray Petroleum, Inc.","Red Ribbon Lease 2 4","Water Disposal","0402908188",27,"29S","27E","Fruitvale","No"]
[7056049,"Central","Abandon","Sunray Petroleum, Inc.","Red Ribbon Lease 2 3","Oil & Gas","0402908187",27,"29S","27E","Fruitvale","No"]
[7056048,"Central","Abandon","Sunray Petroleum, Inc.","Red Ribbon Lease 2 2","Oil & Gas","0402908186",27,"29S","27E","Fruitvale","No"]
[7056047,"Central","Abandon","Sunray Petroleum, Inc.","Red Ribbon Lease 2 1","Oil & Gas","0402908185",27,"29S","27E","Fruitvale","No"]
[7056046,"Northern","Abandon","California Resources Production Corporation","Perry Anderson 15","Dry Gas","0409520043",12,"03N","02E","Rio Vista Gas","No"]
[7056045,"Central","Abandon","Sunray Petroleum, Inc.","E & H Dillon 1","Oil & Gas","0402906781",27,"29S","27E","Fruitvale","No"]
[7056044,"Central","Abandon","Sunray Petroleum, Inc.","Dillon 4","Oil & Gas","0402908440",27,"29S","27E","Fruitvale","No"]
[7056043,"Central","Abandon","Sunray Petroleum, Inc.","Dillon 2","Oil & Gas","0402908342",27,"29S","27E","Fruitvale","No"]
[7056042,"Central","Abandon","Sunray Petroleum, Inc.","Dillon 3","Oil & Gas","0402908439",27,"29S","27E","Fruitvale","No"]
[7056041,"Central","Abandon","Sunray Petroleum, Inc.","Tenneco 1","Oil & Gas","0402962133",28,"29S","27E","Fruitvale","No"]
[7056040,"Central","Abandon","Sunray Petroleum, Inc.","Red Ribbon Lease 1 5","Oil & Gas","0402906814",27,"29S","27E","Fruitvale","No"]
[7056039,"Central","Abandon","Sunray Petroleum, Inc.","Red Ribbon Lease 1 2","Multi-Purpose","0402906811",27,"29S","27E","Fruitvale","No"]
[7056038,"Central","Abandon","Sunray Petroleum, Inc.","Red Ribbon Lease 1 7","Oil & Gas","0402906816",27,"29S","27E","Fruitvale","No"]
[7056037,"Central","New Drill","Berry Petroleum Company, LLC","Southwestern 57-58P","Oil & Gas","0403070247",2,"31S","22E","Midway-Sunset","No"]
[7056036,"Central","New Drill","Berry Petroleum Company, LLC","Southwestern 58-60P","Oil & Gas","0403070246",2,"31S","22E","Midway-Sunset","No"]
[7056035,"Northern","Abandon","California Resources Production Corporation","RVGU 288","Dry Gas","0406720492",6,"03N","03E","Rio Vista Gas","No"]
[7056034,"Southern","Abandon","Synergy Oil & Gas, LLC","Bixby A 77","Oil & Gas","0403707148","02","05S","12W","Seal Beach","No"]
[7056033,"Northern","Abandon","California Resources Production Corporation","RVGU 247","Dry Gas","0406720391",33,"04N","03E","Rio Vista Gas","No"]
[7056032,"Northern","Abandon","California Resources Production Corporation","RVGU 156","Dry Gas","0409500280",25,"04N","02E","Rio Vista Gas","No"]
[7056031,"Northern","Abandon","California Resources Production Corporation","RVGU 277","Dry Gas","0406720467",6,"03N","03E","Rio Vista Gas","No"]
[7056030,"Central","Abandon","Chevron U.S.A. Inc.","Monarch 31-MW","Steamflood","0403003621",2,"11N","24W","Midway-Sunset","No"]
[7056029,"Central","Rework","Chevron U.S.A. Inc.","J280R","Cyclic Steam","0403028356",21,"32S","23E","Midway-Sunset","No"]
[7056028,"Central","Abandon","Sentinel Peak Resources California LLC","Dome 222","Cyclic Steam","0403069528",23,"31S","22E","Midway-Sunset","No"]
[7056027,"Central","Abandon","Sentinel Peak Resources California LLC","Dome 221","Cyclic Steam","0403069527",23,"31S","22E","Midway-Sunset","No"]
[7056026,"Central","Abandon","Sentinel Peak Resources California LLC","Dome 220","Cyclic Steam","0403069526",23,"31S","22E","Midway-Sunset","No"]
[7056025,"Central","Abandon","Sentinel Peak Resources California LLC","Dome I-258","Steamflood","0403069556",23,"31S","22E","Midway-Sunset","No"]
[7056024,"Central","Abandon","Chevron U.S.A. Inc.","Tejon 79","Oil & Gas","0403008910",36,"28S","27E","Kern River","No"]
[7056023,"Central","New Drill","California Resources Production Corporation","Vedder-Rall 99BH","Oil & Gas","0403070245",9,"27S","28E","Mount Poso","No"]
[7056022,"Southern","Abandon","Warren E&P, Inc.","WTU 2284","Oil & Gas","0403727415","33","04S","13W","Wilmington","No"]
[7056021,"Southern","Abandon","California Resources Production Corporation","State Prc 392 S-160","Oil & Gas","0405903135",4,"06S","11W","Huntington Beach","No"]
[7056020,"Southern","Abandon","Sentinel Peak Resources California LLC","Stocker 768","Oil & Gas","0403726423","16","02S","14W","Inglewood","No"]
[7056019,"Northern","Abandon","Chevron U.S.A. Inc.","Rosenberg (NCT-1) TO44","Observation","0405322390",3,"23S","10E","San Ardo","No"]
[7056018,"Northern","Abandon","Chevron U.S.A. Inc.","Rosenberg (NCT-1) 119A","Steamflood","0405320471",3,"23S","10E","San Ardo","No"]
[7056017,"Northern","Abandon","Chevron U.S.A. Inc.","Rosenberg (NCT-1) TO36","Observation","0405322351",3,"23S","10E","San Ardo","No"]
[7056016,"Southern","Re-Abandon","The Kingdom of Management Inc.","Latimer 1","Oil & Gas","0405902054","10","06S","11W","Huntington Beach","No"]
[7056015,"Northern","Abandon","Chevron U.S.A. Inc.","Rosenberg (NCT-1) 40B","Cyclic Steam","0405322216",3,"23S","10E","San Ardo","No"]
[7056014,"Northern","Abandon","Chevron U.S.A. Inc.","Rosenberg (NCT-1) 5303","Cyclic Steam","0405322596",3,"23S","10E","San Ardo","No"]
[7056013,"Southern","Rework","Sentinel Peak Resources California LLC","Vickers 1 38-A","Waterflood","0403708369","08","02S","14W","Inglewood","No"]
[7056012,"Southern","Abandon","Sentinel Peak Resources California LLC","Stocker 678","Oil & Gas","0403726521","16","02S","14W","Inglewood","No"]
[7056011,"Southern","Abandon","Warren E&P, Inc.","WTU 2557","Oil & Gas","0403726772","32","04S","13W","Wilmington","No"]
[7056010,"Northern","Abandon","Chevron U.S.A. Inc.","Rosenberg (NCT-1) TO39","Observation","0405322354",3,"23S","10E","San Ardo","No"]
[7056009,"Northern","Abandon","Chevron U.S.A. Inc.","Rosenberg (NCT-1) 402","Oil & Gas","0405320647",3,"23S","10E","San Ardo","No"]
[7056008,"Northern","Abandon","Chevron U.S.A. Inc.","Rosenberg (NCT-1) TO41","Observation","0405322387",3,"23S","10E","San Ardo","No"]
[7056007,"Northern","Abandon","Chevron U.S.A. Inc.","Rosenberg (NCT-1) 439","Oil & Gas","0405320718",3,"23S","10E","San Ardo","No"]
[7056006,"Northern","Abandon","Chevron U.S.A. Inc.","Rosenberg (NCT-1) 419","Oil & Gas","0405320687",3,"23S","10E","San Ardo","No"]
[7056005,"Northern","Abandon","Chevron U.S.A. Inc.","Rosenberg (NCT-1) 195A","Oil & Gas","0405321112",3,"23S","10E","San Ardo","No"]
[7056004,"Central","Rework","California Resources Elk Hills, LLC","11E-10G","Oil & Gas","0403011756",10,"31S","24E","Elk Hills","No"]
[7056003,"Central","Rework","California Resources Elk Hills, LLC","38-2G","Oil & Gas","0402927970",2,"31S","24E","Elk Hills","No"]
[7056002,"Central","Abandon","Sentinel Peak Resources California LLC","McKittrick 90","Oil & Gas","0403006978",6,"30S","22E","Cymric","No"]
[7056001,"Central","Abandon","Sentinel Peak Resources California LLC","Star Fee TO 1","Observation","0403003112",7,"30S","22E","Cymric","No"]
[7056000,"Northern","Abandon","Chevron U.S.A. Inc.","Rosenberg (NCT-1) 211","Oil & Gas","0405300952",3,"23S","10E","San Ardo","No"]
[7055999,"Central","Rework","Aera Energy LLC","Marina 3438C-11","Cyclic Steam","0403059195",11,"29S","21E","Belridge, South","No"]
[7055998,"Central","Rework","Aera Energy LLC","Marina 3359A-11","Oil & Gas","0403039701",11,"29S","21E","Belridge, South","No"]
[7055997,"Central","Abandon","Aera Energy LLC","DTR 65KM-34","Oil & Gas","0402989130",34,"28S","21E","Belridge, South","No"]
[7055996,"Northern","Abandon","Chevron U.S.A. Inc.","Rosenberg (NCT-1) 213A","Oil & Gas","0405322090",3,"23S","10E","San Ardo","No"]
[7055995,"Northern","Rework","Chevron U.S.A. Inc.","Rosenberg (NCT-1) WI-12","Water Disposal","0405321216",28,"22S","10E","San Ardo","No"]
[7055994,"Central","Rework","Aera Energy LLC","67L-18","Oil & Gas","0402959826",18,"28S","21E","Belridge, South","No"]
[7055993,"Northern","Abandon","Chevron U.S.A. Inc.","Rosenberg (NCT-1) 255","Oil & Gas","0405300990",3,"23S","10E","San Ardo","No"]
[7055992,"Northern","Abandon","Chevron U.S.A. Inc.","Rosenberg (NCT-1) 458A","Multi-Purpose","0405321173",3,"23S","10E","San Ardo","No"]
[7055991,"Northern","Abandon","Chevron U.S.A. Inc.","Rosenberg (NCT-1) 417A","Cyclic Steam","0405322622",3,"23S","10E","San Ardo","No"]
[7055990,"Northern","Rework","Southern California Gas Company","Miller 12","Gas Storage","0408320757",21,"04N","28W","La Goleta Gas","No"]
[7055989,"Central","Abandon","Aera Energy LLC","DTR 63G-34","Oil & Gas","0402979330",34,"28S","21E","Belridge, South","No"]
[7055988,"Central","Abandon","Aera Energy LLC","SEBU T 3124-12","Oil & Gas","0403040618",12,"29S","21E","Belridge, South","No"]
[7055987,"Central","Rework","Aera Energy LLC","38DR-18","Oil & Gas","0402981740",18,"28S","21E","Belridge, South","No"]
[7055986,"Southern","Abandon","California Resources Production Corporation","State Prc 392 J-64D","Oil & Gas","0405902842",3,"06S","11W","Huntington Beach","No"]
[7055985,"Central","Abandon","Aera Energy LLC","DTR 74MM-34","Oil & Gas","0402985052",34,"28S","21E","Belridge, South","No"]
[7055984,"Central","Rework","California Resources Elk Hills, LLC","36WDX-21R","Water Disposal","0403053847",21,"30S","23E","Elk Hills","No"]
[7055983,"Southern","Abandon","California Resources Production Corporation","State Prc 392 T-11","Oil & Gas","0405902875",4,"06S","11W","Huntington Beach","No"]
[7055982,"Central","Abandon","Aera Energy LLC","DTR 74KM-34","Oil & Gas","0402981384",34,"28S","21E","Belridge, South","No"]
[7055981,"Northern","Rework","The Termo Company","Gardett 2-20","Oil & Gas","0403724070",20,"03N","16W","Oat Mountain","No"]
[7055980,"Central","Sidetrack","Petro-Lud, Inc.",63,"Oil & Gas","0401905186",17,"21S","15E","Jacalitos","No"]
[7055979,"Northern","Abandon","Aera Energy LLC","Hartman East 22","Oil & Gas","0411104642",22,"03N","23W","Ventura","No"]
[7055978,"Central","Rework","California Resources Elk Hills, LLC","75-34R","Oil & Gas","0403026668",34,"30S","23E","Elk Hills","No"]
[7055977,"Central","Rework","California Resources Elk Hills, LLC","36NW-2G","Oil & Gas","0403066830",2,"31S","24E","Elk Hills","No"]
[7055976,"Central","Rework","California Resources Elk Hills, LLC","64N-33S","Oil & Gas","0403021553",33,"30S","24E","Elk Hills","No"]
[7055975,"Central","Rework","Aera Energy LLC","DTR 775NL-33","Steamflood","0403027001",33,"28S","21E","Belridge, South","No"]
[7055974,"Northern","Abandon","California Resources Production Corporation","Larner 2-12","Dry Gas","0410120633",12,"13N","01E","Everglade Gas","No"]
[7055973,"Central","Rework","California Resources Elk Hills, LLC","21N-16G","Oil & Gas","0403020066",16,"31S","24E","Elk Hills","No"]
[7055972,"Central","Abandon","Aera Energy LLC","16JM-35","Oil & Gas","0402982401",35,"28S","21E","Belridge, South","No"]
[7055971,"Central","Rework","Aera Energy LLC","DTR 753NU2-33","Steamflood","0403054300",33,"28S","21E","Belridge, South","No"]
[7055970,"Central","Abandon","Aera Energy LLC","DTR 53CR-34","Oil & Gas","0402981158",34,"28S","21E","Belridge, South","No"]
[7055969,"Central","Abandon","Aera Energy LLC","28JL-35","Oil & Gas","0402983244",35,"28S","21E","Belridge, South","No"]
[7055968,"Northern","Abandon","California Resources Production Corporation","Wilcox 23","Dry Gas","0406720524",32,"04N","03E","Rio Vista Gas","No"]
[7055967,"Central","Abandon","Dennis C. Franks","D. C. Unit 1","Oil & Gas","0410720149",27,"22S","27E","Deer Creek","No"]
[7055966,"Central","Abandon","Dennis C. Franks","D. C. Unit 4","Oil & Gas","0410720228",27,"22S","27E","Deer Creek","No"]
[7055965,"Central","Abandon","Dennis C. Franks","D. C. Unit 5","Oil & Gas","0410720229",27,"22S","27E","Deer Creek","No"]
[7055964,"Southern","Abandon","California Resources Production Corporation","State Prc 392 UJ-32A","Waterflood","0405902818",10,"06S","11W","Huntington Beach","No"]
[7055963,"Central","New Drill","West Bay Exploration Company","WBE Callisto 1-3","Oil & Gas","0403070244",3,"30S","21E","Any Field","No"]
[7055962,"Central","Abandon","Chevron U.S.A. Inc.","2-8W","Observation","0401921311",13,"20S","14E","Coalinga","No"]
[7055961,"Central","Abandon","Sentinel Peak Resources California LLC","McKittrick Front 132","Cyclic Steam","0403062795",6,"30S","22E","Cymric","No"]
[7055960,"Central","Abandon","Sentinel Peak Resources California LLC","McKittrick Front 131","Cyclic Steam","0403062794",6,"30S","22E","Cymric","No"]
[7055959,"Central","New Drill","Chevron U.S.A. Inc.",6839,"Cyclic Steam","0403070243",7,"30S","22E","Cymric","No"]
[7055958,"Central","New Drill","Chevron U.S.A. Inc.",7228,"Cyclic Steam","0403070242",7,"30S","22E","Cymric","No"]
[7055957,"Central","New Drill","Chevron U.S.A. Inc.",3556,"Cyclic Steam","0403070241",7,"30S","22E","Cymric","No"]
[7055956,"Central","New Drill","Chevron U.S.A. Inc.",3962,"Cyclic Steam","0403070240",7,"30S","22E","McKittrick","No"]
[7055955,"Central","New Drill","Chevron U.S.A. Inc.","2955W","Steamflood","0403070239",7,"30S","22E","Cymric","No"]
[7055954,"Central","Sidetrack","Chevron U.S.A. Inc.","1Y 1725TR","Cyclic Steam","0403067245",1,"30S","21E","Cymric","No"]
[7055953,"Northern","Sidetrack","Aera Energy LLC","Orradre 1608-2","Oil & Gas","0405321479",2,"23S","10E","San Ardo","No"]
[7055952,"Central","Abandon","Chevron U.S.A. Inc.","83J","Water Disposal","0402971744",26,"32S","23E","Midway-Sunset","No"]
[7055951,"Central","Abandon","Chevron U.S.A. Inc.","Monarch T11","Observation","0403000649",2,"11N","24W","Midway-Sunset","No"]
[7055950,"Northern","Sidetrack","Aera Energy LLC","Hambey 148-7","Oil & Gas","0405300189",7,"23S","11E","San Ardo","No"]
[7055949,"Central","New Drill","Chevron U.S.A. Inc.",7432,"Cyclic Steam","0403070238",7,"30S","22E","Cymric","No"]
[7055948,"Central","New Drill","Chevron U.S.A. Inc.",7739,"Cyclic Steam","0403070237",7,"30S","22E","Cymric","No"]
[7055947,"Central","New Drill","Chevron U.S.A. Inc.",8038,"Cyclic Steam","0403070236",7,"30S","22E","Cymric","No"]
[7055946,"Central","New Drill","Chevron U.S.A. Inc.","3249TO","Observation","0403070235",7,"30S","22E","Cymric","No"]
[7055945,"Central","New Drill","Chevron U.S.A. Inc.","3762W","Steamflood","0403070234",7,"30S","22E","McKittrick","No"]
[7055944,"Central","New Drill","Chevron U.S.A. Inc.","3558W","Steamflood","0403070233",7,"30S","22E","Cymric","No"]
[7055943,"Central","New Drill","Chevron U.S.A. Inc.","3454W","Steamflood","0403070232",7,"30S","22E","Cymric","No"]
[7055942,"Central","New Drill","Chevron U.S.A. Inc.","3251W","Steamflood","0403070231",7,"30S","22E","Cymric","No"]
[7055941,"Central","Abandon","Chevron U.S.A. Inc.","S9-1C","Oil & Gas","0401923879",31,"19S","15E","Coalinga","No"]
[7055940,"Central","Abandon","Chevron U.S.A. Inc.","Premier H-2","Steamflood","0401925872",24,"20S","14E","Coalinga","No"]
[7055939,"Central","Abandon","Chevron U.S.A. Inc.","Premier 25H-2G","Oil & Gas","0401925018",24,"20S","14E","Coalinga","No"]
[7055938,"Central","Abandon","Sentinel Peak Resources California LLC","McKittrick I-9","Steamflood","0403029513",6,"30S","22E","Cymric","No"]
[7055937,"Southern","Abandon","California Resources Production Corporation","State Prc 392 J-71C","Oil & Gas","0405900208",10,"06S","11W","Huntington Beach","No"]
[7055936,"Central","Rework","Chevron U.S.A. Inc.","12-9C","Cyclic Steam","0403065122",7,"30S","22E","McKittrick","No"]
[7055935,"Central","Abandon","Chevron U.S.A. Inc.","4-10WC","Waterflood","0403029809",29,"26S","21E","Lost Hills","No"]
[7055934,"Central","Abandon","Allied Western Petroleum","Dagany Gap Unit 4","Oil & Gas","0402939648",10,"25S","18E","Devils Den","No"]
[7055933,"Central","Abandon","Allied Western Petroleum","Dagany Gap Unit 22","Oil & Gas","0402939634",3,"25S","18E","Devils Den","No"]
[7055932,"Northern","Abandon","California Resources Production Corporation","Fahn Bros 1-32","Dry Gas","0411321229",33,"06N","03E","Medora Lake Gas","No"]
[7055931,"Southern","Abandon","California Resources Production Corporation","State Prc 392 UJ-73B","Waterflood","0405900930",4,"06S","11W","Huntington Beach","No"]
[7055930,"Central","Abandon","Naftex Operating Company","Racetrack 3-1","Cyclic Steam","0402950963",27,"29S","29E","Edison","No"]
[7055929,"Central","Rework","Chevron U.S.A. Inc.","Sycamore CH-1","Observation","0402959889",31,"28S","28E","Kern River","No"]
[7055928,"Northern","Abandon","California Resources Production Corporation","RVGU 215","Dry Gas","0406720353",6,"03N","03E","Rio Vista Gas","No"]
[7055927,"Central","New Drill","Crimson Resource Management Corp.","25A 20-02R","Oil & Gas","0403070230",25,"31S","22E","Midway-Sunset","No"]
[7055926,"Central","Abandon","Allied Western Petroleum","Tamara Fee 2","Oil & Gas","0402974049",10,"25S","18E","Devils Den","No"]
[7055925,"Central","New Drill","Crimson Resource Management Corp.","25A 21-05R","Oil & Gas","0403070229",25,"31S","22E","Midway-Sunset","No"]
[7055924,"Central","Abandon","Allied Western Petroleum","Dagany Gap Unit 18","Oil & Gas","0402939631",3,"25S","18E","Devils Den","No"]
[7055923,"Central","Abandon","Allied Western Petroleum","Dagany Gap Unit 16","Oil & Gas","0402939630",3,"25S","18E","Devils Den","No"]
[7055922,"Central","Abandon","Allied Western Petroleum","Tamara Fee 1","Water Disposal","0402939653",10,"25S","18E","Devils Den","No"]
[7055921,"Northern","Abandon","California Resources Production Corporation","Welch 20","Dry Gas","0406720518",5,"03N","03E","Rio Vista Gas","No"]
[7055920,"Central","Abandon","Allied Western Petroleum","Alferitz 56","Oil & Gas","0402939691",14,"25S","18E","Devils Den","No"]
[7055919,"Central","Abandon","Chevron U.S.A. Inc.","8-9WQR","Waterflood","0403024769",32,"26S","21E","Lost Hills","No"]
[7055918,"Central","Abandon","Chevron U.S.A. Inc.","12-10WAR","Oil & Gas","0403048039",32,"26S","21E","Lost Hills","No"]
[7055917,"Central","New Drill","Valley Resources, LLC","Susan 54X-4","Oil & Gas","0403070228",4,"26S","19E","Any Field - Central District","No"]
["7051447-01","Central","Abandon","Chevron U.S.A. Inc.",346,"Oil & Gas","0402907380",29,"32S","24E","Midway-Sunset","Yes"]
[7055916,"Central","Abandon","Chevron U.S.A. Inc.","Palmer Union 27","Oil & Gas","0402959070",23,"32S","23E","Midway-Sunset","No"]
[7055915,"Central","Abandon","Crimson Resource Management Corp.","25A 20-02","Oil & Gas","0403054481",25,"31S","22E","Midway-Sunset","No"]
[7055914,"Central","Abandon","Crimson Resource Management Corp.","25A 21-05","Oil & Gas","0403056203",25,"31S","22E","Midway-Sunset","No"]
[7055913,"Southern","Rework","Matrix Oil Corporation","Sansinena 11 A 23","Oil & Gas","0403715369","32","02S","10W","Sansinena","No"]
[7055912,"Northern","Abandon","California Resources Production Corporation","RVGU 200","Dry Gas","0406720313",28,"04N","03E","Rio Vista Gas","No"]
[7055911,"Northern","Abandon","California Resources Production Corporation","RVGU 44","Dry Gas","0406700059",6,"03N","03E","Rio Vista Gas","No"]
[7055910,"Northern","Abandon","California Resources Production Corporation","RVGU 83","Dry Gas","0409500312",36,"04N","02E","Rio Vista Gas","No"]
[7055909,"Northern","Abandon","California Resources Production Corporation","Welch 25","Dry Gas","0406720525",5,"03N","03E","Rio Vista Gas","No"]
[7055908,"Central","Rework","Aera Energy LLC","King 11-5R-19","Oil & Gas","0402982352",19,"28S","21E","Belridge, South","No"]
[7055907,"Central","Rework","Aera Energy LLC","King 13-5-30","Oil & Gas","0402975476",30,"28S","21E","Belridge, South","No"]
[7055906,"Central","Rework","Aera Energy LLC","King 309L-30","Oil & Gas","0402973400",30,"28S","21E","Belridge, South","No"]
[7055905,"Central","Rework","Aera Energy LLC","DTR 775AU-33","Steamflood","0403026994",33,"28S","21E","Belridge, South","No"]
[7055904,"Southern","Rework","Tidelands Oil Production Co.","X 68","Oil & Gas","0403702721","02","05S","13W","Wilmington","No"]
[7055900,"Northern","Abandon","Crockett Drilling Synd., Inc.",3,"Dry Hole","0410300129",20,"24N","05W","Any Field","No"]
[7055899,"Northern","Abandon","North Valley Gaswell Services","Williams 1-5","Multi-Purpose","0410320128",5,"23N","03W","Kirkwood Gas","No"]
[7055898,"Central","Abandon","Allied Western Petroleum","Alferitz 18","Oil & Gas","0402939687",14,"25S","18E","Devils Den","No"]
[7055897,"Central","Abandon","Allied Western Petroleum","Alferitz 45","Oil & Gas","0402953848",14,"25S","18E","Devils Den","No"]
[7055895,"Central","Abandon","Allied Western Petroleum","Alferitz 14","Oil & Gas","0402939683",14,"25S","18E","Devils Den","No"]
[7055894,"Central","New Drill","California Resources Production Corporation","Section 25 4-1","Cyclic Steam","0403070227",25,"28S","27E","Kern Front","No"]
[7055893,"Central","Abandon","Naftex Operating Company","Racetrack 10-5","Cyclic Steam","0402950960",27,"29S","29E","Edison","No"]
[7055892,"Central","New Drill","California Resources Production Corporation","Vedder-Rall 56BH","Oil & Gas","0403070226",9,"27S","28E","Mount Poso","No"]
[7055891,"Central","New Drill","California Resources Production Corporation","Wetmore 2-1","Cyclic Steam","0403070225",14,"28S","27E","Kern Front","No"]
[7055890,"Central","Abandon","Chevron U.S.A. Inc.","36T 219","Oil & Gas","0403004317",36,"31S","22E","Midway-Sunset","No"]
[7055889,"Southern","Rework","Tidelands Oil Production Co.","M117D","Oil & Gas","0403703318","02","05S","13W","Wilmington","No"]
[7055888,"Central","Abandon","Allied Western Petroleum","Dagany Gap Unit 10","Oil & Gas","0402939624",3,"25S","18E","Devils Den","No"]
[7055887,"Central","Abandon","Allied Western Petroleum","Alferitz 10","Oil & Gas","0402939679",14,"25S","18E","Devils Den","No"]
[7055886,"Central","Abandon","Allied Western Petroleum","Alferitz 5","Oil & Gas","0402939674",14,"25S","18E","Devils Den","No"]
[7055885,"Northern","Abandon","California Resources Production Corporation","RVGU 217","Dry Gas","0406720354",5,"03N","03E","Rio Vista Gas","No"]
[7055884,"Northern","Abandon","California Resources Production Corporation","RVGU 225","Dry Gas","0406720376",7,"03N","03E","Rio Vista Gas","No"]
[7055883,"Northern","Abandon","California Resources Production Corporation","RVGU 53","Dry Gas","0409500241",30,"04N","03E","Rio Vista Gas","No"]
[7055882,"Central","Abandon","Aera Energy LLC","SEBU T 5421A-1","Steamflood","0403037664",1,"29S","21E","Belridge, South","No"]
[7055881,"Central","Abandon","Aera Energy LLC","SEBU T 5416-1","Steamflood","0403037832",1,"29S","21E","Belridge, South","No"]
[7055880,"Central","Abandon","Aera Energy LLC","SEBU T 5465A-1","Steamflood","0403037665",1,"29S","21E","Belridge, South","No"]
[7055879,"Central","Abandon","Aera Energy LLC","SEBU T 3544B-1","Oil & Gas","0403063305",1,"29S","21E","Belridge, South","No"]
[7055878,"Central","Abandon","Allied Western Petroleum","Alferitz 23","Oil & Gas","0402939690",14,"25S","18E","Devils Den","No"]
[7055877,"Central","Abandon","Aera Energy LLC","SEBU T 5233-12","Steamflood","0403017857",12,"29S","21E","Belridge, South","No"]
[7055876,"Central","Abandon","Aera Energy LLC","Belridge I 9183-2","Observation","0403000337",2,"29S","21E","Belridge, South","No"]
[7055875,"Central","Abandon","Aera Energy LLC","SEBU T 9616-1","Observation","0403047491",1,"29S","21E","Belridge, South","No"]
[7055874,"Central","Abandon","Aera Energy LLC","Belridge K & K 3467B-11","Cyclic Steam","0403053896",11,"29S","21E","Belridge, South","No"]
[7055873,"Central","Abandon","Aera Energy LLC","SEBU T 3243A-1","Oil & Gas","0403037873",1,"29S","21E","Belridge, South","No"]
[7055872,"Central","Abandon","Aera Energy LLC","Belridge I 3192C","Cyclic Steam","0403061811",2,"29S","21E","Belridge, South","No"]
[7055871,"Southern","Abandon","E & B Natural Resources Management Corporation","ANGUS A-6","Oil & Gas","0405921470","02","06S","11W","Huntington Beach","No"]
[7055870,"Southern","Rework","Signal Hill Petroleum, Inc.","23-14","Waterflood","0403721673","29","04S","12W","Long Beach","No"]
[7055869,"Southern","Abandon","E & B Natural Resources Management Corporation","ANGUS A-5","Oil & Gas","0405921473","02","06S","11W","Huntington Beach","No"]
[7055868,"Southern","Abandon","E & B Natural Resources Management Corporation","ANGUS A-8 I","Oil & Gas","0405921471","02","06S","11W","Huntington Beach","No"]
[7055867,"Central","Sidetrack","Petro-Lud, Inc.",64,"Oil & Gas","0401905187",17,"21S","15E","Jacalitos","No"]
[7055866,"Central","Abandon","Holmes Western Oil Corporation","Sunset 2-8K","Oil & Gas","0402937420",8,"11N","23W","Midway-Sunset","No"]
[7055865,"Southern","Abandon","Warren E&P, Inc.","WTU 1902","Oil & Gas","0403725170","32","04S","13W","Wilmington","No"]
[7055864,"Central","Abandon","Sentinel Peak Resources California LLC","97X-10","Oil & Gas","0403034659",18,"11N","23W","Midway-Sunset","No"]
[7055863,"Southern","Abandon","California Resources Production Corporation","State Prc 392 S-43A","Waterflood","0405902956",3,"06S","11W","Huntington Beach","No"]
[7055862,"Central","Sidetrack","Chevron U.S.A. Inc.","McKittrick Fee 3820","Cyclic Steam","0403050429",8,"30S","22E","Cymric","No"]
[7055858,"Southern","Rework","THUMS Long Beach Co.","A-135","Oil & Gas","0423720115","07","05S","12W","Wilmington","No"]
[7055857,"Southern","Rework","Tidelands Oil Production Co.","M324D","Oil & Gas","0403703444","02","05S","13W","Wilmington","No"]
[7055856,"Northern","New Drill","Southern California Gas Company","Goleta 2","Gas Storage","0408323004",21,"04N","28W","La Goleta Gas","No"]
[7055855,"Northern","New Drill","Southern California Gas Company","Goleta 4","Gas Storage","0408323003",21,"04N","28W","La Goleta Gas","No"]
[7055854,"Northern","New Drill","Southern California Gas Company","Goleta 3","Gas Storage","0408323002",21,"04N","28W","La Goleta Gas","No"]
[7055853,"Central","Abandon","Kern River Holdings II, LLC","Orloff 913 I","Steamflood","0403059421",6,"29S","28E","Kern River","No"]
[7055852,"Central","Abandon","Kern River Holdings II, LLC","Orloff 915i","Steamflood","0403066515",6,"29S","28E","Kern River","No"]
[7055851,"Northern","New Drill","Southern California Gas Company","Goleta 6","Gas Storage","0408323001",21,"04N","28W","La Goleta Gas","No"]
[7055850,"Central","Abandon","Aera Energy LLC","SEBU T 9218-1","Observation","0403025625",1,"29S","21E","Belridge, South","No"]
[7055849,"Central","Abandon","Aera Energy LLC","Belridge 3168B-11","Oil & Gas","0403026589",11,"29S","21E","Belridge, South","No"]
[7055848,"Central","Sidetrack","Petro-Lud, Inc.",75,"Oil & Gas","0401905192",17,"21S","15E","Jacalitos","No"]
[7055847,"Central","Sidetrack","Petro-Lud, Inc.",86,"Oil & Gas","0401905195",17,"21S","15E","Jacalitos","No"]
[7055846,"Northern","New Drill","Southern California Gas Company","Goleta 5","Gas Storage","0408323000",21,"04N","28W","La Goleta Gas","No"]
[7055845,"Central","Sidetrack","Chevron U.S.A. Inc.","Claremont 5-E","Cyclic Steam","0401924853",24,"20S","14E","Coalinga","No"]
[7055844,"Central","Re-Abandon","Aera Energy LLC","Anderson-Fitzgerald V-11","Oil & Gas","0402935928",26,"29S","21E","Cymric","No"]
[7055843,"Central","Abandon","Sentinel Peak Resources California LLC","Hopkins 138H-10","Cyclic Steam","0403016280",10,"29S","21E","Belridge, South","No"]
[7055842,"Central","New Drill","Aera Energy LLC","53TE-28","Oil & Gas","0403070224",28,"28S","21E","Belridge, South","No"]
[7055841,"Northern","Abandon","Lodi Gas Storage, L.L.C.","Loma M-4B","Gas Storage","0407720733",9,"04N","07E","Lodi Gas","No"]
[7055840,"Northern","New Drill","Southern California Gas Company","Goleta 7","Gas Storage","0408322999",21,"04N","28W","La Goleta Gas","No"]
[7055839,"Northern","Abandon","California Resources Production Corporation","RVGU 206","Dry Gas","0406720316",33,"04N","03E","Rio Vista Gas","No"]
[7055838,"Central","New Drill","Aera Energy LLC","84TE-33","Oil & Gas","0403070223",33,"28S","21E","Belridge, South","No"]
[7055837,"Central","New Drill","Aera Energy LLC","89TE-33","Oil & Gas","0403070222",33,"28S","21E","Belridge, South","No"]
[7055836,"Central","New Drill","Aera Energy LLC","12MAB-33","Oil & Gas","0403070221",33,"28S","21E","Belridge, South","No"]
[7055835,"Central","New Drill","Aera Energy LLC","71SR-33","Oil & Gas","0403070220",33,"28S","21E","Belridge, South","No"]
[7055834,"Central","New Drill","Aera Energy LLC","64QR1-29","Oil & Gas","0403070219",29,"28S","21E","Belridge, South","No"]
[7055833,"Central","Abandon","Aera Energy LLC","SEBU T 5467-1","Steamflood","0403037666",1,"29S","21E","Belridge, South","No"]
[7055832,"Central","Abandon","Aera Energy LLC","SEBU T 5419A-1","Steamflood","0403037663",1,"29S","21E","Belridge, South","No"]
[7055831,"Central","Rework","Aera Energy LLC","DTR 467-28","Observation","0402972577",28,"28S","21E","Belridge, South","No"]
[7055830,"Central","Abandon","Aera Energy LLC","Belridge I 3068-2","Oil & Gas","0402964665",2,"29S","21E","Belridge, South","No"]
[7055829,"Central","Abandon","Aera Energy LLC","DTR 414-34","Observation","0402972449",34,"28S","21E","Belridge, South","No"]
[7055828,"Central","Rework","California Resources Elk Hills, LLC","666X-5D","Oil & Gas","0403047301",5,"32S","24E","Buena Vista","No"]
[7055827,"Northern","Abandon","California Resources Production Corporation","RVGU 111","Dry Gas","0406700111",5,"03N","03E","Rio Vista Gas","No"]
[7055826,"Northern","Abandon","California Resources Production Corporation","RVGU 235","Dry Gas","0406720426",31,"04N","03E","Rio Vista Gas","No"]
[7055825,"Northern","Abandon","California Resources Production Corporation","RVGU 25","Dry Gas","0406700104",34,"04N","03E","Rio Vista Gas","No"]
[7055823,"Northern","Abandon","California Resources Production Corporation","RVGU 199","Dry Gas","0406720319",28,"04N","03E","Rio Vista Gas","No"]
[7055822,"Central","Abandon","Aera Energy LLC","Belridge 3136A-11","Oil & Gas","0403043077",11,"29S","21E","Belridge, South","No"]
[7055821,"Central","Abandon","Aera Energy LLC","SEBU T 5267-12","Steamflood","0403020188",12,"29S","21E","Belridge, South","No"]
[7055820,"Northern","Abandon","Chevron U.S.A. Inc.","Rosenberg (NCT-1) H13A","Steamflood","0405322330",3,"23S","10E","San Ardo","No"]
[7055819,"Central","Abandon","Aera Energy LLC","3540-35","Cyclic Steam","0403058096",35,"28S","21E","Belridge, South","No"]
[7055818,"Central","New Drill","Crimson Resource Management Corp.","25A 14-03","Cyclic Steam","0403070218",25,"31S","22E","Midway-Sunset","No"]
[7055817,"Northern","Abandon","Chevron U.S.A. Inc.","Rosenberg (NCT-1) 64B","Steamflood","0405322085",3,"23S","10E","San Ardo","No"]
[7055816,"Northern","Abandon","Chevron U.S.A. Inc.","Rosenberg (NCT-1) 285","Oil & Gas","0405320174",3,"23S","10E","San Ardo","No"]
[7055815,"Northern","Abandon","Chevron U.S.A. Inc.","Rosenberg (NCT-1) 304A","Oil & Gas","0405321962",2,"23S","10E","San Ardo","No"]
[7055814,"Central","Abandon","Petro-Lud, Inc.",45,"Oil & Gas","0401905261",27,"21S","15E","Jacalitos","No"]
[7055813,"Central","Abandon","Petro-Lud, Inc.",25,"Oil & Gas","0401905254",27,"21S","15E","Jacalitos","No"]
[7055812,"Northern","Abandon","Chevron U.S.A. Inc.","Rosenberg (NCT-1) 283","Oil & Gas","0405320153",3,"23S","10E","San Ardo","No"]
[7055811,"Northern","Abandon","Chevron U.S.A. Inc.","Rosenberg (NCT-1) 404","Oil & Gas","0405320649",3,"23S","10E","San Ardo","No"]
[7055810,"Central","Abandon","Chevron U.S.A. Inc.","Amber 182","Oil & Gas","0403013274",26,"31S","22E","Midway-Sunset","No"]
[7055809,"Central","Abandon","Sentinel Peak Resources California LLC","A-1","Cyclic Steam","0403016098",18,"11N","23W","Midway-Sunset","No"]
[7055808,"Central","Abandon","Sentinel Peak Resources California LLC","19Z 19Z-DE2","Oil & Gas","0403067487",19,"30S","22E","McKittrick","No"]
[7055807,"Central","Abandon","Petro-Lud, Inc.",77,"Oil & Gas","0401905273",27,"21S","15E","Jacalitos","No"]
[7055806,"Central","Re-Abandon","Sentinel Peak Resources California LLC","McKittrick Front 4A","Oil & Gas","0402937033",6,"30S","22E","Cymric","No"]
[7055805,"Central","Rework","Chevron U.S.A. Inc.","6375W","Steamflood","0403068906",7,"30S","22E","McKittrick","No"]
[7055804,"Northern","Abandon","Chevron U.S.A. Inc.","Rosenberg (NCT-1) 118A","Oil & Gas","0405321968",3,"23S","10E","San Ardo","No"]
[7055803,"Central","Abandon","Allied Western Petroleum","Dagany Gap Unit 13","Oil & Gas","0402939627",3,"25S","18E","Devils Den","No"]
[7055802,"Northern","Abandon","Chevron U.S.A. Inc.","Orradre B11A-11","Cyclic Steam","0405322282",11,"23S","10E","San Ardo","No"]
[7055801,"Central","Abandon","Kern River Holdings II, LLC","Orloff 817i","Steamflood","0403066525",6,"29S","28E","Kern River","No"]
[7055800,"Central","Abandon","Kern River Holdings II, LLC","Orloff 1013","Cyclic Steam","0403066526",6,"29S","28E","Kern River","No"]
[7055799,"Central","Abandon","Sentinel Peak Resources California LLC","Star Fee C28-1","Cyclic Steam","0403063660",6,"30S","22E","Cymric","No"]
[7055798,"Northern","Abandon","Chevron U.S.A. Inc.","Orradre TO-19","Observation","0405321919",11,"23S","10E","San Ardo","No"]
[7055797,"Central","Rework","Aera Energy LLC","2-4R","Oil & Gas","0402982622",13,"26S","20E","Lost Hills","No"]
[7055796,"Central","Rework","Aera Energy LLC",46210,"Oil & Gas","0402969984",13,"26S","20E","Lost Hills","No"]
[7055795,"Northern","Abandon","Chevron U.S.A. Inc.","Orradre A4R-11","Oil & Gas","0405321489",11,"23S","10E","San Ardo","No"]
[7055794,"Central","Rework","Aera Energy LLC","Lost Hills Three LH4153R","Oil & Gas","0403060871",13,"26S","20E","Lost Hills","No"]
[7055793,"Southern","Abandon","Synergy Oil & Gas, LLC","Bixby A 14","Oil & Gas","0403706987","11","05S","12W","Seal Beach","No"]
[7055792,"Northern","Abandon","Chevron U.S.A. Inc.","Orradre 1813","Cyclic Steam","0405322537",11,"23S","10E","San Ardo","No"]
[7055791,"Central","Abandon","Naftex Operating Company","Racetrack 6-51","Oil & Gas","0402977730",27,"29S","29E","Edison","No"]
[7055790,"Central","Abandon","Kern River Holdings II, LLC","Ferne 903","Cyclic Steam","0403057894",6,"29S","28E","Kern River","No"]
[7055789,"Central","Sidetrack","California Resources Production Corporation","Vedder-Rall 377","Oil & Gas","0402964007",9,"27S","28E","Mount Poso","No"]
[7055788,"Central","New Drill","Aera Energy LLC","35TE-28","Oil & Gas","0403070217",28,"28S","21E","Belridge, South","No"]
[7055787,"Central","New Drill","Aera Energy LLC","10TE-33","Oil & Gas","0403070216",33,"28S","21E","Belridge, South","No"]
[7055786,"Central","New Drill","Aera Energy LLC","116TE-28","Oil & Gas","0403070215",28,"28S","21E","Belridge, South","No"]
[7055785,"Northern","Abandon","Aera Energy LLC","Lloyd 30","Oil & Gas","0411104703",27,"03N","23W","Ventura","No"]
[7055784,"Northern","Abandon","CalNRG Operating, LLC","Torrey W-2","Waterflood","0411104239",5,"03N","18W","Torrey Canyon","No"]
[7055783,"Northern","Abandon","Chevron U.S.A. Inc.","Orradre 4812","Oil & Gas","0405322504",11,"23S","10E","San Ardo","No"]
[7055782,"Central","Rework","Sentinel Peak Resources California LLC","South Cerritos 34","Cyclic Steam","0403045132",22,"32S","23E","Midway-Sunset","No"]
[7055781,"Northern","Abandon","Chevron U.S.A. Inc.","Rosenberg (NCT-1) 5802","Cyclic Steam","0405322624",34,"22S","10E","San Ardo","No"]
[7055780,"Northern","Abandon","Concordia Resources, Inc.","Akers 1-12","Dry Gas","0409520584",12,"04N","02E","Lindsey Slough Gas","No"]
[7055779,"Northern","Abandon","Concordia Resources, Inc.","Highlands-Willow Springs 4-12","Dry Gas","0409520572",12,"04N","02E","Lindsey Slough Gas","No"]
[7055778,"Northern","Abandon","Chevron U.S.A. Inc.","Rosenberg (NCT-1) 5702","Cyclic Steam","0405322539",34,"22S","10E","San Ardo","No"]
[7055777,"Northern","Abandon","Chevron U.S.A. Inc.","Orradre Q8U-10","Oil & Gas","0405321164",10,"23S","10E","San Ardo","No"]
[7055776,"Northern","Abandon","Chevron U.S.A. Inc.","Dudley K15A","Steamflood","0405322326",3,"23S","10E","San Ardo","No"]
[7055775,"Southern","Rework","Tidelands Oil Production Co.","168-W","Waterflood","0403703027","03","05S","13W","Wilmington","No"]
[7055774,"Northern","Rework","Aera Energy LLC","McGonigle 52","Waterflood","0411121997",23,"03N","23W","Ventura","No"]
[7055773,"Central","Abandon","Holmes Western Oil Corporation","Hayley J 6","Oil & Gas","0403012998",8,"11N","23W","Midway-Sunset","No"]
[7055772,"Northern","Abandon","CalNRG Operating, LLC","Torrey 73","Waterflood","0411104204",5,"03N","18W","Torrey Canyon","No"]
[7055771,"Central","Abandon","Sentinel Peak Resources California LLC","A-12","Oil & Gas","0403017450",18,"11N","23W","Midway-Sunset","No"]
[7055770,"Central","Abandon","Sentinel Peak Resources California LLC","Freemac 15","Oil & Gas","0402982531",7,"11N","23W","Midway-Sunset","No"]
[7055769,"Central","New Drill","Aera Energy LLC","Fitzgerald F6114-26S","Cyclic Steam","0403070214",26,"29S","21E","Cymric","No"]
[7055768,"Central","New Drill","Crimson Resource Management Corp.","25A 14-02","Cyclic Steam","0403070213",25,"31S","22E","Midway-Sunset","No"]
[7055767,"Central","New Drill","Crimson Resource Management Corp.","25A 14-06","Cyclic Steam","0403070212",25,"31S","22E","Midway-Sunset","No"]
[7055766,"Central","Sidetrack","Petro-Lud, Inc.","Unpsecified 32","Oil & Gas","0401905204",21,"21S","15E","Jacalitos","No"]
[7055765,"Central","Sidetrack","Petro-Lud, Inc.","Unpsecified 21","Oil & Gas","0401905200",21,"21S","15E","Jacalitos","No"]
[7055764,"Central","Re-Abandon","Aera Energy LLC","Anderson-Fitzgerald 201","Oil & Gas","0402937028",26,"29S","21E","Cymric","No"]
[7055763,"Central","Rework","Chevron U.S.A. Inc.","1Y 2216U","Cyclic Steam","0403069565",1,"30S","21E","Cymric","No"]
[7055762,"Northern","Abandon","Chevron U.S.A. Inc.","Rosenberg (NCT-1) 71","Observation","0405300823",2,"23S","10E","San Ardo","No"]
[7055761,"Northern","Abandon","Chevron U.S.A. Inc.","Orradre C4X-11","Cyclic Steam","0405321547",11,"23S","10E","San Ardo","No"]
[7055760,"Northern","Abandon","Chevron U.S.A. Inc.","Rosenberg (NCT-1) 426","Steamflood","0405320711",2,"23S","10E","San Ardo","No"]
[7055759,"Northern","Abandon","NewBridge Resources, LLC","Careaga 80","Oil & Gas","0408302113",31,"09N","33W","Orcutt","No"]
[7055758,"Northern","Abandon","Chevron U.S.A. Inc.","Rosenberg (NCT-1) 225","Observation","0405300962",3,"23S","10E","San Ardo","No"]
[7055757,"Northern","Abandon","Chevron U.S.A. Inc.","Rosenberg (NCT-1) TO37","Observation","0405322352",3,"23S","10E","San Ardo","No"]
[7055756,"Central","New Drill","Aera Energy LLC","13KR2-34","Oil & Gas","0403070211",34,"28S","21E","Belridge, South","No"]
[7055755,"Central","New Drill","Aera Energy LLC","85TE-33","Oil & Gas","0403070210",33,"28S","21E","Belridge, South","No"]
[7055754,"Central","New Drill","Aera Energy LLC","34FR-34","Oil & Gas","0403070209",34,"28S","21E","Belridge, South","No"]
[7055753,"Central","New Drill","Aera Energy LLC","86TE-33","Oil & Gas","0403070208",33,"28S","21E","Belridge, South","No"]
[7055752,"Northern","Abandon","Chevron U.S.A. Inc.","Rosenberg (NCT-1) 122U","Oil & Gas","0405300869",2,"23S","10E","San Ardo","No"]
[7055751,"Central","New Drill","Aera Energy LLC","58TE-28","Oil & Gas","0403070207",28,"28S","21E","Belridge, South","No"]
[7055750,"Central","New Drill","Aera Energy LLC","52TE-28","Oil & Gas","0403070206",28,"28S","21E","Belridge, South","No"]
[7055749,"Northern","Abandon","California Resources Production Corporation","Welch 23","Dry Gas","0406720522",5,"03N","03E","Rio Vista Gas","No"]
[7055748,"Central","New Drill","Chevron U.S.A. Inc.",3042,"Cyclic Steam","0403070205",7,"30S","22E","Cymric","No"]
[7055747,"Central","New Drill","Chevron U.S.A. Inc.",3959,"Cyclic Steam","0403070204",7,"30S","22E","McKittrick","No"]
[7055746,"Northern","Abandon","California Resources Production Corporation","Jordan 7","Dry Gas","0406720486",21,"03N","03E","Rio Vista Gas","No"]
[7055745,"Northern","Abandon","California Resources Production Corporation","RVGU 148","Dry Gas","0406700090",6,"03N","03E","Rio Vista Gas","No"]
[7055744,"Northern","Abandon","California Resources Production Corporation","Peters 4","Dry Gas","0409520700",3,"05N","02E","Maine Prairie Gas","No"]
[7055743,"Northern","Abandon","California Resources Production Corporation","RVGU 205","Dry Gas","0406720310",4,"03N","03E","Rio Vista Gas","No"]
[7055742,"Central","Rework","California Resources Elk Hills, LLC","666-36B","Oil & Gas","0403046932",36,"31S","23E","Buena Vista","No"]
[7055741,"Central","Rework","California Resources Elk Hills, LLC","638X-31G","Oil & Gas","0403044238",31,"31S","24E","Buena Vista","No"]
[7055740,"Central","New Drill","Chevron U.S.A. Inc.",6726,"Cyclic Steam","0403070203",7,"30S","22E","Cymric","No"]
[7055739,"Central","New Drill","Chevron U.S.A. Inc.",3461,"Cyclic Steam","0403070202",7,"30S","22E","McKittrick","No"]
[7055738,"Central","New Drill","Chevron U.S.A. Inc.",3045,"Cyclic Steam","0403070201",7,"30S","22E","Cymric","No"]
[7055737,"Central","New Drill","Chevron U.S.A. Inc.",3357,"Cyclic Steam","0403070200",7,"30S","22E","Cymric","No"]
[7055736,"Northern","Abandon","Chevron U.S.A. Inc.","Rosenberg (NCT-1) TO42","Observation","0405322388",3,"23S","10E","San Ardo","No"]
[7055735,"Northern","Abandon","Chevron U.S.A. Inc.","Rosenberg (NCT-1) 100A","Steamflood","0405320468",3,"23S","10E","San Ardo","No"]
[7055734,"Northern","Abandon","Chevron U.S.A. Inc.","Orradre 2611","Cyclic Steam","0405322549",10,"23S","10E","San Ardo","No"]
[7055733,"Northern","Abandon","Chevron U.S.A. Inc.","Rosenberg (NCT-1) TO38","Observation","0405322353",3,"23S","10E","San Ardo","No"]
[7055732,"Northern","Abandon","Chevron U.S.A. Inc.","Rosenberg (NCT-1) 288A","Cyclic Steam","0405322081",3,"23S","10E","San Ardo","No"]
[7055731,"Northern","Abandon","Chevron U.S.A. Inc.","Rosenberg (NCT-1) 212A","Oil & Gas","0405322636",3,"23S","10E","San Ardo","No"]
[7055730,"Northern","Abandon","Chevron U.S.A. Inc.","Rosenberg (NCT-1) 357A","Cyclic Steam","0405322254",3,"23S","10E","San Ardo","No"]
[7055729,"Central","Re-Abandon","Aera Energy LLC","Anderson-Fitzgerald V-9","Oil & Gas","0402935926",26,"29S","21E","Cymric","No"]
[7055728,"Central","Rework","California Resources Elk Hills, LLC","5-4A-36B","Oil & Gas","0403036881",36,"31S","23E","Buena Vista","No"]
[7055727,"Central","Rework","California Resources Elk Hills, LLC","5-4R-36B","Oil & Gas","0403034152",36,"31S","23E","Buena Vista","No"]
[7055726,"Central","Abandon","Allied Western Petroleum","Dagany Gap Unit 7","Oil & Gas","0402939650",10,"25S","18E","Devils Den","No"]
[7055725,"Central","Abandon","Allied Western Petroleum","Dagany Gap Unit 5","Oil & Gas","0402939649",10,"25S","18E","Devils Den","No"]
[7055724,"Central","Sidetrack","Petro-Lud, Inc.","Unpsecified 76","Oil & Gas","0401905231",21,"21S","15E","Jacalitos","No"]
[7055723,"Central","Sidetrack","Petro-Lud, Inc.",21,"Oil & Gas","0401905252",27,"21S","15E","Jacalitos","No"]
[7055722,"Northern","Abandon","Patriot Resources, LLC","Hanna 2","Oil & Gas","0411100222",1,"03N","18W","Tapo, North","No"]
[7055721,"Central","Abandon","Kern River Holdings II, LLC","Jerry-Lee 8","Observation","0402924832",6,"29S","28E","Kern River","No"]
[7055720,"Central","Abandon","Kern River Holdings II, LLC","Nukern 301","Cyclic Steam","0403048764",6,"29S","28E","Kern River","No"]
[7055719,"Central","Abandon","Naftex Operating Company","Racetrack 9-8","Oil & Gas","0402966331",27,"29S","29E","Edison","No"]
[7055718,"Central","Abandon","Naftex Operating Company","Racetrack 8-6C","Oil & Gas","0402976350",27,"29S","29E","Edison","No"]
[7055717,"Central","Abandon","Naftex Operating Company","Racetrack 6-63","Cyclic Steam","0402977734",27,"29S","29E","Edison","No"]
[7055716,"Central","Abandon","Naftex Operating Company","Racetrack 10-4R","Cyclic Steam","0403039348",27,"29S","29E","Edison","No"]
[7055715,"Central","New Drill","California Resources Production Corporation",46327,"Cyclic Steam","0403070199",14,"28S","27E","Kern Front","No"]
[7055714,"Northern","Abandon","CalNRG Operating, LLC","Santa Paula 37","Oil & Gas","0411103449",18,"03N","20W","South Mountain","No"]
[7055713,"Northern","Abandon","CalNRG Operating, LLC","Torrey 60","Water Disposal","0411104192",5,"03N","18W","Torrey Canyon","No"]
[7055712,"Central","New Drill","Aera Energy LLC","56TE-28","Oil & Gas","0403070198",28,"28S","21E","Belridge, South","No"]
[7055711,"Central","New Drill","Aera Energy LLC","95TE-28","Oil & Gas","0403070197",28,"28S","21E","Belridge, South","No"]
[7055710,"Central","Sidetrack","Aera Energy LLC","DTR 525LR3-34","Waterflood","0403045220",34,"28S","21E","Belridge, South","No"]
[7055709,"Central","Sidetrack","Aera Energy LLC","Belridge III 8031D-3","Waterflood","0403052746",3,"29S","21E","Belridge, South","No"]
[7055708,"Central","New Drill","Chevron U.S.A. Inc.",6635,"Cyclic Steam","0403070196",7,"30S","22E","Cymric","No"]
[7055707,"Central","New Drill","Chevron U.S.A. Inc.","2961W","Steamflood","0403070195",7,"30S","22E","McKittrick","No"]
[7055706,"Central","New Drill","Chevron U.S.A. Inc.","3363W","Steamflood","0403070194",7,"30S","22E","McKittrick","No"]
[7055705,"Central","New Drill","Valley Resources, LLC","Linda 51X-5","Oil & Gas","0403070193",5,"27S","19E","Any Field - Central District","No"]
[7055704,"Northern","Abandon","Patriot Resources, LLC","N. L. & F. 0-6","Oil & Gas","0411100237",35,"04N","18W","Tapo, North","No"]
[7055703,"Northern","Abandon","Crimson Resource Management Corp.","CHU Lease Sect 35 23-35","Oil & Gas","0403701198",35,"05N","17W","Castaic Hills","No"]
[7055702,"Northern","Abandon","CalNRG Operating, LLC","Torrey 68","Waterflood","0411100155",5,"03N","18W","Torrey Canyon","No"]
[7055700,"Central","Abandon","Sentinel Peak Resources California LLC","Hondo Peerless 59","Observation","0402935205",15,"31S","22E","Midway-Sunset","No"]
[7055699,"Northern","Abandon","California Resources Production Corporation","Cygnus 2","Dry Gas","0409521102",35,"05N","01E","Denverton Creek Gas","No"]
[7055698,"Northern","Abandon","California Resources Production Corporation","Sonol Securities 10","Dry Gas","0407720713",16,"01S","05E","Union Island Gas","No"]
[7055696,"Northern","Abandon","California Resources Production Corporation","RVGU 208","Dry Gas","0406720314",4,"03N","03E","Rio Vista Gas","No"]
[7055695,"Central","New Drill","Aera Energy LLC","82TE-33","Oil & Gas","0403070192",33,"28S","21E","Belridge, South","No"]
[7055694,"Central","New Drill","Aera Energy LLC","88TE-33","Oil & Gas","0403070191",33,"28S","21E","Belridge, South","No"]
[7055693,"Central","New Drill","Aera Energy LLC","Lost Hills Two LT8174-19","Cyclic Steam","0403070190",19,"26S","21E","Lost Hills","No"]
[7055692,"Central","New Drill","Aera Energy LLC","83TE-33","Oil & Gas","0403070189",33,"28S","21E","Belridge, South","No"]
[7055691,"Central","New Drill","Aera Energy LLC","110TE-28","Oil & Gas","0403070188",28,"28S","21E","Belridge, South","No"]
[7055690,"Central","New Drill","Aera Energy LLC","Lost Hills Three LH4063-13","Cyclic Steam","0403070187",13,"26S","20E","Lost Hills","No"]
[7055689,"Central","New Drill","Aera Energy LLC","12TE-34","Oil & Gas","0403070186",34,"28S","21E","Belridge, South","No"]
[7055688,"Central","Rework","Chevron U.S.A. Inc.","1Y 1526TO","Observation","0403066233",1,"30S","21E","Cymric","No"]
[7055687,"Central","Rework","INNEX California, Inc.","74-30","Oil & Gas","0403120432",30,"23S","19E","Kettleman Middle Dome","No"]
[7055686,"Northern","Abandon","Patriot Resources, LLC","N. L. & F. 0-23","Oil & Gas","0411120672",36,"04N","18W","Tapo, North","No"]
[7055685,"Northern","Rework","Sentinel Peak Resources California LLC","Pulas 7","Water Disposal","0407921202",31,"31S","13E","Arroyo Grande","No"]
[7055684,"Central","New Drill","Chevron U.S.A. Inc.","7028W","Steamflood","0403070185",7,"30S","22E","Cymric","No"]
[7055683,"Central","Abandon","Allied Western Petroleum","Dagany Gap Unit 8","Oil & Gas","0402939622",3,"25S","18E","Devils Den","No"]
[7055682,"Central","Abandon","Allied Western Petroleum","Dagany Gap Unit 11","Oil & Gas","0402939625",3,"25S","18E","Devils Den","No"]
[7055681,"Central","Abandon","Allied Western Petroleum","Dagany Gap Unit 17","Oil & Gas","0402939651",10,"25S","18E","Devils Den","No"]
[7055680,"Central","New Drill","Chevron U.S.A. Inc.","7734W","Steamflood","0403070184",7,"30S","22E","Cymric","No"]
[7055679,"Central","New Drill","Chevron U.S.A. Inc.","7837W","Oil & Gas","0403070183",7,"30S","22E","Cymric","No"]
[7055678,"Central","Abandon","Allied Western Petroleum","Dagany Gap Unit 6","Oil & Gas","0402939621",3,"25S","18E","Devils Den","No"]
[7055677,"Central","New Drill","Chevron U.S.A. Inc.",7636,"Cyclic Steam","0403070182",7,"30S","22E","Cymric","No"]
[7055676,"Central","New Drill","Chevron U.S.A. Inc.",7831,"Cyclic Steam","0403070181",7,"30S","22E","Cymric","No"]
[7055675,"Central","New Drill","Chevron U.S.A. Inc.",7125,"Cyclic Steam","0403070180",7,"30S","22E","Cymric","No"]
[7055674,"Central","Abandon","Allied Western Petroleum","Dagany Gap Unit 15","Oil & Gas","0402939629",3,"25S","18E","Devils Den","No"]
[7055673,"Central","Abandon","Allied Western Petroleum","Dagany Gap Unit 3","Oil & Gas","0402939620",3,"25S","18E","Devils Den","No"]
[7055672,"Northern","Abandon","Patriot Resources, LLC","N. L. & F. 0-8","Oil & Gas","0411100238",35,"04N","18W","Tapo, North","No"]
[7055671,"Central","Abandon","Crimson Resource Management Corp.","Section 2 BE-S2","Cyclic Steam","0403043530",2,"26S","20E","Lost Hills","No"]
[7055670,"Central","Abandon","Crimson Resource Management Corp.","Section 34 B2-W2","Oil & Gas","0403033451",34,"25S","20E","Lost Hills","No"]
[7055669,"Central","Abandon","Crimson Resource Management Corp.","Section 2 DEW-Z9","Cyclic Steam","0403019456",2,"26S","20E","Lost Hills","No"]
[7055668,"Central","New Drill","Aera Energy LLC","Lost Hills Three LH5089-13","Steamflood","0403070179",13,"26S","20E","Lost Hills","No"]
[7055667,"Central","New Drill","Aera Energy LLC","Lost Hills Three LH5088-13","Steamflood","0403070178",13,"26S","20E","Lost Hills","No"]
[7055666,"Central","New Drill","Aera Energy LLC","Lost Hills Three LH4083-13","Oil & Gas","0403070177",13,"26S","20E","Lost Hills","No"]
[7055665,"Central","New Drill","Aera Energy LLC","Lost Hills Three LH5085R1-13","Steamflood","0403070176",13,"26S","20E","Lost Hills","No"]
[7055664,"Central","Abandon","Sentinel Peak Resources California LLC","A-27","Oil & Gas","0403030232",18,"11N","23W","Midway-Sunset","No"]
[7055663,"Central","New Drill","Aera Energy LLC","Lost Hills Three LH5040-13","Steamflood","0403070175",13,"26S","20E","Lost Hills","No"]
[7055662,"Central","New Drill","Aera Energy LLC","Lost Hills Three LH5062A-13","Steamflood","0403070174",13,"26S","20E","Lost Hills","No"]
[7055661,"Central","Abandon","Sentinel Peak Resources California LLC","Band Fee 37","Oil & Gas","0402969654",24,"31S","22E","Midway-Sunset","No"]
[7055660,"Central","Abandon","Sentinel Peak Resources California LLC","M&M 85R","Cyclic Steam","0403025723",15,"31S","22E","Midway-Sunset","No"]
[7055659,"Central","Rework","California Resources Elk Hills, LLC","3-7AWI-36B","Oil & Gas","0403047119",36,"31S","23E","Buena Vista","No"]
[7055658,"Central","New Drill","Chevron U.S.A. Inc.","4058TO","Observation","0403070173",7,"30S","22E","McKittrick","No"]
[7055657,"Central","New Drill","Chevron U.S.A. Inc.","3655TO","Observation","0403070172",7,"30S","22E","Cymric","No"]
[7055656,"Central","New Drill","Chevron U.S.A. Inc.","3044W","Steamflood","0403070171",7,"30S","22E","Cymric","No"]
[7055655,"Central","New Drill","Chevron U.S.A. Inc.","SP 68 4660W","Steamflood","0403070170",7,"30S","22E","McKittrick","No"]
[7055654,"Central","New Drill","Chevron U.S.A. Inc.","SP 68 4661","Cyclic Steam","0403070169",7,"30S","22E","McKittrick","No"]
[7055653,"Central","New Drill","Chevron U.S.A. Inc.","SP 68 4260W","Steamflood","0403070168",7,"30S","22E","McKittrick","No"]
[7055652,"Central","New Drill","Chevron U.S.A. Inc.","3147W","Steamflood","0403070167",7,"30S","22E","Cymric","No"]
[7055651,"Central","New Drill","Chevron U.S.A. Inc.","3857W","Steamflood","0403070166",7,"30S","22E","Cymric","No"]
[7055650,"Central","New Drill","Chevron U.S.A. Inc.",3153,"Cyclic Steam","0403070165",7,"30S","22E","Cymric","No"]
[7055649,"Central","New Drill","Chevron U.S.A. Inc.",3149,"Cyclic Steam","0403070164",7,"30S","22E","Cymric","No"]
[7055648,"Northern","Abandon","The Nahabedian Exploration Group, LLC","McCormack Ranch 1-4","Dry Gas","0409521322",4,"04N","02E","Lindsey Slough Gas","No"]
[7055647,"Southern","Abandon","E & B Natural Resources Management Corporation","ANGUS B-2 I","Waterflood","0405921480","02","06S","11W","Huntington Beach","No"]
[7055646,"Southern","Rework","Tidelands Oil Production Co.","FY-95","Waterflood","0403702810","11","05S","13W","Wilmington","No"]
[7055645,"Central","Abandon","Allied Western Petroleum","Dagany Gap Unit 2","Oil & Gas","0402939647",10,"25S","18E","Devils Den","No"]
[7055644,"Central","Abandon","Allied Western Petroleum","Dagany Gap Unit 1","Oil & Gas","0402939646",10,"25S","18E","Devils Den","No"]
[7055642,"Central","Abandon","Freedom Oil Company, LLC","Strode 2","Oil & Gas","0402939694",15,"25S","18E","Devils Den","No"]
[7055641,"Central","Abandon","Freedom Oil Company, LLC","Strode 1-P","Oil & Gas","0402962838",15,"25S","18E","Devils Den","No"]
[7055640,"Central","Abandon","Freedom Oil Company, LLC","Strode 5","Water Disposal","0402939697",15,"25S","18E","Devils Den","No"]
[7055639,"Central","Abandon","Crimson Resource Management Corp.","Kern County Land Lease 31 71-1","Water Disposal","0402916832",1,"29S","26E","Rosedale Ranch","No"]
[7055638,"Central","Abandon","Sentinel Peak Resources California LLC","McKittrick Unit 2-98HR","Oil & Gas","0403027623",6,"30S","22E","Cymric","No"]
[7055637,"Central","Abandon","Sentinel Peak Resources California LLC","McKittrick Unit 2-I-4","Steamflood","0403026597",6,"30S","22E","Cymric","No"]
[7055636,"Central","Abandon","Sentinel Peak Resources California LLC","McKittrick I-15","Steamflood","0403029519",6,"30S","22E","Cymric","No"]
[7055635,"Central","New Drill","Aera Energy LLC","Lost Hills Two LT8150-19","Cyclic Steam","0403070163",19,"26S","21E","Lost Hills","No"]
[7055634,"Central","New Drill","Aera Energy LLC","Lost Hills C LC2216R1-13","Cyclic Steam","0403070162",13,"26S","20E","Lost Hills","No"]
[7055633,"Northern","Abandon","California Resources Production Corporation","Cattey 2-22","Dry Gas","0409521278",22,"04N","02E","Lindsey Slough Gas","No"]
[7055632,"Northern","Abandon","California Resources Production Corporation","Galli 1","Water Disposal","0407720278",21,"01S","05E","Union Island Gas","No"]
[7055630,"Central","New Drill","Chevron U.S.A. Inc.","2654W","Steamflood","0403070161",7,"30S","22E","Cymric","No"]
[7055629,"Central","New Drill","Chevron U.S.A. Inc.","2656TO","Observation","0403070160",7,"30S","22E","Cymric","No"]
[7055628,"Central","New Drill","Chevron U.S.A. Inc.","2657W","Steamflood","0403070159",7,"30S","22E","Cymric","No"]
[7055627,"Central","New Drill","Chevron U.S.A. Inc.","2852TO","Observation","0403070158",7,"30S","22E","Cymric","No"]
[7055626,"Central","New Drill","Chevron U.S.A. Inc.","2950W","Steamflood","0403070157",7,"30S","22E","Cymric","No"]
[7055625,"Central","New Drill","Chevron U.S.A. Inc.","3258W","Steamflood","0403070156",7,"30S","22E","Cymric","No"]
[7055624,"Northern","Abandon","California Resources Production Corporation","Wineman 1-22","Dry Gas","0409521203",22,"06N","02E","Maine Prairie Gas","No"]
[7055623,"Central","New Drill","Chevron U.S.A. Inc.","6936W","Oil & Gas","0403070155",7,"30S","22E","Cymric","No"]
[7055622,"Central","Abandon","Sentinel Peak Resources California LLC","A-6","Oil & Gas","0403016235",18,"11N","23W","Midway-Sunset","No"]
[7055621,"Central","Abandon","Sentinel Peak Resources California LLC","A-11","Oil & Gas","0403017449",18,"11N","23W","Midway-Sunset","No"]
[7055620,"Central","Abandon","Sentinel Peak Resources California LLC","A-25","Oil & Gas","0403030231",18,"11N","23W","Midway-Sunset","No"]
[7055619,"Central","Abandon","Sentinel Peak Resources California LLC","M&M 152","Oil & Gas","0403012844",15,"31S","22E","Midway-Sunset","No"]
[7055618,"Central","Abandon","Sentinel Peak Resources California LLC","78-12","Oil & Gas","0403020817",12,"11N","24W","Midway-Sunset","No"]
[7055617,"Central","New Drill","Crimson Resource Management Corp.","25A 14-04","Cyclic Steam","0403070154",25,"31S","22E","Midway-Sunset","No"]
[7055616,"Central","New Drill","Aera Energy LLC","Bankline et al BK5062-19","Steamflood","0403070153",19,"26S","21E","Lost Hills","No"]
[7055615,"Central","New Drill","Crimson Resource Management Corp.","25A 104-3Ai","Steamflood","0403070152",25,"31S","22E","Midway-Sunset","No"]
[7055614,"Central","New Drill","Aera Energy LLC","Lost Hills C LC2168A-13","Cyclic Steam","0403070151",13,"26S","20E","Lost Hills","No"]
[7055613,"Central","New Drill","Crimson Resource Management Corp.","25A 104-2Ai","Steamflood","0403070150",25,"31S","22E","Midway-Sunset","No"]
[7055612,"Central","New Drill","Aera Energy LLC","Lost Hills Three LH2093-13","Oil & Gas","0403070149",13,"26S","20E","Lost Hills","No"]
[7055611,"Central","New Drill","Crimson Resource Management Corp.","25A 105-5i","Steamflood","0403070148",25,"31S","22E","Midway-Sunset","No"]
[7055610,"Central","New Drill","Aera Energy LLC","60TE-29","Oil & Gas","0403070147",29,"28S","21E","Belridge, South","No"]
[7055609,"Central","New Drill","Crimson Resource Management Corp.","25A 15-04","Cyclic Steam","0403070146",25,"31S","22E","Midway-Sunset","No"]
[7055608,"Central","New Drill","Aera Energy LLC","Lost Hills Two LT8124-19","Cyclic Steam","0403070145",19,"26S","21E","Lost Hills","No"]
[7055607,"Northern","Abandon","California Resources Production Corporation","Lathrop Unit B 5","Dry Gas","0407700044",7,"01S","06E","Lathrop Gas","No"]
[7055606,"Central","New Drill","Crimson Resource Management Corp.","25A 105-4i","Steamflood","0403070144",25,"31S","22E","Midway-Sunset","No"]
[7055605,"Central","New Drill","Crimson Resource Management Corp.","25A 15-06","Cyclic Steam","0403070143",25,"31S","22E","Midway-Sunset","No"]
[7055604,"Central","New Drill","Crimson Resource Management Corp.","25A 16-06","Cyclic Steam","0403070142",25,"31S","22E","Midway-Sunset","No"]
[7055603,"Central","New Drill","Crimson Resource Management Corp.","25A 104-4i","Steamflood","0403070141",25,"31S","22E","Midway-Sunset","No"]
[7055602,"Central","New Drill","Crimson Resource Management Corp.","25A 104-5i","Steamflood","0403070140",25,"31S","22E","Midway-Sunset","No"]
[7055601,"Central","New Drill","Crimson Resource Management Corp.","25A 14-05","Cyclic Steam","0403070139",25,"31S","22E","Midway-Sunset","No"]
[7055600,"Central","New Drill","Crimson Resource Management Corp.","25A 15-05","Cyclic Steam","0403070138",25,"31S","22E","Midway-Sunset","No"]
[7055599,"Central","New Drill","Aera Energy LLC","51TE-28","Oil & Gas","0403070137",28,"28S","21E","Belridge, South","No"]
[7055598,"Northern","Abandon","California Resources Production Corporation","Union Properties 1","Dry Gas","0407720197",9,"01S","05E","Union Island Gas","No"]
[7055597,"Northern","Abandon","California Resources Production Corporation","Phillips Yamada Bros. 1","Dry Gas","0407720254",17,"01S","05E","Union Island Gas","No"]
[7055596,"Northern","Abandon","California Resources Production Corporation","Rayn-Comber Gas Unit 1","Dry Gas","0409520852",13,"06N","01E","Bunker Gas","No"]
[7055595,"Central","New Drill","Aera Energy LLC","Anderson-Fitzgerald 7701i-26S","Steamflood","0403070136",26,"29S","21E","Cymric","No"]
[7055593,"Northern","Abandon","California Resources Production Corporation","Yosuba 33-3","Dry Gas","0410120758",33,"14N","02E","Tisdale Gas","No"]
[7055592,"Northern","Abandon","California Resources Production Corporation","Creps 4","Dry Gas","0410120299",27,"14N","02E","Tisdale Gas","No"]
[7055591,"Northern","Abandon","California Resources Production Corporation","Buttes Community 1 16","Dry Gas","0410100128",4,"15N","01E","Sutter Buttes Gas","No"]
[7055590,"Northern","Rework","The Termo Company","Del Aliso 11","Oil & Gas","0403724321",29,"03N","16W","Aliso Canyon","No"]
[7055589,"Northern","Abandon","Gold Coast Holdings, LLC","Morais 16-1","Dry Gas","0407720511",16,"03N","05E","East Islands Gas","No"]
[7055588,"Northern","Abandon","Princeton Natural Gas, LLC","Piacentine 1-27","Dry Gas","0407720484",27,"03N","05E","King Island Gas","No"]
[7055587,"Northern","Re-Abandon","Department of Water Resources (DWR)","Honolulu-Barnsdall Liberty Far 3","Dry Hole","0409500374",17,"05N","03E","Any Field","No"]
[7055586,"Southern","Abandon","Sentinel Peak Resources California LLC","Stocker 109","Oil & Gas","0403726675","16","02S","14W","Inglewood","No"]
[7055585,"Southern","Re-Abandon","Sycamore Development Partners LLC","Olinda Fee Three 45","Oil & Gas","0405907032","08","03S","09W","Brea-Olinda","No"]
[7055584,"Central","Rework","California Resources Production Corporation","Section 11 DPK K7","Oil & Gas","0403065278",11,"26S","20E","Lost Hills","No"]
[7055583,"Northern","Abandon","California Resources Production Corporation","OPI-NL&F 1-8","Dry Gas","0410120180",8,"14N","02E","Tisdale Gas","No"]
[7055582,"Central","New Drill","Chevron U.S.A. Inc.",7627,"Cyclic Steam","0403070135",7,"30S","22E","Cymric","No"]
[7055581,"Central","New Drill","Chevron U.S.A. Inc.","7335W","Steamflood","0403070134",7,"30S","22E","Cymric","No"]
[7055580,"Southern","Rework","Tidelands Oil Production Co.","X 52","Oil & Gas","0403702707","02","05S","13W","Wilmington","No"]
[7055579,"Central","New Drill","Chevron U.S.A. Inc.","7530W","Steamflood","0403070133",7,"30S","22E","Cymric","No"]
[7055578,"Central","New Drill","Chevron U.S.A. Inc.",6942,"Cyclic Steam","0403070132",7,"30S","22E","Cymric","No"]
[7055577,"Northern","Abandon","California Resources Production Corporation","Henshaw 4-11","Dry Gas","0401120770",11,"15N","01W","Sycamore Gas","No"]
[7055576,"Central","Rework","Aera Energy LLC","DTR 772AU-33","Steamflood","0403057044",33,"28S","21E","Belridge, South","No"]
[7055575,"Central","Rework","Aera Energy LLC","DTR 765ZU-33","Steamflood","0403026867",33,"28S","21E","Belridge, South","No"]
[7055574,"Northern","Rework","Aera Energy LLC","Lloyd 167","Oil & Gas","0411104841",23,"03N","23W","Ventura","No"]
[7055573,"Central","Sidetrack","Petro-Lud, Inc.","Unpsecified 43","Oil & Gas","0401905211",21,"21S","15E","Jacalitos","No"]
[7055572,"Central","Abandon","Naftex Operating Company","Racetrack 6-53","Oil & Gas","0402977731",27,"29S","29E","Edison","No"]
[7055571,"Central","Rework","California Resources Production Corporation","Young Fee 15i","Steamflood","0403063359",23,"28S","27E","Kern Front","No"]
[7055570,"Central","Rework","California Resources Production Corporation","Young Fee 17i","Steamflood","0403063360",23,"28S","27E","Kern Front","No"]
[7055569,"Central","Abandon","Chevron U.S.A. Inc.","Chicago Crude 29","Oil & Gas","0402922855",30,"28S","28E","Kern River","No"]
[7055568,"Central","Abandon","Naftex Operating Company","Racetrack 8-8A","Cyclic Steam","0402978014",27,"29S","29E","Edison","No"]
[7055567,"Central","Abandon","Naftex Operating Company","Racetrack 9-7","Oil & Gas","0402948862",27,"29S","29E","Edison","No"]
[7055566,"Central","Abandon","Naftex Operating Company","Racetrack 9-4","Oil & Gas","0402944730",27,"29S","29E","Edison","No"]
[7055565,"Central","Abandon","Naftex Operating Company","Racetrack 8-7","Cyclic Steam","0402942901",27,"29S","29E","Edison","No"]
[7055564,"Central","New Drill","California Resources Production Corporation","SECTION 25 2-2","Cyclic Steam","0403070131",25,"28S","27E","Kern Front","No"]
[7055563,"Central","New Drill","California Resources Production Corporation","Section 25 3-1","Cyclic Steam","0403070130",25,"28S","27E","Kern Front","No"]
[7055562,"Central","New Drill","California Resources Production Corporation","Matthew Fee 1113LVH","Oil & Gas","0403070129",4,"27S","28E","Mount Poso","No"]
[7055561,"Central","New Drill","California Resources Production Corporation","Sarrett Fee 1118FVH","Oil & Gas","0403070128",4,"27S","28E","Mount Poso","No"]
[7055560,"Central","Abandon","Chevron U.S.A. Inc.","G-1204","Observation","0403009514",22,"31S","22E","Midway-Sunset","No"]
[7055559,"Central","New Drill","Aera Energy LLC","23TE-34","Oil & Gas","0403070127",34,"28S","21E","Belridge, South","No"]
[7055558,"Central","New Drill","Aera Energy LLC","64TE-29","Oil & Gas","0403070126",29,"28S","21E","Belridge, South","No"]
[7055557,"Central","New Drill","Aera Energy LLC","23CR-34","Oil & Gas","0403070125",34,"28S","21E","Belridge, South","No"]
[7055556,"Northern","Abandon","California Resources Production Corporation","Calcagno 1-4","Dry Gas","0407720705",33,"01N","06E","French Camp Gas","No"]
[7055555,"Central","New Drill","Aera Energy LLC","Lost Hills Two LT8125-19","Cyclic Steam","0403070124",19,"26S","21E","Lost Hills","No"]
[7055554,"Central","Abandon","Freedom Oil Company, LLC","Strode 4","Oil & Gas","0402939696",15,"25S","18E","Devils Den","No"]
[7055553,"Southern","Re-Abandon","Sycamore Development Partners LLC","Olinda Fee Three 102","Oil & Gas","0405906799","08","03S","09W","Brea-Olinda","No"]
[7055552,"Southern","Re-Abandon","Sycamore Development Partners LLC","Olinda Fee Three 34","Oil & Gas","0405907026","08","03S","09W","Brea-Olinda","No"]
[7055551,"Southern","Re-Abandon","Sycamore Development Partners LLC","Olinda Fee Three 27","Oil & Gas","0405907575","08","03S","09W","Brea-Olinda","No"]
[7055550,"Southern","Re-Abandon","Sycamore Development Partners LLC","Olinda Fee Three 22","Oil & Gas","0405907572","08","03S","09W","Brea-Olinda","No"]
[7055549,"Southern","Re-Abandon","Sycamore Development Partners LLC","Olinda Fee Three 52","Oil & Gas","0405907034","08","03S","09W","Brea-Olinda","No"]
[7055548,"Southern","Re-Abandon","Sycamore Development Partners LLC","Olinda Fee Three 109","Oil & Gas","0405920407","08","03S","09W","Brea-Olinda","No"]
[7055547,"Northern","Abandon","Crimson Resource Management Corp.","CHU Lease Sect 35 14-35","Oil & Gas","0403701195",35,"05N","17W","Castaic Hills","No"]
[7055546,"Southern","Re-Abandon","Sycamore Development Partners LLC","Olinda Fee Three 116","Oil & Gas","0405920799","08","03S","09W","Brea-Olinda","No"]
[7055544,"Northern","Rework","Aera Energy LLC","Lloyd 269","Oil & Gas","0411122356",27,"03N","23W","Ventura","No"]
[7055543,"Northern","Rework","Aera Energy LLC","Lloyd 183","Oil & Gas","0411104856",26,"03N","23W","Ventura","No"]
[7055537,"Central","Abandon","Sentinel Peak Resources California LLC","Ellis Two 132-10","Waterflood","0403001596",10,"27S","21E","Lost Hills","No"]
[7055536,"Central","New Drill","Aera Energy LLC","Lost Hills Two L4063R-19","Oil & Gas","0403070123",19,"26S","21E","Lost Hills","No"]
[7055535,"Central","Abandon","Sentinel Peak Resources California LLC","15A 92","Oil & Gas","0402905451",15,"31S","22E","Midway-Sunset","No"]
[7055534,"Central","Abandon","Sentinel Peak Resources California LLC","15A 81","Oil & Gas","0402905441",15,"31S","22E","Midway-Sunset","No"]
[7055533,"Central","Abandon","Sentinel Peak Resources California LLC","15A 541","Oil & Gas","0403043464",15,"31S","22E","Midway-Sunset","No"]
[7055532,"Central","New Drill","California Resources Elk Hills, LLC","4-5H-6D","Oil & Gas","0403070122",6,"32S","24E","Buena Vista","No"]
[7055531,"Central","New Drill","California Resources Elk Hills, LLC","616-12D","Oil & Gas","0403070121",12,"32S","24E","Buena Vista","No"]
[7055530,"Central","New Drill","California Resources Elk Hills, LLC","675H-6-8D","Oil & Gas","0403070120",8,"32S","24E","Buena Vista","No"]
[7055529,"Central","New Drill","California Resources Elk Hills, LLC","674UH-6-8D","Oil & Gas","0403070119",8,"32S","24E","Buena Vista","No"]
[7055528,"Central","New Drill","California Resources Elk Hills, LLC","658UH-36-6D","Oil & Gas","0403070118",6,"32S","24E","Buena Vista","No"]
[7055527,"Central","New Drill","California Resources Elk Hills, LLC","603H-1-6D","Oil & Gas","0403070117",6,"32S","24E","Buena Vista","No"]
[7055526,"Central","New Drill","Aera Energy LLC","Fitzgerald F6206A-26S","Cyclic Steam","0403070116",26,"29S","21E","Cymric","No"]
[7055523,"Central","New Drill","Aera Energy LLC","Fitzgerald F5112-26S","Cyclic Steam","0403070115",26,"29S","21E","Cymric","No"]
[7055514,"Central","Abandon","J.P. Oil Company, LLC","Burner 5","Dry Gas","0402916593",27,"28S","25E","Rio Bravo","No"]
[7055513,"Central","Abandon","J.P. Oil Company, LLC","Burner 2","Oil & Gas","0402916590",27,"28S","25E","Rio Bravo","No"]
[7055512,"Central","New Drill","Aera Energy LLC","Lost Hills Three LH2140R1-13","Oil & Gas","0403070114",13,"26S","20E","Lost Hills","No"]
[7055511,"Central","New Drill","Aera Energy LLC","Bankline et al BK4087R-19","Cyclic Steam","0403070113",19,"26S","21E","Lost Hills","No"]
[7055510,"Central","New Drill","Aera Energy LLC","Lost Hills Three LH4084A-13","Oil & Gas","0403070112",13,"26S","20E","Lost Hills","No"]
[7055509,"Northern","Abandon","California Resources Production Corporation","South Tisdale 1-33","Dry Gas","0410120343",33,"14N","02E","Tisdale Gas","No"]
[7055508,"Central","Abandon","Sentinel Peak Resources California LLC","Ellis Two 149-10","Oil & Gas","0403004470",10,"27S","21E","Lost Hills","No"]
[7055507,"Central","Abandon","Sentinel Peak Resources California LLC","Ellis Two 266-10","Oil & Gas","0403006008",10,"27S","21E","Lost Hills","No"]
[7055506,"Northern","Abandon","California Resources Production Corporation","OPI-McGrath 1-31","Dry Gas","0410120193",31,"15N","02E","Tisdale Gas","No"]
[7055505,"Northern","Sidetrack","Aera Energy LLC","Hambey 52-7","Oil & Gas","0405321135",7,"23S","11E","San Ardo","No"]
[7055504,"Central","Abandon","Sentinel Peak Resources California LLC","M&M 526","Oil & Gas","0403016972",15,"31S","22E","Midway-Sunset","No"]
[7055503,"Central","Abandon","Sentinel Peak Resources California LLC","Cherokee 13AC","Oil & Gas","0402939882",14,"31S","22E","Midway-Sunset","No"]
[7055502,"Central","Abandon","Sentinel Peak Resources California LLC","Bremer 37-16","Cyclic Steam","0402952896",16,"31S","22E","Midway-Sunset","No"]
[7055501,"Central","Abandon","Sentinel Peak Resources California LLC","M&M 168","Oil & Gas","0403019799",15,"31S","22E","Midway-Sunset","No"]
[7055500,"Central","Abandon","Sentinel Peak Resources California LLC","Ellis 116-9","Oil & Gas","0403001591",9,"27S","21E","Lost Hills","No"]
[7055499,"Central","Rework","Aera Energy LLC","Lost Hills Govt. 108R","Water Disposal","0403039732",18,"26S","21E","Lost Hills","No"]
[7055498,"Central","Abandon","Sentinel Peak Resources California LLC","Ellis Two 541-10","Oil & Gas","0403002934",10,"27S","21E","Lost Hills","No"]
[7055497,"Central","Abandon","Sentinel Peak Resources California LLC","Ellis Two 536-10","Oil & Gas","0403002887",10,"27S","21E","Lost Hills","No"]
[7055496,"Central","Abandon","Sentinel Peak Resources California LLC","Ellis Two 538-10","Oil & Gas","0403003136",10,"27S","21E","Lost Hills","No"]
[7055495,"Central","Abandon","Sentinel Peak Resources California LLC","Ellis 520-9","Oil & Gas","0403004610",9,"27S","21E","Lost Hills","No"]
[7055494,"Central","Abandon","Sentinel Peak Resources California LLC","M&M 108","Oil & Gas","0402955655",15,"31S","22E","Midway-Sunset","No"]
[7055493,"Central","Abandon","Sentinel Peak Resources California LLC","M&M 54R","Oil & Gas","0403021238",15,"31S","22E","Midway-Sunset","No"]
[7055492,"Central","Rework","Sentinel Peak Resources California LLC","Keene 44","Cyclic Steam","0403020569",22,"32S","23E","Midway-Sunset","No"]
[7055491,"Southern","Abandon","Synergy Oil & Gas, LLC","Bixby A 34","Oil & Gas","0403707007","03","05S","12W","Seal Beach","No"]
[7055490,"Central","Abandon","Sentinel Peak Resources California LLC","TO 1-19","Observation","0403027401",19,"11N","23W","Midway-Sunset","No"]
[7055489,"Central","Abandon","Sentinel Peak Resources California LLC","15A M135","Cyclic Steam","0403057425",15,"31S","22E","Midway-Sunset","No"]
[7055488,"Central","Abandon","Sentinel Peak Resources California LLC","15A M112","Cyclic Steam","0403035952",15,"31S","22E","Midway-Sunset","No"]
[7055487,"Central","New Drill","Aera Energy LLC","Lost Hills Three LH4086A-13","Cyclic Steam","0403070111",13,"26S","20E","Lost Hills","No"]
[7055486,"Central","New Drill","Chevron U.S.A. Inc.",7341,"Cyclic Steam","0403070110",7,"30S","22E","Cymric","No"]
[7055485,"Central","New Drill","Chevron U.S.A. Inc.",7237,"Cyclic Steam","0403070109",7,"30S","22E","Cymric","No"]
[7055484,"Central","New Drill","Chevron U.S.A. Inc.",6930,"Cyclic Steam","0403070108",7,"30S","22E","Cymric","No"]
[7055483,"Central","New Drill","Chevron U.S.A. Inc.",6328,"Cyclic Steam","0403070107",7,"30S","22E","Cymric","No"]
[7055482,"Central","New Drill","Chevron U.S.A. Inc.",3560,"Cyclic Steam","0403070106",7,"30S","22E","McKittrick","No"]
[7055481,"Central","New Drill","Chevron U.S.A. Inc.",3161,"Cyclic Steam","0403070105",7,"30S","22E","McKittrick","No"]
[7055480,"Central","New Drill","Chevron U.S.A. Inc.",3151,"Cyclic Steam","0403070104",7,"30S","22E","Cymric","No"]
[7055479,"Central","New Drill","Chevron U.S.A. Inc.",3048,"Cyclic Steam","0403070103",7,"30S","22E","Cymric","No"]
[7055478,"Central","New Drill","Chevron U.S.A. Inc.",3044,"Cyclic Steam","0403070102",7,"30S","22E","Cymric","No"]
[7055477,"Central","New Drill","Chevron U.S.A. Inc.",2958,"Cyclic Steam","0403070101",7,"30S","22E","Cymric","No"]
[7055476,"Central","New Drill","Chevron U.S.A. Inc.",2853,"Cyclic Steam","0403070100",7,"30S","22E","Cymric","No"]
[7055475,"Central","New Drill","Chevron U.S.A. Inc.",2755,"Cyclic Steam","0403070099",7,"30S","22E","Cymric","No"]
[7055474,"Central","New Drill","Chevron U.S.A. Inc.",2744,"Cyclic Steam","0403070098",7,"30S","22E","Cymric","No"]
[7055473,"Central","New Drill","Chevron U.S.A. Inc.","2329T","Cyclic Steam","0403070097",1,"30S","21E","Cymric","No"]
[7055472,"Central","New Drill","Chevron U.S.A. Inc.","2328TR","Cyclic Steam","0403070096",1,"30S","21E","Cymric","No"]
[7055471,"Central","New Drill","Chevron U.S.A. Inc.","2229TO","Observation","0403070095",1,"30S","21E","Cymric","No"]
[7055470,"Central","New Drill","Chevron U.S.A. Inc.","2227T","Cyclic Steam","0403070094",1,"30S","21E","Cymric","No"]
[7055469,"Central","New Drill","Chevron U.S.A. Inc.","2226T","Cyclic Steam","0403070093",1,"30S","21E","Cymric","No"]
[7055468,"Central","New Drill","Aera Energy LLC","Anderson Fitzgerald 7408R-26S","Cyclic Steam","0403070092",26,"29S","21E","Cymric","No"]
[7055467,"Central","New Drill","Chevron U.S.A. Inc.","Sea Breeze 4653","Cyclic Steam","0403070091",6,"30S","22E","Cymric","No"]
[7055466,"Central","New Drill","Chevron U.S.A. Inc.","Sea Breeze 4551","Cyclic Steam","0403070090",6,"30S","22E","Cymric","No"]
[7055465,"Central","New Drill","Valley Resources, LLC","Lillian 11X-10","Oil & Gas","0403070089",10,"27S","19E","Any Field - Central District","No"]
[7055461,"Central","Abandon","Freedom Oil Company, LLC","North Basin Energy 1","Oil & Gas","0402958858",1,"26S","18E","Welcome Valley","No"]
[7055460,"Central","Abandon","Freedom Oil Company, LLC","Still-Mabury 5","Oil & Gas","0402936286",1,"26S","18E","Welcome Valley","No"]
[7055459,"Northern","Abandon","California Resources Production Corporation","OPI-McClure 1-5","Dry Gas","0410120192",5,"14N","02E","Tisdale Gas","No"]
[7055458,"Central","New Drill","Aera Energy LLC","Lost Hills C LC2214R-13","Cyclic Steam","0403070088",13,"26S","20E","Lost Hills","No"]
[7055457,"Central","Abandon","Crimson Resource Management Corp.","Kern County Land Lease 31 83B-1","Oil & Gas","0402916837",1,"29S","26E","Rosedale Ranch","No"]
[7055456,"Central","Abandon","Naftex Operating Company","Racetrack 6-61","Cyclic Steam","0402977733",27,"29S","29E","Edison","No"]
[7055455,"Central","Abandon","Naftex Operating Company","Rowdett 3-1","Cyclic Steam","0402948004",27,"29S","29E","Edison","No"]
[7055454,"Central","Abandon","Naftex Operating Company","Racetrack 8-6","Oil & Gas","0402944729",27,"29S","29E","Edison","No"]
[7055453,"Central","New Drill","California Resources Production Corporation","King 1024V","Oil & Gas","0403070087",22,"27S","28E","Mount Poso","No"]
[7055452,"Central","New Drill","California Resources Production Corporation","SECTION 14 USL 7-1","Cyclic Steam","0403070086",14,"28S","27E","Kern Front","No"]
[7055451,"Central","New Drill","California Resources Production Corporation","SECTION 14 USL 7-2","Cyclic Steam","0403070085",14,"28S","27E","Kern Front","No"]
[7055450,"Northern","Rework","Southern California Gas Company","WEZU C-3B","Gas Storage","0403721697",8,"04N","16W","Honor Rancho","No"]
[7055449,"Southern","Re-Abandon","Sycamore Development Partners LLC","Olinda Fee Three 105","Oil & Gas","0405900019","08","03S","09W","Brea-Olinda","No"]
[7055448,"Southern","Re-Abandon","Sycamore Development Partners LLC","Olinda Fee Three 94","Oil & Gas","0405907035","08","03S","09W","Brea-Olinda","No"]
[7055447,"Southern","Rework","Tidelands Oil Production Co.","FW-426","Waterflood","0403702703","10","05S","13W","Wilmington","No"]
[7055446,"Central","Abandon","J.P. Oil Company, LLC","Curtis 2","Oil & Gas","0402916614",28,"28S","25E","Rio Bravo","No"]
[7055445,"Central","New Drill","Chevron U.S.A. Inc.","2226W","Steamflood","0403070084",1,"30S","21E","Cymric","No"]
[7055444,"Central","New Drill","Chevron U.S.A. Inc.","Sea Breeze 4954","Cyclic Steam","0403070083",6,"30S","22E","Cymric","No"]
[7055443,"Central","New Drill","Chevron U.S.A. Inc.","Sea Breeze 4449W","Steamflood","0403070082",6,"30S","22E","Cymric","No"]
[7055442,"Southern","Abandon","E & B Natural Resources Management Corporation","ANGUS A-12","Oil & Gas","0405921475",2,"06S","11W","Huntington Beach","No"]
[7055441,"Central","Rework","Aera Energy LLC","Young Estate S 5274A-11","Steamflood","0403037148",11,"29S","21E","Belridge, South","No"]
[7055440,"Central","New Drill","Aera Energy LLC","Bankline et al BK4037-19","Cyclic Steam","0403070081",19,"26S","21E","Lost Hills","No"]
[7055439,"Southern","Abandon","E & B Natural Resources Management Corporation","ANGUS A-18","Oil & Gas","0405921419",2,"06S","11W","Huntington Beach","No"]
[7055438,"Central","New Drill","Aera Energy LLC","Lost Hills Two LT8149-19","Cyclic Steam","0403070080",19,"26S","21E","Lost Hills","No"]
[7055437,"Central","Rework","Sentinel Peak Resources California LLC","Hopkins 905-9","Water Disposal","0403067396",9,"29S","21E","Belridge, South","No"]
[7055436,"Central","Abandon","Sentinel Peak Resources California LLC","Hopkins 526-4","Cyclic Steam","0403045847",4,"29S","21E","Belridge, South","No"]
[7055435,"Central","New Drill","Aera Energy LLC","Lost Hills C LH4155A-13","Oil & Gas","0403070079",13,"26S","20E","Lost Hills","No"]
[7055434,"Central","Abandon","Sentinel Peak Resources California LLC","Hopkins 51-9","Cyclic Steam","0403027226",9,"29S","21E","Belridge, South","No"]
[7055433,"Central","Sidetrack","Petro-Lud, Inc.","Unpsecified 65","Oil & Gas","0401905224",21,"21S","15E","Jacalitos","No"]
[7055432,"Central","Abandon","Sentinel Peak Resources California LLC","Hopkins 120R-10","Cyclic Steam","0403055724",10,"29S","21E","Belridge, South","No"]
[7055431,"Central","New Drill","Chevron U.S.A. Inc.",6531,"Cyclic Steam","0403070078",7,"30S","22E","Cymric","No"]
[7055430,"Central","New Drill","Chevron U.S.A. Inc.",7034,"Cyclic Steam","0403070077",7,"30S","22E","Cymric","No"]
[7055429,"Central","New Drill","Chevron U.S.A. Inc.",8132,"Cyclic Steam","0403070076",7,"30S","22E","Cymric","No"]
[7055428,"Northern","Rework","Aera Energy LLC","Orradre 1594R-11","Cyclic Steam","0405322579",11,"23S","10E","San Ardo","No"]
[7055427,"Central","Rework","Sentinel Peak Resources California LLC","Gamble 2-232","Cyclic Steam","0403050891",6,"30S","22E","Cymric","No"]
[7055426,"Central","Abandon","Chevron U.S.A. Inc.","G-6810","Oil & Gas","0402985725",22,"31S","22E","Midway-Sunset","No"]
[7055425,"Central","Abandon","Crimson Resource Management Corp.","25A 8-4","Oil & Gas","0402971904",25,"31S","22E","Midway-Sunset","No"]
[7055424,"Central","Abandon","Crimson Resource Management Corp.","25A 18-08","Oil & Gas","0403056199",25,"31S","22E","Midway-Sunset","No"]
[7055423,"Central","Abandon","Sentinel Peak Resources California LLC","Hopkins 102-10","Cyclic Steam","0403033037",10,"29S","21E","Belridge, South","No"]
[7055422,"Central","Abandon","Sentinel Peak Resources California LLC","Hopkins 12-9","Steamflood","0403007991",9,"29S","21E","Belridge, South","No"]
[7055421,"Central","Re-Abandon","Sentinel Peak Resources California LLC","Hopkins 27-10","Oil & Gas","0402935571",10,"29S","21E","Belridge, South","No"]
[7055420,"Central","Abandon","Sentinel Peak Resources California LLC","Hopkins 45H-10","Cyclic Steam","0403009417",10,"29S","21E","Belridge, South","No"]
[7055419,"Central","Abandon","Sentinel Peak Resources California LLC","Hopkins I-26-9","Steamflood","0403012819",9,"29S","21E","Belridge, South","No"]
[7055418,"Central","Abandon","Sentinel Peak Resources California LLC","Hopkins 46H-10","Cyclic Steam","0403009418",10,"29S","21E","Belridge, South","No"]
[7055417,"Central","Abandon","Sentinel Peak Resources California LLC","Hopkins I-15-9","Steamflood","0403012809",9,"29S","21E","Belridge, South","No"]
[7055416,"Central","Abandon","Sentinel Peak Resources California LLC","Hopkins 68H-10","Oil & Gas","0403019595",10,"29S","21E","Belridge, South","No"]
[7055415,"Central","Abandon","Freedom Oil Company, LLC","Still-Mabury 2B","Oil & Gas","0402936279",1,"26S","18E","Welcome Valley","No"]
[7055414,"Central","Abandon","Freedom Oil Company, LLC","Still-Mabury 1B","Oil & Gas","0402936278",1,"26S","18E","Welcome Valley","No"]
[7055413,"Central","Abandon","Freedom Oil Company, LLC","Still-Mabury 10","Oil & Gas","0402936291",1,"26S","18E","Welcome Valley","No"]
[7055412,"Central","Sidetrack","Berry Petroleum Company, LLC","Main Camp E-5","Oil & Gas","0403044837",24,"31S","22E","Midway-Sunset","No"]
[7055411,"Central","Abandon","Sentinel Peak Resources California LLC","Bremer I-89-16","Steamflood","0402955734",16,"31S","22E","Midway-Sunset","No"]
[7055410,"Southern","Abandon","Synergy Oil & Gas, LLC","Bixby A 49","Oil & Gas","0403707022","02","05S","12W","Seal Beach","No"]
[7055409,"Central","Abandon","Sentinel Peak Resources California LLC","Hopkins 550-10","Cyclic Steam","0403049491",10,"29S","21E","Belridge, South","No"]
[7055408,"Central","Abandon","Sentinel Peak Resources California LLC","Hopkins S-17-4","Steamflood","0403017693",4,"29S","21E","Belridge, South","No"]
[7055407,"Central","Abandon","Freedom Oil Company, LLC","Still-Mabury 4","Oil & Gas","0402936285",1,"26S","18E","Welcome Valley","No"]
[7055406,"Central","Abandon","Freedom Oil Company, LLC","Still-Mabury 4B","Oil & Gas","0402936281",1,"26S","18E","Welcome Valley","No"]
[7055405,"Central","Abandon","Sentinel Peak Resources California LLC","15A 79","Oil & Gas","0402905439",15,"31S","22E","Midway-Sunset","No"]
[7055404,"Central","Abandon","Sentinel Peak Resources California LLC","Cherokee 116C","Oil & Gas","0403012412",14,"31S","22E","Midway-Sunset","No"]
[7055403,"Central","Abandon","Sentinel Peak Resources California LLC","Freemac 27","Cyclic Steam","0402984139",7,"11N","23W","Midway-Sunset","No"]
[7055402,"Central","Sidetrack","Petro-Lud, Inc.","Unpsecified 54","Oil & Gas","0401905217",21,"21S","15E","Jacalitos","No"]
[7055401,"Northern","Abandon","CalNRG Operating, LLC","Santa Paula 66","Oil & Gas","0411103478",18,"03N","20W","South Mountain","No"]
[7055400,"Northern","Abandon","California Resources Production Corporation","Lady Raiders 1-8","Dry Gas","0401120680",8,"16N","01W","Any Field","No"]
[7055399,"Central","Abandon","Freedom Oil Company, LLC","Still-Mabury 9","Oil & Gas","0402936290",1,"26S","18E","Welcome Valley","No"]
[7055398,"Central","Re-Abandon","Sentinel Peak Resources California LLC","Hopkins 3-9","Oil & Gas","0402945638",9,"29S","21E","Belridge, South","No"]
[7055397,"Central","Abandon","Sentinel Peak Resources California LLC","Hopkins 59H-10","Cyclic Steam","0403019593",10,"29S","21E","Belridge, South","No"]
[7055396,"Central","Rework","Sentinel Peak Resources California LLC","Hopkins 901-10","Water Disposal","0403067282",10,"29S","21E","Belridge, South","No"]
[7055395,"Central","Abandon","Sentinel Peak Resources California LLC","Hopkins 403H-4","Cyclic Steam","0403010779",4,"29S","21E","Belridge, South","No"]
[7055394,"Central","Abandon","Sentinel Peak Resources California LLC","Hopkins 168H-10","Cyclic Steam","0403022055",10,"29S","21E","Belridge, South","No"]
[7055393,"Central","New Drill","Crimson Resource Management Corp.",1,"Oil & Gas","0403070075",25,"31S","22E","Midway-Sunset","No"]
[7055392,"Northern","Abandon","California Resources Production Corporation","Sutter City Community A-5","Dry Gas","0410100203",17,"15N","02E","Sutter City Gas","No"]
[7055391,"Central","Abandon","Sentinel Peak Resources California LLC","South Cerritos 24","Oil & Gas","0403029651",22,"32S","23E","Midway-Sunset","No"]
[7055390,"Central","Rework","Holmes Western Oil Corporation","Havenstrite 10","Cyclic Steam","0403068926",17,"11N","23W","Midway-Sunset","No"]
[7055389,"Central","New Drill","Aera Energy LLC","Lost Hills C LC4178R-13","Oil & Gas","0403070074",13,"26S","20E","Lost Hills","No"]
[7055388,"Central","New Drill","Aera Energy LLC","Lost Hills Two LT9149-19","Steamflood","0403070073",19,"26S","21E","Lost Hills","No"]
[7055387,"Central","New Drill","Aera Energy LLC","Lost Hills Three LH4082A-13","Oil & Gas","0403070072",13,"26S","20E","Lost Hills","No"]
[7055386,"Central","New Drill","Aera Energy LLC","Bankline et al BK4061-19","Cyclic Steam","0403070071",19,"26S","21E","Lost Hills","No"]
[7055385,"Central","Abandon","Sentinel Peak Resources California LLC","Hopkins 92-10","Cyclic Steam","0403028304",10,"29S","21E","Belridge, South","No"]
[7055384,"Central","Abandon","Freedom Oil Company, LLC","Still-Mabury 6","Oil & Gas","0402936287",1,"26S","18E","Welcome Valley","No"]
[7055383,"Central","Abandon","Freedom Oil Company, LLC","Still-Mabury 7","Oil & Gas","0402936288",1,"26S","18E","Welcome Valley","No"]
[7055382,"Central","Re-Abandon","Sentinel Peak Resources California LLC","Hopkins 2-4","Oil & Gas","0402945753",4,"29S","21E","Belridge, South","No"]
[7055381,"Central","Abandon","Sentinel Peak Resources California LLC","Hopkins 99-10","Cyclic Steam","0403028311",10,"29S","21E","Belridge, South","No"]
[7055380,"Central","Abandon","Sentinel Peak Resources California LLC","Dome 13R","Oil & Gas","0402974943",23,"31S","22E","Midway-Sunset","No"]
[7055379,"Central","Abandon","Sentinel Peak Resources California LLC","Hopkins 96R-10","Cyclic Steam","0403047444",10,"29S","21E","Belridge, South","No"]
[7055378,"Central","Abandon","Sentinel Peak Resources California LLC","Dome 216","Multi-Purpose","0403063165",23,"31S","22E","Midway-Sunset","No"]
[7055377,"Central","Abandon","Sentinel Peak Resources California LLC","16X-5","Oil & Gas","0403049804",18,"11N","23W","Midway-Sunset","No"]
[7055376,"Central","Abandon","Sentinel Peak Resources California LLC","Hopkins 94R-10","Cyclic Steam","0403050365",10,"29S","21E","Belridge, South","No"]
[7055375,"Central","Rework","Holmes Western Oil Corporation","Leutholtz A 293","Cyclic Steam","0403068434",22,"11N","23W","Midway-Sunset","No"]
[7055374,"Central","Rework","Sentinel Peak Resources California LLC","Hopkins 902-10","Water Disposal","0403067283",10,"29S","21E","Belridge, South","No"]
[7055373,"Central","Rework","Holmes Western Oil Corporation","Son-Crail 16","Oil & Gas","0403020567",8,"11N","23W","Midway-Sunset","No"]
[7055372,"Central","Rework","Holmes Western Oil Corporation","Leutholtz A 218","Cyclic Steam","0402946210",22,"11N","23W","Midway-Sunset","No"]
[7055371,"Central","Re-Abandon","Sentinel Peak Resources California LLC","Hopkins 31-10","Oil & Gas","0402935574",10,"29S","21E","Belridge, South","No"]
[7055370,"Central","Re-Abandon","Sentinel Peak Resources California LLC","Hopkins 6-9","Oil & Gas","0402974223",9,"29S","21E","Belridge, South","No"]
[7055369,"Central","Abandon","Sentinel Peak Resources California LLC","Hopkins 135H-10","Cyclic Steam","0403009419",10,"29S","21E","Belridge, South","No"]
[7055368,"Central","Abandon","Sentinel Peak Resources California LLC","McKittrick Front I-28","Steamflood","0403027313",6,"30S","22E","Cymric","No"]
[7055367,"Central","Abandon","Sentinel Peak Resources California LLC","McKittrick Front 29","Oil & Gas","0402974901",6,"30S","22E","Cymric","No"]
[7055366,"Southern","Re-Abandon","Sycamore Development Partners LLC","Olinda Two 65","Oil & Gas","0405921347","08","03S","09W","Brea-Olinda","No"]
[7055365,"Central","Abandon","Sentinel Peak Resources California LLC","B B-19","Oil & Gas","0403017756",13,"11N","24W","Midway-Sunset","No"]
[7055364,"Central","Abandon","Sentinel Peak Resources California LLC","16X-3","Oil & Gas","0403047675",18,"11N","23W","Midway-Sunset","No"]
[7055363,"Central","Abandon","Aera Energy LLC","Lockwood 23-MI","Steamflood","0402981398",16,"32S","23E","Midway-Sunset","No"]
[7055362,"Southern","Abandon","Synergy Oil & Gas, LLC","Bixby A 38","Oil & Gas","0403707011","03","05S","12W","Seal Beach","No"]
[7055361,"Northern","Rework","Southern California Gas Company","Fernando Fee 32G","Gas Storage","0403730374",27,"03N","16W","Aliso Canyon","No"]
[7055360,"Central","New Drill","Aera Energy LLC","Lost Hills Three LH4087-13","Cyclic Steam","0403070070",13,"26S","20E","Lost Hills","No"]
[7055359,"Central","New Drill","Sentinel Peak Resources California LLC","McKittrick Unit 1-70R","Cyclic Steam","0403070069",6,"30S","22E","Cymric","No"]
[7055358,"Central","New Drill","Sentinel Peak Resources California LLC","McKittrick Unit 1-117","Cyclic Steam","0403070068",6,"30S","22E","Cymric","No"]
[7055357,"Central","New Drill","Chevron U.S.A. Inc.","6733W","Oil & Gas","0403070067",7,"30S","22E","Cymric","No"]
[7055356,"Central","New Drill","Chevron U.S.A. Inc.","7131W","Oil & Gas","0403070066",7,"30S","22E","Cymric","No"]
[7055355,"Central","Abandon","Pacific Energy Resources, Inc.","Elizabeth G. Williams et al B-1","Oil & Gas","0402935535",24,"27S","23E","Semitropic","No"]
[7055354,"Central","New Drill","Aera Energy LLC","88GR-12","Oil & Gas","0403070065",12,"28S","20E","Belridge, South","No"]
[7055353,"Southern","Re-Abandon","Sycamore Development Partners LLC","Olinda Fee Three 122","Oil & Gas","0405920866","08","03S","09W","Brea-Olinda","No"]
[7055352,"Southern","Re-Abandon","Sycamore Development Partners LLC","Olinda Fee Three 47","Oil & Gas","0405907033","08","03S","09W","Brea-Olinda","No"]
[7055351,"Central","Abandon","Sentinel Peak Resources California LLC","Hopkins 45-9","Cyclic Steam","0403027220",9,"29S","21E","Belridge, South","No"]
[7055350,"Central","Re-Abandon","Sentinel Peak Resources California LLC","Hopkins 66C-10","Oil & Gas","0402935583",10,"29S","21E","Belridge, South","No"]
[7055349,"Southern","Abandon","Synergy Oil & Gas, LLC","Bixby A 4","Oil & Gas","0403706977","02","05S","12W","Seal Beach","No"]
[7055348,"Central","Abandon","Sentinel Peak Resources California LLC","Hopkins 302-10","Cyclic Steam","0403038418",10,"29S","21E","Belridge, South","No"]
[7055347,"Central","Abandon","Sentinel Peak Resources California LLC","Hopkins 34R-9","Cyclic Steam","0403055720",9,"29S","21E","Belridge, South","No"]
[7055346,"Central","Abandon","Sentinel Peak Resources California LLC","Hopkins 11-9","Cyclic Steam","0403007990",9,"29S","21E","Belridge, South","No"]
[7055345,"Central","Abandon","Sentinel Peak Resources California LLC","Hopkins 126-10","Cyclic Steam","0403040071",10,"29S","21E","Belridge, South","No"]
[7055344,"Central","Re-Abandon","Sentinel Peak Resources California LLC","Hopkins 25H-9","Oil & Gas","0403013570",9,"29S","21E","Belridge, South","No"]
[7055343,"Central","Abandon","Sentinel Peak Resources California LLC","Hopkins 121-10","Cyclic Steam","0403038350",10,"29S","21E","Belridge, South","No"]
[7055342,"Central","Abandon","Sentinel Peak Resources California LLC","Cherokee 171C","Cyclic Steam","0403023004",14,"31S","22E","Midway-Sunset","No"]
[7055341,"Central","Abandon","Sentinel Peak Resources California LLC","15A 538","Oil & Gas","0403043461",15,"31S","22E","Midway-Sunset","No"]
[7055340,"Central","Abandon","Sentinel Peak Resources California LLC","Hondo Peerless 115","Oil & Gas","0402964828",15,"31S","22E","Midway-Sunset","No"]
[7055339,"Central","Abandon","Freedom Oil Company, LLC","Still-Mabury 2","Oil & Gas","0402936283",1,"26S","18E","Welcome Valley","No"]
[7055338,"Central","Abandon","Freedom Oil Company, LLC","Still-Mabury 11","Oil & Gas","0402936292",1,"26S","18E","Welcome Valley","No"]
[7055337,"Central","Abandon","Freedom Oil Company, LLC","Still-Mabury 1","Oil & Gas","0402936282",1,"26S","18E","Welcome Valley","No"]
[7055336,"Central","Abandon","Freedom Oil Company, LLC","Still-Mabury 8","Oil & Gas","0402936289",1,"26S","18E","Welcome Valley","No"]
[7055335,"Central","Abandon","Freedom Oil Company, LLC","Still-Mabury 3","Oil & Gas","0402936284",1,"26S","18E","Welcome Valley","No"]
[7055334,"Central","Abandon","Sentinel Peak Resources California LLC","Star Fee 481L-R","Observation","0403069988",6,"30S","22E","Cymric","No"]
[7055333,"Central","New Drill","California Resources Production Corporation","Sarrett Fee 1146TVH","Oil & Gas","0403070064",4,"27S","28E","Mount Poso","No"]
[7055332,"Central","Abandon","Sentinel Peak Resources California LLC","Hopkins 29H-9","Cyclic Steam","0403015453",9,"29S","21E","Belridge, South","No"]
[7055331,"Central","Abandon","Sentinel Peak Resources California LLC","Hopkins 19-9","Cyclic Steam","0403010881",9,"29S","21E","Belridge, South","No"]
[7055330,"Central","Abandon","Sentinel Peak Resources California LLC","Hopkins 20-9","Cyclic Steam","0403010882",9,"29S","21E","Belridge, South","No"]
[7055329,"Central","Re-Abandon","Sentinel Peak Resources California LLC","Hopkins 4-9","Oil & Gas","0402970860",9,"29S","21E","Belridge, South","No"]
[7055328,"Central","Abandon","Pacific Energy Resources, Inc.","Elizabeth G. Williams et al 1","Oil & Gas","0402935532",24,"27S","23E","Semitropic","No"]
[7055327,"Northern","Abandon","California Resources Production Corporation","Sutter City Community A-4","Dry Gas","0410100202",8,"15N","02E","Sutter City Gas","No"]
[7055326,"Central","Rework","California Resources Production Corporation","Vedder-Rall 45C","Waterflood","0403022693",9,"27S","28E","Mount Poso","No"]
[7055325,"Southern","Re-Abandon","Sycamore Development Partners LLC","Olinda Fee Three 136","Oil & Gas","0405921349","08","03S","09W","Brea-Olinda","No"]
[7055324,"Southern","Re-Abandon","Sycamore Development Partners LLC","Olinda Fee Three 129","Oil & Gas","0405921332","08","03S","09W","Brea-Olinda","No"]
[7055323,"Southern","Re-Abandon","Sycamore Development Partners LLC","Olinda Two 35","Oil & Gas","0405920016","08","03S","09W","Brea-Olinda","No"]
[7055322,"Southern","Re-Abandon","Sycamore Development Partners LLC","Olinda Fee Three 43","Oil & Gas","0405907031","08","03S","09W","Brea-Olinda","No"]
[7055321,"Southern","Re-Abandon","Sycamore Development Partners LLC","Olinda Fee Three 38","Oil & Gas","0405907029","08","03S","09W","Brea-Olinda","No"]
[7055317,"Central","Rework","Holmes Western Oil Corporation","Hayley J 4","Oil & Gas","0403011967",8,"11N","23W","Midway-Sunset","No"]
[7055316,"Central","Abandon","Sentinel Peak Resources California LLC","283B-19","Oil & Gas","0403022787",19,"11N","23W","Midway-Sunset","No"]
[7055315,"Central","Abandon","Sentinel Peak Resources California LLC","Sunset EE-2","Cyclic Steam","0403064868",20,"11N","23W","Midway-Sunset","No"]
[7055314,"Central","New Drill","Chevron U.S.A. Inc.","2845W","Steamflood","0403070063",7,"30S","22E","Cymric","No"]
[7055313,"Northern","Abandon","Chevron U.S.A. Inc.","Rosenberg (NCT-1) 162","Oil & Gas","0405300906",3,"23S","10E","San Ardo","No"]
[7055312,"Northern","Abandon","Chevron U.S.A. Inc.","Rosenberg (NCT-1) 204A","Cyclic Steam","0405322089",3,"23S","10E","San Ardo","No"]
[7055311,"Northern","Abandon","Chevron U.S.A. Inc.","Rosenberg (NCT-1) 24","Oil & Gas","0405300776",3,"23S","10E","San Ardo","No"]
[7055310,"Northern","Abandon","Chevron U.S.A. Inc.","Rosenberg (NCT-1) 361A","Oil & Gas","0405322323",3,"23S","10E","San Ardo","No"]
[7055309,"Northern","Abandon","Chevron U.S.A. Inc.","Rosenberg (NCT-1) 412","Oil & Gas","0405320680",3,"23S","10E","San Ardo","No"]
[7055308,"Northern","Abandon","Chevron U.S.A. Inc.","Orradre 5813","Oil & Gas","0405322464",11,"23S","10E","San Ardo","No"]
[7055307,"Northern","Abandon","Chevron U.S.A. Inc.","Rosenberg (NCT-1) 4406","Cyclic Steam","0405322566",3,"23S","10E","San Ardo","No"]
[7055306,"Northern","Abandon","Chevron U.S.A. Inc.","Orradre T011-10","Observation","0405321611",10,"22S","10E","San Ardo","No"]
[7055305,"Central","New Drill","Aera Energy LLC","Anderson Fitzgerald 8716A-26S","Cyclic Steam","0403070062",26,"29S","21E","Cymric","No"]
[7055304,"Central","New Drill","Chevron U.S.A. Inc.","2848W","Steamflood","0403070061",7,"30S","22E","Cymric","No"]
[7055303,"Southern","Abandon","Sycamore Development Partners LLC","100 Acre 126","Oil & Gas","0405900040","08","03S","09W","Brea-Olinda","No"]
[7055302,"Central","New Drill","Chevron U.S.A. Inc.","6629W","Steamflood","0403070060",7,"30S","22E","Cymric","No"]
[7055301,"Central","New Drill","Chevron U.S.A. Inc.",7934,"Cyclic Steam","0403070059",7,"30S","22E","Cymric","No"]
[7055300,"Northern","Abandon","California Resources Production Corporation","RVGU 297","Dry Gas","0409520012",25,"04N","02E","Rio Vista Gas","No"]
[7055299,"Northern","Abandon","California Resources Production Corporation","Buttes Community 1 85","Dry Gas","0410120054",6,"15N","02E","Sutter City Gas","No"]
[7055298,"Central","New Drill","Chevron U.S.A. Inc.",3675,"Cyclic Steam","0403070058",7,"30S","22E","McKittrick","No"]
[7055297,"Central","New Drill","Chevron U.S.A. Inc.",3573,"Cyclic Steam","0403070057",7,"30S","22E","McKittrick","No"]
[7055296,"Central","New Drill","Chevron U.S.A. Inc.","2960TO","Observation","0403070056",7,"30S","22E","McKittrick","No"]
[7055295,"Northern","Abandon","California Resources Production Corporation","Foster 31-4","Dry Gas","0410120885",31,"16N","01E","Sutter Buttes Gas","No"]
[7055294,"Central","New Drill","Chevron U.S.A. Inc.","2227TO","Observation","0403070055",1,"30S","21E","Cymric","No"]
[7055293,"Southern","Abandon","Sentinel Peak Resources California LLC","Vickers 1 101","Oil & Gas","0403700238","17","02S","14W","Inglewood","No"]
[7055292,"Southern","Abandon","Sentinel Peak Resources California LLC","VRU 116","Oil & Gas","0403709086","08","02S","14W","Inglewood","No"]
[7055291,"Central","New Drill","Chevron U.S.A. Inc.","2328W","Steamflood","0403070054",1,"30S","21E","Cymric","No"]
[7055290,"Northern","Abandon","Chevron U.S.A. Inc.","Rosenberg (NCT-1) 7092","Oil & Gas","0405321521",3,"23S","10E","San Ardo","No"]
[7055289,"Northern","Abandon","Chevron U.S.A. Inc.","Rosenberg (NCT-1) 228","Oil & Gas","0405300965",3,"23S","10E","San Ardo","No"]
[7055288,"Northern","Abandon","Chevron U.S.A. Inc.","Rosenberg (NCT-1) 340A","Oil & Gas","0405322186",2,"23S","10E","San Ardo","No"]
[7055287,"Northern","Abandon","Chevron U.S.A. Inc.","Rosenberg (NCT-1) 101A","Steamflood","0405322228",3,"23S","10E","San Ardo","No"]
[7055286,"Northern","Abandon","Chevron U.S.A. Inc.","Rosenberg (NCT-1) 407","Multi-Purpose","0405320652",3,"23S","10E","San Ardo","No"]
[7055285,"Northern","Abandon","Chevron U.S.A. Inc.","Rosenberg (NCT-1) 399","Oil & Gas","0405320613",3,"23S","10E","San Ardo","No"]
[7055284,"Northern","Abandon","Chevron U.S.A. Inc.","Orradre N2-10","Observation","0405320847",10,"23S","10E","San Ardo","No"]
[7055283,"Central","Abandon","Sentinel Peak Resources California LLC",7854,"Oil & Gas","0403028680",17,"31S","22E","Midway-Sunset","No"]
[7055281,"Central","Rework","California Resources Production Corporation","Vedder 55E","Waterflood","0403021997",9,"27S","28E","Mount Poso","No"]
[7055280,"Central","New Drill","Chevron U.S.A. Inc.",3456,"Cyclic Steam","0403070053",7,"30S","22E","Cymric","No"]
[7055279,"Central","New Drill","Chevron U.S.A. Inc.","3361TO","Observation","0403070052",7,"30S","22E","McKittrick","No"]
[7055278,"Central","New Drill","Chevron U.S.A. Inc.",3365,"Cyclic Steam","0403070051",7,"30S","22E","McKittrick","No"]
[7055277,"Central","New Drill","Chevron U.S.A. Inc.",3253,"Cyclic Steam","0403070050",7,"30S","22E","Cymric","No"]
[7055276,"Central","New Drill","Chevron U.S.A. Inc.",2750,"Cyclic Steam","0403070049",7,"30S","22E","Cymric","No"]
[7055275,"Central","New Drill","Chevron U.S.A. Inc.",2649,"Cyclic Steam","0403070048",7,"30S","22E","Cymric","No"]
[7055274,"Central","New Drill","Chevron U.S.A. Inc.",2650,"Cyclic Steam","0403070047",7,"30S","22E","Cymric","No"]
[7055273,"Central","New Drill","Chevron U.S.A. Inc.","7438W","Steamflood","0403070046",7,"30S","22E","Cymric","No"]
[7055272,"Central","New Drill","Chevron U.S.A. Inc.",2647,"Cyclic Steam","0403070045",7,"30S","22E","Cymric","No"]
[7055271,"Central","New Drill","Chevron U.S.A. Inc.","Sea Breeze 4853TO","Observation","0403070044",6,"30S","22E","Cymric","No"]
[7055270,"Northern","Abandon","California Resources Production Corporation","Webb 1","Dry Gas","0410120349",12,"14N","02E","Pierce Road Gas","No"]
[7055269,"Central","New Drill","Chevron U.S.A. Inc.","Sea Breeze 4953W","Steamflood","0403070043",6,"30S","22E","Cymric","No"]
[7055268,"Northern","Abandon","California Resources Production Corporation","Rohrbach 1-36","Dry Gas","0410120645",36,"15N","01E","Any Field","No"]
[7055267,"Central","New Drill","Aera Energy LLC","Lost Hills Govt. G4324-18","Oil & Gas","0403070042",18,"26S","21E","Lost Hills","No"]
[7055266,"Central","New Drill","Chevron U.S.A. Inc.",3659,"Cyclic Steam","0403070041",7,"30S","22E","Cymric","No"]
[7055265,"Central","New Drill","Chevron U.S.A. Inc.",3257,"Cyclic Steam","0403070040",7,"30S","22E","Cymric","No"]
[7055264,"Central","New Drill","Chevron U.S.A. Inc.","2229T","Cyclic Steam","0403070039",1,"30S","21E","Cymric","No"]
[7055263,"Central","New Drill","Chevron U.S.A. Inc.","2326T","Cyclic Steam","0403070038",1,"30S","21E","Cymric","No"]
[7055262,"Central","New Drill","Chevron U.S.A. Inc.","2225W","Steamflood","0403070037",1,"30S","21E","Cymric","No"]
[7055261,"Central","New Drill","Chevron U.S.A. Inc.","2324T","Cyclic Steam","0403070036",1,"30S","21E","Cymric","No"]
[7055260,"Northern","Abandon","Chevron U.S.A. Inc.","Rosenberg (NCT-1) 339A","Oil & Gas","0405322196",35,"22S","10E","San Ardo","No"]
[7055256,"Northern","Abandon","Chevron U.S.A. Inc.","Rosenberg (NCT-1) 4602","Cyclic Steam","0405322612",34,"22S","10E","San Ardo","No"]
[7055255,"Northern","Abandon","Chevron U.S.A. Inc.","Orradre D11-11","Multi-Purpose","0405321615",11,"23S","10E","San Ardo","No"]
[7055254,"Northern","Abandon","Chevron U.S.A. Inc.","Rosenberg (NCT-1) 452","Oil & Gas","0405320739",3,"23S","10E","San Ardo","No"]
[7055253,"Central","Abandon","Sentinel Peak Resources California LLC","Hoyt 15","Cyclic Steam","0402967767",7,"11N","23W","Midway-Sunset","No"]
[7055252,"Central","Abandon","Aera Energy LLC","National USL 5-1","Oil & Gas","0402953038",35,"32S","23E","Midway-Sunset","No"]
[7055251,"Central","Abandon","Sentinel Peak Resources California LLC","Bremer MSI-61-16","Steamflood","0403042697",16,"31S","22E","Midway-Sunset","No"]
[7055250,"Central","New Drill","Chevron U.S.A. Inc.","1113T","Oil & Gas","0403070035",1,"30S","21E","Cymric","No"]
[7055249,"Central","Abandon","Crimson Resource Management Corp.","Kern County Land Lease 31 36-1","Oil & Gas","0402916815",1,"29S","26E","Rosedale Ranch","No"]
[7055248,"Central","New Drill","Chevron U.S.A. Inc.","Sea Breeze 4651W","Steamflood","0403070034",6,"30S","22E","Cymric","No"]
[7055247,"Central","New Drill","Sentinel Peak Resources California LLC","McKittrick Unit 1-22R","Cyclic Steam","0403070033",6,"30S","22E","Cymric","No"]
[7055246,"Central","New Drill","California Resources Production Corporation","SECTION 25 7-3","Cyclic Steam","0403070032",25,"28S","27E","Kern Front","No"]
[7055245,"Central","New Drill","California Resources Production Corporation",46296,"Cyclic Steam","0403070031",25,"28S","27E","Kern Front","No"]
[7055244,"Central","New Drill","California Resources Production Corporation",46236,"Cyclic Steam","0403070030",25,"28S","27E","Kern Front","No"]
[7055243,"Central","Abandon","Sentinel Peak Resources California LLC","Gamble 2-214","Oil & Gas","0402989847",6,"30S","22E","Cymric","No"]
[7055242,"Central","Abandon","Sentinel Peak Resources California LLC","Union-Hoyt 1","Oil & Gas","0402923834",6,"30S","22E","Cymric","No"]
[7055241,"Central","New Drill","Chevron U.S.A. Inc.",9546,"Cyclic Steam","0403070029",7,"30S","22E","Cymric","No"]
[7055240,"Central","New Drill","Chevron U.S.A. Inc.",9244,"Cyclic Steam","0403070028",7,"30S","22E","Cymric","No"]
[7055239,"Central","New Drill","Chevron U.S.A. Inc.",9142,"Cyclic Steam","0403070027",7,"30S","22E","Cymric","No"]
[7055238,"Central","New Drill","Chevron U.S.A. Inc.",9041,"Cyclic Steam","0403070026",7,"30S","22E","Cymric","No"]
[7055237,"Central","New Drill","Chevron U.S.A. Inc.",8839,"Cyclic Steam","0403070025",7,"30S","22E","Cymric","No"]
[7055236,"Central","New Drill","Chevron U.S.A. Inc.",8738,"Cyclic Steam","0403070024",7,"30S","22E","Cymric","No"]
[7055235,"Central","New Drill","Chevron U.S.A. Inc.",8536,"Cyclic Steam","0403070023",7,"30S","22E","Cymric","No"]
[7055234,"Central","New Drill","Chevron U.S.A. Inc.",5070,"Cyclic Steam","0403070022",8,"30S","22E","Cymric","No"]
[7055233,"Central","New Drill","Chevron U.S.A. Inc.","1925TRR","Oil & Gas","0403070021",1,"30S","21E","Cymric","No"]
[7055232,"Central","New Drill","Chevron U.S.A. Inc.","1-12B","Cyclic Steam","0403070020",31,"29S","22E","Cymric","No"]
[7055231,"Central","New Drill","Chevron U.S.A. Inc.","McKittrick Fee 3630","Cyclic Steam","0403070019",8,"30S","22E","Cymric","No"]
[7055230,"Central","New Drill","Chevron U.S.A. Inc.","McKittrick Fee 3732","Cyclic Steam","0403070018",8,"30S","22E","Cymric","No"]
[7055229,"Central","New Drill","Chevron U.S.A. Inc.","McKittrick Fee 3417","Cyclic Steam","0403070017",8,"30S","22E","Cymric","No"]
[7055228,"Central","New Drill","Chevron U.S.A. Inc.","McKittrick Fee 3419","Cyclic Steam","0403070016",8,"30S","22E","Cymric","No"]
[7055227,"Central","New Drill","Chevron U.S.A. Inc.","McKittrick Fee 3885","Cyclic Steam","0403070015",8,"30S","22E","Cymric","No"]
[7055226,"Central","New Drill","Chevron U.S.A. Inc.","McKittrick Fee 3880","Cyclic Steam","0403070014",8,"30S","22E","Cymric","No"]
[7055225,"Central","New Drill","Chevron U.S.A. Inc.",4115,"Cyclic Steam","0403070013",17,"30S","22E","McKittrick","No"]
[7055224,"Central","New Drill","Chevron U.S.A. Inc.",3912,"Cyclic Steam","0403070012",17,"30S","22E","McKittrick","No"]
[7055223,"Central","New Drill","Chevron U.S.A. Inc.",3500,"Cyclic Steam","0403070011",8,"30S","22E","McKittrick","No"]
[7055222,"Central","New Drill","Chevron U.S.A. Inc.","Lowell-Wible 49","Cyclic Steam","0403070010",8,"30S","22E","McKittrick","No"]
[7055221,"Central","New Drill","Chevron U.S.A. Inc.","1924T","Oil & Gas","0403070009",1,"30S","21E","Cymric","No"]
[7055220,"Central","New Drill","Sentinel Peak Resources California LLC","McKittrick Unit 1-112","Cyclic Steam","0403070008",6,"30S","22E","Cymric","No"]
[7055219,"Central","New Drill","Sentinel Peak Resources California LLC","McKittrick Unit 1 I-47","Steamflood","0403070007",6,"30S","22E","Cymric","No"]
[7055218,"Central","New Drill","Sentinel Peak Resources California LLC","McKittrick Unit 1-113","Cyclic Steam","0403070006",6,"30S","22E","Cymric","No"]
[7055217,"Central","New Drill","Sentinel Peak Resources California LLC","McKittrick Unit 1 I-44","Steamflood","0403070005",6,"30S","22E","Cymric","No"]
[7055216,"Central","Abandon","Aera Energy LLC","DTR 516M1-34","Oil & Gas","0403004695",34,"28S","21E","Belridge, South","No"]
[7055215,"Central","Abandon","Sentinel Peak Resources California LLC","McKittrick Front 23","Oil & Gas","0402937058",6,"30S","22E","Cymric","No"]
[7055205,"Central","Abandon","Sentinel Peak Resources California LLC","Bremer 113-16","Oil & Gas","0402960867",16,"31S","22E","Midway-Sunset","No"]
[7055204,"Central","Abandon","Sentinel Peak Resources California LLC","Bremer 142-16","Oil & Gas","0402960886",16,"31S","22E","Midway-Sunset","No"]
[7055203,"Central","Abandon","Sentinel Peak Resources California LLC","Coalinga-Monterey 11","Oil & Gas","0402952629",24,"31S","22E","Midway-Sunset","No"]
[7055202,"Central","Abandon","Sentinel Peak Resources California LLC",8952,"Oil & Gas","0403028687",17,"31S","22E","Midway-Sunset","No"]
[7055201,"Central","Abandon","Sentinel Peak Resources California LLC",9556,"Oil & Gas","0403028691",17,"31S","22E","Midway-Sunset","No"]
[7055200,"Central","Abandon","Sentinel Peak Resources California LLC",8252,"Oil & Gas","0403028681",17,"31S","22E","Midway-Sunset","No"]
[7055199,"Central","Abandon","Sentinel Peak Resources California LLC","Bremer MSI-56","Steamflood","0403040911",16,"31S","22E","Midway-Sunset","No"]
[7055193,"Northern","Abandon","CalNRG Operating, LLC","Hobson B1-1-W","Waterflood","0411101700",16,"03N","24W","Rincon","No"]
[7055192,"Northern","Abandon","California Resources Production Corporation","RVGU 127","Dry Gas","0409500235",36,"04N","02E","Rio Vista Gas","No"]
[7055191,"Central","Abandon","Sentinel Peak Resources California LLC","Bremer 236-16","Oil & Gas","0402975602",16,"31S","22E","Midway-Sunset","No"]
[7055190,"Central","Abandon","Sentinel Peak Resources California LLC","Bremer 149-16","Oil & Gas","0402960893",16,"31S","22E","Midway-Sunset","No"]
[7055189,"Central","Abandon","Sentinel Peak Resources California LLC","Bremer 100A-16","Oil & Gas","0402983627",16,"31S","22E","Midway-Sunset","No"]
[7055188,"Central","Abandon","Sentinel Peak Resources California LLC","Bremer 164-16","Oil & Gas","0402967007",16,"31S","22E","Midway-Sunset","No"]
[7055187,"Central","Abandon","Sentinel Peak Resources California LLC","Bremer 234-16","Oil & Gas","0402975600",16,"31S","22E","Midway-Sunset","No"]
[7055186,"Central","Abandon","Sentinel Peak Resources California LLC","Bremer 130-16","Oil & Gas","0402966351",16,"31S","22E","Midway-Sunset","No"]
[7055185,"Central","Abandon","Sentinel Peak Resources California LLC","McKittrick I-16","Steamflood","0403029520",6,"30S","22E","Cymric","No"]
[7055184,"Central","Abandon","Sentinel Peak Resources California LLC","Welport 110","Oil & Gas","0402983564",36,"29S","21E","Cymric","No"]
[7055183,"Northern","Abandon","California Resources Production Corporation","Rio Vista State 8-5","Dry Gas","0406720533",8,"03N","03E","Rio Vista Gas","No"]
[7055181,"Central","New Drill","Aera Energy LLC","Lost Hills Three LH4039-13","Cyclic Steam","0403070004",13,"26S","20E","Lost Hills","No"]
[7055180,"Central","New Drill","Aera Energy LLC","Lost Hills Three LH4138-13","Cyclic Steam","0403070003",13,"26S","20E","Lost Hills","No"]
[7055179,"Northern","Abandon","California Resources Production Corporation","Emigh 35-6","Dry Gas","0409521198",35,"05N","01E","Denverton Creek Gas","No"]
[7055178,"Central","Abandon","Sentinel Peak Resources California LLC","McKittrick Front 75","Oil & Gas","0402987814",6,"30S","22E","Cymric","No"]
[7055177,"Central","Abandon","Sentinel Peak Resources California LLC","McKittrick Front 99","Oil & Gas","0403002418",6,"30S","22E","Cymric","No"]
[7055176,"Central","Abandon","Sentinel Peak Resources California LLC","McKittrick Front I-12","Steamflood","0403001680",6,"30S","22E","Cymric","No"]
[7055175,"Central","Abandon","Sentinel Peak Resources California LLC","McKittrick Front I-15","Steamflood","0403002257",6,"30S","22E","Cymric","No"]
[7055174,"Central","Abandon","Sentinel Peak Resources California LLC","McKittrick Front I-1","Steamflood","0403001061",6,"30S","22E","Cymric","No"]
[7055173,"Central","Abandon","Sentinel Peak Resources California LLC","McKittrick Front I-18","Steamflood","0403002254",6,"30S","22E","Cymric","No"]
[7055172,"Central","Abandon","Sentinel Peak Resources California LLC","McKittrick Front 63","Oil & Gas","0402982423",6,"30S","22E","Cymric","No"]
[7055171,"Central","Abandon","Sentinel Peak Resources California LLC","Welport 38","Oil & Gas","0402975853",36,"29S","21E","Cymric","No"]
[7055170,"Central","Abandon","Sentinel Peak Resources California LLC","McKittrick I-5","Steamflood","0403004562",6,"30S","22E","Cymric","No"]
[7055169,"Central","Abandon","Sentinel Peak Resources California LLC","McKittrick I-7","Steamflood","0403004563",6,"30S","22E","Cymric","No"]
[7055167,"Northern","Abandon","California Resources Production Corporation","RVGU 232","Dry Gas","0409521158",24,"04N","02E","Rio Vista Gas","No"]
[7055166,"Northern","Rework","Aera Energy LLC","Edison 67","Waterflood","0411104390",21,"03N","23W","Ventura","No"]
[7055164,"Central","New Drill","California Resources Production Corporation","Young Fee 122-2","Cyclic Steam","0403070002",23,"28S","27E","Kern Front","No"]
[7055163,"Central","New Drill","California Resources Production Corporation","Section 25 11-3","Cyclic Steam","0403070001",25,"28S","27E","Kern Front","No"]
[7055162,"Central","New Drill","California Resources Production Corporation","Lehmann 49R","Cyclic Steam","0403070000",23,"28S","27E","Kern Front","No"]
[7055161,"Central","New Drill","Sentinel Peak Resources California LLC","McKittrick Unit 1 I-50","Steamflood","0403069999",6,"30S","22E","Cymric","No"]
[7055160,"Central","New Drill","Sentinel Peak Resources California LLC","McKittrick Unit 1 I-49","Steamflood","0403069998",6,"30S","22E","Cymric","No"]
[7055159,"Central","New Drill","Sentinel Peak Resources California LLC","McKittrick Unit 1 I-48","Steamflood","0403069997",6,"30S","22E","Cymric","No"]
[7055158,"Central","New Drill","Sentinel Peak Resources California LLC","McKittrick Unit 1 I-46","Steamflood","0403069996",6,"30S","22E","Cymric","No"]
[7055157,"Central","New Drill","Sentinel Peak Resources California LLC","McKittrick Unit 1 I-45","Steamflood","0403069995",6,"30S","22E","Cymric","No"]
[7055156,"Central","New Drill","Sentinel Peak Resources California LLC","McKittrick Unit 1 I-54","Steamflood","0403069994",6,"30S","22E","Cymric","No"]
[7055155,"Central","New Drill","Sentinel Peak Resources California LLC","McKittrick Unit 1-80R","Cyclic Steam","0403069993",6,"30S","22E","Cymric","No"]
[7055154,"Central","New Drill","Sentinel Peak Resources California LLC","McKittrick Unit 1 I-55","Steamflood","0403069992",6,"30S","22E","Cymric","No"]
[7055153,"Central","New Drill","Sentinel Peak Resources California LLC","McKittrick Unit 1 I-53","Steamflood","0403069991",6,"30S","22E","Cymric","No"]
[7055152,"Central","New Drill","Sentinel Peak Resources California LLC","McKittrick Unit 1 I-52","Steamflood","0403069990",6,"30S","22E","Cymric","No"]
[7055151,"Central","New Drill","Sentinel Peak Resources California LLC","McKittrick Unit 1 I-51","Steamflood","0403069989",6,"30S","22E","Cymric","No"]
[7055149,"Central","New Drill","Sentinel Peak Resources California LLC","Star Fee 481L-R","Observation","0403069988",6,"30S","22E","Cymric","No"]
[7055148,"Central","Abandon","Sentinel Peak Resources California LLC","Gamble 2-218","Oil & Gas","0403006025",6,"30S","22E","Cymric","No"]
[7055147,"Central","Abandon","Sentinel Peak Resources California LLC","Morris USL 68","Oil & Gas","0402945457",8,"30S","22E","Cymric","No"]
[7055146,"Central","Abandon","Sentinel Peak Resources California LLC","Morris USL 409","Oil & Gas","0403041537",8,"30S","22E","Cymric","No"]
[7055145,"Central","Abandon","Sentinel Peak Resources California LLC","Morris USL I-17","Oil & Gas","0403021931",8,"30S","22E","Cymric","No"]
[7055144,"Southern","Rework","Tidelands Oil Production Co.","OWC 005 I","Oil & Gas","0403727410","34","04S","13W","Wilmington","No"]
[7055143,"Southern","Rework","Tidelands Oil Production Co.","FJ-94","Waterflood","0403702143","11","05S","13W","Wilmington","No"]
[7055142,"Northern","Rework","Lodi Gas Storage, L.L.C.","Lambie 10","Gas Storage","0409520260",25,"04N","01W","Kirby Hill Gas","No"]
[7055141,"Central","Rework","Chevron U.S.A. Inc.","5-8P","Oil & Gas","0403027703",32,"26S","21E","Lost Hills","No"]
[7055140,"Central","Abandon","Sentinel Peak Resources California LLC","McKittrick Front 102","Oil & Gas","0403002421",6,"30S","22E","Cymric","No"]
[7055139,"Central","Abandon","Sentinel Peak Resources California LLC","Welport 117","Oil & Gas","0403000729",36,"29S","21E","Cymric","No"]
[7055138,"Central","New Drill","Aera Energy LLC","Lost Hills C LH4181-13","Oil & Gas","0403069987",13,"26S","20E","Lost Hills","No"]
[7055137,"Central","New Drill","Aera Energy LLC","Lost Hills C LH4133-13","Oil & Gas","0403069986",13,"26S","20E","Lost Hills","No"]
[7055136,"Central","New Drill","Aera Energy LLC","Lost Hills Three LH5038-13","Steamflood","0403069985",13,"26S","20E","Lost Hills","No"]
[7055135,"Central","Abandon","Sentinel Peak Resources California LLC","Tumbador 21","Oil & Gas","0402955498",23,"31S","22E","Midway-Sunset","No"]
[7055134,"Northern","Abandon","California Resources Production Corporation","Drouin 13","Dry Gas","0409521161",23,"04N","02E","Rio Vista Gas","No"]
[7055133,"Northern","Abandon","California Resources Production Corporation","RVGU 290","Dry Gas","0409521260",23,"04N","02E","Rio Vista Gas","No"]
[7055132,"Northern","Abandon","California Resources Production Corporation","Drouin 15","Dry Gas","0409521193",23,"04N","02E","Rio Vista Gas","No"]
[7055131,"Northern","Abandon","Chevron U.S.A. Inc.","Rosenberg (NCT-1) 325A","Oil & Gas","0405322620",3,"23S","10E","San Ardo","No"]
[7055130,"Northern","Abandon","Chevron U.S.A. Inc.","Rosenberg (NCT-1) TO43","Observation","0405322389",3,"23S","10E","San Ardo","No"]
[7055129,"Northern","Abandon","Chevron U.S.A. Inc.","Rosenberg (NCT-1) 318","Oil & Gas","0405320228",3,"23S","10E","San Ardo","No"]
[7055128,"Northern","Abandon","Chevron U.S.A. Inc.","Rosenberg (NCT-1) 343","Observation","0405320351",11,"23S","10E","San Ardo","No"]
[7055127,"Northern","Abandon","Chevron U.S.A. Inc.","Orradre TO18-10","Observation","0405321918",10,"23S","10E","San Ardo","No"]
[7055126,"Northern","Abandon","Chevron U.S.A. Inc.","Rosenberg (NCT-1) 81A","Steamflood","0405322227",3,"23S","10E","San Ardo","No"]
[7055125,"Northern","Abandon","Chevron U.S.A. Inc.","Dudley K3A","Steamflood","0405322381",3,"23S","10E","San Ardo","No"]
[7055124,"Northern","Abandon","Chevron U.S.A. Inc.","Rosenberg (NCT-1) 89B","Steamflood","0405322087",3,"23S","10E","San Ardo","No"]
[7055123,"Northern","Abandon","Chevron U.S.A. Inc.","Orradre 5712","Oil & Gas","0405322462",11,"23S","10E","San Ardo","No"]
[7055122,"Northern","Abandon","California Resources Production Corporation","RVGU 47","Dry Gas","0409500233",26,"04N","02E","Rio Vista Gas","No"]
[7055121,"Northern","Re-Abandon","California Resources Production Corporation","J.A. Serpa 4","Dry Gas","0409520439",26,"04N","02E","Rio Vista Gas","No"]
[7055120,"Northern","Abandon","California Resources Production Corporation","Drouin 8","Dry Gas","0409500207",23,"04N","02E","Rio Vista Gas","No"]
[7055119,"Northern","Abandon","Chevron U.S.A. Inc.","Rosenberg (NCT-1) 475","Steamflood","0405320793",2,"23S","10E","San Ardo","No"]
[7055118,"Northern","Abandon","California Resources Production Corporation","RVGU 179","Dry Gas","0409520309",25,"04N","02E","Rio Vista Gas","No"]
[7055117,"Northern","Abandon","Chevron U.S.A. Inc.","Rosenberg (NCT-1) 31A","Oil & Gas","0405320334",2,"23S","10E","San Ardo","No"]
[7055115,"Southern","Abandon","Crown of the Valley Oil Co.",1,"Oil & Gas","0405907151",2,"03S","10W","Brea-Olinda","No"]
[7055114,"Central","New Drill","Sentinel Peak Resources California LLC","McKittrick Unit 1-116","Cyclic Steam","0403069984",6,"30S","22E","Cymric","No"]
[7055113,"Central","New Drill","Sentinel Peak Resources California LLC","McKittrick Unit 1-115","Cyclic Steam","0403069983",6,"30S","22E","Cymric","No"]
[7055112,"Central","New Drill","Sentinel Peak Resources California LLC","McKittrick Unit 1-114","Cyclic Steam","0403069982",6,"30S","22E","Cymric","No"]
[7055111,"Central","New Drill","Sentinel Peak Resources California LLC","McKittrick Unit 1 I-43","Steamflood","0403069981",6,"30S","22E","Cymric","No"]
[7055110,"Central","New Drill","Sentinel Peak Resources California LLC","McKittrick Unit 1 I-40","Steamflood","0403069980",6,"30S","22E","Cymric","No"]
[7055109,"Central","Abandon","Sentinel Peak Resources California LLC","Tumbador 88P","Cyclic Steam","0403063449",23,"31S","22E","Midway-Sunset","No"]
[7055108,"Central","Abandon","Sentinel Peak Resources California LLC","Tumbador 7","Oil & Gas","0402941077",23,"31S","22E","Midway-Sunset","No"]
[7055107,"Central","Abandon","Sentinel Peak Resources California LLC","Tumbador 17","Oil & Gas","0402945462",23,"31S","22E","Midway-Sunset","No"]
[7055106,"Central","Abandon","Sentinel Peak Resources California LLC","Tumbador 19","Oil & Gas","0402948533",23,"31S","22E","Midway-Sunset","No"]
[7055105,"Central","Abandon","Sentinel Peak Resources California LLC","Tumbador 3A","Oil & Gas","0402955500",23,"31S","22E","Midway-Sunset","No"]
[7055104,"Central","New Drill","Aera Energy LLC","King 7-8-19","Cyclic Steam","0403069979",19,"28S","21E","Belridge, South","No"]
[7055103,"Central","Abandon","Sentinel Peak Resources California LLC","Morris USL 405","Oil & Gas","0403041536",8,"30S","22E","Cymric","No"]
[7055102,"Central","New Drill","Sentinel Peak Resources California LLC","McKittrick Unit 1-111","Cyclic Steam","0403069978",6,"30S","22E","Cymric","No"]
[7055101,"Central","New Drill","Sentinel Peak Resources California LLC","McKittrick Unit 1-110","Cyclic Steam","0403069977",6,"30S","22E","Cymric","No"]
[7055100,"Central","New Drill","Sentinel Peak Resources California LLC","McKittrick Unit 1-109","Cyclic Steam","0403069976",6,"30S","22E","Cymric","No"]
[7055099,"Central","New Drill","Sentinel Peak Resources California LLC","McKittrick Unit 1-108","Cyclic Steam","0403069975",6,"30S","22E","Cymric","No"]
[7055098,"Central","New Drill","Sentinel Peak Resources California LLC","McKittrick Fee 34R","Cyclic Steam","0403069974",6,"30S","22E","Cymric","No"]
[7055097,"Central","New Drill","Sentinel Peak Resources California LLC","McKittrick 108","Cyclic Steam","0403069973",6,"30S","22E","Cymric","No"]
[7055096,"Central","New Drill","Chevron U.S.A. Inc.",7926,"Cyclic Steam","0403069972",7,"30S","22E","Cymric","No"]
[7055095,"Central","New Drill","Chevron U.S.A. Inc.",7825,"Cyclic Steam","0403069971",7,"30S","22E","Cymric","No"]
[7055094,"Central","New Drill","Chevron U.S.A. Inc.",8030,"Cyclic Steam","0403069970",7,"30S","22E","Cymric","No"]
[7055093,"Central","New Drill","Chevron U.S.A. Inc.",8028,"Cyclic Steam","0403069969",7,"30S","22E","Cymric","No"]
[7055092,"Central","New Drill","Chevron U.S.A. Inc.",8234,"Cyclic Steam","0403069968",7,"30S","22E","Cymric","No"]
[7055091,"Central","New Drill","Chevron U.S.A. Inc.",8435,"Cyclic Steam","0403069967",7,"30S","22E","Cymric","No"]
["7053178-01","Central","Abandon","California Resources Production Corporation","T&V641","Oil & Gas","0401905941",33,"21S","17E","Kettleman North Dome","Yes"]
[7055090,"Central","New Drill","Aera Energy LLC","Lost Hills C LCTO219-13","Observation","0403069966",13,"26S","20E","Lost Hills","No"]
[7055089,"Central","New Drill","Aera Energy LLC","MD2315-13","Oil & Gas","0403069965",13,"26S","20E","Lost Hills","No"]
[7055088,"Central","Rework","Chevron U.S.A. Inc.","Zier 7-13W","Oil & Gas","0401926345",23,"20S","14E","Coalinga","No"]
[7055087,"Central","Rework","Chevron U.S.A. Inc.","Zier 6-12W","Steamflood","0401926370",23,"20S","14E","Coalinga","No"]
[7055086,"Central","Rework","Chevron U.S.A. Inc.","Zier 7-10W","Oil & Gas","0401926377",23,"20S","14E","Coalinga","No"]
[7055085,"Southern","Abandon","E & B Natural Resources Management Corporation","ANGUS A-10 I","Waterflood","0405921472",2,"06S","11W","Huntington Beach","No"]
[7055084,"Southern","Abandon","California Resources Production Corporation","State Prc 392 J-140A","Oil & Gas","0405902905",4,"06S","11W","Huntington Beach","No"]
[7055083,"Southern","Abandon","Sycamore Development Partners LLC","Olinda Two 1","Oil & Gas","0405906787","08","03S","09W","Brea-Olinda","No"]
[7055082,"Southern","Abandon","E & B Natural Resources Management Corporation","ANGUS A-13","Oil & Gas","0405921469",2,"06S","11W","Huntington Beach","No"]
[7055081,"Central","New Drill","Aera Energy LLC","Anderson Fitzgerald 5705A-26S","Oil & Gas","0403069964",26,"29S","21E","Cymric","No"]
[7055080,"Central","New Drill","Aera Energy LLC","Anderson-Fitzgerald 4701-26S","Oil & Gas","0403069963",26,"29S","21E","Cymric","No"]
[7055079,"Central","New Drill","Aera Energy LLC","Anderson Fitzgerald 7315R-26S","Oil & Gas","0403069962",26,"29S","21E","Cymric","No"]
[7055078,"Central","New Drill","Aera Energy LLC","Anderson Fitzgerald 5612-26S","Oil & Gas","0403069961",26,"29S","21E","Cymric","No"]
[7055077,"Central","New Drill","Aera Energy LLC","Anderson Fitzgerald 6416R2-26S","Oil & Gas","0403069960",26,"29S","21E","Cymric","No"]
[7055076,"Central","Rework","Sentinel Peak Resources California LLC","Tumbador 46","Oil & Gas","0402977723",23,"31S","22E","Midway-Sunset","No"]
[7055075,"Central","Re-Abandon","State Energy & Development Company","Needham-Bloemer 41","Oil & Gas","0402908781",7,"29S","29E","Kern Bluff","No"]
[7055074,"Central","Abandon","Crimson Resource Management Corp.","Kern County Land Lease 31 28A-1","Oil & Gas","0402916810",1,"29S","26E","Rosedale Ranch","No"]
[7055071,"Southern","Re-Abandon","525 16th Street, LLC","Mitchell 1","Oil & Gas","0405901539","10","06S","11W","Huntington Beach","No"]
[7055069,"Central","Abandon","Crimson Resource Management Corp.","Kern County Land Lease 31 23A-1","Oil & Gas","0402916804",1,"29S","26E","Rosedale Ranch","No"]
[7055068,"Southern","Abandon","Sycamore Development Partners LLC","Olinda Two 3","Gas Disposal","0405906789","08","03S","09W","Brea-Olinda","No"]
[7055067,"Central","New Drill","Aera Energy LLC","Ellis 1-4RR-19","Oil & Gas","0403069959",19,"28S","21E","Belridge, South","No"]
[7055066,"Southern","Abandon","Tidelands Oil Production Co.","75-W","Waterflood","0403703520","35","04S","13W","Wilmington","No"]
[7055065,"Central","New Drill","Sentinel Peak Resources California LLC","McKittrick Unit 1-106","Cyclic Steam","0403069958",6,"30S","22E","Cymric","No"]
[7055064,"Central","New Drill","Sentinel Peak Resources California LLC","McKittrick Unit 1-107","Cyclic Steam","0403069957",6,"30S","22E","Cymric","No"]
[7055063,"Northern","Rework","Southern California Gas Company","WEZU 24B","Gas Storage","0403721681",7,"04N","16W","Honor Rancho","No"]
[7055062,"Central","Abandon","California Resources Production Corporation",41,"Oil & Gas","0401905847",29,"21S","17E","Kettleman North Dome","No"]
[7055061,"Northern","Abandon","Tunnel Oil Co.","Needham 1","Oil & Gas","0403712837",13,"03N","16W","Newhall","No"]
[7055060,"Northern","Abandon","CalNRG Operating, LLC","Hobson B-13","Oil & Gas","0411101730",8,"03N","24W","Rincon","No"]
[7055059,"Central","Rework","Sentinel Peak Resources California LLC","Tumbador 31","Oil & Gas","0402974808",23,"31S","22E","Midway-Sunset","No"]
[7055058,"Central","Re-Abandon","GL Bakersfield Well Owners, LLC","Bankam 56X-4","Dry Hole","0402932229",4,"30S","28E","Any Field","No"]
[7055057,"Northern","Rework","Southern California Gas Company","Fernando Fee 32-A","Gas Storage","0403721872",27,"03N","16W","Aliso Canyon","No"]
[7055056,"Northern","Rework","Southern California Gas Company","Fernando Fee 32B","Gas Storage","0403721358",27,"03N","16W","Aliso Canyon","No"]
["7040615-01","Northern","Abandon","Southern California Gas Company","Fernando Fee 32C","Gas Storage","0403721359",27,"03N","16W","Aliso Canyon","Yes"]
[7055055,"Northern","Abandon","Berry Petroleum Company, LLC","York 22","Oil & Gas","0403711769",6,"03N","15W","Placerita","No"]
[7055054,"Northern","Abandon","Berry Petroleum Company, LLC","York 45","Oil & Gas","0403724140",6,"03N","15W","Placerita","No"]
[7055053,"Central","Abandon","Andrew L. Newkirk","Baughman 1","Oil & Gas","0402906044",8,"30S","29E","Edison","No"]
[7055052,"Southern","Abandon","E & B Natural Resources Management Corporation","ANGUS B-1","Oil & Gas","0405921479","02","06S","11W","Huntington Beach","No"]
[7055051,"Southern","Abandon","E & B Natural Resources Management Corporation","ANGUS A-17","Oil & Gas","0405921420",2,"06S","11W","Huntington Beach","No"]
[7055050,"Central","New Drill","Aera Energy LLC","Lost Hills Three LHTO118-13","Observation","0403069956",13,"26S","20E","Lost Hills","No"]
[7055049,"Central","New Drill","Aera Energy LLC","Anderson-Fitzgerald 8613A-26S","Cyclic Steam","0403069955",26,"29S","21E","Cymric","No"]
[7055048,"Central","New Drill","Aera Energy LLC","Anderson Fitzgerald 8703-26S","Cyclic Steam","0403069954",26,"29S","21E","Cymric","No"]
[7055047,"Central","New Drill","Aera Energy LLC","Anderson Fitzgerald 8709-26S","Cyclic Steam","0403069953",26,"29S","21E","Cymric","No"]
[7055046,"Central","New Drill","Aera Energy LLC","Anderson Fitzgerald 8701-26S","Cyclic Steam","0403069952",26,"29S","21E","Cymric","No"]
[7055045,"Central","New Drill","Aera Energy LLC","Anderson Fitzgerald 8704A-26S","Cyclic Steam","0403069951",26,"29S","21E","Cymric","No"]
[7055044,"Central","New Drill","Aera Energy LLC","Anderson Fitzgerald 6307R2-26S","Cyclic Steam","0403069950",26,"29S","21E","Cymric","No"]
[7055043,"Central","Abandon","Crimson Resource Management Corp.","Lewis 1L","Oil & Gas","0402908579",12,"29S","25E","Greeley","No"]
[7055042,"Northern","Abandon","California Resources Production Corporation","E. Drouin 10","Dry Gas","0409520034",25,"04N","02E","Rio Vista Gas","No"]
[7055041,"Central","New Drill","California Resources Production Corporation","King 1008V","Oil & Gas","0403069949",22,"27S","28E","Mount Poso","No"]
[7055040,"Southern","Rework","THUMS Long Beach Co.","A-245 I","Waterflood","0423723118","07","05S","12W","Wilmington","No"]
[7055039,"Southern","Rework","Sentinel Peak Resources California LLC","Baldwin 236","Oil & Gas","0403725291","01","02S","12W","Montebello","No"]
[7055038,"Southern","Rework","Sentinel Peak Resources California LLC","Baldwin 253","Waterflood","0403725362","01","02S","12W","Montebello","No"]
[7055037,"Southern","Rework","Sentinel Peak Resources California LLC","Baldwin 226","Waterflood","0403725142","01","02S","12W","Montebello","No"]
[7055036,"Southern","Rework","Sentinel Peak Resources California LLC","Baldwin 223","Waterflood","0403725136","06","02S","11W","Montebello","No"]
[7055035,"Southern","Rework","Sentinel Peak Resources California LLC","Baldwin 206","Oil & Gas","0403725095","06","02S","11W","Montebello","No"]
[7055034,"Southern","Rework","Sentinel Peak Resources California LLC","Baldwin 23","Oil & Gas","0403712374","01","02S","12W","Montebello","No"]
[7055033,"Southern","Rework","Sentinel Peak Resources California LLC","Baldwin 238","Oil & Gas","0403725292","01","02S","12W","Montebello","No"]
[7055032,"Central","New Drill","Aera Energy LLC","Anderson Fitzgerald 7610-26S","Cyclic Steam","0403069948",26,"29S","21E","Cymric","No"]
[7055031,"Central","New Drill","Aera Energy LLC","Anderson Fitzgerald 7616A-26S","Cyclic Steam","0403069947",26,"29S","21E","Cymric","No"]
[7055030,"Central","Abandon","California Resources Production Corporation",85,"Oil & Gas","0401905855",29,"21S","17E","Kettleman North Dome","No"]
[7055029,"Southern","Re-Abandon","Sycamore Development Partners LLC","Olinda Fee Three 121","Oil & Gas","0405920865","08","03S","09W","Brea-Olinda","No"]
[7055028,"Southern","Abandon","Aera Energy LLC","Olinda Two 62","Oil & Gas","0405921346",8,"03S","09W","Brea-Olinda","No"]
[7055026,"Southern","Abandon","John A. Thomas","Bolsa 12","Oil & Gas","0405903334","34","05S","11W","Huntington Beach","No"]
[7055025,"Central","Abandon","Crimson Resource Management Corp.","Cerini 6","Water Disposal","0401923119",14,"17S","19E","Van Ness Slough","No"]
[7055024,"Central","New Drill","Sentinel Peak Resources California LLC","Welport I-55","Steamflood","0403069946",36,"29S","21E","Cymric","No"]
[7055023,"Central","New Drill","Sentinel Peak Resources California LLC","Welport I-56","Steamflood","0403069945",36,"29S","21E","Cymric","No"]
[7055022,"Central","Abandon","Crimson Resource Management Corp.","Kleinhammer 2","Oil & Gas","0401923095",11,"17S","19E","Van Ness Slough","No"]
[7055021,"Central","New Drill","Sentinel Peak Resources California LLC","Welport I-54","Steamflood","0403069944",36,"29S","21E","Cymric","No"]
[7055020,"Southern","Rework","Tidelands Oil Production Co.","OWF 057","Oil & Gas","0403730289","04","05S","13W","Wilmington","No"]
[7055019,"Central","Abandon","Crimson Resource Management Corp.","I. M. Woodward, USL 49","Oil & Gas","0402958799",21,"11N","23W","Midway-Sunset","No"]
[7055018,"Northern","Abandon","Chevron U.S.A. Inc.","Dudley 11A","Observation","0405321291",3,"23S","10E","San Ardo","No"]
[7055017,"Central","New Drill","Sentinel Peak Resources California LLC","Welport I-49","Steamflood","0403069943",36,"29S","21E","Cymric","No"]
[7055016,"Central","New Drill","Sentinel Peak Resources California LLC","Welport I-51","Steamflood","0403069942",36,"29S","21E","Cymric","No"]
["7047538-01","Central","Rework","Aera Energy LLC","CMS 376A","Cyclic Steam","0401924945",31,"19S","15E","Coalinga","Yes"]
[7055015,"Central","Abandon","California Resources Production Corporation",265,"Oil & Gas","0401905857",29,"21S","17E","Kettleman North Dome","No"]
[7055014,"Central","Abandon","California Resources Production Corporation",45,"Oil & Gas","0401905927",33,"21S","17E","Kettleman North Dome","No"]
[7055013,"Central","Abandon","California Resources Production Corporation",2,"Oil & Gas","0401905917",33,"21S","17E","Kettleman North Dome","No"]
[7055012,"Northern","Abandon","California Resources Production Corporation","Emigh 34-1","Dry Gas","0409521016",34,"05N","01E","Denverton Creek Gas","No"]
[7055011,"Northern","Abandon","Berry Petroleum Company, LLC","York 13","Oil & Gas","0403711760",6,"03N","15W","Placerita","No"]
[7055010,"Northern","Abandon","Berry Petroleum Company, LLC","York 20","Oil & Gas","0403711767",6,"03N","15W","Placerita","No"]
[7055009,"Northern","Abandon","Berry Petroleum Company, LLC","York 12","Oil & Gas","0403711759",6,"03N","15W","Placerita","No"]
[7055008,"Central","New Drill","Chevron U.S.A. Inc.","2-7F","Cyclic Steam","0403069941",31,"29S","22E","Cymric","No"]
[7055007,"Central","New Drill","Chevron U.S.A. Inc.","1-7D","Cyclic Steam","0403069940",31,"29S","22E","Cymric","No"]
[7055006,"Central","New Drill","Chevron U.S.A. Inc.","11-1F","Cyclic Steam","0403069939",35,"29S","21E","Cymric","No"]
[7055005,"Central","New Drill","Chevron U.S.A. Inc.","1-8J","Oil & Gas","0403069938",31,"29S","22E","Cymric","No"]
[7055004,"Central","New Drill","Chevron U.S.A. Inc.","2-9J","Cyclic Steam","0403069937",31,"29S","22E","Cymric","No"]
[7055003,"Central","New Drill","Sentinel Peak Resources California LLC","Welport 157","Cyclic Steam","0403069936",36,"29S","21E","Cymric","No"]
[7055002,"Central","New Drill","Sentinel Peak Resources California LLC","Welport 152","Cyclic Steam","0403069935",36,"29S","21E","Cymric","No"]
[7055001,"Central","New Drill","Sentinel Peak Resources California LLC","Welport 156","Cyclic Steam","0403069934",36,"29S","21E","Cymric","No"]
[7055000,"Northern","Rework","Aera Energy LLC","Barnard 29W","Waterflood","0411104297",21,"03N","23W","Ventura","No"]
[7054999,"Northern","Rework","Aera Energy LLC","Taylor 723","Waterflood","0411121562",28,"03N","23W","Ventura","No"]
[7054998,"Northern","Rework","Aera Energy LLC","RBU Gosnell 53","Waterflood","0411121558",28,"03N","23W","Ventura","No"]
[7054997,"Central","New Drill","California Resources Production Corporation","King 1021LVH","Oil & Gas","0403069933",22,"27S","28E","Mount Poso","No"]
[7054996,"Central","New Drill","California Resources Production Corporation","Matthew Fee 1118LVH","Oil & Gas","0403069932",4,"27S","28E","Mount Poso","No"]
[7054995,"Central","New Drill","California Resources Production Corporation","King 1009V","Oil & Gas","0403069931",22,"27S","28E","Mount Poso","No"]
[7054994,"Northern","Abandon","Berry Petroleum Company, LLC","York 43","Oil & Gas","0403724135",6,"03N","16W","Placerita","No"]
[7054993,"Central","New Drill","California Resources Production Corporation","King 1023V","Oil & Gas","0403069930",22,"27S","28E","Mount Poso","No"]
[7054991,"Southern","Rework","THUMS Long Beach Co.","C-358 I","Waterflood","0423723756","16","05S","12W","Wilmington","No"]
[7054990,"Central","New Drill","Sentinel Peak Resources California LLC","Welport 151","Cyclic Steam","0403069929",36,"29S","21E","Cymric","No"]
[7054989,"Northern","Abandon","Citadel Exploration Inc.","Indian 1","Oil & Gas","0406920082",15,"18S","08E","Any Field","No"]
[7054988,"Central","Abandon","California Resources Production Corporation",27,"Oil & Gas","0403100293",35,"21S","17E","Kettleman North Dome","No"]
["7053180-01","Central","Abandon","California Resources Production Corporation",38,"Oil & Gas","0401905808",27,"21S","17E","Kettleman North Dome","Yes"]
["7048427-01","Northern","New Drill","Pacific Gas and Electric Company","Los Medanos 22-D","Gas Storage","0401320388",17,"02N","01W","Los Medanos Gas","Yes"]
[7054987,"Northern","Abandon","Berry Petroleum Company, LLC","York 11","Oil & Gas","0403711758",6,"03N","15W","Placerita","No"]
[7054986,"Northern","Abandon","Berry Petroleum Company, LLC","York 4R","Oil & Gas","0403722034",1,"03N","16W","Placerita","No"]
[7054985,"Central","Abandon","California Resources Production Corporation","V34","Oil & Gas","0403100294",35,"21S","17E","Kettleman North Dome","No"]
[7054984,"Central","Abandon","California Resources Production Corporation",36,"Oil & Gas","0403100295",35,"21S","17E","Kettleman North Dome","No"]
[7054983,"Central","Abandon","California Resources Production Corporation","V4","Oil & Gas","0403100291",35,"21S","17E","Kettleman North Dome","No"]
["7053179-01","Central","Abandon","California Resources Production Corporation",81,"Oil & Gas","0401905938",33,"21S","17E","Kettleman North Dome","Yes"]
[7054982,"Central","New Drill","Chevron U.S.A. Inc.","10-1K","Cyclic Steam","0403069928",35,"29S","21E","Cymric","No"]
[7054981,"Central","New Drill","Aera Energy LLC","Anderson-Fitzgerald 8707-26S","Cyclic Steam","0403069927",26,"29S","21E","Cymric","No"]
[7054980,"Central","New Drill","California Resources Production Corporation","Glide-Vedder 1324TVH","Oil & Gas","0403069926",15,"27S","28E","Mount Poso","No"]
[7054978,"Central","Rework","California Resources Production Corporation","Surfluh 5-14","Water Disposal","0401905490",14,"15S","17E","Raisin City","No"]
[7054977,"Central","Rework","California Resources Production Corporation","Ripperdan 82-24","Water Disposal","0401905528",24,"15S","17E","Raisin City","No"]
[7054975,"Central","Abandon","Chevron U.S.A. Inc.","35G T.O. 4","Observation","0403007557",35,"31S","22E","Midway-Sunset","No"]
[7054974,"Northern","Abandon","Berry Petroleum Company, LLC","York 3R","Oil & Gas","0403722027",6,"03N","15W","Placerita","No"]
[7054973,"Northern","Abandon","Berry Petroleum Company, LLC","York 44","Oil & Gas","0403724139",6,"03N","15W","Placerita","No"]
[7054972,"Northern","Abandon","LBTH Inc.","Vasquez 7-17","Dry Gas","0403706646",17,"04N","17W","Del Valle","No"]
[7054971,"Northern","Rework","Aera Energy LLC","V. L. & W. 85","Oil & Gas","0411104997",26,"03N","23W","Ventura","No"]
["7053574-01","Central","Abandon","California Resources Production Corporation",8,"Oil & Gas","0401905806",27,"21S","17E","Kettleman North Dome","Yes"]
[7054969,"Northern","Abandon","McDonald Ranch Partnership","Panoche 1","Oil & Gas","0406900112",24,"16S","10E","Vallecitos","No"]
[7054968,"Central","Rework","Aera Energy LLC",766,"Waterflood","0401920609",29,"19S","15E","Coalinga","No"]
["7054125-01","Central","Abandon","California Resources Production Corporation",4,"Oil & Gas","0401905918",33,"21S","17E","Kettleman North Dome","Yes"]
["7054018-01","Central","Abandon","California Resources Production Corporation",38,"Oil & Gas","0401905926",33,"21S","17E","Kettleman North Dome","Yes"]
[7054962,"Southern","Abandon","Synergy Oil & Gas, LLC","Bixby A 12","Oil & Gas","0403706985","03","05S","12W","Seal Beach","No"]
[7054961,"Northern","Abandon","Aera Energy LLC","RBU Notten 14","Waterflood","0411121041",28,"03N","23W","Ventura","No"]
[7054960,"Northern","Abandon","Shadow Wolf Energy, LLC","GPM/KPM TO12-9","Steamflood","0403724164",31,"04N","15W","Placerita","No"]
[7054959,"Northern","Abandon","Southern California Gas Company","WEZU C-2B","Gas Storage","0403721475",8,"04N","16W","Honor Rancho","No"]
[7054958,"Northern","Abandon","CalNRG Operating, LLC","Hobson BFB2 25","Oil & Gas","0411101747",17,"03N","24W","Rincon","No"]
[7054957,"Central","Rework","Holmes Western Oil Corporation",46237,"Oil & Gas","0401924069",8,"21S","15E","Jacalitos","No"]
[7054956,"Northern","Abandon","Chevron U.S.A. Inc.","Rosenberg (NCT-1) 398","Oil & Gas","0405320622",3,"23S","10E","San Ardo","No"]
[7054955,"Northern","Abandon","Pacific Coast Energy Company LP","15X 4","Oil & Gas","0411122366",13,"03N","18W","Tapo Canyon, South","No"]
[7054954,"Northern","Abandon","Pacific Coast Energy Company LP","15X 5","Oil & Gas","0411122367",13,"03N","18W","Tapo Canyon, South","No"]
[7054953,"Northern","Abandon","CalNRG Operating, LLC","King 9","Water Disposal","0411100370",1,"03N","20W","Bardsdale","No"]
[7054952,"Northern","Abandon","City of Santa Clarita","Needham 1","Water Disposal","0403712979",13,"03N","16W","Newhall","No"]
[7054951,"Northern","Abandon","Pacific Coast Energy Company LP","16X 3","Oil & Gas","0411122369",13,"03N","18W","Tapo Canyon, South","No"]
[7054950,"Northern","Abandon","California Resources Production Corporation","Balsdon 7","Dry Gas","0401120240",23,"14N","01W","Grimes, West, Gas","No"]
[7054949,"Northern","Abandon","CalNRG Operating, LLC","Hobson B-5","Oil & Gas","0411101704",17,"03N","24W","Rincon","No"]
[7054948,"Central","Rework","Aera Energy LLC",8.41e-32,"Oil & Gas","0403046360",34,"27S","21E","Any Field","No"]
[7054947,"Central","Abandon","Verjill Oil Company","Cauley 2 15-16","Oil & Gas","0402906047",16,"30S","29E","Edison","No"]
[7054946,"Central","Abandon","Howard E. Caywood, Inc.","Buick-Fee 6","Water Disposal","0402913255",32,"31S","23E","Midway-Sunset","No"]
[7054945,"Central","Abandon","Howard E. Caywood, Inc.","Coghlan-McDonald 1","Oil & Gas","0402947979",13,"31S","22E","Midway-Sunset","No"]
[7054944,"Central","Abandon","Drilling & Production Co.","SCT 76B-1","Oil & Gas","0402946474",1,"10N","19W","Tejon","No"]

{"sheet":"Summary of Approved_Autodata","index":1,"n_rows":131,"n_cols":23,"rows_kept":131,"hidden":true}
[]
[]
[{"$nulls":6},"WEEKLY SUMMARY"]
[{"$nulls":6},"Permits Issued"]
[]
[{"$nulls":6},"For Week #32 Ending Saturday, August 16th, 2025"]
[{"$nulls":6},"State of California"]
[{"$nulls":6},"Department of Conservation"]
[{"$nulls":6},"Division of Geologic Energy Management"]
[{"$nulls":6},"Bulletin No. PR4S   "]
[]
[{"$nulls":3},"DIVISION OF GEOLOGIC ENERGY MANAGEMENT",{"$nulls":3},"DEPARTMENT OF CONSERVATION"]
[{"$nulls":3},"Douglas Ito, State Oil & Gas Supervisor",{"$nulls":3},"Jennifer Lucchesi, Director"]
[]
[{"$nulls":3},"STATE OF CALIFORNIA",{"$nulls":3},"NATURAL RESOURCES AGENCY",{"$nulls":3},"Paste .csv data for ",null,"New Drill","Deepen","Sidetrack","Rework","Re-Abandon","Abandon","NOI"]
[{"$nulls":3},"Gavin Newsom, Governor",{"$nulls":3},"Wade Crowfoot, Secretary",{"$nulls":3},"the Week here -->","District1","NoticeType","OperatorName1","WellDesignation","WellTypeDesc","WellApi","SectionDesc","Township","RangeDesc","FieldName","IsSupplementaryPermit"]
[{"$nulls":11},"Total Records","Central","Abandon","Aera Energy LLC","Alberta 165-S","Oil & Gas","0402983991","14","31S","22E","Midway-Sunset","No"]
[{"$nulls":11},{"$f":"COUNTA(M17:M1048576)","v":75},"Central","Abandon","Aera Energy LLC","Alberta 321AT","Oil & Gas","0403042417","14","31S","22E","Midway-Sunset","No"]
[{"$nulls":11},"(Record Count","Central","Abandon","Aera Energy LLC","Alberta TO-1","Observation","0402984367","14","31S","22E","Midway-Sunset","No"]
[{"$nulls":11},"Checks)","Central","Abandon","Aera Energy LLC","Anderson 5","Oil & Gas","0402961931","17","31S","22E","Midway-Sunset","No"]
[{"$nulls":11},"Coastal","Central","Abandon","Aera Energy LLC","Anderson C2","Oil & Gas","0402974694","17","31S","22E","Midway-Sunset","No"]
[{"$nulls":11},{"$f":"COUNTIF(M:M,\"Coastal\")","v":0},"Central","Abandon","Aera Energy LLC","Anderson Fee 27-232","Oil & Gas","0402960187","27","29S","21E","Cymric","No"]
[{"$nulls":11},"Central","Central","Abandon","Aera Energy LLC","Finley-Hausen-I 317","Oil & Gas","0403023197","14","31S","22E","Midway-Sunset","No"]
[{"$nulls":11},{"$f":"COUNTIF(M:M,\"Central\")","v":57},"Central","Abandon","Aera Energy LLC","Finley-Hausen-I 353T","Oil & Gas","0403033653","14","31S","22E","Midway-Sunset","No"]
[{"$nulls":3},{"$f":"_xlfn.CONCAT(G4,\" \",G6)","v":"Permits Issued For Week #32 Ending Saturday, August 16th, 2025"},{"$nulls":7},"Northern","Central","Abandon","Aera Energy LLC","Finley-Johnson-Fox 421I","Steamflood","0403008674","14","31S","22E","Midway-Sunset","No"]
[{"$nulls":6},{"$f":"_xlfn.CONCAT(B29, \" District\")","v":"Central District"},{"$nulls":4},{"$f":"COUNTIF(M:M,\"Northern\")","v":16},"Central","Abandon","Aera Energy LLC","Wier 20-0L","Oil & Gas","0402947452","22","31S","22E","Midway-Sunset","No"]
[{"$nulls":11},"Southern","Central","Abandon","Berry Petroleum Company, LLC","25","Oil & Gas","0402936008","28","32S","24E","Midway-Sunset","No"]
[null,"District","Product","New Drill","Deepen","Sidetrack","Rework","Abandon","Re-Abandon","GrandTotal",null,{"$f":"COUNTIF(M:M,\"Southern\")","v":2},"Central","Abandon","California Resources Elk Hills, LLC","17H-11G","Oil & Gas","0403013190","11","31S","24E","Elk Hills","No"]
[null,"Central","Dry Gas",{"$f":"COUNTIFS($M$17:$M$1048576,$B$29,$N$17:$N$1048576,N$15,$Q$17:$Q$1048576,$C29)","v":0},{"$f":"COUNTIFS($M$17:$M$1048576,$B$29,$N$17:$N$1048576,O$15,$Q$17:$Q$1048576,$C29)","v":0},0,0,{"$f":"COUNTIFS($M$17:$M$1048576,$B$29,$N$17:$N$1048576,$S$15,$Q$17:$Q$1048576,$C29)","v":2},{"$f":"COUNTIFS($M$17:$M$1048576,$B$29,$N$17:$N$1048576,$R$15,$Q$17:$Q$1048576,$C29)","v":0},{"$f":"SUM(D29:I29)","v":2},null,"(Double Check)","Central","Abandon","California Resources Elk Hills, LLC","23SW-1G","Oil & Gas","0403010824","01","31S","24E","Elk Hills","No"]
[null,null,"Gas",{"$f":"COUNTIFS($M$17:$M$1048576,$B$29,$N$17:$N$1048576,N$15,$Q$17:$Q$1048576,$C30)","v":0},0,0,0,{"$f":"COUNTIFS($M$17:$M$1048576,$B$29,$N$17:$N$1048576,$S$15,$Q$17:$Q$1048576,$C30)","v":0},{"$f":"COUNTIFS($M$17:$M$1048576,$B$29,$N$17:$N$1048576,$R$15,$Q$17:$Q$1048576,$C30)","v":0},{"$f":"SUM(D30:I30)","v":0},null,{"$f":"SUM(L22,L24,L26,L28)-L18","v":0},"Central","Abandon","California Resources Elk Hills, LLC","352XA-31S","Oil & Gas","0403036129","31","30S","24E","Elk Hills","No"]
[null,null,"Liquefied Gas",0,{"$f":"COUNTIFS($M$17:$M$1048576,$B$58,$N$17:$N$1048576,O$15,$Q$17:$Q$1048576,$C31)","v":0},0,0,0,0,0,null,null,"Central","Abandon","California Resources Elk Hills, LLC","363X-31S","Oil & Gas","0403034037","31","30S","24E","Elk Hills","No"]
[null,null,"Oil & Gas",0,0,1,14,20,0,35,null,null,"Central","Abandon","California Resources Elk Hills, LLC","4-225-35S","Dry Gas","0402975247","35","30S","24E","Elk Hills","No"]
[null,null,"Water Source",0,0,0,0,0,0,0,null,null,"Central","Abandon","California Resources Elk Hills, LLC","4-83NW-3G","Dry Gas","0403018985","03","31S","24E","Elk Hills","No"]
[null,null,"Air Injection",0,0,0,0,0,0,0,null,null,"Central","Abandon","California Resources Elk Hills, LLC","521-16D","Oil & Gas","0402913419","16","32S","24E","Buena Vista","No"]
[null,null,"Gas Disposal",0,0,0,0,0,0,0,null,null,"Central","Abandon","California Resources Elk Hills, LLC","76NE-2G","Oil & Gas","0403012538","02","31S","24E","Elk Hills","No"]
[null,null,"Injection",0,0,0,0,0,0,0,null,null,"Central","Abandon","California Resources Elk Hills, LLC","84WD-BM-26S","Water Disposal","0403023794","26","30S","24E","Elk Hills","No"]
[null,null,"Pressure Maintenance",0,0,0,1,0,0,1,null,null,"Central","Abandon","California Resources Elk Hills, LLC","King 542-16D","Oil & Gas","0403036606","16","32S","24E","Buena Vista","No"]
[null,null,"Steamflood",{"$f":"COUNTIFS($M$17:$M$1048576,$B$29,$N$17:$N$1048576,N$15,$Q$17:$Q$1048576,$C38)","v":0},0,0,1,2,0,3,null,null,"Central","Abandon","California Resources Production Corporation","Fano 12I","Steamflood","0403037214","23","28S","27E","Kern Front","No"]
[null,null,"Water Disposal",0,0,0,4,1,0,5,null,null,"Central","Abandon","Citadel Exploration Inc.","Needham-Bloemer 1","Oil & Gas","0402908759","07","29S","29E","Kern Bluff","No"]
[null,null,"Waterflood",0,0,0,0,0,0,0,null,null,"Central","Abandon","Hunter Edison Oil Development LLC","Graham 43-9","Oil & Gas","0402973115","09","30S","29E","Edison","No"]
[null,null,"Cyclic Steam",0,0,0,9,0,0,9,null,null,"Central","Abandon","J.P. Oil Company, LLC","Pasadena Realty Co. 10","Oil & Gas","0402916643","33","28S","25E","Rio Bravo","No"]
[null,null,"Gas Storage",0,0,0,0,0,0,0,null,null,"Central","Abandon","Sentinel Peak Resources California LLC","Keene 11","Oil & Gas","0403000733","22","32S","23E","Midway-Sunset","No"]
[null,null,"Multi-Purpose",0,0,0,0,0,0,0,null,null,"Central","Rework","Aera Energy LLC","3547-35","Oil & Gas","0403053882","35","28S","21E","Belridge, South","No"]
[null,null,"Core Hole",0,0,0,0,0,{"$f":"COUNTIFS($M$17:$M$1048576,$B$29,$N$17:$N$1048576,$R$15,$Q$17:$Q$1048576,$C44)","v":0},0,null,null,"Central","Rework","Aera Energy LLC","3572-35","Oil & Gas","0403053885","35","28S","21E","Belridge, South","No"]
[null,null,"Dry Hole",0,0,0,0,0,0,0,null,null,"Central","Rework","Aera Energy LLC","3618-35","Oil & Gas","0403053890","35","28S","21E","Belridge, South","No"]
[null,null,"Observation",0,0,0,1,1,0,2,null,null,"Central","Rework","Aera Energy LLC","38MM-35","Oil & Gas","0402988701","35","28S","21E","Belridge, South","No"]
[null,null,"Unknown",0,0,0,0,0,0,0,null,null,"Central","Rework","Aera Energy LLC","57G-18","Oil & Gas","0402961116","18","28S","21E","Belridge, South","No"]
[null,null,"Gas Injection",0,0,0,0,0,0,0,null,null,"Central","Rework","Aera Energy LLC","Belridge III WD23-3","Water Disposal","0403069380","03","29S","21E","Belridge, South","No"]
[null,null,"Stratigraphic",{"$f":"COUNTIFS($M$17:$M$1048576,$B$29,$N$17:$N$1048576,N$15,$Q$17:$Q$1048576,$C49)","v":0},{"$f":"COUNTIFS($M$17:$M$1048576,$B$29,$N$17:$N$1048576,O$15,$Q$17:$Q$1048576,$C49)","v":0},{"$nulls":7},"Central","Rework","Aera Energy LLC","DTR 22K-29","Oil & Gas","0402978172","29","28S","21E","Belridge, South","No"]
[null,null,"District Total",{"$f":"SUM(D29:D49)","v":0},{"$f":"SUM(E29:E48)","v":0},{"$f":"SUM(F29:F49)","v":1},{"$f":"SUM(G29:G49)","v":30},{"$f":"SUM(H29:H49)","v":26},{"$f":"SUM(I29:I49)","v":0},{"$f":"SUM(J29:J49)","v":57},null,null,"Central","Rework","Aera Energy LLC","DTR 459-33","Observation","0402972335","33","28S","21E","Belridge, South","No"]
[{"$nulls":12},"Central","Rework","Aera Energy LLC","Heard & Painter 57","Oil & Gas","0403040891","03","11N","24W","Midway-Sunset","No"]
[{"$nulls":3},{"$f":"_xlfn.CONCAT(G4,\" \",G6)","v":"Permits Issued For Week #32 Ending Saturday, August 16th, 2025"},{"$nulls":8},"Central","Rework","Aera Energy LLC","Hopkins WD53-4","Water Disposal","0403069400","04","29S","21E","Belridge, South","No"]
[{"$nulls":6},{"$f":"_xlfn.CONCAT(B58, \" District\")","v":"Northern District"},{"$nulls":5},"Central","Rework","Aera Energy LLC","Hopkins WD62-4","Water Disposal","0403069410","04","29S","21E","Belridge, South","No"]
[{"$nulls":12},"Central","Rework","Aera Energy LLC","Hopkins WD73-4","Water Disposal","0403069408","04","29S","21E","Belridge, South","No"]
[null,null,"Product","New Drill","Deepen","Sidetrack","Rework","Abandon","Re-Abandon","GrandTotal",null,null,"Central","Rework","Berry Petroleum Company, LLC","36-22","Cyclic Steam","0403046864","02","31S","22E","Midway-Sunset","No"]
[null,null,"Dry Gas",null,{"$f":"COUNTIFS($M$17:$M$1048576,$B$58,$N$17:$N$1048576,O$15,$Q$17:$Q$1048576,$C56)","v":0},0,0,{"$f":"COUNTIFS($M$17:$M$1048576,$B$58,$N$17:$N$1048576,$S$15,$Q$17:$Q$1048576,$C56)","v":1},{"$f":"COUNTIFS($M$17:$M$1048576,$B$58,$N$17:$N$1048576,R$15,$Q$17:$Q$1048576,$C56)","v":0},{"$f":"SUM(D56:I56)","v":1},null,null,"Central","Rework","Berry Petroleum Company, LLC","40-18","Cyclic Steam","0403046845","02","31S","22E","Midway-Sunset","No"]
[null,null,"Gas",null,0,0,0,0,0,{"$f":"SUM(D57:I57)","v":0},null,null,"Central","Rework","Berry Petroleum Company, LLC","41-19","Cyclic Steam","0403046848","02","31S","22E","Midway-Sunset","No"]
[null,"Northern","Liquefied Gas",null,0,0,0,0,0,0,null,null,"Central","Rework","Berry Petroleum Company, LLC","50-31","Cyclic Steam","0403063827","02","31S","22E","Midway-Sunset","No"]
[null,null,"Oil & Gas",null,0,0,1,1,0,2,null,null,"Central","Rework","Berry Petroleum Company, LLC","50-32","Cyclic Steam","0403053022","02","31S","22E","Midway-Sunset","No"]
[null,null,"Water Source",null,0,0,0,0,0,0,null,null,"Central","Rework","Berry Petroleum Company, LLC","50-33","Cyclic Steam","0403063828","02","31S","22E","Midway-Sunset","No"]
[null,null,"Air Injection",null,0,0,0,0,0,0,null,null,"Central","Rework","Berry Petroleum Company, LLC","50-34","Cyclic Steam","0403052988","02","31S","22E","Midway-Sunset","No"]
[null,null,"Gas Disposal",null,0,0,0,0,0,0,null,null,"Central","Rework","California Resources Elk Hills, LLC","16A-35S","Pressure Maintenance","0403036173","35","30S","24E","Elk Hills","No"]
[null,null,"Injection",null,0,0,0,0,0,0,null,null,"Central","Rework","California Resources Elk Hills, LLC","2-2B-36B","Oil & Gas","0403046698","36","31S","23E","Buena Vista","No"]
[null,null,"Pressure Maintenance",null,0,0,0,0,0,0,null,null,"Central","Rework","California Resources Elk Hills, LLC","3-3H-25B","Oil & Gas","0403067758","25","31S","23E","Buena Vista","No"]
[null,null,"Steamflood",null,0,0,0,1,0,1,null,null,"Central","Rework","California Resources Elk Hills, LLC","365-35B","Oil & Gas","0402909593","35","31S","23E","Buena Vista","No"]
[null,null,"Water Disposal",null,0,0,0,1,0,1,null,null,"Central","Rework","California Resources Elk Hills, LLC","371-19R","Oil & Gas","0403046244","19","30S","23E","Elk Hills","No"]
[null,null,"Waterflood",null,0,0,0,0,0,0,null,null,"Central","Rework","California Resources Elk Hills, LLC","65A-6D","Oil & Gas","0402986347","06","32S","24E","Buena Vista","No"]
[null,null,"Cyclic Steam",null,0,0,0,9,0,9,null,null,"Central","Rework","California Resources Production Corporation","Lehnhardt 116","Cyclic Steam","0403062545","14","28S","27E","Kern Front","No"]
[null,null,"Gas Storage",null,0,0,0,0,0,0,null,null,"Central","Rework","Chevron U.S.A. Inc.","Green & Whittier 556","Steamflood","0402973304","31","28S","28E","Kern River","No"]
[null,null,"Multi-Purpose",null,0,0,0,0,0,0,null,null,"Central","Rework","Holmes Western Oil Corporation","5-1","Oil & Gas","0401925485","08","21S","15E","Jacalitos","No"]
[null,null,"Core Hole",null,0,0,0,0,0,0,null,null,"Central","Rework","Holmes Western Oil Corporation","5-2","Oil & Gas","0401925486","08","21S","15E","Jacalitos","No"]
[null,null,"Dry Hole",null,{"$f":"COUNTIFS($M$17:$M$1048576,$B$58,$N$17:$N$1048576,O$15,$Q$17:$Q$1048576,$C72)","v":0},0,0,0,0,0,null,null,"Central","Rework","Holmes Western Oil Corporation","Western Minerals NCT-2 158","Cyclic Steam","0403046600","17","11N","23W","Midway-Sunset","No"]
[null,null,"Observation",null,0,0,0,2,0,2,null,null,"Central","Sidetrack","Aera Energy LLC","22-8","Oil & Gas","0401922159","15","19S","15E","Coalinga","No"]
[null,null,"Unknown",null,0,0,0,0,0,0,null,null,"Northern","Abandon","California Resources Production Corporation","Sonol Securities 11","Dry Gas","0407720724","10","01S","05E","Union Island Gas","No"]
[null,null,"Gas Injection",null,0,0,0,0,0,0,null,null,"Northern","Abandon","Chevron U.S.A. Inc.","Orradre TO53","Observation","0405322553","10","23S","10E","San Ardo","No"]
[null,null,"Stratigraphic",null,{"$f":"COUNTIFS($M$17:$M$1048576,$B$58,$N$17:$N$1048576,O$15,$Q$17:$Q$1048576,$C76)","v":0},{"$f":"COUNTIFS($M$17:$M$1048576,$B$58,$N$17:$N$1048576,P$15,$Q$17:$Q$1048576,$C76)","v":0},{"$f":"COUNTIFS($M$17:$M$1048576,$B$58,$N$17:$N$1048576,Q$15,$Q$17:$Q$1048576,$C76)","v":0},{"$f":"COUNTIFS($M$17:$M$1048576,$B$58,$N$17:$N$1048576,$S$15,$Q$17:$Q$1048576,$C76)","v":0},{"$f":"COUNTIFS($M$17:$M$1048576,$B$58,$N$17:$N$1048576,R$15,$Q$17:$Q$1048576,$C76)","v":0},0,null,null,"Northern","Abandon","Chevron U.S.A. Inc.","Orradre TO55","Observation","0405322607","03","23S","10E","San Ardo","No"]
[null,null,"District Total",{"$f":"SUM(D56:D75)","v":0},0,0,1,15,0,16,null,null,"Northern","Abandon","Chevron U.S.A. Inc.","Rosenberg (NCT-1) 105A","Steamflood","0405320192","03","23S","10E","San Ardo","No"]
[{"$nulls":12},"Northern","Abandon","Peak Operator LLC","Lenox Ranch 109H","Cyclic Steam","0411121972","06","01N","21W","Oxnard","No"]
[{"$nulls":3},{"$f":"_xlfn.CONCAT(G4,\" \",G6)","v":"Permits Issued For Week #32 Ending Saturday, August 16th, 2025"},{"$nulls":8},"Northern","Abandon","Peak Operator LLC","Peak-HBH 3HU","Cyclic Steam","0411122384","06","01N","21W","Oxnard","No"]
[{"$nulls":6},{"$f":"_xlfn.CONCAT(B87, \" District\")","v":"Southern District"},{"$nulls":5},"Northern","Abandon","Peak Operator LLC","Peak-HBH 4HU","Cyclic Steam","0411122385","06","01N","21W","Oxnard","No"]
[{"$nulls":12},"Northern","Abandon","Peak Operator LLC","Peak-HBH 6H","Cyclic Steam","0411122391","06","01N","21W","Oxnard","No"]
[null,null,"Product","New Drill","Deepen","Sidetrack","Rework","Abandon","Re-Abandon","GrandTotal",null,null,"Northern","Abandon","Peak Operator LLC","Peak-HBH 6H-C1","Cyclic Steam","0411122200","06","01N","21W","Oxnard","No"]
[null,null,"Dry Gas",{"$f":"COUNTIFS($M$17:$M$1048576,$B$87,$N$17:$N$1048576,N$15,$Q$17:$Q$1048576,$C83)","v":0},{"$f":"COUNTIFS($M$17:$M$1048576,$B$87,$N$17:$N$1048576,O$15,$Q$17:$Q$1048576,$C83)","v":0},0,0,{"$f":"COUNTIFS($M$17:$M$1048576,$B$87,$N$17:$N$1048576,S$15,$Q$17:$Q$1048576,$C83)","v":0},{"$f":"COUNTIFS($M$17:$M$1048576,$B$87,$N$17:$N$1048576,$R$15,$Q$17:$Q$1048576,$C83)","v":0},{"$f":"SUM(D83:I83)","v":0},null,null,"Northern","Abandon","Peak Operator LLC","Peak-HBH 6HU","Cyclic Steam","0411122393","06","01N","21W","Oxnard","No"]
[null,null,"Gas",{"$f":"COUNTIFS($M$17:$M$1048576,$B$87,$N$17:$N$1048576,N$15,$Q$17:$Q$1048576,$C84)","v":0},0,0,0,{"$f":"COUNTIFS($M$17:$M$1048576,$B$87,$N$17:$N$1048576,S$15,$Q$17:$Q$1048576,$C84)","v":0},{"$f":"COUNTIFS($M$17:$M$1048576,$B$87,$N$17:$N$1048576,$R$15,$Q$17:$Q$1048576,$C84)","v":0},{"$f":"SUM(D84:I84)","v":0},null,null,"Northern","Abandon","Peak Operator LLC","Scholle-Livingston 1","Water Disposal","0411101335","05","01N","21W","Oxnard","No"]
[null,null,"Liquefied Gas",0,0,0,0,0,0,0,null,null,"Northern","Abandon","Peak Operator LLC","Scholle-Livingston 2","Oil & Gas","0411101336","06","01N","21W","Oxnard","No"]
[null,null,"Oil & Gas",0,0,0,0,2,0,2,null,null,"Northern","Abandon","Peak Operator LLC","Vacca Tar Sand Unit 2-1","Cyclic Steam","0411101047","06","01N","21W","Oxnard","No"]
[null,"Southern","Water Source",0,0,0,0,0,0,0,null,null,"Northern","Abandon","Peak Operator LLC","Vacca Tar Sand Unit 3-63","Cyclic Steam",411121383,6,"01N","21W","Oxnard","No"]
[null,null,"Air Injection",0,0,0,0,0,0,0,null,null,"Northern","Abandon","Peak Operator LLC","Vacca Tar Sand Unit 4-2","Cyclic Steam",411101042,6,"01N","21W","Oxnard","No"]
[null,null,"Gas Disposal",0,0,0,0,0,0,0,null,null,"Northern","Rework","LBTH Inc.","Vasquez 12-17","Oil & Gas",403706651,17,"04N","17W","Del Valle","No"]
[null,null,"Injection",0,0,0,0,0,0,0,null,null,"Southern","Abandon","Brea Canon Oil Co.","Joughin Unit 9-F","Oil & Gas",403718003,19,"04S","13W","Torrance","No"]
[null,null,"Pressure Maintenance",0,0,0,0,0,0,0,null,null,"Southern","Abandon","Synergy Oil & Gas, LLC","Bixby A 59","Oil & Gas",403707131,2,"05S","12W","Seal Beach","No"]
[null,null,"Steamflood",0,0,0,0,0,0,0]
[null,null,"Water Disposal",0,0,0,0,0,0,0]
[null,null,"Waterflood",0,0,0,0,0,0,0]
[null,null,"Cyclic Steam",0,0,0,0,0,0,0]
[null,null,"Gas Storage",0,0,0,0,0,0,0]
[null,null,"Multi-Purpose",0,0,0,0,0,0,0]
[null,null,"Core Hole",0,0,0,0,0,0,0]
[null,null,"Dry Hole",0,0,0,0,0,0,0]
[null,null,"Observation",0,0,0,0,0,0,0]
[null,null,"Unknown",0,0,0,0,0,0,0]
[null,null,"Gas Injection",0,0,0,0,0,0,0]
[null,null,"Stratigraphic"]
[null,null,"District Total",{"$f":"SUM(D83:D102)","v":0},0,0,0,2,0,2]
[]
[{"$nulls":3},{"$f":"_xlfn.CONCAT(G4,\" \",G6)","v":"Permits Issued For Week #32 Ending Saturday, August 16th, 2025"}]
[{"$nulls":6},"All Districts"]
[]
[null,null,"Product","New Drill","Deepen","Sidetrack","Rework","Abandon","Re-Abandon","GrandTotal"]
[null,null,"Dry Gas",{"$f":"COUNTIFS($N$17:$N$1048576,N$15,$Q$17:$Q$1048576,$C110)","v":0},0,0,0,{"$f":"COUNTIFS($N$17:$N$1048576,$S$15,$Q$17:$Q$1048576,$C110)","v":3},{"$f":"COUNTIFS($N$17:$N$1048576,R$15,$Q$17:$Q$1048576,$C110)","v":0},{"$f":"SUM(D110:I110)","v":3}]
[null,null,"Gas",0,0,0,0,{"$f":"COUNTIFS($N$17:$N$1048576,$S$15,$Q$17:$Q$1048576,$C111)","v":0},{"$f":"COUNTIFS($N$17:$N$1048576,R$15,$Q$17:$Q$1048576,$C111)","v":0},{"$f":"SUM(D111:I111)","v":0}]
[null,null,"Liquefied Gas",0,0,0,0,0,0,0]
[null,null,"Oil & Gas",0,0,1,15,23,{"$f":"COUNTIFS($N$17:$N$1048576,R$15,$Q$17:$Q$1048576,$C113)","v":0},39]
[null,null,"Water Source",0,0,0,0,0,{"$f":"COUNTIFS($N$17:$N$1048576,R$15,$Q$17:$Q$1048576,$C114)","v":0},0]
[null,null,"Air Injection",{"$f":"COUNTIFS($N$17:$N$1048576,N$15,$Q$17:$Q$1048576,$C115)","v":0},0,0,0,0,0,0]
[null,"Grand Totals","Gas Disposal",0,0,0,0,0,0,0]
[null,null,"Injection",0,0,0,{"$f":"COUNTIFS($N$17:$N$1048576,Q$15,$Q$17:$Q$1048576,$C117)","v":0},0,0,0]
[null,null,"Pressure Maintenance",0,0,0,1,0,0,1]
[null,null,"Steamflood",0,0,{"$f":"COUNTIFS($N$17:$N$1048576,P$15,$Q$17:$Q$1048576,$C119)","v":0},1,3,0,4]
[null,null,"Water Disposal",0,0,0,4,2,0,6]
[null,null,"Waterflood",0,0,0,0,0,0,0]
[null,null,"Cyclic Steam",0,0,0,9,9,0,18]
[null,null,"Gas Storage",0,0,0,0,0,0,0]
[null,null,"Multi-Purpose",0,0,0,0,0,0,0]
[null,null,"Core Hole",0,0,0,0,0,0,0]
[null,null,"Dry Hole",0,0,0,0,0,0,0]
[null,null,"Observation",0,0,0,1,3,0,4]
[null,null,"Unknown",0,0,0,0,0,0,0]
[null,null,"Gas Injection",0,0,0,0,0,0,0]
[null,null,"Stratigraphic"]
[null,null,"All District Total",{"$f":"SUM(D110:D129)","v":0},0,1,31,43,0,{"$f":"SUM(J110:J130)","v":75}]

{"sheet":"Summary of Submitted _Autodata","index":2,"n_rows":130,"n_cols":34,"rows_kept":130,"hidden":true}
[]
[]
[{"$nulls":6},"WEEKLY SUMMARY"]
[{"$nulls":6},"Notice of Intention (NOI) Submitted"]
[]
[{"$nulls":6},{"$f":"#REF!","v":{"$error":"#REF!"}}]
[{"$nulls":6},"State of California"]
[{"$nulls":6},"Department of Conservation"]
[{"$nulls":6},"Division of Geologic Energy Management"]
[{"$nulls":6},"Bulletin No. PR4S   "]
[]
[{"$nulls":3},"DIVISION OF GEOLOGIC ENERGY MANAGEMENT",{"$nulls":3},"DEPARTMENT OF CONSERVATION"]
[{"$nulls":3},"Douglas Ito, State Oil & Gas Supervisor",{"$nulls":3},"Jennifer Lucchesi, Director"]
[]
[{"$nulls":3},"STATE OF CALIFORNIA",{"$nulls":3},"NATURAL RESOURCES AGENCY",{"$nulls":3},"Paste .csv data for ",null,"NOI - New Drill","NOI - Deepen","NOI - Sidetrack","NOI - Rework","NOI - Abandon","NOI - Re-Abandon","NOI",{"$nulls":5},"NOI - New Drill","NOI - Deepen","NOI - Sidetrack","NOI - Rework","NOI - Abandon","NOI - Re-Abandon","NOI"]
[{"$nulls":3},"Gavin Newsom, Governor",{"$nulls":3},"Wade Crowfoot, Secretary",{"$nulls":3},"the Week here -->","District","NoticeType","OperatorName","WellDesignation","WellTypeDesc","WellApi","SectionDesc","Township","Range","FieldName","IsSupplementaryNotice","SubmittedDate","District1","NoticeType","OperatorName1","WellDesignation","WellTypeDesc","WellApi","SectionDesc","Township","RangeDesc","FieldName"]
[{"$nulls":11},"Total Records","Central","NOI - Abandon","Aera Energy LLC","Lockwood 23-MI","Steamflood","0402981398","16","32S","23E","Midway-Sunset","No","2026-03-12T15:51:42.553","Central","NOI - Abandon","Aera Energy LLC","Anchor 80-15I","Steamflood","0403024326","02","11N","24W","Midway-Sunset"]
[{"$nulls":11},{"$f":"COUNTA(M17:M1048576)","v":75},"Central","NOI - Abandon","Holmes Western Oil Corporation","Sunset 2-8K","Oil & Gas","0402937420","08","11N","23W","Midway-Sunset","No","2026-03-11T17:53:46.727","Central","NOI - Abandon","Aera Energy LLC","Buena Fe 104","Oil & Gas","0402945496","22","32S","23E","Midway-Sunset"]
[{"$nulls":11},"(Record Count","Central","NOI - Abandon","Naftex Operating Company","Racetrack 10-4R","Oil & Gas","0403039348","27","29S","29E","Edison","No","2026-03-13T22:21:27.623","Central","NOI - Abandon","Aera Energy LLC","Buena Fe 114","Oil & Gas","0402947710","22","32S","23E","Midway-Sunset"]
[{"$nulls":11},"Checks)","Central","NOI - Abandon","Naftex Operating Company","Racetrack 8-6","Oil & Gas","0402944729","27","29S","29E","Edison","No","2026-03-12T22:35:40.407","Central","NOI - Abandon","Aera Energy LLC","Buena Fe 127","Oil & Gas","0402948208","22","32S","23E","Midway-Sunset"]
[{"$nulls":11},"Coastal","Central","NOI - Abandon","Naftex Operating Company","Racetrack 8-7","Oil & Gas","0402942901","27","29S","29E","Edison","No","2026-03-13T21:20:12.563","Central","NOI - Abandon","Aera Energy LLC","Buena Fe 130","Oil & Gas","0402948359","22","32S","23E","Midway-Sunset"]
[{"$nulls":11},{"$f":"COUNTIF(M:M,\"Coastal\")","v":0},"Central","NOI - Abandon","Naftex Operating Company","Racetrack 9-4","Oil & Gas","0402944730","27","29S","29E","Edison","No","2026-03-13T21:49:49.383","Central","NOI - Abandon","Aera Energy LLC","Buena Fe 131","Oil & Gas","0402949174","22","32S","23E","Midway-Sunset"]
[{"$nulls":11},"Central","Central","NOI - Abandon","Naftex Operating Company","Rowdett 3-1","Oil & Gas","0402948004","27","29S","29E","Edison","No","2026-03-13T23:02:05.113","Central","NOI - Abandon","Aera Energy LLC","Buena Fe 134","Oil & Gas","0402949177","22","32S","23E","Midway-Sunset"]
[{"$nulls":3},{"$f":"_xlfn.CONCAT(G4,\" \",G6)","v":{"$error":"#REF!"}},{"$nulls":7},{"$f":"COUNTIF(M:M,\"Central\")","v":49},"Central","NOI - Abandon","Sentinel Peak Resources California LLC","Bremer 37-16","Cyclic Steam","0402952896","16","31S","22E","Midway-Sunset","No","2026-03-12T18:01:14.943","Central","NOI - Abandon","Aera Energy LLC","Buena Fe 141","Oil & Gas","0402951536","22","32S","23E","Midway-Sunset"]
[{"$nulls":6},{"$f":"_xlfn.CONCAT(B32, \" District\")","v":"Central District"},{"$nulls":4},"Northern","Central","NOI - Abandon","Sentinel Peak Resources California LLC","Bremer I-89-16","Steamflood","0402955734","16","31S","22E","Midway-Sunset","No","2026-03-12T17:58:55.590","Central","NOI - Abandon","Aera Energy LLC","Buena Fe 143","Oil & Gas","0402953736","22","32S","23E","Midway-Sunset"]
[{"$nulls":11},{"$f":"COUNTIF(M:M,\"Northern\")","v":7},"Central","NOI - Abandon","Sentinel Peak Resources California LLC","Cherokee 116C","Oil & Gas","0403012412","14","31S","22E","Midway-Sunset","No","2026-03-09T23:07:45.213","Central","NOI - Abandon","Aera Energy LLC","Buena Fe 167","Oil & Gas","0402966682","22","32S","23E","Midway-Sunset"]
[null,null,"Product","New Drill","Deepen","Sidetrack","Rework","Abandon","Re-Abandon","GrandTotal",null,"Southern","Central","NOI - Abandon","Sentinel Peak Resources California LLC","Cherokee 13AC","Oil & Gas","0402939882","14","31S","22E","Midway-Sunset","No","2026-03-09T23:24:22.423","Central","NOI - Abandon","Aera Energy LLC","Buena Fe 176","Oil & Gas","0402975143","22","32S","23E","Midway-Sunset"]
[null,null,"Dry Gas",{"$f":"COUNTIFS($M$17:$M$1048576,$B$32,$N$17:$N$1048576,N$15,$Q$17:$Q$1048576,$C28)","v":0},{"$f":"COUNTIFS($Y$17:$Y$1048576,$B$32,$Z$17:$Z$1048576,O$15,$AC$17:$AC$1048576,$C28)","v":0},{"$f":"COUNTIFS($Y$17:$Y$1048576,$B$32,$Z$17:$Z$1048576,P$15,$AC$17:$AC$1048576,$C28)","v":0},0,0,0,{"$f":"SUM(D28:I28)","v":0},null,{"$f":"COUNTIF(M:M,\"Southern\")","v":19},"Central","NOI - Abandon","Sentinel Peak Resources California LLC","Dome 13R","Oil & Gas","0402974943","23","31S","22E","Midway-Sunset","No","2026-03-09T23:27:36.843","Central","NOI - Abandon","Aera Energy LLC","Buena Fe 177","Oil & Gas","0402975144","22","32S","23E","Midway-Sunset"]
[null,null,"Gas",0,{"$f":"COUNTIFS($M$17:$M$1048576,$B$32,$N$17:$N$1048576,O$15,$Q$17:$Q$1048576,$C29)","v":0},{"$f":"COUNTIFS($M$17:$M$1048576,$B$32,$N$17:$N$1048576,P$15,$Q$17:$Q$1048576,$C29)","v":0},{"$f":"COUNTIFS($M$17:$M$1048576,$B$32,$N$17:$N$1048576,Q$15,$Q$17:$Q$1048576,$C29)","v":0},{"$f":"COUNTIFS($M$17:$M$1048576,$B$32,$N$17:$N$1048576,R$15,$Q$17:$Q$1048576,$C29)","v":0},{"$f":"COUNTIFS($M$17:$M$1048576,$B$32,$N$17:$N$1048576,S$15,$Q$17:$Q$1048576,$C29)","v":0},{"$f":"SUM(D29:I29)","v":0},null,"(Double Check)","Central","NOI - Abandon","Sentinel Peak Resources California LLC","Dome 216","Multi-Purpose","0403063165","23","31S","22E","Midway-Sunset","No","2026-03-09T23:30:30.507","Central","NOI - Abandon","Aera Energy LLC","Buena Fe 187","Oil & Gas","0402983588","22","32S","23E","Midway-Sunset"]
[null,null,"Liquefied Gas",0,0,0,0,0,0,0,null,{"$f":"SUM(L22,L24,L26,L28)-L18","v":0},"Central","NOI - Abandon","Sentinel Peak Resources California LLC","Ellis 116-9","Oil & Gas","0403001591","09","27S","21E","Lost Hills","No","2026-03-13T16:31:36.763","Central","NOI - Abandon","Aera Energy LLC","Buena Fe 193","Oil & Gas","0403006147","22","32S","23E","Midway-Sunset"]
[null,"District","Oil & Gas",6,0,4,2,13,0,{"$f":"SUM(D31:I31)","v":25},null,null,"Central","NOI - Abandon","Sentinel Peak Resources California LLC","Ellis 520-9","Oil & Gas","0403004610","09","27S","21E","Lost Hills","No","2026-03-13T16:44:05.357","Central","NOI - Abandon","Aera Energy LLC","Buena Fe 304","Steamflood","0403006149","22","32S","23E","Midway-Sunset"]
[null,"Central","Water Source",0,0,0,0,0,0,0,null,null,"Central","NOI - Abandon","Sentinel Peak Resources California LLC","Ellis 520-9","Oil & Gas","0403004610","09","27S","21E","Lost Hills","No","2026-03-13T16:55:29.633","Central","NOI - Abandon","Aera Energy LLC","Buena Fe 83","Oil & Gas","0402943124","22","32S","23E","Midway-Sunset"]
[null,null,"Air Injection",0,0,0,0,0,0,0,null,null,"Central","NOI - Abandon","Sentinel Peak Resources California LLC","Freemac 27","Cyclic Steam","0402984139","07","11N","23W","Midway-Sunset","No","2026-03-12T16:25:44.333","Central","NOI - Abandon","Aera Energy LLC","H. & D. 7-8PR","Oil & Gas","0402974290","16","31S","22E","Midway-Sunset"]
[null,null,"Gas Disposal",0,0,0,0,0,0,0,null,null,"Central","NOI - Abandon","Sentinel Peak Resources California LLC","Hopkins 51-9","Cyclic Steam","0403027226","09","29S","21E","Belridge, South","No","2026-03-09T17:56:41.467","Central","NOI - Abandon","Aera Energy LLC","H. & D. 8-8P","Oil & Gas","0402970555","16","31S","22E","Midway-Sunset"]
[null,null,"Injection",0,0,0,0,0,0,0,null,null,"Central","NOI - Abandon","Sentinel Peak Resources California LLC","Hopkins 526-4","Cyclic Steam","0403045847","04","29S","21E","Belridge, South","No","2026-03-09T18:02:05.027","Central","NOI - Abandon","Aera Energy LLC","Lockwood 31-H","Oil & Gas","0402964421","16","32S","23E","Midway-Sunset"]
[null,null,"Pressure Maintenance",0,0,0,0,0,0,0,null,null,"Central","NOI - Abandon","Sentinel Peak Resources California LLC","Hopkins 550-10","Cyclic Steam","0403049491","10","29S","21E","Belridge, South","No","2026-03-09T17:59:25.807","Central","NOI - Abandon","California Resources Elk Hills, LLC","383-31R","Oil & Gas","0403052678","31","30S","23E","Asphalto"]
[null,null,"Steamflood",3,0,0,1,2,0,6,null,null,"Central","NOI - Abandon","Sentinel Peak Resources California LLC","Hopkins 92-10","Cyclic Steam","0403028304","10","29S","21E","Belridge, South","No","2026-03-09T17:54:21.173","Central","NOI - Abandon","California Resources Elk Hills, LLC","47WD-25Z","Injection","0403056986","25","30S","22E","Asphalto"]
[null,null,"Water Disposal",0,0,0,2,0,0,2,null,null,"Central","NOI - Abandon","Sentinel Peak Resources California LLC","Hopkins 94R-10","Cyclic Steam","0403050365","10","29S","21E","Belridge, South","No","2026-03-09T17:51:56.810","Central","NOI - Abandon","California Resources Production Corporation","346","Oil & Gas","0403039640","23","28S","27E","Kern Front"]
[null,null,"Waterflood",0,0,0,0,0,0,0,null,null,"Central","NOI - Abandon","Sentinel Peak Resources California LLC","Hopkins 96R-10","Cyclic Steam","0403047444","10","29S","21E","Belridge, South","No","2026-03-09T17:48:37.587","Central","NOI - Abandon","California Resources Production Corporation","45R","Oil & Gas","0403038527","23","28S","27E","Kern Front"]
[null,null,"Cyclic Steam",4,0,0,1,9,0,14,null,null,"Central","NOI - Abandon","Sentinel Peak Resources California LLC","Hopkins 99-10","Cyclic Steam","0403028311","10","29S","21E","Belridge, South","No","2026-03-09T17:45:26.657","Central","NOI - Abandon","California Resources Production Corporation","AB-5I","Steamflood","0403026347","11","28S","27E","Kern Front"]
[null,null,"Gas Storage",0,0,0,0,0,0,0,null,null,"Central","NOI - Abandon","Sentinel Peak Resources California LLC","South Cerritos 24","Oil & Gas","0403029651","22","32S","23E","Midway-Sunset","No","2026-03-10T19:28:29.113","Central","NOI - Abandon","California Resources Production Corporation","D-2","Oil & Gas","0402961468","11","28S","27E","Kern Front"]
[null,null,"Multi-Purpose",0,0,0,0,1,0,1,null,null,"Central","NOI - New Drill","Aera Energy LLC","Anderson-Fitzgerald 7701L-26S","Steamflood","N/A","26","29S","21E","Cymric","No","2026-03-13T20:51:02.400","Central","NOI - Abandon","California Resources Production Corporation","Fano 13AI","Steamflood","0403043265","23","28S","27E","Kern Front"]
[null,null,"Core Hole",0,0,0,0,0,0,0,null,null,"Central","NOI - New Drill","Aera Energy LLC","Anderson-Fitzgerald F6114-26S","Cyclic Steam","N/A","26","29S","21E","Cymric","No","2026-03-13T21:04:53.740","Central","NOI - Abandon","California Resources Production Corporation","Grady 19","Cyclic Steam","0403045890","26","28S","27E","Kern Front"]
[null,null,"Dry Hole",0,0,0,0,0,0,0,null,null,"Central","NOI - New Drill","Aera Energy LLC","Lost Hills C LC2214R-13","Oil & Gas","N/A","13","26S","20E","Lost Hills","No","2026-03-11T22:59:16.967","Central","NOI - Abandon","California Resources Production Corporation","Yowlumne Unit B 18X-33","Oil & Gas","0402956769","33","12N","22W","Yowlumne"]
[null,null,"Observation",0,0,0,1,0,0,1,null,null,"Central","NOI - New Drill","Aera Energy LLC","Lost Hills C LH4155A-13","Oil & Gas","N/A","13","26S","20E","Lost Hills","No","2026-03-10T17:53:17.473","Central","NOI - Abandon","California Resources Production Corporation","Yowlumne Unit B 23-10","Oil & Gas","0402953492","10","11N","22W","Yowlumne"]
[null,null,"Unknown",0,0,0,0,0,0,0,null,null,"Central","NOI - New Drill","Aera Energy LLC","Lost Hills Three LH2140R1-13","Oil & Gas","N/A","13","26S","20E","Lost Hills","No","2026-03-10T20:47:31.247","Central","NOI - Abandon","California Resources Production Corporation","Yowlumne Unit B 27X-3","Oil & Gas","0402989110","03","11N","22W","Yowlumne"]
[null,null,"Gas Injection",0,0,0,0,0,0,0,null,null,"Central","NOI - New Drill","Aera Energy LLC","Lost Hills Three LH4083-13","Oil & Gas","N/A","13","26S","20E","Lost Hills","No","2026-03-10T20:40:02.127","Central","NOI - Abandon","California Resources Production Corporation","Yowlumne Unit B 43X-10","Oil & Gas","0402959570","10","11N","22W","Yowlumne"]
[null,null,"Stratigraphic",0,0,0,0,0,0,{"$f":"SUM(D48:I48)","v":0},null,null,"Central","NOI - New Drill","Aera Energy LLC","Lost Hills Three LH4086A-13","Cyclic Steam","N/A","13","26S","20E","Lost Hills","No","2026-03-10T18:41:39.703","Central","NOI - Abandon","California Resources Production Corporation","Yowlumne Unit B 46X-34","Oil & Gas","0402976808","34","12N","22W","Yowlumne"]
[null,null,"District Total",{"$f":"SUM(D28:D48)","v":13},{"$f":"SUM(E28:E48)","v":0},4,7,25,0,{"$f":"SUM(J28:J48)","v":49},null,null,"Central","NOI - New Drill","Aera Energy LLC","Lost Hills Two LT8149-19","Cyclic Steam","N/A","19","26S","21E","Lost Hills","No","2026-03-10T14:56:43.963","Central","NOI - Abandon","CMO, Inc.","Bacon 35-472","Oil & Gas","0403052002","35","28S","20E","Chico-Martinez"]
[{"$nulls":12},"Central","NOI - New Drill","California Resources Production Corporation","King 1024V","Oil & Gas","N/A","22","27S","28E","Mount Poso","No","2026-03-09T21:01:40.997","Central","NOI - Abandon","CMO, Inc.","Mitchel 35-20","Oil & Gas","0402945178","35","28S","20E","Chico-Martinez"]
[{"$nulls":3},{"$f":"_xlfn.CONCAT(G4,\" \",G6)","v":{"$error":"#REF!"}},{"$nulls":8},"Central","NOI - New Drill","Crimson Resource Management Corp.","25A 104-2Ai","Steamflood","N/A","25","31S","22E","Midway-Sunset","No","2026-03-08T17:26:36.310","Central","NOI - Abandon","CMO, Inc.","Mitchel 35-37A","Oil & Gas","0402952821","35","28S","20E","Chico-Martinez"]
[{"$nulls":6},{"$f":"_xlfn.CONCAT(B61, \" District\")","v":"Northern District"},{"$nulls":5},"Central","NOI - New Drill","Crimson Resource Management Corp.","25A 104-3Ai","Steamflood","N/A","25","31S","22E","Midway-Sunset","No","2026-03-08T17:09:02.763","Central","NOI - Abandon","CMO, Inc.","Mitchel 35-38","Oil & Gas","0402951787","35","28S","20E","Chico-Martinez"]
[{"$nulls":12},"Central","NOI - New Drill","Crimson Resource Management Corp.","25A 15-05","Cyclic Steam","N/A","25","31S","22E","Midway-Sunset","No","2026-03-09T17:33:03.187","Central","NOI - Abandon","CMO, Inc.","Mitchel 35-6","Oil & Gas","0402941956","35","28S","20E","Chico-Martinez"]
[null,null,"Product","New Drill","Deepen","Sidetrack","Rework","Abandon","Re-Abandon","GrandTotal",null,null,"Central","NOI - New Drill","Valley Resources, LLC","789892 Black Stone Minerals Company, LP 11X-10","Oil & Gas","N/A","10","27S","19E","Any Field - Central District","No","2026-03-11T18:22:41.907","Central","NOI - Abandon","E & B Natural Resources Management Corporation","Caribou-Record 47","Oil & Gas","0402960279","08","28S","27E","Poso Creek"]
[null,null,"Dry Gas",{"$f":"COUNTIFS($M$17:$M$1048576,$B$61,$N$17:$N$1048576,N$15,$Q$17:$Q$1048576,$C55)","v":0},{"$f":"COUNTIFS($M$17:$M$1048576,$B$61,$N$17:$N$1048576,O$15,$Q$17:$Q$1048576,$C55)","v":0},{"$f":"COUNTIFS($M$17:$M$1048576,$B$61,$N$17:$N$1048576,P$15,$Q$17:$Q$1048576,$C55)","v":0},{"$f":"COUNTIFS($M$17:$M$1048576,$B$61,$N$17:$N$1048576,Q$15,$Q$17:$Q$1048576,$C55)","v":0},{"$f":"COUNTIFS($M$17:$M$1048576,$B$61,$N$17:$N$1048576,R$15,$Q$17:$Q$1048576,$C55)","v":3},{"$f":"COUNTIFS($M$17:$M$1048576,$B$61,$N$17:$N$1048576,S$15,$Q$17:$Q$1048576,$C55)","v":0},{"$f":"SUM(D55:I55)","v":3},null,null,"Central","NOI - Rework","Aera Energy LLC","Lost Hills Govt. 108R","Water Disposal","0403039732","18","26S","21E","Lost Hills","No","2026-03-10T18:31:59.670","Central","NOI - Abandon","E & B Natural Resources Management Corporation","Cauley 1-4","Oil & Gas","0403035405","16","28S","27E","Poso Creek"]
[null,null,"Gas",0,0,0,0,0,0,{"$f":"SUM(D56:I56)","v":0},null,null,"Central","NOI - Rework","Aera Energy LLC","Young Estate S 5274A-11","Steamflood","0403037148","11","29S","21E","Belridge, South","No","2026-03-10T16:26:31.607","Central","NOI - Abandon","E & B Natural Resources Management Corporation","Cauley 177","Oil & Gas","0403033784","16","28S","27E","Kern Front"]
[null,null,"Liquefied Gas",0,0,0,0,0,0,0,null,null,"Central","NOI - Rework","J.P. Oil Company, LLC","Smith, et al 1","Oil & Gas","0402916677","34","28S","25E","Rio Bravo","No","2026-03-12T22:16:51.607","Central","NOI - Abandon","E & B Natural Resources Management Corporation","Section 9 8-9X","Oil & Gas","0403046145","09","28S","27E","Poso Creek"]
[null,null,"Oil & Gas",0,0,0,0,1,0,1,null,null,"Central","NOI - Rework","J.P. Oil Company, LLC","Smith, et al 3","Oil & Gas","0402916679","34","28S","25E","Rio Bravo","No","2026-03-10T23:12:29.053","Central","NOI - Abandon","Sentinel Peak Resources California LLC","Metson G1-24","Oil & Gas","0402945431","24","11N","23W","Midway-Sunset"]
[null,null,"Water Source",0,0,0,0,0,0,0,null,null,"Central","NOI - Rework","Sentinel Peak Resources California LLC","Gamble 2-232","Cyclic Steam","0403050891","06","30S","22E","Cymric","No","2026-03-09T17:04:09.650","Central","NOI - Abandon","Sentinel Peak Resources California LLC","R-3","Oil & Gas","0402945249","25","11N","23W","Midway-Sunset"]
[null,null,"Air Injection",0,0,0,0,0,0,0,null,null,"Central","NOI - Rework","Sentinel Peak Resources California LLC","Hopkins 905-9","Water Disposal","0403067396","09","29S","21E","Belridge, South","No","2026-03-10T16:27:27.317","Central","NOI - Abandon","Sentinel Peak Resources California LLC","Ripley Trust 113","Oil & Gas","0403035019","25","11N","23W","Midway-Sunset"]
[null,"Northern","Gas Disposal",0,0,0,0,0,0,0,null,null,"Central","NOI - Rework","Sentinel Peak Resources California LLC","Keene 44","Observation","0403020569","22","32S","23E","Midway-Sunset","No","2026-03-09T20:33:04.880","Central","NOI - New Drill","California Resources Production Corporation","Alta Vedder 1021LVH","Oil & Gas","N/A","04","27S","28E","Mount Poso"]
[null,null,"Injection",0,0,0,0,0,0,0,null,null,"Central","NOI - Sidetrack","Berry Petroleum Company, LLC","Main Camp E-5","Oil & Gas","0403044837","24","31S","22E","Midway-Sunset","No","2026-03-13T16:56:16.133","Central","NOI - New Drill","California Resources Production Corporation","Matthew Fee 1118LVH","Oil & Gas","N/A","04","27S","28E","Mount Poso"]
[null,null,"Pressure Maintenance",0,0,0,0,0,0,0,null,null,"Central","NOI - Sidetrack","Petro-Lud, Inc.","Unpsecified 43","Oil & Gas","0401905211","21","21S","15E","Jacalitos","No","2026-03-13T21:50:40.240","Central","NOI - New Drill","California Resources Production Corporation","Sarrett Fee 1142LVH","Oil & Gas","N/A","04","27S","28E","Mount Poso"]
[null,null,"Steamflood",0,0,0,0,0,0,0,null,null,"Central","NOI - Sidetrack","Petro-Lud, Inc.","Unpsecified 54","Oil & Gas","0401905217","21","21S","15E","Jacalitos","No","2026-03-13T22:12:26.977","Central","NOI - New Drill","Hunter Edison Oil Development LLC","Graham 54-9","Oil & Gas","N/A","09","30S","29E","Edison"]
[null,null,"Water Disposal",0,0,0,0,0,0,0,null,null,"Central","NOI - Sidetrack","Petro-Lud, Inc.","Unpsecified 65","Oil & Gas","0401905224","21","21S","15E","Jacalitos","No","2026-03-13T22:59:11.707","Central","NOI - Re-Abandon","Crimson Resource Management Corp.","25A 1","Oil & Gas","0402905587","25","31S","22E","Midway-Sunset"]
[null,null,"Waterflood",0,0,0,0,0,0,0,null,null,"Northern","NOI - Abandon","California Resources Production Corporation","Buttes Community 1 16","Dry Gas","0410100128","04","15N","01E","Sutter Buttes Gas","No","2026-03-10T22:29:14.877","Central","NOI - Rework","Aera Energy LLC","46F-20","Cyclic Steam","0403057092","20","28S","21E","Belridge, South"]
[null,null,"Cyclic Steam",2,0,0,0,0,0,2,null,null,"Northern","NOI - Abandon","California Resources Production Corporation","Henshaw 4-11","Dry Gas","0401120770","11","15N","01W","Sycamore Gas","No","2026-03-11T21:23:34.513","Central","NOI - Rework","Aera Energy LLC","928NR-18","Waterflood","0403044982","18","28S","21E","Belridge, South"]
[null,null,"Gas Storage",0,0,0,1,0,0,1,null,null,"Northern","NOI - Abandon","California Resources Production Corporation","Sutter City Community A-5","Dry Gas","0410100203","17","15N","02E","Sutter City Gas","No","2026-03-11T20:55:09.537","Central","NOI - Rework","Aera Energy LLC","971N-13","Waterflood","0403061576","13","28S","20E","Belridge, South"]
[null,null,"Multi-Purpose",0,0,0,0,0,0,0,null,null,"Northern","NOI - Abandon","Chevron U.S.A. Inc.","Orradre R8A-10","Oil & Gas","0405322144","10","23S","10E","San Ardo","No","2026-03-13T19:09:34.727","Central","NOI - Rework","Aera Energy LLC","Belridge III WD23-3","Water Disposal","0403069380","03","29S","21E","Belridge, South"]
[null,null,"Core Hole",0,0,0,0,0,0,0,null,null,"Northern","NOI - New Drill","Aera Energy LLC","Orradre 1503-12","Cyclic Steam","N/A","12","23S","10E","San Ardo","No","2026-03-12T16:35:33.777","Central","NOI - Rework","Aera Energy LLC","DTR 545GR2-33","Waterflood","0403050580","33","28S","21E","Belridge, South"]
[null,null,"Dry Hole",0,0,0,0,0,0,0,null,null,"Northern","NOI - New Drill","Aera Energy LLC","Orradre 1546-12","Cyclic Steam","N/A","12","23S","10E","San Ardo","No","2026-03-10T18:24:46.900","Central","NOI - Rework","Aera Energy LLC","King 81WBR-30","Waterflood","0403051360","30","28S","21E","Belridge, South"]
[null,null,"Observation",0,0,0,0,0,0,0,null,null,"Northern","NOI - Rework","Southern California Gas Company","Miller 12","Gas Storage","0408320757","21","04N","28W","La Goleta Gas","No","2026-03-13T16:23:40.467","Central","NOI - Rework","California Resources Elk Hills, LLC","1-8D","Oil & Gas","0402911087","08","32S","24E","Buena Vista"]
[null,null,"Unknown",0,0,0,0,0,0,0,null,null,"Southern","NOI - Abandon","E & B Natural Resources Management Corporation","ANGUS A-6","Oil & Gas","0405921470","02","06S","11W","Huntington Beach","No","2026-03-14T00:09:19.440","Central","NOI - Rework","California Resources Elk Hills, LLC","2111-1C","Oil & Gas","0402902597","01","32S","23E","Buena Vista"]
[null,null,"Gas Injection",0,0,0,0,0,0,0,null,null,"Southern","NOI - Abandon","E & B Natural Resources Management Corporation","ANGUS B-11 I","Waterflood","0405921488","02","06S","11W","Huntington Beach","No","2026-03-13T21:12:17.983","Central","NOI - Rework","Chevron U.S.A. Inc.","121","Oil & Gas","0402959781","21","32S","23E","Midway-Sunset"]
[null,null,"Stratigraphic",0,0,0,0,0,0,{"$f":" SUM(Table397[[#This Row],[New Drill]:[Re-Abandon]])","v":0},null,null,"Southern","NOI - Abandon","E & B Natural Resources Management Corporation","ANGUS B-9 I","Waterflood","0405921486","02","06S","11W","Huntington Beach","No","2026-03-13T21:02:26.813","Central","NOI - Rework","Chevron U.S.A. Inc.","136","Oil & Gas","0403008061","21","32S","23E","Midway-Sunset"]
[null,null,"District Total",{"$f":"SUM(D55:D75)","v":2},0,0,1,4,0,7,null,null,"Southern","NOI - Abandon","Sentinel Peak Resources California LLC","Stocker 678","Oil & Gas","0403726521","16","02S","14W","Inglewood","No","2026-03-09T17:05:23.297","Central","NOI - Rework","Chevron U.S.A. Inc.","1591","Oil & Gas","0403029120","21","32S","23E","Midway-Sunset"]
[{"$nulls":12},"Southern","NOI - Abandon","Synergy Oil & Gas, LLC","Bixby A 34","Oil & Gas","0403707007","03","05S","12W","Seal Beach","No","2026-03-13T16:07:08.063","Central","NOI - Rework","Chevron U.S.A. Inc.","41","Oil & Gas","0403065097","25","32S","23E","Midway-Sunset"]
[{"$nulls":3},{"$f":"_xlfn.CONCAT(G4,\" \",G6)","v":{"$error":"#REF!"}},{"$nulls":8},"Southern","NOI - Re-Abandon","Department of Water Resources (DWR)","Honolulu-Barnsdall Liberty Far 3","Dry Hole","0409500374","17","05N","03E","Any Field","No","2026-03-11T19:27:48.013","Central","NOI - Rework","Chevron U.S.A. Inc.","43A","Oil & Gas","0403041678","25","32S","23E","Midway-Sunset"]
[{"$nulls":6},{"$f":"_xlfn.CONCAT(B90, \" District\")","v":"Southern District"},{"$nulls":5},"Southern","NOI - Rework","Sentinel Peak Resources California LLC","VRU 259","Injection","0403723073","08","02S","14W","Inglewood","No","2026-03-12T20:45:03.450","Central","NOI - Rework","Chevron U.S.A. Inc.","51","Oil & Gas","0403065076","25","32S","23E","Midway-Sunset"]
[{"$nulls":12},"Southern","NOI - Rework","THUMS Long Beach Co.","A-352 I","Waterflood","0423720197","07","05S","12W","Wilmington","No","2026-03-11T20:24:59.373","Central","NOI - Rework","Chevron U.S.A. Inc.","516","Oil & Gas","0403025430","17","32S","23E","Midway-Sunset"]
[null,null,"Product","New Drill","Deepen","Sidetrack","Rework","Abandon","Re-Abandon","GrandTotal",null,null,"Southern","NOI - Rework","Tidelands Oil Production Co.","FJ-80","Waterflood","0403702357","11","05S","13W","Wilmington","No","2026-03-13T21:18:41.273","Central","NOI - Rework","Chevron U.S.A. Inc.","526","Oil & Gas","0403005086","17","32S","23E","Midway-Sunset"]
[null,null,"Dry Gas",{"$f":"COUNTIFS($M$17:$M$1048576,$B$90,$N$17:$N$1048576,N$15,$Q$17:$Q$1048576,$C82)","v":0},{"$f":"COUNTIFS($M$17:$M$1048576,$B$90,$N$17:$N$1048576,O$15,$Q$17:$Q$1048576,$C82)","v":0},{"$f":"COUNTIFS($M$17:$M$1048576,$B$90,$N$17:$N$1048576,P$15,$Q$17:$Q$1048576,$C82)","v":0},{"$f":"COUNTIFS($M$17:$M$1048576,$B$90,$N$17:$N$1048576,Q$15,$Q$17:$Q$1048576,$C82)","v":0},{"$f":"COUNTIFS($M$17:$M$1048576,$B$90,$N$17:$N$1048576,R$15,$Q$17:$Q$1048576,$C82)","v":0},{"$f":"COUNTIFS($M$17:$M$1048576,$B$90,$N$17:$N$1048576,S$15,$Q$17:$Q$1048576,$C82)","v":0},{"$f":"SUM(D82:I82)","v":0},null,null,"Southern","NOI - Sidetrack","THUMS Long Beach Co.","D-425 I","Oil & Gas","0423720810","17","05S","12W","Wilmington","No","2026-03-13T18:34:49.093","Central","NOI - Rework","Chevron U.S.A. Inc.","608","Oil & Gas","0403067744","08","32S","23E","Midway-Sunset"]
[null,null,"Gas",0,0,0,0,0,0,{"$f":"SUM(D83:I83)","v":0},null,null,"Southern","NOI - Sidetrack","THUMS Long Beach Co.","D-427 I","Oil & Gas","0423722900","17","05S","12W","Wilmington","No","2026-03-13T18:31:36.427","Central","NOI - Rework","Chevron U.S.A. Inc.","609","Oil & Gas","0403067745","08","32S","23E","Midway-Sunset"]
[null,null,"Liquefied Gas",0,0,0,0,0,0,0,null,null,"Southern","NOI - Sidetrack","THUMS Long Beach Co.","D-512 I","Oil & Gas","0423720478","17","05S","12W","Wilmington","No","2026-03-13T18:32:34.477","Central","NOI - Rework","Chevron U.S.A. Inc.",610,"Oil & Gas","0403067659",8,"32S","23E","Midway-Sunset"]
[null,null,"Oil & Gas",0,0,10,0,3,0,13,null,null,"Southern","NOI - Sidetrack","THUMS Long Beach Co.","D-513","Oil & Gas","0423720280","17","05S","12W","Wilmington","No","2026-03-13T18:27:07.707","Central","NOI - Rework","Chevron U.S.A. Inc.","1901-09-07","Oil & Gas","0403057243",7,"32S","23E","Midway-Sunset"]
[null,null,"Water Source",0,0,0,0,0,0,0,null,null,"Southern","NOI - Sidetrack","THUMS Long Beach Co.","D-515 I","Oil & Gas","0423720158","17","05S","12W","Wilmington","No","2026-03-13T18:33:38.353","Central","NOI - Rework","Chevron U.S.A. Inc.","1900-03-31","Oil & Gas","0402952717",21,"32S","23E","Midway-Sunset"]
[null,null,"Air Injection",0,0,0,0,0,0,0,null,null,"Southern","NOI - Sidetrack","THUMS Long Beach Co.","D-517 I","Oil & Gas","0423720035","17","05S","12W","Wilmington","No","2026-03-13T18:30:38.993","Central","NOI - Rework","Chevron U.S.A. Inc.","Cresceus 53H","Oil & Gas","0403063493",25,"32S","23E","Midway-Sunset"]
[null,null,"Gas Disposal",0,0,0,0,0,0,0,null,null,"Southern","NOI - Sidetrack","THUMS Long Beach Co.","D-518","Oil & Gas","0423720312","17","05S","12W","Wilmington","No","2026-03-13T18:29:35.847","Central","NOI - Rework","Chevron U.S.A. Inc.","Cresceus 54F","Oil & Gas","0403063492",25,"32S","23E","Midway-Sunset"]
[null,null,"Injection",0,0,0,1,0,0,1,null,null,"Southern","NOI - Sidetrack","THUMS Long Beach Co.","D-524","Oil & Gas","0423720064","17","05S","12W","Wilmington","No","2026-03-13T18:24:42.897","Central","NOI - Rework","Chevron U.S.A. Inc.","Green & Whittier A 340","Cyclic Steam","0403034969",30,"28S","28E","Kern River"]
[null,"Southern","Pressure Maintenance",0,0,0,0,0,0,0,null,null,"Southern","NOI - Sidetrack","THUMS Long Beach Co.","D-548","Oil & Gas","0423722532","17","05S","12W","Wilmington","No","2026-03-13T18:28:34.953","Central","NOI - Rework","Chevron U.S.A. Inc.","Green & Whittier A 344","Oil & Gas","0403035087",30,"28S","28E","Kern River"]
[null,null,"Steamflood",0,0,0,0,0,0,0,null,null,"Southern","NOI - Sidetrack","THUMS Long Beach Co.","D-575","Oil & Gas","0423720605","17","05S","12W","Wilmington","No","2026-03-13T18:25:50.330","Central","NOI - Rework","Chevron U.S.A. Inc.","Green & Whittier A 569","Oil & Gas","0402989118",30,"28S","28E","Kern River"]
[null,null,"Water Disposal",0,0,0,0,0,0,0,{"$nulls":14},"Central","NOI - Rework","Chevron U.S.A. Inc.","Green & Whittier A 574","Oil & Gas","0402989573",30,"28S","28E","Kern River"]
[null,null,"Waterflood",0,0,0,2,2,0,4,{"$nulls":14},"Central","NOI - Rework","Chevron U.S.A. Inc.","McKittrick Fee 3915-I","Steamflood","0403030801",8,"30S","22E","Cymric"]
[null,null,"Cyclic Steam",0,0,0,0,0,0,0,{"$nulls":14},"Central","NOI - Sidetrack","Aera Energy LLC","DTR 518CR2-34","Waterflood","0403043693",34,"28S","21E","Belridge, South"]
[null,null,"Gas Storage",0,0,0,0,0,0,0,{"$nulls":14},"Central","NOI - Sidetrack","Aera Energy LLC","DTR 525AR3-34","Waterflood","0403045219",34,"28S","21E","Belridge, South"]
[null,null,"Multi-Purpose",0,0,0,0,0,0,0,{"$nulls":14},"Central","NOI - Sidetrack","Aera Energy LLC","DTR 559ER4-34","Waterflood","0403058180",34,"28S","21E","Belridge, South"]
[null,null,"Core Hole",0,0,0,0,0,0,0,{"$nulls":14},"Northern","NOI - Abandon","California Resources Production Corporation","Andreotti 6","Dry Gas","0401120266",28,"14N","01E","Grimes Gas"]
[null,null,"Dry Hole",0,0,0,0,0,1,1,{"$nulls":14},"Northern","NOI - Abandon","California Resources Production Corporation","Andreotti 8","Dry Gas","0401120298",29,"14N","01E","Grimes Gas"]
[null,null,"Observation",0,0,0,0,0,0,{"$f":"SUM(D99:I99)","v":0},{"$nulls":14},"Northern","NOI - Abandon","California Resources Production Corporation","Arbuckle Road 14","Dry Gas","0401120267",30,"14N","01E","Grimes Gas"]
[null,null,"Unknown",0,0,0,0,0,0,0,{"$nulls":14},"Northern","NOI - Abandon","California Resources Production Corporation","Arbuckle Road 26","Dry Gas","0401120367",19,"14N","01E","Grimes Gas"]
[null,null,"Gas Injection",0,0,0,0,0,0,{"$f":"SUM(D101:I101)","v":0},{"$nulls":14},"Northern","NOI - Abandon","California Resources Production Corporation","Arbuckle Road 35","Dry Gas","0401120498",20,"14N","01E","Grimes Gas"]
[null,null,"Stratigraphic",0,0,0,0,0,0,{"$f":"SUM(Table41012[[#This Row],[New Drill]:[Re-Abandon]])","v":0},{"$nulls":14},"Northern","NOI - Abandon","California Resources Production Corporation","Arbuckle Road 38","Dry Gas","0401120542",24,"14N","01W","Grimes Gas"]
[null,null,"District Total",{"$f":"SUM(D82:D102)","v":0},0,10,3,5,1,{"$f":"SUM(J82:J102)","v":19},{"$nulls":14},"Northern","NOI - Abandon","California Resources Production Corporation","Arbuckle Road 7","Dry Gas","0401120177",20,"14N","01E","Grimes Gas"]
[{"$nulls":24},"Northern","NOI - Abandon","California Resources Production Corporation","Balsdon 3-35","Dry Gas","0401120955",35,"14N","01W","Grimes Gas"]
[{"$nulls":3},{"$f":"_xlfn.CONCAT(G4,\" \",G6)","v":{"$error":"#REF!"}},{"$nulls":20},"Northern","NOI - Abandon","California Resources Production Corporation","Wallace 4-4","Dry Gas","0401120903",4,"14N","01W","Grimes Gas"]
[{"$nulls":6},"All Districts",{"$nulls":17},"Northern","NOI - Abandon","California Resources Production Corporation","Yerxa 20-1","Dry Gas","0401120332",20,"14N","01E","Grimes Gas"]
[{"$nulls":24},"Northern","NOI - Rework","Chevron U.S.A. Inc.","Rosenberg (NCT-1) WI-12","Water Disposal",405321216,28,"22S","10E","San Ardo"]
[null,null,"Product","New Drill","Deepen","Sidetrack","Rework","Abandon","Re-Abandon","GrandTotal",{"$nulls":14},"Northern","NOI - Rework","Pacific Gas and Electric Company","Turner Cut 10-N","Gas Storage",407720228,30,"02N","05E","McDonald Island Gas"]
[null,null,"Dry Gas",{"$f":"COUNTIFS($N$17:$N$1048576,N$15,$Q$17:$Q$1048576,$C109)","v":0},{"$f":"COUNTIFS($N$17:$N$1048576,O$15,$Q$17:$Q$1048576,$C109)","v":0},{"$f":"COUNTIFS($N$17:$N$1048576,P$15,$Q$17:$Q$1048576,$C109)","v":0},{"$f":"COUNTIFS($N$17:$N$1048576,Q$15,$Q$17:$Q$1048576,$C109)","v":0},{"$f":"COUNTIFS($N$17:$N$1048576,R$15,$Q$17:$Q$1048576,$C109)","v":3},{"$f":"COUNTIFS($N$17:$N$1048576,S$15,$Q$17:$Q$1048576,$C109)","v":0},{"$f":"SUM(D109:I109)","v":3},{"$nulls":14},"Northern","NOI - Rework","Pacific Gas and Electric Company","Turner Cut 2-S","Gas Storage",407720219,30,"02N","05E","McDonald Island Gas"]
[null,null,"Gas",0,0,0,0,0,0,{"$f":"SUM(D110:I110)","v":0},{"$nulls":14},"Northern","NOI - Rework","Pacific Gas and Electric Company","Whiskey Slough 3-E","Gas Storage",407720173,25,"02N","04E","McDonald Island Gas"]
[null,null,"Liquefied Gas",0,0,0,0,0,0,0,{"$nulls":14},"Northern","NOI - Rework","Pacific Gas and Electric Company","Whiskey Slough 5-W","Gas Storage",407720211,25,"02N","04E","McDonald Island Gas"]
[null,null,"Oil & Gas",6,0,14,2,17,0,39,{"$nulls":14},"Southern","NOI - Abandon","Brea Canon Oil Co.","Joughin Unit 10-E","Oil & Gas",403718005,24,"04S","14W","Torrance"]
[null,null,"Water Source",0,0,0,0,0,0,0,{"$nulls":14},"Southern","NOI - Deepen","Aemetis Carbon Capture, Inc.","Aemetis Riverbank CO2 1","Stratigraphic",409920056,31,"02S","10E","Any Field"]
[null,null,"Air Injection",0,0,0,0,0,0,0]
[null,null,"Gas Disposal",0,0,0,0,0,0,0]
[null,null,"Injection",0,0,0,1,0,0,1]
[null,null,"Pressure Maintenance",0,0,0,0,0,0,0]
[null,null,"Steamflood",3,0,0,1,2,0,6]
[null,"Grand Totals","Water Disposal",0,0,0,2,0,0,2]
[null,null,"Waterflood",0,0,0,2,2,0,4]
[null,null,"Cyclic Steam",6,0,0,1,9,0,{"$f":"SUM(D121:I121)","v":16}]
[null,null,"Gas Storage",0,0,0,1,0,0,1]
[null,null,"Multi-Purpose",0,0,0,0,1,0,1]
[null,null,"Core Hole",0,0,0,0,0,0,0]
[null,null,"Dry Hole",0,0,0,0,0,1,1]
[null,null,"Observation",0,0,0,1,0,0,1]
[null,null,"Unknown",0,0,0,0,0,0,0]
[null,null,"Gas Injection",0,0,0,0,0,0,0]
[null,null,"Stratigraphic",0,0,0,0,0,0,{"$f":" SUM(Table51113[[#This Row],[New Drill]:[Re-Abandon]])","v":0}]
[null,null,"All District Total",{"$f":"SUM(D109:D129)","v":15},0,14,11,34,1,75]

{"sheet":"List - Notices Submitted (Auto)","index":3,"n_rows":133,"n_cols":11,"rows_kept":133,"hidden":true}
[null,"Notice of Intention (NOI)  Submitted For Week #32 Ending Saturday, August 16th, 2025"]
["District","Notice Type","Operator ","Well Designation","Well Type ","API #","Sec.","Twp.","Rng.","Field ","Supplementary NOI"]
["Central","NOI - Abandon","Aera Energy LLC","134","Oil & Gas","0402921276","18","26S","21E","Lost Hills","No"]
["Central","NOI - Abandon","Aera Energy LLC","2-12C","Oil & Gas","0402972290","18","26S","21E","Lost Hills","No"]
["Central","NOI - Abandon","Aera Energy LLC","2-12D","Oil & Gas","0402989346","18","26S","21E","Lost Hills","No"]
["Central","NOI - Abandon","Aera Energy LLC","Globe Unit 11-107R","Oil & Gas","0403004068","15","31S","22E","Midway-Sunset","No"]
["Central","NOI - Abandon","Aera Energy LLC","Globe Unit 13-147","Oil & Gas","0402975644","15","31S","22E","Midway-Sunset","No"]
["Central","NOI - Abandon","Aera Energy LLC","Globe Unit 16-167","Oil & Gas","0402976115","15","31S","22E","Midway-Sunset","No"]
["Central","NOI - Abandon","Aera Energy LLC","Globe Unit 16-84","Oil & Gas","0402952301","15","31S","22E","Midway-Sunset","No"]
["Central","NOI - Abandon","Aera Energy LLC","Globe Unit 3-61","Oil & Gas","0402962944","15","31S","22E","Midway-Sunset","No"]
["Central","NOI - Abandon","Aera Energy LLC","Globe Unit 4-801","Oil & Gas","0402970689","15","31S","22E","Midway-Sunset","No"]
["Central","NOI - Abandon","Aera Energy LLC","Globe Unit 6-136","Oil & Gas","0402962504","15","31S","22E","Midway-Sunset","No"]
["Central","NOI - Abandon","Aera Energy LLC","Good Hope 11","Oil & Gas","0402952333","01","11N","24W","Midway-Sunset","No"]
["Central","NOI - Abandon","Aera Energy LLC","Good Hope 18","Oil & Gas","0402956499","01","11N","24W","Midway-Sunset","No"]
["Central","NOI - Abandon","Aera Energy LLC","Lockwood 14-D","Oil & Gas","0402979219","16","32S","23E","Midway-Sunset","No"]
["Central","NOI - Abandon","Aera Energy LLC","Lockwood 22-I","Oil & Gas","0402959952","16","32S","23E","Midway-Sunset","No"]
["Central","NOI - Abandon","Aera Energy LLC","Lockwood 23-A","Oil & Gas","0402958249","16","32S","23E","Midway-Sunset","No"]
["Central","NOI - Abandon","Aera Energy LLC","Lockwood 40-E","Oil & Gas","0403009882","16","32S","23E","Midway-Sunset","No"]
["Central","NOI - Abandon","Aera Energy LLC","Lockwood 41-H","Oil & Gas","0403005877","16","32S","23E","Midway-Sunset","No"]
["Central","NOI - Abandon","Aera Energy LLC","Lockwood 5-K","Oil & Gas","0402979221","16","32S","23E","Midway-Sunset","No"]
["Central","NOI - Abandon","Aera Energy LLC","Lockwood 51-K","Oil & Gas","0403018858","16","32S","23E","Midway-Sunset","No"]
["Central","NOI - Abandon","Aera Energy LLC","Lockwood 52-K","Oil & Gas","0403018859","16","32S","23E","Midway-Sunset","No"]
["Central","NOI - Abandon","Aera Energy LLC","Lockwood 63-A","Oil & Gas","0403018938","16","32S","23E","Midway-Sunset","No"]
["Central","NOI - Abandon","Aera Energy LLC","Lockwood 63-K","Oil & Gas","0403020047","16","32S","23E","Midway-Sunset","No"]
["Central","NOI - Abandon","Aera Energy LLC","Moco 35 MBC-227","Oil & Gas","0403001895","35","12N","24W","Midway-Sunset","No"]
["Central","NOI - Abandon","Aera Energy LLC","Moco 35 WMH-242J","Oil & Gas","0403030744","35","12N","24W","Midway-Sunset","No"]
["Central","NOI - Abandon","Aera Energy LLC","Soudan 17R","Oil & Gas","0403000514","26","31S","22E","Midway-Sunset","No"]
["Central","NOI - Abandon","Aera Energy LLC","Soudan 68","Oil & Gas","0403005514","26","31S","22E","Midway-Sunset","No"]
["Central","NOI - Abandon","Aera Energy LLC","Soudan 76","Oil & Gas","0403009443","26","31S","22E","Midway-Sunset","No"]
["Central","NOI - Abandon","Aera Energy LLC","Soudan 77","Oil & Gas","0403022110","26","31S","22E","Midway-Sunset","No"]
["Central","NOI - Abandon","Aera Energy LLC","Soudan 83","Oil & Gas","0403040056","26","31S","22E","Midway-Sunset","No"]
["Central","NOI - Abandon","Berry Petroleum Company, LLC","Fitzhugh 27","Oil & Gas","0403032538","14","27S","27E","Poso Creek","No"]
["Central","NOI - Abandon","Berry Petroleum Company, LLC","USL 17-11","Oil & Gas","0403034500","14","27S","27E","Poso Creek","No"]
["Central","NOI - Abandon","Caleco, LLC","Wellington-Maricopa 3","Oil & Gas","0402935910","08","11N","23W","Midway-Sunset","No"]
["Central","NOI - Abandon","California Resources Elk Hills, LLC","138-9D","Oil & Gas","0402902943","09","32S","24E","Buena Vista","No"]
["Central","NOI - Abandon","California Resources Elk Hills, LLC","2-555-8D","Oil & Gas","0402913383","08","32S","24E","Buena Vista","No"]
["Central","NOI - Abandon","California Resources Elk Hills, LLC","232-36B","Oil & Gas","0402941183","36","31S","23E","Buena Vista","No"]
["Central","NOI - Abandon","California Resources Elk Hills, LLC","33-15D","Oil & Gas","0402902993","15","32S","24E","Buena Vista","No"]
["Central","NOI - Abandon","California Resources Elk Hills, LLC","44-8D","Oil & Gas","0402911128","08","32S","24E","Buena Vista","No"]
["Central","NOI - Abandon","California Resources Elk Hills, LLC","63-8D","Oil & Gas","0402911144","08","32S","24E","Buena Vista","No"]
["Central","NOI - Abandon","California Resources Elk Hills, LLC","85-28S","Oil & Gas","0402927423","28","30S","24E","Elk Hills","No"]
["Central","NOI - Abandon","California Resources Elk Hills, LLC","86-8D","Oil & Gas","0402911162","08","32S","24E","Buena Vista","No"]
["Central","NOI - Abandon","California Resources Production Corporation","25R","Oil & Gas","0401905922","33","21S","17E","Kettleman North Dome","No"]
["Central","NOI - Abandon","California Resources Production Corporation","313","Oil & Gas","0401905796","21","21S","17E","Kettleman North Dome","No"]
["Central","NOI - Abandon","California Resources Production Corporation","324","Oil & Gas","0401905798","21","21S","17E","Kettleman North Dome","No"]
["Central","NOI - Abandon","California Resources Production Corporation","334","Oil & Gas","0401905810","27","21S","17E","Kettleman North Dome","No"]
["Central","NOI - Abandon","California Resources Production Corporation","334","Oil & Gas","0401905859","29","21S","17E","Kettleman North Dome","No"]
["Central","NOI - Abandon","California Resources Production Corporation","38","Oil & Gas","0401905926","33","21S","17E","Kettleman North Dome","No"]
["Central","NOI - Abandon","California Resources Production Corporation","38","Oil & Gas","0401905741","19","21S","17E","Kettleman North Dome","No"]
["Central","NOI - Abandon","California Resources Production Corporation","E27","Oil & Gas","0401905793","21","21S","17E","Kettleman North Dome","No"]
["Central","NOI - Abandon","California Resources Production Corporation","E76","Oil & Gas","0401905936","33","21S","17E","Kettleman North Dome","No"]
["Central","NOI - Abandon","California Resources Production Corporation","Yowlumne Unit B 66-32","Oil & Gas","0402957822","32","12N","22W","Yowlumne","No"]
["Central","NOI - Abandon","Chevron U.S.A. Inc.","12-10WAR","Oil & Gas","0403048039","32","26S","21E","Lost Hills","No"]
["Central","NOI - Abandon","Chevron U.S.A. Inc.","133","Oil & Gas","0402958622","06","32S","23E","Midway-Sunset","No"]
["Central","NOI - Abandon","Chevron U.S.A. Inc.","176AR","Oil & Gas","0403013113","32","26S","21E","Lost Hills","No"]
["Central","NOI - Abandon","Chevron U.S.A. Inc.","2-6E","Oil & Gas","0403021948","33","26S","21E","Lost Hills","No"]
["Central","NOI - Abandon","Chevron U.S.A. Inc.","209","Oil & Gas","0402957647","08","32S","23E","Midway-Sunset","No"]
["Central","NOI - Abandon","Chevron U.S.A. Inc.","269","Oil & Gas","0402976507","21","31S","22E","Midway-Sunset","No"]
["Central","NOI - Abandon","Chevron U.S.A. Inc.","3111","Oil & Gas","0403012458","21","31S","22E","Midway-Sunset","No"]
["Central","NOI - Abandon","Chevron U.S.A. Inc.","53B","Oil & Gas","0402907008","26","32S","23E","Midway-Sunset","No"]
["Central","NOI - Abandon","Chevron U.S.A. Inc.","6-1","Oil & Gas","0402909138","31","12N","23W","Midway-Sunset","No"]
["Central","NOI - Abandon","Chevron U.S.A. Inc.","73E","Oil & Gas","0402907124","26","32S","23E","Midway-Sunset","No"]
["Central","NOI - Abandon","Chevron U.S.A. Inc.","77D","Oil & Gas","0402907098","26","32S","23E","Midway-Sunset","No"]
["Central","NOI - Abandon","Chevron U.S.A. Inc.","81S","Oil & Gas","0403036039","26","32S","23E","Midway-Sunset","No"]
["Central","NOI - Abandon","Chevron U.S.A. Inc.","Amber 103R","Oil & Gas","0402973370","26","31S","22E","Midway-Sunset","No"]
["Central","NOI - Abandon","Chevron U.S.A. Inc.","Amber 138","Oil & Gas","0402975660","26","31S","22E","Midway-Sunset","No"]
["Central","NOI - Abandon","Chevron U.S.A. Inc.","Amber 3H","Oil & Gas","0403008483","26","31S","22E","Midway-Sunset","No"]
["Central","NOI - Abandon","Chevron U.S.A. Inc.","Amber 71R","Oil & Gas","0402973369","26","31S","22E","Midway-Sunset","No"]
["Central","NOI - Abandon","Chevron U.S.A. Inc.","G-5308","Oil & Gas","0402986118","22","31S","22E","Midway-Sunset","No"]
["Central","NOI - Abandon","Chevron U.S.A. Inc.","Indian & Colonial 48","Oil & Gas","0402955764","22","32S","23E","Midway-Sunset","No"]
["Central","NOI - Abandon","Chevron U.S.A. Inc.","Monarch 342","Oil & Gas","0403045705","02","11N","24W","Midway-Sunset","No"]
["Central","NOI - Abandon","Chevron U.S.A. Inc.","Section 9 555","Oil & Gas","0402975184","09","32S","23E","Midway-Sunset","No"]
["Central","NOI - Abandon","Chevron U.S.A. Inc.","Section 9 591","Oil & Gas","0403007675","09","32S","23E","Midway-Sunset","No"]
["Central","NOI - Abandon","Chevron U.S.A. Inc.","Vulcan 11-5A","Oil & Gas","0403026125","05","27S","21E","Lost Hills","No"]
["Central","NOI - Rework","Aera Energy LLC","38RL-35","Oil & Gas","0402982767","35","28S","21E","Belridge, South","No"]
["Central","NOI - Rework","Aera Energy LLC","King 305LR-19","Oil & Gas","0402982348","19","28S","21E","Belridge, South","No"]
["Southern","NOI - Abandon","Sycamore Development Partners LLC","Olinda Two 7","Oil & Gas","0405906792","08","03S","09W","Brea-Olinda","No"]
["Central","NOI - Abandon","Aera Energy LLC","1-12C","Steamflood","0402989356","18","26S","21E","Lost Hills","No"]
["Central","NOI - Abandon","Aera Energy LLC","5-12B","Steamflood","0403000554","18","26S","21E","Lost Hills","No"]
["Central","NOI - Abandon","Aera Energy LLC","DTR 952A-29","Cyclic Steam","0403044761","29","28S","21E","Belridge, South","No"]
["Central","NOI - Abandon","Aera Energy LLC","Heard & Painter 652-I","Steamflood","0403004007","03","11N","24W","Midway-Sunset","No"]
["Central","NOI - Abandon","Aera Energy LLC","L & H 7-5T.O.","Observation","0403025360","02","11N","24W","Midway-Sunset","No"]
["Central","NOI - Abandon","Aera Energy LLC","L & H 7-7I","Steamflood","0402981548","02","11N","24W","Midway-Sunset","No"]
["Central","NOI - Abandon","Aera Energy LLC","Lockwood 6-P","Observation","0402952827","16","32S","23E","Midway-Sunset","No"]
["Central","NOI - Abandon","Aera Energy LLC","Lost Hills Govt. G4-11 BR1-18","Steamflood","0403062649","18","26S","21E","Lost Hills","No"]
["Central","NOI - Abandon","Aera Energy LLC","Moco 35 MBC-677","Steamflood","0403025973","35","12N","24W","Midway-Sunset","No"]
["Central","NOI - Abandon","Aera Energy LLC","Moco 35 MBC-682B","Steamflood","0403018358","35","12N","24W","Midway-Sunset","No"]
["Central","NOI - Abandon","Aera Energy LLC","Moco 35 MBC-686","Steamflood","0403002135","35","12N","24W","Midway-Sunset","No"]
["Central","NOI - Abandon","Aera Energy LLC","Moco 35 WM-593G","Steamflood","0403016499","35","12N","24W","Midway-Sunset","No"]
["Central","NOI - Abandon","Aera Energy LLC","Petrolia 6-1","Observation","0402911507","16","31S","22E","Midway-Sunset","No"]
["Central","NOI - Abandon","Aera Energy LLC","Soudan 26","Gas Disposal","0402919082","26","31S","22E","Midway-Sunset","No"]
["Central","NOI - Abandon","Berry Petroleum Company, LLC","Southwestern 63-64","Cyclic Steam","0403066536","02","31S","22E","Midway-Sunset","No"]
["Central","NOI - Abandon","California Resources Elk Hills, LLC","317-24R","Waterflood","0402967944","24","30S","23E","Elk Hills","No"]
["Central","NOI - Abandon","California Resources Elk Hills, LLC","414A-26R","Dry Gas","0402957599","26","30S","23E","Elk Hills","No"]
["Central","NOI - Abandon","California Resources Elk Hills, LLC","43WS-13B","Water Source","0402989651","13","31S","23E","Elk Hills","No"]
["Central","NOI - Abandon","California Resources Elk Hills, LLC","455-30S","Dry Gas","0403029086","30","30S","24E","Elk Hills","No"]
["Central","NOI - Abandon","California Resources Elk Hills, LLC","473-34R","Dry Gas","0403026530","34","30S","23E","Elk Hills","No"]
["Central","NOI - Abandon","California Resources Elk Hills, LLC","482-34R","Dry Gas","0402959548","34","30S","23E","Elk Hills","No"]
["Central","NOI - Abandon","California Resources Elk Hills, LLC","64X-35S","Pressure Maintenance","0402955593","35","30S","24E","Elk Hills","No"]
["Central","NOI - Abandon","Chevron U.S.A. Inc.","10-10WG","Waterflood","0403023758","32","26S","21E","Lost Hills","No"]
["Central","NOI - Abandon","Chevron U.S.A. Inc.","11-9WE","Waterflood","0403023763","32","26S","21E","Lost Hills","No"]
["Central","NOI - Abandon","Chevron U.S.A. Inc.","13DW","Steamflood","0402985131","26","32S","23E","Midway-Sunset","No"]
["Central","NOI - Abandon","Chevron U.S.A. Inc.","1819","Steamflood","0403025387","17","32S","23E","Midway-Sunset","No"]
["Central","NOI - Abandon","Chevron U.S.A. Inc.","23DW","Steamflood","0402972131","26","32S","23E","Midway-Sunset","No"]
["Central","NOI - Abandon","Chevron U.S.A. Inc.","3-5UW","Waterflood","0403027101","32","26S","21E","Lost Hills","No"]
["Central","NOI - Abandon","Chevron U.S.A. Inc.","3464-I","Steamflood","0403010999","21","31S","22E","Midway-Sunset","No"]
["Central","NOI - Abandon","Chevron U.S.A. Inc.","4-10W","Waterflood","0403029813","29","26S","21E","Lost Hills","No"]
["Central","NOI - Abandon","Chevron U.S.A. Inc.","5-12W","Waterflood","0403028553","29","26S","21E","Lost Hills","No"]
["Central","NOI - Abandon","Chevron U.S.A. Inc.","68DW","Steamflood","0402983601","26","32S","23E","Midway-Sunset","No"]
["Central","NOI - Abandon","Chevron U.S.A. Inc.","77AW","Steamflood","0402957035","26","32S","23E","Midway-Sunset","No"]
["Central","NOI - Abandon","Chevron U.S.A. Inc.","77DW","Steamflood","0402964410","26","32S","23E","Midway-Sunset","No"]
["Central","NOI - Abandon","Chevron U.S.A. Inc.","77W","Steamflood","0402949282","26","32S","23E","Midway-Sunset","No"]
["Central","NOI - Abandon","Chevron U.S.A. Inc.","85AW","Steamflood","0402964399","26","32S","23E","Midway-Sunset","No"]
["Central","NOI - Abandon","Chevron U.S.A. Inc.","86BW","Steamflood","0402964405","26","32S","23E","Midway-Sunset","No"]
["Central","NOI - Abandon","Chevron U.S.A. Inc.","86CW","Steamflood","0402964408","26","32S","23E","Midway-Sunset","No"]
["Central","NOI - Abandon","Chevron U.S.A. Inc.","946","Steamflood","0403030115","08","32S","23E","Midway-Sunset","No"]
["Central","NOI - Abandon","Chevron U.S.A. Inc.","996","Steamflood","0403028264","08","32S","23E","Midway-Sunset","No"]
["Central","NOI - Abandon","Chevron U.S.A. Inc.","Combined 100H","Steamflood","0403004107","26","31S","22E","Midway-Sunset","No"]
["Central","NOI - Abandon","Chevron U.S.A. Inc.","G-1204","Observation","0403009514","22","31S","22E","Midway-Sunset","No"]
["Central","NOI - Abandon","Chevron U.S.A. Inc.","G-TO65","Observation","0403012968","22","31S","22E","Midway-Sunset","No"]
["Central","NOI - Abandon","Chevron U.S.A. Inc.","Indian & Colonial 505","Dry Hole","0402961330","22","32S","23E","Midway-Sunset","No"]
["Central","NOI - Abandon","Chevron U.S.A. Inc.","San Joaquin 293","Cyclic Steam","0402940643","05","29S","28E","Kern River","No"]
["Central","NOI - Rework","Aera Energy LLC","Ellis 2-4ZR-19","Injection","0403043726","19","28S","21E","Belridge, South","No"]
["Central","NOI - Rework","Aera Energy LLC","Metson B105A","Cyclic Steam","0403059655","24","11N","23W","Midway-Sunset","No"]
["Central","NOI - Sidetrack","California Resources Production Corporation","233","Cyclic Steam","0403033128","23","28S","27E","Kern Front","No"]
["Central","NOI - Sidetrack","California Resources Production Corporation","279","Cyclic Steam","0403037749","23","28S","27E","Kern Front","No"]
["Central","NOI - Sidetrack","California Resources Production Corporation","283","Cyclic Steam","0403037752","23","28S","27E","Kern Front","No"]
["Central","NOI - Sidetrack","California Resources Production Corporation","Young Fee 112","Cyclic Steam","0403021771","23","28S","27E","Kern Front","No"]
["Central","NOI - Sidetrack","Chevron U.S.A. Inc.","San Joaquin 273","Cyclic Steam","0402900176","05","29S","28E","Kern River","No"]
["Central","NOI - Sidetrack","Chevron U.S.A. Inc.","San Joaquin 891","Cyclic Steam","0403002381","05","29S","28E","Kern River","No"]
["Northern","NOI - Abandon","Patriot Resources, LLC","Gulf-James W. Rea, Jr. Et Al 2","Water Disposal","0408520007","01","12S","03E","Sargent","No"]
["Southern","NOI - Rework","Tidelands Oil Production Co.","M324D","Observation","0403703444","02","05S","13W","Wilmington","No"]
["Southern","NOI - Rework","Tidelands Oil Production Co.","M324D","Observation","0403703444","02","05S","13W","Wilmington","No"]

{"sheet":"List - Notices Submitted","index":4,"n_rows":206,"n_cols":10,"rows_kept":206,"hidden":true}
[null,"Notice of Intensions (NOI's) Submitted For Week #20 Ending Saturday, May 20th, 2023"]
["District","Notice Type","Operator ","Well Designation","Well Type ","API #","Sec.","Twp.","Rng.","Field "]
["Inland","NOI - Abandon","California Resources Elk Hills, LLC","13-26B","Oil & Gas","0402953417","26","31S","23E","Buena Vista"]
["Inland","NOI - Abandon","California Resources Elk Hills, LLC","15-8D","Oil & Gas","0402911102","08","32S","24E","Buena Vista"]
["Inland","NOI - Abandon","California Resources Elk Hills, LLC","2-14D","Oil & Gas","0402911221","14","32S","24E","Buena Vista"]
["Inland","NOI - Abandon","California Resources Elk Hills, LLC","354H-36R","Oil & Gas","0402958272","36","30S","23E","Elk Hills"]
["Inland","NOI - Abandon","California Resources Elk Hills, LLC","35A-14D","Oil & Gas","0402945917","14","32S","24E","Buena Vista"]
["Inland","NOI - Abandon","California Resources Elk Hills, LLC","381-12C","Oil & Gas","0402909661","12","32S","23E","Buena Vista"]
["Inland","NOI - Abandon","California Resources Elk Hills, LLC","43A-14D","Oil & Gas","0402950287","14","32S","24E","Buena Vista"]
["Inland","NOI - Abandon","California Resources Elk Hills, LLC","5B-14D","Oil & Gas","0402943923","14","32S","24E","Buena Vista"]
["Inland","NOI - Abandon","California Resources Elk Hills, LLC","Balboa W-55-24B","Oil & Gas","0402917399","24","31S","23E","Buena Vista"]
["Inland","NOI - Abandon","California Resources Elk Hills, LLC","Wilkes 3W-28B","Oil & Gas","0402937209","28","31S","23E","Buena Vista"]
["Inland","NOI - Abandon","California Resources Production Corporation","KCL L 71-35","Oil & Gas","0402920824","35","11N","20W","Wheeler Ridge"]
["Inland","NOI - Abandon","California Resources Production Corporation","KCL L 83-35","Oil & Gas","0402920828","35","11N","20W","Wheeler Ridge"]
["Inland","NOI - Abandon","California Resources Production Corporation","KCL M 161X-27","Oil & Gas","0402985309","27","11N","20W","Wheeler Ridge"]
["Inland","NOI - Abandon","California Resources Production Corporation","Midway-McKittrick A 13-30","Oil & Gas","0402925782","30","30S","22E","Belgian Anticline"]
["Inland","NOI - Abandon","California Resources Production Corporation","Midway-McKittrick A 23-30","Oil & Gas","0402925786","30","30S","22E","Belgian Anticline"]
["Inland","NOI - Abandon","California Resources Production Corporation","ROC-KCL G 87-27","Oil & Gas","0402920730","27","11N","20W","Wheeler Ridge"]
["Inland","NOI - Abandon","California Resources Production Corporation","Veon 56-A-24","Oil & Gas","0402925772","24","30S","21E","Belgian Anticline"]
["Inland","NOI - Abandon","California Resources Production Corporation","Veon 76-24","Oil & Gas","0402925766","24","30S","21E","Belgian Anticline"]
["Inland","NOI - Abandon","California Resources Production Corporation","Veon 76-A-24","Oil & Gas","0402925775","24","30S","21E","Belgian Anticline"]
["Inland","NOI - Abandon","Chevron U.S.A. Inc.","1-9W","Oil & Gas","0402984765","33","26S","21E","Lost Hills"]
["Inland","NOI - Abandon","Chevron U.S.A. Inc.","2-20","Steamflood","0402953102","03","29S","28E","Kern River"]
["Inland","NOI - Abandon","Chevron U.S.A. Inc.","33-21","Cyclic Steam","0402900599","33","28S","28E","Kern River"]
["Inland","NOI - Abandon","Chevron U.S.A. Inc.","33-431","Cyclic Steam","0403008034","33","28S","28E","Kern River"]
["Inland","NOI - Abandon","Chevron U.S.A. Inc.","33-469","Cyclic Steam","0403024342","33","28S","28E","Kern River"]
["Inland","NOI - Abandon","Chevron U.S.A. Inc.","35G 124","Cyclic Steam","0402947003","35","31S","22E","Midway-Sunset"]
["Inland","NOI - Abandon","Chevron U.S.A. Inc.","36M 283","Cyclic Steam","0403010611","36","31S","22E","Midway-Sunset"]
["Inland","NOI - Abandon","Chevron U.S.A. Inc.","36M 303","Cyclic Steam","0403000840","36","31S","22E","Midway-Sunset"]
["Inland","NOI - Abandon","Chevron U.S.A. Inc.","36M 303","Cyclic Steam","0403000840","36","31S","22E","Midway-Sunset"]
["Inland","NOI - Abandon","Chevron U.S.A. Inc.","36T 148","Oil & Gas","0402945739","36","31S","22E","Midway-Sunset"]
["Inland","NOI - Abandon","Chevron U.S.A. Inc.","4-2B","Oil & Gas","0403006774","32","26S","21E","Lost Hills"]
["Inland","NOI - Abandon","Chevron U.S.A. Inc.","6-11","Oil & Gas","0402985525","33","26S","21E","Lost Hills"]
["Inland","NOI - Abandon","Chevron U.S.A. Inc.","7-10C","Oil & Gas","0403003867","29","26S","21E","Lost Hills"]
["Inland","NOI - Abandon","Chevron U.S.A. Inc.","7-11B","Oil & Gas","0403009121","29","26S","21E","Lost Hills"]
["Inland","NOI - Abandon","Chevron U.S.A. Inc.","Alma Jr. 504","Steamflood","0402954041","04","29S","28E","Kern River"]
["Inland","NOI - Abandon","Chevron U.S.A. Inc.","Alva 28","Cyclic Steam","0403009801","29","28S","28E","Kern River"]
["Inland","NOI - Abandon","Chevron U.S.A. Inc.","Alva 34","Cyclic Steam","0403042146","29","28S","28E","Kern River"]
["Inland","NOI - Abandon","Chevron U.S.A. Inc.","Amazon 43","Cyclic Steam","0402952174","30","28S","28E","Kern River"]
["Inland","NOI - Abandon","Chevron U.S.A. Inc.","American Crude T.O. 3","Observation","0403002973","29","28S","28E","Kern River"]
["Inland","NOI - Abandon","Chevron U.S.A. Inc.","Angus 818","Steamflood","0402975061","13","28S","27E","Kern River"]
["Inland","NOI - Abandon","Chevron U.S.A. Inc.","Angus TO-1","Observation","0403014354","13","28S","27E","Kern River"]
["Inland","NOI - Abandon","Chevron U.S.A. Inc.","Bishop Fee 15R","Cyclic Steam","0402976244","28","28S","28E","Kern River"]
["Inland","NOI - Abandon","Chevron U.S.A. Inc.","Bishop Fee 168","Cyclic Steam","0402977258","28","28S","28E","Kern River"]
["Inland","NOI - Abandon","Chevron U.S.A. Inc.","Bishop Fee 179","Cyclic Steam","0402977269","28","28S","28E","Kern River"]
["Inland","NOI - Abandon","Chevron U.S.A. Inc.","Bishop Fee 200","Cyclic Steam","0402986743","28","28S","28E","Kern River"]
["Inland","NOI - Abandon","Chevron U.S.A. Inc.","Bishop Fee 25R","Cyclic Steam","0402979317","28","28S","28E","Kern River"]
["Inland","NOI - Abandon","Chevron U.S.A. Inc.","Bishop Fee 64","Cyclic Steam","0402940024","28","28S","28E","Kern River"]
["Inland","NOI - Abandon","Chevron U.S.A. Inc.","Bishop Fee 93","Cyclic Steam","0402952781","28","28S","28E","Kern River"]
["Inland","NOI - Abandon","Chevron U.S.A. Inc.","Bishop Fee T-14","Observation","0402982374","28","28S","28E","Kern River"]
["Inland","NOI - Abandon","Chevron U.S.A. Inc.","Cahn 10-8W","Waterflood","0403000311","04","27S","21E","Lost Hills"]
["Inland","NOI - Abandon","Chevron U.S.A. Inc.","Cahn 4-6","Oil & Gas","0403004580","04","27S","21E","Lost Hills"]
["Inland","NOI - Abandon","Chevron U.S.A. Inc.","Cahn 5-12B","Oil & Gas","0402985610","09","27S","21E","Lost Hills"]
["Inland","NOI - Abandon","Chevron U.S.A. Inc.","Cahn 5-15A","Oil & Gas","0402984522","09","27S","21E","Lost Hills"]
["Inland","NOI - Abandon","Chevron U.S.A. Inc.","Cahn 7-10B","Oil & Gas","0403000660","04","27S","21E","Lost Hills"]
["Inland","NOI - Abandon","Chevron U.S.A. Inc.","Cahn 7-15B","Oil & Gas","0402982779","09","27S","21E","Lost Hills"]
["Inland","NOI - Abandon","Chevron U.S.A. Inc.","Cahn 8-6WA","Waterflood","0403000214","04","27S","21E","Lost Hills"]
["Inland","NOI - Abandon","Chevron U.S.A. Inc.","Cahn 9-10D","Oil & Gas","0403005399","04","27S","21E","Lost Hills"]
["Inland","NOI - Abandon","Chevron U.S.A. Inc.","Cahn 9-7W","Waterflood","0403000209","04","27S","21E","Lost Hills"]
["Inland","NOI - Abandon","Chevron U.S.A. Inc.","Cahn 9-7WB","Waterflood","0403000221","04","27S","21E","Lost Hills"]
["Inland","NOI - Abandon","Chevron U.S.A. Inc.","Cahn 9-8B","Oil & Gas","0403000602","04","27S","21E","Lost Hills"]
["Inland","NOI - Abandon","Chevron U.S.A. Inc.","Canfield 100","Cyclic Steam","0402944103","29","28S","28E","Kern River"]
["Inland","NOI - Abandon","Chevron U.S.A. Inc.","Canfield 120","Cyclic Steam","0402963978","29","28S","28E","Kern River"]
["Inland","NOI - Abandon","Chevron U.S.A. Inc.","Canfield 125","Cyclic Steam","0402965500","29","28S","28E","Kern River"]
["Inland","NOI - Abandon","Chevron U.S.A. Inc.","Canfield 503","Steamflood","0402944018","29","28S","28E","Kern River"]
["Inland","NOI - Abandon","Chevron U.S.A. Inc.","Canfield 504","Cyclic Steam","0402944024","29","28S","28E","Kern River"]
["Inland","NOI - Abandon","Chevron U.S.A. Inc.","Canfield 535","Cyclic Steam","0402944096","29","28S","28E","Kern River"]
["Inland","NOI - Abandon","Chevron U.S.A. Inc.","Canfield 536","Cyclic Steam","0402944001","29","28S","28E","Kern River"]
["Inland","NOI - Abandon","Chevron U.S.A. Inc.","Canfield 543","Steamflood","0402944002","29","28S","28E","Kern River"]
["Inland","NOI - Abandon","Chevron U.S.A. Inc.","Canfield 74","Cyclic Steam","0402942398","29","28S","28E","Kern River"]
["Inland","NOI - Abandon","Chevron U.S.A. Inc.","Canfield 78","Cyclic Steam","0402942479","29","28S","28E","Kern River"]
["Inland","NOI - Abandon","Chevron U.S.A. Inc.","Canfield 92","Cyclic Steam","0402942932","29","28S","28E","Kern River"]
["Inland","NOI - Abandon","Chevron U.S.A. Inc.","Canfield 98","Cyclic Steam","0402942958","29","28S","28E","Kern River"]
["Inland","NOI - Abandon","Chevron U.S.A. Inc.","Canfield T.O. 7","Observation","0403002081","29","28S","28E","Kern River"]
["Inland","NOI - Abandon","Chevron U.S.A. Inc.","Canfield T.O. 9","Observation","0403005834","29","28S","28E","Kern River"]
["Inland","NOI - Abandon","Chevron U.S.A. Inc.","Columbian T.O. 1","Observation","0403006313","29","28S","28E","Kern River"]
["Inland","NOI - Abandon","Chevron U.S.A. Inc.","Cordes 41","Cyclic Steam","0402951011","32","28S","28E","Kern River"]
["Inland","NOI - Abandon","Chevron U.S.A. Inc.","Cordes 516","Steamflood","0403036724","32","28S","28E","Kern River"]
["Inland","NOI - Abandon","Chevron U.S.A. Inc.","Cordes 518","Steamflood","0403036725","32","28S","28E","Kern River"]
["Inland","NOI - Abandon","Chevron U.S.A. Inc.","Cordes 519","Steamflood","0403036726","32","28S","28E","Kern River"]
["Inland","NOI - Abandon","Chevron U.S.A. Inc.","G-1112","Steamflood","0403001205","22","31S","22E","Midway-Sunset"]
["Inland","NOI - Abandon","Chevron U.S.A. Inc.","G-1116","Steamflood","0403001209","22","31S","22E","Midway-Sunset"]
["Inland","NOI - Abandon","Chevron U.S.A. Inc.","G-166","Cyclic Steam","0402941135","22","31S","22E","Midway-Sunset"]
["Inland","NOI - Abandon","Chevron U.S.A. Inc.","G-4812","Cyclic Steam","0403011607","22","31S","22E","Midway-Sunset"]
["Inland","NOI - Abandon","Chevron U.S.A. Inc.","G-5012","Cyclic Steam","0403007674","22","31S","22E","Midway-Sunset"]
["Inland","NOI - Abandon","Chevron U.S.A. Inc.","G-5305","Cyclic Steam","0403011140","22","31S","22E","Midway-Sunset"]
["Inland","NOI - Abandon","Chevron U.S.A. Inc.","G-6115","Cyclic Steam","0403012956","22","31S","22E","Midway-Sunset"]
["Inland","NOI - Abandon","Chevron U.S.A. Inc.","G-6306","Cyclic Steam","0403008332","22","31S","22E","Midway-Sunset"]
["Inland","NOI - Abandon","Chevron U.S.A. Inc.","G-6310","Cyclic Steam","0403000999","22","31S","22E","Midway-Sunset"]
["Inland","NOI - Abandon","Chevron U.S.A. Inc.","Giant 65A","Oil & Gas","0402960220","19","30S","22E","McKittrick"]
["Inland","NOI - Abandon","Chevron U.S.A. Inc.","Hecla T.O. 1","Observation","0403001630","29","28S","28E","Kern River"]
["Inland","NOI - Abandon","Chevron U.S.A. Inc.","HI-1Jv","Cyclic Steam","0401925512","24","20S","14E","Coalinga"]
["Inland","NOI - Abandon","Chevron U.S.A. Inc.","Kern 110","Cyclic Steam","0402928483","32","28S","28E","Kern River"]
["Inland","NOI - Abandon","Chevron U.S.A. Inc.","Kern 112","Cyclic Steam","0402928485","32","28S","28E","Kern River"]
["Inland","NOI - Abandon","Chevron U.S.A. Inc.","Kern 227","Cyclic Steam","0402942617","32","28S","28E","Kern River"]
["Inland","NOI - Abandon","Chevron U.S.A. Inc.","Kern 39","Cyclic Steam","0402928435","32","28S","28E","Kern River"]
["Inland","NOI - Abandon","Chevron U.S.A. Inc.","Kern 440","Cyclic Steam","0403036771","32","28S","28E","Kern River"]
["Inland","NOI - Abandon","Chevron U.S.A. Inc.","Kern 508","Cyclic Steam","0402951107","32","28S","28E","Kern River"]
["Inland","NOI - Abandon","Chevron U.S.A. Inc.","Kern 531","Steamflood","0403036789","32","28S","28E","Kern River"]
["Inland","NOI - Abandon","Chevron U.S.A. Inc.","Kern 532","Steamflood","0403036790","32","28S","28E","Kern River"]
["Inland","NOI - Abandon","Chevron U.S.A. Inc.","Kern 538","Steamflood","0403036796","32","28S","28E","Kern River"]
["Inland","NOI - Abandon","Chevron U.S.A. Inc.","Kern A 212","Cyclic Steam","0403023640","32","28S","28E","Kern River"]
["Inland","NOI - Abandon","Chevron U.S.A. Inc.","Kern A 218","Cyclic Steam","0403024036","32","28S","28E","Kern River"]
["Inland","NOI - Abandon","Chevron U.S.A. Inc.","Kern T.O. 5","Observation","0403000014","32","28S","28E","Kern River"]
["Inland","NOI - Abandon","Chevron U.S.A. Inc.","Mecca 54","Cyclic Steam","0402964990","29","28S","28E","Kern River"]
["Inland","NOI - Abandon","Chevron U.S.A. Inc.","Meek & Stone T.O. 1","Observation","0403001617","29","28S","28E","Kern River"]
["Inland","NOI - Abandon","Chevron U.S.A. Inc.","Meek & Stone T.O. 2","Observation","0403006418","29","28S","28E","Kern River"]
["Inland","NOI - Abandon","Chevron U.S.A. Inc.","Monte Cristo No. 2 3-1","Cyclic Steam","0402924258","32","28S","28E","Kern River"]
["Inland","NOI - Abandon","Chevron U.S.A. Inc.","Monte Cristo No. 2 412T2","Observation","0402987969","32","28S","28E","Kern River"]
["Inland","NOI - Abandon","Chevron U.S.A. Inc.","OB-1","Observation","0402985287","32","26S","21E","Lost Hills"]
["Inland","NOI - Abandon","Chevron U.S.A. Inc.","OB-2","Observation","0402985288","32","26S","21E","Lost Hills"]
["Inland","NOI - Abandon","Chevron U.S.A. Inc.","Potomac 4R","Steamflood","0402976938","29","28S","28E","Kern River"]
["Inland","NOI - Abandon","Chevron U.S.A. Inc.","Quinby 42-A","Oil & Gas","0402911848","19","30S","22E","McKittrick"]
["Inland","NOI - Abandon","Chevron U.S.A. Inc.","Rambler TO-2","Observation","0403014350","19","28S","28E","Kern River"]
["Inland","NOI - Abandon","Chevron U.S.A. Inc.","Section 9 5255","Cyclic Steam","0402982060","09","32S","23E","Midway-Sunset"]
["Inland","NOI - Abandon","Chevron U.S.A. Inc.","Section 9 D260","Cyclic Steam","0403038174","09","32S","23E","Midway-Sunset"]
["Inland","NOI - Abandon","Chevron U.S.A. Inc.","Section 9 E250","Cyclic Steam","0403038175","09","32S","23E","Midway-Sunset"]
["Inland","NOI - Abandon","Chevron U.S.A. Inc.","Section 9 F250","Cyclic Steam","0403038177","09","32S","23E","Midway-Sunset"]
["Inland","NOI - Abandon","Chevron U.S.A. Inc.","USL G-75","Cyclic Steam","0402923192","27","31S","22E","Midway-Sunset"]
["Inland","NOI - Abandon","Chevron U.S.A. Inc.","Vulcan 177","Oil & Gas","0402986598","05","27S","21E","Lost Hills"]
["Inland","NOI - Abandon","Chevron U.S.A. Inc.","W.J. 7","Oil & Gas","0402938091","18","30S","22E","McKittrick"]
["Inland","NOI - Abandon","Drilling & Production Co.","Hahn 1","Oil & Gas","0402938802","12","11N","24W","Midway-Sunset"]
["Inland","NOI - Abandon","E & B Natural Resources Management Corporation","Enas Fee 85-15","Oil & Gas","0402957436","15","27S","27E","Poso Creek"]
["Inland","NOI - Abandon","E & B Natural Resources Management Corporation","S.P. 24","Oil & Gas","0402912232","03","27S","28E","Mount Poso"]
["Inland","NOI - Abandon","Holmes Western Oil Corporation","Cymric-Ohio 15A-T","Oil & Gas","0402976782","21","29S","21E","Cymric"]
["Inland","NOI - Abandon","Holmes Western Oil Corporation","Cymric-Ohio 17A-T","Oil & Gas","0402976784","21","29S","21E","Cymric"]
["Inland","NOI - Abandon","Macpherson Oil Company","KCL 4","Steamflood","0402918255","13","28S","28E","Round Mountain"]
["Inland","NOI - Abandon","Macpherson Oil Company","USL 18 75","Waterflood","0402918025","18","28S","29E","Round Mountain"]
["Inland","NOI - Abandon","Petro Capital Resources, LLC","Sesnon 4","Oil & Gas","0402900401","17","28S","27E","Poso Creek"]
["Inland","NOI - Rework","Aera Energy LLC","447J-7","Observation","0403057405","07","28S","21E","Belridge, South"]
["Inland","NOI - Rework","Aera Energy LLC","Belridge I 8272D-2","Waterflood","0403050283","02","29S","21E","Belridge, South"]
["Inland","NOI - Rework","Aera Energy LLC","Belridge III 8028B-3","Waterflood","0403033397","03","29S","21E","Belridge, South"]
["Inland","NOI - Rework","Aera Energy LLC","DTR 511CR-33","Waterflood","0403043964","33","28S","21E","Belridge, South"]
["Inland","NOI - Rework","Aera Energy LLC","Marina 4397-3","Steamflood","0403004685","03","29S","21E","Belridge, South"]
["Inland","NOI - Rework","Aera Energy LLC","T.O.L. 5588","Steamflood","0403053972","12","26S","20E","Lost Hills"]
["Inland","NOI - Rework","Aera Energy LLC","T.O.L. 5610","Steamflood","0403053977","12","26S","20E","Lost Hills"]
["Inland","NOI - Rework","Aera Energy LLC","T.O.L. 5611R","Steamflood","0403062730","12","26S","20E","Lost Hills"]
["Inland","NOI - Rework","Berry Petroleum Company, LLC","Hill 31DW","Steamflood","0403009211","19","28S","21E","Belridge, South"]
["Inland","NOI - Rework","Berry Petroleum Company, LLC","Hill 51EX","Steamflood","0403020103","19","28S","21E","Belridge, South"]
["Inland","NOI - Rework","Berry Petroleum Company, LLC","Hill 83DX","Steamflood","0403019901","19","28S","21E","Belridge, South"]
["Inland","NOI - Rework","California Resources Elk Hills, LLC","336-35B","Oil & Gas","0402909582","35","31S","23E","Buena Vista"]
["Inland","NOI - Rework","California Resources Elk Hills, LLC","45A-6D","Oil & Gas","0402972659","06","32S","24E","Buena Vista"]
["Inland","NOI - Rework","California Resources Elk Hills, LLC","5-5A-1C","Oil & Gas","0403046720","01","32S","23E","Buena Vista"]
["Inland","NOI - Rework","California Resources Elk Hills, LLC","525-6D","Oil & Gas","0402913361","06","32S","24E","Buena Vista"]
["Inland","NOI - Rework","California Resources Elk Hills, LLC","533-36B","Oil & Gas","0402902214","36","31S","23E","Buena Vista"]
["Inland","NOI - Rework","California Resources Elk Hills, LLC","7-1C","Oil & Gas","0402902483","01","32S","23E","Buena Vista"]
["Inland","NOI - Rework","California Resources Production Corporation","Glide 21 1403Wi","Water Disposal","0403063093","21","27S","28E","Mount Poso"]
["Inland","NOI - Rework","Chevron U.S.A. Inc.","4-8UWR","Waterflood","0403041410","32","26S","21E","Lost Hills"]
["Inland","NOI - Rework","Chevron U.S.A. Inc.","640","Oil & Gas","0403063742","07","32S","23E","Midway-Sunset"]
["Inland","NOI - Rework","Chevron U.S.A. Inc.","661","Cyclic Steam","0403065183","07","32S","23E","Midway-Sunset"]
["Inland","NOI - Rework","Chevron U.S.A. Inc.","76A","Oil & Gas","0403063533","17","32S","23E","Midway-Sunset"]
["Inland","NOI - Rework","Chevron U.S.A. Inc.","872","Oil & Gas","0403029313","17","32S","23E","Midway-Sunset"]
["Inland","NOI - Rework","Chevron U.S.A. Inc.","McPhee 9-9T","Observation","0403001652","36","29S","21E","Cymric"]
["Inland","NOI - Rework","Chevron U.S.A. Inc.","Sea Breeze 3-1AI","Oil & Gas","0403057868","06","30S","22E","Cymric"]
["Inland","NOI - Rework","Chevron U.S.A. Inc.","Sea Breeze 3-1I","Oil & Gas","0403048814","06","30S","22E","Cymric"]
["Inland","NOI - Rework","Chevron U.S.A. Inc.","Sea Breeze 3-2AI","Oil & Gas","0403057869","06","30S","22E","Cymric"]
["Inland","NOI - Rework","Chevron U.S.A. Inc.","Sea Breeze 3-2I","Oil & Gas","0403048815","06","30S","22E","Cymric"]
["Inland","NOI - Rework","Macpherson Oil Company","USL 18 250","Waterflood","0403040579","18","28S","29E","Round Mountain"]
["Inland","NOI - Rework","Macpherson Oil Company","USL 20 153","Steamflood","0403037226","20","28S","29E","Round Mountain"]
["Inland","NOI - Rework","Premier Pumping Unit Services, Inc.","Portals-Berry 66A-4","Water Disposal","0402904775","04","30S","29E","Edison"]
["Inland","NOI - Rework","Premier Pumping Unit Services, Inc.","Portals-Berry 77A-4","Water Disposal","0402900436","04","30S","29E","Edison"]
["Inland","NOI - Rework","San Joaquin Facilities Management, Inc.","Red Ribbon Ranch 35","Water Disposal","0402900712","27","29S","27E","Fruitvale"]
["Inland","NOI - Rework","TRC Operating Company, Inc.","Bull 46","Cyclic Steam","0403028640","22","32S","23E","Midway-Sunset"]
["Inland","NOI - Sidetrack","Chevron U.S.A. Inc.","Calloma 505","Oil & Gas","0402969584","31","28S","28E","Kern River"]
["Inland","NOI - Sidetrack","Chevron U.S.A. Inc.","Monte Cristo No. 1 14-8B","Oil & Gas","0402951191","05","29S","28E","Kern River"]
["Inland","NOI - Sidetrack","E & B Natural Resources Management Corporation","Section 5 8-3A","Oil & Gas","0402916205","05","28S","27E","Poso Creek"]
["Northern","NOI - Abandon","Aera Energy LLC","Lloyd Corp. 10","Oil & Gas","0411103932","24","03N","23W","Ventura"]
["Northern","NOI - Abandon","Berry Petroleum Company, LLC","York 12","Oil & Gas","0403711759","06","03N","15W","Placerita"]
["Northern","NOI - Abandon","Berry Petroleum Company, LLC","York 44","Oil & Gas","0403724139","06","03N","15W","Placerita"]
["Northern","NOI - Abandon","Berry Petroleum Company, LLC","York 45","Oil & Gas","0403724140","06","03N","15W","Placerita"]
["Northern","NOI - Abandon","CalNRG Operating, LLC","Hobson B-28","Oil & Gas","0411106193","16","03N","24W","Rincon"]
["Northern","NOI - Abandon","CalNRG Operating, LLC","Hobson B-38-1","Oil & Gas","0411101721","17","03N","24W","Rincon"]
["Northern","NOI - Abandon","CalNRG Operating, LLC","Hobson B-58","Oil & Gas","0411101788","17","03N","24W","Rincon"]
["Northern","NOI - Abandon","Chevron U.S.A. Inc.","Aurignac (NCT-1) TO2","Observation",405321252,4,"23S","10E","San Ardo"]
["Northern","NOI - Abandon","Chevron U.S.A. Inc.","Orradre 4910","Oil & Gas",405322440,11,"23S","10E","San Ardo"]
["Northern","NOI - Abandon","Chevron U.S.A. Inc.","Orradre 5268-11","Oil & Gas",405321957,11,"23S","10E","San Ardo"]
["Northern","NOI - Abandon","Chevron U.S.A. Inc.","Orradre R12-11","Oil & Gas",405321768,11,"23S","10E","San Ardo"]
["Northern","NOI - New Drill","Trio Petroleum LLC","Hames Valley 2","Oil & Gas","N/A",13,"24S","10E","Any Field - Northern District"]
["Northern","NOI - New Drill","Trio Petroleum LLC","Hames Valley 4","Oil & Gas","N/A",11,"24S","10E","Any Field - Northern District"]
["Northern","NOI - Rework","Aera Energy LLC","Hambey 804-17","Water Disposal",405321484,17,"23S","11E","San Ardo"]
["Northern","NOI - Rework","Aera Energy LLC","V. L. & W. 106","Oil & Gas",411105016,24,"03N","23W","Ventura"]
["Northern","NOI - Rework","Aera Energy LLC","V. L. & W. 62","Injection",411104976,24,"03N","23W","Ventura"]
["Northern","NOI - Rework","Cat Canyon Resources LLC","G.W.P. 948-24","Cyclic Steam",408321262,24,"09N","33W","Cat Canyon"]
["Northern","NOI - Rework","Santa Maria Energy, LLC","Careaga 1312-D","Cyclic Steam",408322949,31,"09N","33W","Orcutt"]
["Northern","NOI - Rework","The Termo Company","Del Aliso 1 9","Oil & Gas",403700662,29,"03N","16W","Aliso Canyon"]
["Northern","NOI - Rework","The Termo Company","USL-G 2","Oil & Gas",403711689,32,"05N","17W","Oak Canyon"]
["Northern","NOI - Sidetrack","Aera Energy LLC","Orradre 1168-12","Cyclic Steam",405322335,12,"23S","10E","San Ardo"]
["Northern","NOI - Sidetrack","Aera Energy LLC","Orradre 1263-12","Cyclic Steam",405322421,12,"23S","10E","San Ardo"]
["Northern","NOI - Sidetrack","Aera Energy LLC","Orradre 1315-12","Cyclic Steam",405322260,12,"23S","10E","San Ardo"]
["Northern","NOI - Sidetrack","Aera Energy LLC","Orradre 1386-12","Cyclic Steam",405322262,12,"23S","10E","San Ardo"]
["Northern","NOI - Sidetrack","Aera Energy LLC","Orradre 1397-11","Cyclic Steam",405321848,11,"23S","10E","San Ardo"]
["Northern","NOI - Sidetrack","Aera Energy LLC","Orradre 1428-12","Cyclic Steam",405322020,12,"23S","10E","San Ardo"]
["Northern","NOI - Sidetrack","Aera Energy LLC","Orradre 1438-12","Cyclic Steam",405322264,12,"23S","10E","San Ardo"]
["Northern","NOI - Sidetrack","Aera Energy LLC","Orradre 1594-12","Cyclic Steam",405322525,12,"23S","10E","San Ardo"]
["Southern","NOI - Abandon","THUMS Long Beach Co.","A-829 I","Injection",423723422,7,"05S","12W","Wilmington"]
["Southern","NOI - Abandon","Warren E&P, Inc.","WTU 1409","Oil & Gas",403701897,33,"04S","13W","Wilmington"]
["Southern","NOI - Abandon","Warren E&P, Inc.","WTU 1871","Oil & Gas",403722216,33,"04S","13W","Wilmington"]
["Southern","NOI - Abandon","Warren E&P, Inc.","WTU 1873","Oil & Gas",403722206,33,"04S","13W","Wilmington"]
["Southern","NOI - Rework","California Resources Long Beach, Inc.","N-3-C S-307","Waterflood",403703857,35,"04S","13W","Wilmington"]
["Southern","NOI - Rework","California Resources Production Corporation","North Bolsa 24-I","Waterflood",405921395,34,"05S","11W","Huntington Beach"]
["Southern","NOI - Rework","California Resources Production Corporation","State Prc 425 CJ-287","Waterflood",405920983,4,"06S","11W","Huntington Beach"]
["Southern","NOI - Rework","California Resources Production Corporation","State Prc 426 4106A","Waterflood",405903225,4,"06S","11W","Huntington Beach"]
["Southern","NOI - Rework","Southern California Gas Company","L-4","Gas Storage",403714036,27,"02S","15W","Playa Del Rey"]
["Southern","NOI - Rework","THUMS Long Beach Co.","A-829 I","Oil & Gas",423723422,7,"05S","12W","Wilmington"]
["Southern","NOI - Rework","THUMS Long Beach Co.","A-861 I","Oil & Gas",423722549,7,"05S","12W","Wilmington"]
["Southern","NOI - Rework","THUMS Long Beach Co.","D-520 I","Oil & Gas",423720306,17,"05S","12W","Wilmington"]

{"sheet":"List - Permits Issued","index":5,"n_rows":181,"n_cols":12,"rows_kept":181,"hidden":true}
[null,"Permits Issued For Week #20 Ending Saturday, May 20th, 2023"]
["District","Notice Type","Operator ","Well Designation","Well Type ","API #","Sec.","Twp.","Rng.","Field ","supli","Permit #"]
["Inland","NOI - Abandon","Aera Energy LLC","22HH2-1","Steamflood","0403004602","01","28S","20E","Belridge, North"]
["Inland","NOI - Abandon","Aera Energy LLC","628A-25","Steamflood","0403041404","25","27S","20E","Belridge, North"]
["Inland","NOI - Abandon","Aera Energy LLC","Belridge 3086-11","Cyclic Steam","0403005641","11","29S","21E","Belridge, South"]
["Inland","NOI - Abandon","Aera Energy LLC","Calso 12-674","Oil & Gas","0402980730","12","30S","21E","McKittrick"]
["Inland","NOI - Abandon","Aera Energy LLC","Calso 12-747R","Steamflood","0403039328","12","30S","21E","McKittrick"]
["Inland","NOI - Abandon","Aera Energy LLC","Calso 12-748R","Steamflood","0403021643","12","30S","21E","McKittrick"]
["Inland","NOI - Abandon","Aera Energy LLC","Calso 12-758","Steamflood","0403002552","12","30S","21E","McKittrick"]
["Inland","NOI - Abandon","Aera Energy LLC","Calso 12-85ER","Oil & Gas","0403015920","12","30S","21E","McKittrick"]
["Inland","NOI - Abandon","Aera Energy LLC","DTR 717DU-34","Steamflood","0403042367","34","28S","21E","Belridge, South"]
["Inland","NOI - Abandon","Aera Energy LLC","DTR 728NL-28","Steamflood","0403041918","28","28S","21E","Belridge, South"]
["Inland","NOI - Abandon","Aera Energy LLC","DTR 733ALR-29","Steamflood","0403051888","29","28S","21E","Belridge, South"]
["Inland","NOI - Abandon","Aera Energy LLC","DTR 733LL-29","Steamflood","0403048261","29","28S","21E","Belridge, South"]
["Inland","NOI - Abandon","Aera Energy LLC","DTR 733NL-29","Steamflood","0403044332","29","28S","21E","Belridge, South"]
["Inland","NOI - Abandon","Aera Energy LLC","DTR 775AU-33","Steamflood","0403026994","33","28S","21E","Belridge, South"]
["Inland","NOI - Abandon","Aera Energy LLC","DTR 775NL-33","Steamflood","0403027001","33","28S","21E","Belridge, South"]
["Inland","NOI - Abandon","Aera Energy LLC","DTR 78K2-28","Oil & Gas","0402978564","28","28S","21E","Belridge, South"]
["Inland","NOI - Abandon","Aera Energy LLC","DTR 916FR-34","Oil & Gas","0403026448","34","28S","21E","Belridge, South"]
["Inland","NOI - Abandon","Aera Energy LLC","DTR 938K-28","Oil & Gas","0403025334","28","28S","21E","Belridge, South"]
["Inland","NOI - Abandon","Aera Energy LLC","DTR 952J-33","Oil & Gas","0403036171","33","28S","21E","Belridge, South"]
["Inland","NOI - Abandon","Aera Energy LLC","Lost Hills Two 17-B","Oil & Gas","0402917553","13","26S","20E","Lost Hills"]
["Inland","NOI - Abandon","Aera Energy LLC","Lost Hills Two 36R-B","Oil & Gas","0403002674","13","26S","20E","Lost Hills"]
["Inland","NOI - Abandon","Aera Energy LLC","Lost Hills Two E17-B","Oil & Gas","0402985000","13","26S","20E","Lost Hills"]
["Inland","NOI - Abandon","Aera Energy LLC","Lost Hills Two T24-B","Oil & Gas","0402984911","13","26S","20E","Lost Hills"]
["Inland","NOI - Abandon","Aera Energy LLC","Young Estate S 5521-11","Steamflood","0403010709","11","29S","21E","Belridge, South"]
["Inland","NOI - Abandon","Berry Petroleum Company, LLC","Hill 434","Oil & Gas","0402984588","19","28S","21E","Belridge, South"]
["Inland","NOI - Abandon","Berry Petroleum Company, LLC","Hill 500A","Oil & Gas","0403029481","19","28S","21E","Belridge, South"]
["Inland","NOI - Abandon","California Resources Elk Hills, LLC","347H-7R","Oil & Gas","0402965425","07","30S","23E","Elk Hills"]
["Inland","NOI - Abandon","California Resources Elk Hills, LLC","354X-7R","Oil & Gas","0403037201","07","30S","23E","Elk Hills"]
["Inland","NOI - Abandon","California Resources Elk Hills, LLC","364-7R","Oil & Gas","0402948151","07","30S","23E","Elk Hills"]
["Inland","NOI - Abandon","California Resources Elk Hills, LLC","366-7R","Oil & Gas","0402948369","07","30S","23E","Elk Hills"]
["Inland","NOI - Abandon","California Resources Elk Hills, LLC","368-7R","Oil & Gas","0402967940","07","30S","23E","Elk Hills"]
["Inland","NOI - Abandon","California Resources Production Corporation","Orchard SB47-12","Oil & Gas","0403027213","12","29S","21E","Belridge, South"]
["Inland","NOI - Abandon","California Resources Production Corporation","Orchard SB6-7","Oil & Gas","0403027992","07","29S","22E","Belridge, South"]
["Inland","NOI - Abandon","Chevron U.S.A. Inc.","18-T.O. 2","Observation","0403002341","18","28S","28E","Kern River"]
["Inland","NOI - Abandon","Chevron U.S.A. Inc.","4-9WB","Waterflood","0403034526","32","26S","21E","Lost Hills"]
["Inland","NOI - Abandon","Chevron U.S.A. Inc.","4-9WD","Waterflood","0403029810","29","26S","21E","Lost Hills"]
["Inland","NOI - Abandon","Chevron U.S.A. Inc.","5-11WA","Waterflood","0403032542","32","26S","21E","Lost Hills"]
["Inland","NOI - Abandon","Chevron U.S.A. Inc.","8-7D","Oil & Gas","0403021939","32","26S","21E","Lost Hills"]
["Inland","NOI - Abandon","Chevron U.S.A. Inc.","9-8WDR","Waterflood","0403055836","32","26S","21E","Lost Hills"]
["Inland","NOI - Abandon","Chevron U.S.A. Inc.","Alma Jr. 501","Steamflood","0402940703","04","29S","28E","Kern River"]
["Inland","NOI - Abandon","Chevron U.S.A. Inc.","Amazon 61","Cyclic Steam","0402974995","30","28S","28E","Kern River"]
["Inland","NOI - Abandon","Chevron U.S.A. Inc.","Bald Eagle Jr. & Eaglet T.O. 2","Observation","0403000552","30","28S","28E","Kern River"]
["Inland","NOI - Abandon","Chevron U.S.A. Inc.","Bishop Fee 10A","Cyclic Steam","0402953685","28","28S","28E","Kern River"]
["Inland","NOI - Abandon","Chevron U.S.A. Inc.","Bishop Fee 14R","Cyclic Steam","0402969764","28","28S","28E","Kern River"]
["Inland","NOI - Abandon","Chevron U.S.A. Inc.","Bishop Fee 33R","Cyclic Steam","0402985974","28","28S","28E","Kern River"]
["Inland","NOI - Abandon","Chevron U.S.A. Inc.","Bishop Fee TO-3","Observation","0403014347","28","28S","28E","Kern River"]
["Inland","NOI - Abandon","Chevron U.S.A. Inc.","Cahn 11-15C","Oil & Gas","0403004625","09","27S","21E","Lost Hills"]
["Inland","NOI - Abandon","Chevron U.S.A. Inc.","Cahn 4-138","Oil & Gas","0402964623","04","27S","21E","Lost Hills"]
["Inland","NOI - Abandon","Chevron U.S.A. Inc.","Cahn 4-13C","Oil & Gas","0402988764","09","27S","21E","Lost Hills"]
["Inland","NOI - Abandon","Chevron U.S.A. Inc.","Cahn 7-12E","Oil & Gas","0403005439","09","27S","21E","Lost Hills"]
["Inland","NOI - Abandon","Chevron U.S.A. Inc.","Cahn 8-12E","Oil & Gas","0403005441","09","27S","21E","Lost Hills"]
["Inland","NOI - Abandon","Chevron U.S.A. Inc.","Cahn 9-14D","Oil & Gas","0403005785","09","27S","21E","Lost Hills"]
["Inland","NOI - Abandon","Chevron U.S.A. Inc.","Cahn DHW-1","Oil & Gas","0403006681","09","27S","21E","Lost Hills"]
["Inland","NOI - Abandon","Chevron U.S.A. Inc.","Canfield 150","Cyclic Steam","0402968461","29","28S","28E","Kern River"]
["Inland","NOI - Abandon","Chevron U.S.A. Inc.","Canfield 516","Cyclic Steam","0402942918","29","28S","28E","Kern River"]
["Inland","NOI - Abandon","Chevron U.S.A. Inc.","Chicago Crude 83","Cyclic Steam","0402944342","30","28S","28E","Kern River"]
["Inland","NOI - Abandon","Chevron U.S.A. Inc.","Cork 55-28","Cyclic Steam","0402940049","28","28S","28E","Kern River"]
["Inland","NOI - Abandon","Chevron U.S.A. Inc.","Globe TO-2","Observation","0403014920","30","28S","28E","Kern River"]
["Inland","NOI - Abandon","Chevron U.S.A. Inc.","Kern 209","Cyclic Steam","0402940462","32","28S","28E","Kern River"]
["Inland","NOI - Abandon","Chevron U.S.A. Inc.","Lost Hills Fee I 606","Oil & Gas","0402965483","23","27S","21E","Lost Hills"]
["Inland","NOI - Abandon","Chevron U.S.A. Inc.","McManus 153","Observation","0402986386","11","29S","28E","Kern River"]
["Inland","NOI - Abandon","Chevron U.S.A. Inc.","Monte Cristo 181X","Oil & Gas","0402960261","16","27S","21E","Lost Hills"]
["Inland","NOI - Abandon","Chevron U.S.A. Inc.","Omar 502","Cyclic Steam","0402951109","32","28S","28E","Kern River"]
["Inland","NOI - Abandon","Chevron U.S.A. Inc.","Perseus 7","Cyclic Steam","0402922752","29","28S","28E","Kern River"]
["Inland","NOI - Abandon","Chevron U.S.A. Inc.","Potomac 27","Cyclic Steam","0402951373","29","28S","28E","Kern River"]
["Inland","NOI - Abandon","Chevron U.S.A. Inc.","Reed Crude 135","Cyclic Steam","0402970676","32","28S","28E","Kern River"]
["Inland","NOI - Abandon","Chevron U.S.A. Inc.","San Joaquin 877R","Oil & Gas","0403030907","05","29S","28E","Kern River"]
["Inland","NOI - Abandon","Holmes Western Oil Corporation","Midway-Premier 22-85","Oil & Gas","0402955793","22","29S","21E","Cymric"]
["Inland","NOI - Abandon","Macpherson Oil Company","USL 20 WD 1","Water Disposal","0402969119","20","28S","29E","Round Mountain"]
["Inland","NOI - Abandon","Sentinel Peak Resources California LLC","Ellis 118-9","Oil & Gas","0403001592","09","27S","21E","Lost Hills"]
["Inland","NOI - Abandon","Sentinel Peak Resources California LLC","Ellis 129-9","Oil & Gas","0403001594","09","27S","21E","Lost Hills"]
["Inland","NOI - Abandon","Sentinel Peak Resources California LLC","Ellis 217-9","Oil & Gas","0403006016","09","27S","21E","Lost Hills"]
["Inland","NOI - Abandon","Sentinel Peak Resources California LLC","Ellis 227-9","Oil & Gas","0403004884","09","27S","21E","Lost Hills"]
["Inland","NOI - Abandon","Sentinel Peak Resources California LLC","Welport I-26","Steamflood","0403006762","36","29S","21E","Cymric"]
["Inland","NOI - Abandon","Sentinel Peak Resources California LLC","Welport I-27","Steamflood","0403006763","36","29S","21E","Cymric"]
["Inland","NOI - Abandon","Sentinel Peak Resources California LLC","Welport I-28","Steamflood","0403006764","36","29S","21E","Cymric"]
["Inland","NOI - Abandon","Sentinel Peak Resources California LLC","Welport I-29","Steamflood","0403006765","36","29S","21E","Cymric"]
["Inland","NOI - Abandon","Sentinel Peak Resources California LLC","Welport I-32","Steamflood","0403006768","36","29S","21E","Cymric"]
["Inland","NOI - New Drill","E & B Natural Resources Management Corporation","Midway Premier 10-6i","Steamflood","0403069738","32","27S","27E","Poso Creek"]
["Inland","NOI - New Drill","E & B Natural Resources Management Corporation","Midway Premier 11-4i","Steamflood","0403069739","32","27S","27E","Poso Creek"]
["Inland","NOI - New Drill","E & B Natural Resources Management Corporation","Midway Premier 11-5i","Steamflood","0403069741","32","27S","27E","Poso Creek"]
["Inland","NOI - New Drill","E & B Natural Resources Management Corporation","Midway Premier 11-6i","Steamflood","0403069740","32","27S","27E","Poso Creek"]
["Inland","NOI - Rework","Aera Energy LLC","447J-7","Observation","0403057405","07","28S","21E","Belridge, South"]
["Inland","NOI - Rework","Aera Energy LLC","528C1-20","Oil & Gas","0403043197","20","28S","21E","Belridge, South"]
["Inland","NOI - Rework","Aera Energy LLC","Belridge 5010-11","Steamflood","0403007053","11","29S","21E","Belridge, South"]
["Inland","NOI - Rework","Aera Energy LLC","Belridge 5184A-11","Steamflood","0403030178","11","29S","21E","Belridge, South"]
["Inland","NOI - Rework","Aera Energy LLC","Belridge 5205-11","Steamflood","0403006529","11","29S","21E","Belridge, South"]
["Inland","NOI - Rework","Aera Energy LLC","Belridge 5287-11","Steamflood","0403008855","11","29S","21E","Belridge, South"]
["Inland","NOI - Rework","Aera Energy LLC","Belridge K & K 5316-11","Steamflood","0403010784","11","29S","21E","Belridge, South"]
["Inland","NOI - Rework","Aera Energy LLC","Marina 4397-3","Steamflood","0403004685","03","29S","21E","Belridge, South"]
["Inland","NOI - Rework","Aera Energy LLC","Marina 5033-10","Steamflood","0403005690","10","29S","21E","Belridge, South"]
["Inland","NOI - Rework","Aera Energy LLC","Marina 5177-10","Steamflood","0403010714","10","29S","21E","Belridge, South"]
["Inland","NOI - Rework","Aera Energy LLC","Marina 5358A-11","Steamflood","0403026591","11","29S","21E","Belridge, South"]
["Inland","NOI - Rework","Aera Energy LLC","Marina 5362-11","Steamflood","0403030533","11","29S","21E","Belridge, South"]
["Inland","NOI - Rework","Aera Energy LLC","Marina 5617A-3","Steamflood","0403051817","03","29S","21E","Belridge, South"]
["Inland","NOI - Rework","Aera Energy LLC","SEBU T 3423C-1","Cyclic Steam","0403068296","01","29S","21E","Belridge, South"]
["Inland","NOI - Rework","Aera Energy LLC","SEBU T 5233-12","Steamflood","0403017857","12","29S","21E","Belridge, South"]
["Inland","NOI - Rework","Aera Energy LLC","SEBU T 5267-12","Steamflood","0403020188","12","29S","21E","Belridge, South"]
["Inland","NOI - Rework","Aera Energy LLC","SEBU T 5270-12","Steamflood","0403020189","12","29S","21E","Belridge, South"]
["Inland","NOI - Rework","Aera Energy LLC","SEBU T 5319-12","Steamflood","0403020191","12","29S","21E","Belridge, South"]
["Inland","NOI - Rework","Aera Energy LLC","SEBU T 5323-12","Steamflood","0403022017","12","29S","21E","Belridge, South"]
["Inland","NOI - Rework","Aera Energy LLC","SEBU T 5346-1","Steamflood","0403007464","01","29S","21E","Belridge, South"]
["Inland","NOI - Rework","Aera Energy LLC","SEBU T 5372-12","Steamflood","0403020195","12","29S","21E","Belridge, South"]
["Inland","NOI - Rework","Aera Energy LLC","SEBU T 5374-12","Steamflood","0403022019","12","29S","21E","Belridge, South"]
["Inland","NOI - Rework","Aera Energy LLC","St. Clair 5051-2","Steamflood","0403025621","02","29S","21E","Belridge, South"]
["Inland","NOI - Rework","Aera Energy LLC","Young Estate S 5244-11","Steamflood","0403010698","11","29S","21E","Belridge, South"]
["Inland","NOI - Rework","Aera Energy LLC","Young Estate S 5400-11","Steamflood","0403010703","11","29S","21E","Belridge, South"]
["Inland","NOI - Rework","Berry Petroleum Company, LLC","C-22","Cyclic Steam","0403068619","21","30S","22E","McKittrick"]
["Inland","NOI - Rework","Berry Petroleum Company, LLC","E-19","Cyclic Steam","0403069011","21","30S","22E","McKittrick"]
["Inland","NOI - Rework","Berry Petroleum Company, LLC","E-24","Cyclic Steam","0403069027","21","30S","22E","McKittrick"]
["Inland","NOI - Rework","Berry Petroleum Company, LLC","F-23","Cyclic Steam","0403065780","21","30S","22E","McKittrick"]
["Inland","NOI - Rework","Berry Petroleum Company, LLC","G-13","Oil & Gas","0403046012","21","30S","22E","McKittrick"]
["Inland","NOI - Rework","Berry Petroleum Company, LLC","GH-20Xi","Steamflood","0403065787","21","30S","22E","McKittrick"]
["Inland","NOI - Rework","Berry Petroleum Company, LLC","H-20","Oil & Gas","0403043444","21","30S","22E","McKittrick"]
["Inland","NOI - Rework","Berry Petroleum Company, LLC","J-13","Oil & Gas","0403043280","21","30S","22E","McKittrick"]
["Inland","NOI - Rework","Berry Petroleum Company, LLC","J-21","Oil & Gas","0403046024","21","30S","22E","McKittrick"]
["Inland","NOI - Rework","Berry Petroleum Company, LLC","J-22","Oil & Gas","0403046025","21","30S","22E","McKittrick"]
["Inland","NOI - Rework","Berry Petroleum Company, LLC","M-11","Oil & Gas","0403046044","21","30S","22E","McKittrick"]
["Inland","NOI - Rework","Berry Petroleum Company, LLC","M-12","Oil & Gas","0403046046","21","30S","22E","McKittrick"]
["Inland","NOI - Rework","Berry Petroleum Company, LLC","M26","Cyclic Steam","0403064877","21","30S","22E","Asphalto"]
["Inland","NOI - Rework","Berry Petroleum Company, LLC","MN24I","Steamflood","0403064883","21","30S","22E","Asphalto"]
["Inland","NOI - Rework","Berry Petroleum Company, LLC","N-16","Oil & Gas","0403043381","21","30S","22E","McKittrick"]
["Inland","NOI - Rework","Berry Petroleum Company, LLC","O-19","Oil & Gas","0403043450","21","30S","22E","McKittrick"]
["Inland","NOI - Rework","Berry Petroleum Company, LLC","O-24","Oil & Gas","0403047735","21","30S","22E","McKittrick"]
["Inland","NOI - Rework","Berry Petroleum Company, LLC","OQ25I","Steamflood","0403064870","21","30S","22E","Asphalto"]
["Inland","NOI - Rework","Berry Petroleum Company, LLC","QR-26i","Steamflood","0403065723","21","30S","22E","Asphalto"]
["Inland","NOI - Rework","California Resources Elk Hills, LLC","545-11D","Oil & Gas","0403018875","11","32S","24E","Buena Vista"]
["Inland","NOI - Rework","California Resources Production Corporation","Paloma 26X-2","Oil & Gas","0402972388","02","32S","26E","Paloma"]
["Inland","NOI - Rework","California Resources Production Corporation","Sill Two 56","Oil & Gas","0403054142","26","28S","27E","Kern Front"]
["Inland","NOI - Rework","Chevron U.S.A. Inc.","15-4ST","Observation","0403024538","17","30S","22E","McKittrick"]
["Inland","NOI - Rework","Chevron U.S.A. Inc.","6691","Oil & Gas","0403069212","07","30S","22E","McKittrick"]
["Inland","NOI - Rework","Chevron U.S.A. Inc.","McKittrick Fee 3807ST","Observation","0403032381","08","30S","22E","Cymric"]
["Inland","NOI - Rework","Chevron U.S.A. Inc.","McKittrick Fee 3930ST","Observation","0403029159","08","30S","22E","Cymric"]
["Inland","NOI - Rework","Chevron U.S.A. Inc.","McKittrick Fee 4110ST","Observation","0403022525","08","30S","22E","Cymric"]
["Inland","NOI - Rework","Crimson Resource Management Corp.","Section 2 BE-Q4A","Cyclic Steam","0403032976","02","26S","20E","Lost Hills"]
["Inland","NOI - Rework","Crimson Resource Management Corp.","Section 2 BE-Q5","Cyclic Steam","0403032985","02","26S","20E","Lost Hills"]
["Inland","NOI - Rework","Crimson Resource Management Corp.","Section 2 ET-K16i","Steamflood","0403053221","02","26S","20E","Lost Hills"]
["Inland","NOI - Rework","Crimson Resource Management Corp.","Section 34 BT-J12","Cyclic Steam","0403047518","34","25S","20E","Lost Hills"]
["Inland","NOI - Rework","Crimson Resource Management Corp.","Section 34 BT-N21I","Steamflood","0403051640","34","25S","20E","Lost Hills"]
["Inland","NOI - Rework","Crimson Resource Management Corp.","Section 34 ET-K20i","Steamflood","0403050939","34","25S","20E","Lost Hills"]
["Inland","NOI - Rework","Crimson Resource Management Corp.","Section 35 AT-W2","Cyclic Steam","0403045352","35","25S","20E","Lost Hills"]
["Inland","NOI - Sidetrack","Aera Energy LLC","521F2-1","Waterflood","0403044255","01","28S","20E","Belridge, North"]
["Inland","NOI - Sidetrack","Aera Energy LLC","DTR 534ZR2-29","Waterflood","0403044193","29","28S","21E","Belridge, South"]
["Inland","NOI - Sidetrack","Aera Energy LLC","Lost Hills One 8501","Waterflood","0403028819","05","27S","21E","Lost Hills"]
["Inland","NOI - Sidetrack","Berry Petroleum Company, LLC","Fairfield 61-71","Cyclic Steam","0403049745","11","31S","22E","Midway-Sunset"]
["Inland","NOI - Sidetrack","Berry Petroleum Company, LLC","Fairfield 62-72","Cyclic Steam","0403049749","11","31S","22E","Midway-Sunset"]
["Inland","NOI - Sidetrack","Berry Petroleum Company, LLC","Fairfield 64-68","Oil & Gas","0403049752","11","31S","22E","Midway-Sunset"]
["Inland","NOI - Sidetrack","Berry Petroleum Company, LLC","Fairfield 64-70","Cyclic Steam","0403049822","11","31S","22E","Midway-Sunset"]
["Inland","NOI - Sidetrack","Berry Petroleum Company, LLC","Fairfield 64-74","Cyclic Steam","0403049824","11","31S","22E","Midway-Sunset"]
["Inland","NOI - Sidetrack","Berry Petroleum Company, LLC","Fairfield 65-73","Cyclic Steam","0403049828","11","31S","22E","Midway-Sunset"]
["Inland","NOI - Sidetrack","Berry Petroleum Company, LLC","Fairfield 66-72","Oil & Gas","0403054896","11","31S","22E","Midway-Sunset"]
["Northern","NOI - Abandon","Aera Energy LLC","V. L. & W. 63","Oil & Gas","0411104201","24","03N","23W","Ventura"]
["Northern","NOI - Abandon","Berry Petroleum Company, LLC","Vagabond-Poco T-2","Oil & Gas","0403722330","06","03N","15W","Placerita"]
["Northern","NOI - Abandon","Carbon California Operating Company, LLC","Ojai 501","Oil & Gas","0411120817","13","04N","22W","Ojai"]
["Northern","NOI - Abandon","Carbon California Operating Company, LLC","Strand 1","Oil & Gas","0411101859","29","05N","19W","Sespe"]
["Northern","NOI - Abandon","HVI Cat Canyon, Inc.","Harbordt 15-14","Oil & Gas","0408321453","11","09N","33W","Cat Canyon"]
["Northern","NOI - Abandon","HVI Cat Canyon, Inc.","Harbordt 6-15","Oil & Gas","0408320786","11","09N","33W","Cat Canyon"]
["Northern","NOI - Abandon","HVI Cat Canyon, Inc.","Harbordt 7-14","Oil & Gas","0408320787","11","09N","33W","Cat Canyon"]
["Northern","NOI - Abandon","HVI Cat Canyon, Inc.","Lakeview 77-8","Oil & Gas","0408320296","08","09N","33W","Santa Maria Valley"]
["Northern","NOI - Abandon","HVI Cat Canyon, Inc.","Mortensen Fee 1","Oil & Gas","0408301387","11","09N","33W","Cat Canyon"]
["Northern","NOI - Abandon","HVI Cat Canyon, Inc.","Mortensen Fee 14-10","Oil & Gas","0408320946","11","09N","33W","Cat Canyon"]
["Northern","NOI - Abandon","HVI Cat Canyon, Inc.","Mortensen Fee 14-5","Oil & Gas","0408321875","11","09N","33W","Cat Canyon"]
["Northern","NOI - Abandon","HVI Cat Canyon, Inc.","Mortensen Fee 15-5A","Oil & Gas","0408321665","11","09N","33W","Cat Canyon"]
["Northern","NOI - Abandon","HVI Cat Canyon, Inc.","Mortensen-Harbordt 10-12","Steamflood","0408321428","11","09N","33W","Cat Canyon"]
["Northern","NOI - Abandon","HVI Cat Canyon, Inc.","Mortensen-Harbordt 13-12","Oil & Gas","0408321483","11","09N","33W","Cat Canyon"]
["Northern","NOI - Abandon","HVI Cat Canyon, Inc.","Mortensen-Harbordt 14-12","Oil & Gas","0408321484","11","09N","33W","Cat Canyon"]
["Northern","NOI - Abandon","HVI Cat Canyon, Inc.","Mortensen-Harbordt 8-12","Steamflood","0408321426","11","09N","33W","Cat Canyon"]
["Northern","NOI - Abandon","The Termo Company","So.  Mountain FB I Unit 5","Oil & Gas","0411103154","29","03N","20W","South Mountain"]
["Northern","NOI - Abandon","Thompson Oil Company, Inc.","Ojai 40","Oil & Gas","0411101022","17","04N","21W","Ojai"]
["Northern","NOI - Rework","Aera Energy LLC","Hartman East 22","Oil & Gas","0411104642","22","03N","23W","Ventura"]
["Northern","NOI - Rework","Aera Energy LLC","Taylor 465","Waterflood","0411102281","20","03N","23W","Ventura"]
["Northern","NOI - Rework","Aera Energy LLC","Taylor 541","Waterflood","0411105344","19","03N","23W","Ventura"]
["Northern","NOI - Rework","Aera Energy LLC","Taylor 771","Waterflood","0411121960","19","03N","23W","Ventura"]
["Northern","NOI - Rework","Aera Energy LLC","V. L. & W. 166","Oil & Gas","0411121417","24","03N","23W","Ventura"]
["Northern","NOI - Rework","Aera Energy LLC","V. L. & W. 49","Oil & Gas","0411104963","24","03N","23W","Ventura"]
["Northern","NOI - Rework","Carbon California Operating Company, LLC","Hamp Fee 34","Oil & Gas","0411120347","17","04N","21W","Ojai"]
["Northern","NOI - Sidetrack","ABA Energy Corporation","Gus Maulhardt 5","Oil & Gas","0411122389","12","01N","22W","Oxnard"]
["Southern","NOI - Abandon","Oil Operators Inc.","Butler 1","Oil & Gas","0403710008","19","04S","12W","Long Beach"]
["Southern","NOI - Rework","Bridgeland Resources, LLC","Dowlen-Federal 2","Oil & Gas","0403716756","28","01S","15W","Sawtelle"]